Workbook

Sheet Guide
A1: Guide
A3: Contents
B4: =HYPERLINK("#" & CELL("address", A15), A15) -> User Guide
C5: =HYPERLINK("#" & CELL("address", B17), B17) -> Overview
C6: =HYPERLINK("#" & CELL("address", B27), B27) -> Sheet descriptions
C7: =HYPERLINK("#" & CELL("address", B43), B43) -> Sheet structure diagram
C8: =HYPERLINK("#" & CELL("address", B66), B66) -> User Summary
C9: =HYPERLINK("#" & CELL("address", B83), B83) -> Navigation tips
B10: =HYPERLINK("#" & CELL("address", A106), A106) -> Developer Guide
C11: =HYPERLINK("#" & CELL("address", B108), B108) -> VBA description
C12: =HYPERLINK("#" & CELL("address", B115), B115) -> Formatting and colour coding
A15: User Guide
B17: Overview
D19: Name | E19: The MacKay Carbon Calculator
D20: Purpose | E20: To provide a model of the Kenyan energy system that allows you to explore pathways to decarbonisation, including net zero by 2050 and on to 2100.
D21: Owner / Contact | E21: BEIS Central Modelling Team
D22: Version number | E22: 198
D23: Link to model's QA log | E23: Internal document
D24: Link to model's assumptions log | E24: Assumptions Log Contained within model
B27: Sheet descriptions
D28: Updated | E28: V198.0
D30: Sheet | E30: Category | F30: Description
D31: =HYPERLINK("#" & CELL("address", Guide!$A$1), Guide!$A$1) -> Guide | E31: Documentation | F31: User and developer guidance
D32: =HYPERLINK("#" & CELL("address", Control!$A$1), Control!$A$1) -> Control | E32: User Control | F32: User lever and unit selections. Basic chart outputs.
D33: =HYPERLINK("#" & CELL("address", OnePager!$A$1), OnePager!$A$1) -> OnePager | E33: Documentation | F33: This sheet contains equivalent graphs, tables and priority flow diagrams to those presented in the model one pagers.
D34: =HYPERLINK("#" & CELL("address", WebOutputs!$A$1), WebOutputs!$A$1) -> Web Outputs | E34: Outputs | F34: Outputs to populate the graphs displayed on the webtool.
D35: =HYPERLINK("#" & CELL("address", Results!$A$1), Results!$A$1) -> Results | E35: Outputs | F35: Model output extraction, processing and visualisation.
D36: =HYPERLINK("#" & CELL("address", EnergyBalance!$A$1), EnergyBalance!$A$1) -> EnergyBalance | E36: Outputs | F36: Full energy and emissions balance for a single year
D37: =HYPERLINK("#" & CELL("address", Model!$A$1), Model!$A$1) -> Model | E37: Transformations & Assumptions | F37: Model inputs and transformations including full assumptions log
D38: =HYPERLINK("#" & CELL("address", FullTimeSeries!$A$1), FullTimeSeries!$A$1) -> FullTimeSeries | E38: Transformations & Assumptions | F38: Capacity and cost calculations performed at single year time intervals
D39: =HYPERLINK("#" & CELL("address", Method!$A$1), Method!$A$1) -> Method | E39: Documentation | F39: Model documentation
D40: =HYPERLINK("#" & CELL("address", NameConv!$A$1), NameConv!$A$1) -> NameConv | E40: Documentation | F40: Model naming convention
D41: SourceLog | E41: Documentation | F41: Log of Primary Input Sources for the UK Energy Pathways Calculator
B43: Sheet structure diagram
D44: Diagram of how model sheets interact.
D45: All boxes are hyperlinks to navigate to the sheet described.
B66: User Summary
C67: Model User
D68: Relevant sheets
E69: =HYPERLINK("#" & CELL("address", Control!$A$1), Control!$A$1) -> Control | F69: Set up your pathway and select the units you wish results to be presented in.
E70: =HYPERLINK("#" & CELL("address", Results!$A$1), Results!$A$1) -> Results | F70: View detailed results from your pathway
E71: =HYPERLINK("#" & CELL("address", EnergyBalance!$A$1), EnergyBalance!$A$1) -> EnergyBalance | F71: Detailed energy and emissions balance for a single year selected by the user.
F72: Columns represent different energy vectors or pollutants
F73: Rows represent different technologies or processes.
C75: Model Reviewer
D76: Relevant sheets
E77: All sheets listed relevant for a model user
E78: =HYPERLINK("#" & CELL("address", Method!$A$1), Method!$A$1) -> Method | F78: Review the methodology used to represent the energy system in each area
E79: =HYPERLINK("#" & CELL("address", Model!$A$1), Model!$A$1) -> Model | F79: Review the implementation of the methodology and the assumptions used. Assumptions are referenced to the right of the model equations (link below).
F80: =HYPERLINK("#" & CELL("address", Model!$AJ$1), Model!$AJ$1) -> Assumptions log
B83: Navigation tips
C84: The model is designed for ease of navigation when using keyboard shortcuts.
C85: Useful shortcuts
D86: Trace precedents - Ctrl + [
E87: Selects all precedents of a formula
E88: These can by cycled through using the enter key.
E89: Make sure the clipboard is empty (using the 'Esc' key) before performing this operation to avoid pasting the contents of the clipboard when the enter key is used.
D90: Go to - Ctrl + g
E91: List of cells to navigate to
E92: The cell automatically selected is usually the last cell navigated away from using trace precedents (Ctrl + [) so pressing the enter key returns to this cell.
D94: Jump to the next populated cell in the column (Ctrl + down arrow) or in the row (Ctrl + right arrow)
E95: Useful for navigating indented heading lists.
C96: Other Tips
D97: Filtering of tables
E98: Large tables such as the model sheet have been present with filters.
E99: Use the downward arrow in the heading column to filter each column
E100: This is particularly useful to identify
F101: All information (assumptions, transformations and results) for a specific technology or process. Filter on 'Process' column
F102: All information on a particular fuel vector or pollutant. Filter on 'Vector' or 'Pollutant' column.
F103: All assumptions of a particular type (e.g. all efficiencies). Filter on 'Attribute' column.
F104: etc…
A106: Developer Guide
B108: VBA description
D109: Macro | E109: Description
D110: CreateAndReplaceNR() | E110: Macro to automate assigning or overwriting named ranges to single or ranges of cells.
D111: DeleteNamedRange() | E111: Delete a single named range by specifying its name.
D112: NamedRangeListNewSheet() | E112: Report a complete list of named ranges with live cell references to a new sheet.
B115: Formatting and colour coding
C116: Blank cell indicator
D117: A blank cell indicator is used to show where cells have deliberately been left blank.
D118: Blank = | E118: …
C120: Cell Styles
D121: Cell styles do not overwrite number formats
F125: *Set named cell styles to use font "Terminal" (monospaced font meaning all characters are the same width)
F126: *Set named cell styles to use font "Terminal" (monospaced font meaning all characters are the same width)
F127: *Set named cell styles to use font "Terminal" (monospaced font meaning all characters are the same width)
E128: Tmpl_UserInput
C131: Filter Categories
D132: Type of data
E133: OptionList_Type_of_data
E134: Model Input | F134: Data/assumptions that are required for model calculations. These will always be in the correct form and user preference units.
E135: Transformation | F135: Model equations to transform Model Inputs into Outputs or intermediate steps.
E136: Backing Data | F136: Data/assumptions that are required to derive Model Inputs. Backing Data is not used directly in model calculations and by definition is redundant if source data is in the exact form required by the model (only possible for attributes without units).
E137: Output | F137: Useful model outputs. (Unlikely to be required if Assumptions Log sheet does not contain the model methodology)
E138: Check | F138: Some checks to identify calculation errors. These should be designed to equal zero if there are no errors.
E139: Redundant | F139: Sources, assumptions and transformations on which model calculations have no dependence. By definition this information is redundant to the operation of the model and could be removed. This information is present in the model for information/context and if no longer useful should be deleted.
D141: Assumption Category
E142: OptionList_Assumption_Category
E143: Source | F143: Data/assumptions from a primary (external source). Always constants.
E144: Unit Transformation | F144: Conversion of a source to user preference units. Always formulae.
E145: Transformation | F145: Transformation of data. Basic mathematical or physical transformation which is deemed not to require documentation. Always formulae.
E146: Assumption | F146: Transformation of data (formula). Transformation where an assumption is being made that requires documentation. E.g. setting the property of one technology equal to another, grouping technologies into categories, etc. Always formulae.
E147: Lookup | F147: Data/Assumptions linked directly to other cells without being transformed. Always formulae.
D149: Source Units or Preference Units
E150: OptionList_Source_Units_or_Preference_Units
E151: su | F151: Source Units - fixed units matching that of the original data source. Test - Units column fixed value.
E152: pu | F152: Preference Units – flexible units corresponding to the user selected preference units. Test - Units column formula.
E153: nu | F153: No Units, e.g. Efficiency defining the energy output per unit energy input (energy unit / energy unit = no unit). Test - Units column blank cell indicator or clearly unit-less commodity.
D156: Method ID (Data Type)
E157: OptionList_Method_ID
E158: Fact | F158: Indisputably and objectively true, e.g. February has 28.25 days.
E159: Measured | F159: Actual experimental measurements, e.g. Energy Savings Trust boiler efficiencies measured from a set of instrumented houses over several winters.
E160: Survey | F160: Results from a consultant’s telephone survey or otherwise asking people what they remembered about something, e.g. the Sweett survey of boiler costs.
E161: Modelling decision | F161: These are things like scrappage decisions which are modelling decisions in the Calculator and not derived from public data.
E162: Opinion | F162: this is where the value is set by the data-sourcer based on their expert judgement or when the data-sourcer is prepared to accept a source from another model which has little documentation. The Notes column should be used to justify your reason for this opinion and the Quality column should reflect your confidence in the data quality (qual desc can say why).
E163: PLACEHOLDER | F163: where still just the placeholder value
E164: DEFER | F164: For cost and air quality assumptions. We are deferring them until after the workshops. (the published model should have no defers)
D167: Quality Rating
E168: The ‘quality’ of an assumption measures both how certain and robust an assumption is and how appropriate it is for its intended use.
E169: We would consider a published data source like DUKES or ONS data as very robust, but if it needs to be transformed significantly to fit the model, the quality rating would be downgraded.
E170: You may want to lower the quality rating if it is not possible to get technical sign-off for the assumptions (e.g. lack of technical knowledge).
E171: You will also want to lower the quality if the confidence interval is likely to be wide (i.e. you wouldn't be surprised if the value was 50% different) - in this case, you should rank it as amber/red.
E172: OptionList_Quality_Rating
E173: Green | F173: Based on validated ‘actual’ data. Methodology is robust. There are no or few transformations, or transformation methodology is also fully verified and robust. Data is current, and signed off by experts. Small confidence interval.
E174: Amber | F174: Assumptions are amber if: -the methodology is robust but based on limited data; -Data required significant transformation to fit the model; -Your confidence interval is quite wide; -Data has not been reviewed recently (e.g. older than around 2012)
E175: Red | F175: Unclear/unreliable data source or no data source provided. Based on limited data and methodology not robust. Data is not current (e.g. older than 2009). Confidence interval wide/unknown.
C178: Number Formats
F179: Positive | G179: Negative | H179: Zero | I179: Large | J179: Custom Number format
E180: General | F180: 12345.67891 | G180: =-12345.67891 -> -12345.67891 | H180: 0 | I180: -100000000000000 | J180: General;[Red]-General;"-"
E181: 0dp | F181: 12345.67891 | G181: =-12345.67891 -> -12345.67891 | H181: 0 | I181: -100000000000000 | J181: #,##0;[Red]-#,##0;"-"
E182: 2dp | F182: 12345.67891 | G182: =-12345.67891 -> -12345.67891 | H182: 0 | I182: -100000000000000 | J182: #,##0.??;[Red]-#,##0.??;"-"
E183: %0dp | F183: 0.001 | G183: -0.2 | H183: 0 | J183: #0%;[Red]-0%;"-"\%
E184: %1dp | F184: 0.001 | G184: -0.2 | H184: 0 | J184: #0.0%;[Red]-0.0%;"-"\%
E185: Scientific 1dp | F185: 546165 | G185: =-12345.67 -> -12345.67 | H185: 0 | I185: -100000000000000 | J185: 0.?E+??;[Red]-0.?E+??;"-"
E186: Scientific 2dp | F186: 12345.67891 | G186: =-12345.67 -> -12345.67 | H186: 0 | I186: -100000000000000 | J186: 0.??E+??;[Red]-0.??E+??;"-"
D188: References
E189: http://www.exceltactics.com/definitive-guide-custom-number-formats-excel/#Understanding-the-Number-Format-Codes
E190: https://www.ablebits.com/office-addins-blog/2016/07/07/custom-excel-number-format/#zeros-as-dashes

Sheet EnergyBalance
A1: EnergyBalance | AV1: Air Quality emissions not currently an output | BK1: Other vectors
E2: =CELL("address",E3) -> $E$3 | F2: =CELL("address",F3) -> $F$3 | G2: =CELL("address",G3) -> $G$3 | H2: $H$3 | I2: $I$3 | J2: $J$3 | K2: $K$3 | L2: $L$3 | M2: $M$3 | N2: $N$3 | O2: $O$3 | P2: $P$3 | Q2: $Q$3 | R2: $R$3 | S2: =CELL("address",S3) -> $S$3 | T2: $T$3 | U2: =CELL("address",U3) -> $U$3 | V2: $V$3 | W2: $W$3 | X2: $X$3 | Y2: $Y$3 | Z2: $Z$3 | AA2: $AA$3 | AB2: $AB$3 | AC2: $AC$3 | AD2: $AD$3 | AE2: $AE$3 | AF2: $AF$3 | AG2: $AG$3 | AH2: $AH$3 | AI2: $AI$3 | AJ2: $AJ$3 | AK2: $AK$3 | AP2: $AP$3 | AQ2: =CELL("address",AQ3) -> $AQ$3 | AR2: =CELL("address",AR3) -> $AR$3 | AS2: =CELL("address",AS3) -> $AS$3 | AT2: =CELL("address",AT3) -> $AT$3 | AV2: =CELL("address",AV3) -> $AV$3 | AW2: $AW$3 | AX2: $AX$3 | AY2: $AY$3 | AZ2: $AZ$3 | BA2: $BA$3
B3: Year | C3: 2050 | E3: =$C$3 -> 2050 | F3: =$C$3 -> 2050 | G3: 2050 | H3: 2050 | I3: 2050 | J3: 2050 | K3: 2050 | L3: 2050 | M3: 2050 | N3: 2050 | O3: 2050 | P3: 2050 | Q3: 2050 | R3: 2050 | S3: 2050 | T3: 2050 | U3: 2050 | V3: 2050 | W3: 2050 | X3: 2050 | Y3: 2050 | Z3: 2050 | AA3: 2050 | AB3: 2050 | AC3: 2050 | AD3: 2050 | AE3: 2050 | AF3: 2050 | AG3: 2050 | AH3: 2050 | AI3: 2050 | AJ3: 2050 | AK3: 2050 | AP3: 2050 | AQ3: 2050 | AR3: 2050 | AS3: 2050 | AT3: 2050 | AV3: 2050 | AW3: 2050 | AX3: 2050 | AY3: 2050 | AZ3: 2050 | BA3: 2050
E4: =Model!$I$216 -> EB. | F4: =Model!$I$216 -> EB. | G4: =Model!$I$216 -> EB. | H4: =Model!$I$216 -> EB. | I4: =Model!$I$216 -> EB. | J4: =Model!$I$216 -> EB. | K4: =Model!$I$216 -> EB. | L4: =Model!$I$216 -> EB. | M4: =Model!$I$216 -> EB. | N4: =Model!$I$216 -> EB. | O4: =Model!$I$216 -> EB. | P4: =Model!$I$216 -> EB. | Q4: =Model!$I$216 -> EB. | R4: =Model!$I$216 -> EB. | S4: =Model!$I$216 -> EB. | T4: =Model!$I$216 -> EB. | U4: =Model!$I$216 -> EB. | V4: =Model!$I$216 -> EB. | W4: =Model!$I$216 -> EB. | X4: =Model!$I$216 -> EB. | Y4: =Model!$I$216 -> EB. | Z4: =Model!$I$216 -> EB. | AA4: =Model!$I$216 -> EB. | AB4: =Model!$I$216 -> EB. | AC4: =Model!$I$216 -> EB. | AD4: =Model!$I$216 -> EB. | AE4: =Model!$I$216 -> EB. | AF4: =Model!$I$216 -> EB. | AG4: =Model!$I$216 -> EB. | AH4: =Model!$I$216 -> EB. | AI4: =Model!$I$216 -> EB. | AJ4: =Model!$I$216 -> EB. | AK4: =Model!$I$216 -> EB. | AP4: =Model!$I$247 -> Em. | AQ4: =Model!$I$247 -> Em. | AR4: =Model!$I$247 -> Em. | AS4: =Model!$I$247 -> Em. | AT4: =Model!$I$247 -> Em. | AV4: =Model!$I$247 -> Em. | AW4: =Model!$I$247 -> Em. | AX4: =Model!$I$247 -> Em. | AY4: =Model!$I$247 -> Em. | AZ4: =Model!$I$247 -> Em. | BA4: =Model!$I$247 -> Em.
E5: =Model!$H$762 -> Electricity | F5: =Model!$H$770 -> Hydrogen Gaseous | G5: =Model!$H$764 -> Bioenergy Solid | H5: =Model!$H$765 -> Bioenergy Liquid | I5: =Model!$H$766 -> Bioenergy Gaseous | J5: =Model!$H$767 -> Fossil Fuel Solid | K5: =Model!$H$768 -> Fossil Fuel Liquid | L5: =Model!$H$769 -> Fossil Fuel Gaseous | M5: =Model!$H$772 -> Network Heat | N5: =Model!$H$773 -> Waste Heat | O5: =Model!$H$775 -> Environmental Heat | P5: =Model!$H$776 -> Expelled Heat | Q5: =Model!$H$777 -> Environmental Energy | R5: =Model!$H$779 -> Bioenergy Solid | S5: =Model!$H$780 -> Dry Waste | T5: =Model!$H$781 -> Wet Waste | U5: =Model!$H$782 -> Used Cooking Oil/Tallow | V5: =Model!$H$783 -> Landfill Gas | W5: =Model!$H$784 -> Nuclear (Uranium) | X5: =Model!$H$785 -> Fossil Fuel Solid | Y5: =Model!$H$786 -> Fossil Fuel Liquid | Z5: =Model!$H$787 -> Fossil Fuel Gas | AA5: =Model!$H$803 -> Conversion Losses | AB5: =Model!$H$804 -> Distribution Losses | AC5: =Model!$H$807 -> Leaked Hydrogen Gaseous | AD5: =Model!$H$806 -> Leaked Bioenergy Gaseous | AE5: =Model!$H$805 -> Leaked Fossil Fuel Gaseous | AF5: =Model!$H$749 -> Heat (Water) | AG5: =Model!$H$751 -> Cooking | AH5: =Model!$H$752 -> Lighting service demand | AI5: =Model!$H$753 -> Appliances service demand | AJ5: =Model!$H$750 -> Cooling | AK5: =Model!$H$760 -> Net Energy | AL5: Net Fuel | AM5: Net Resource | AN5: Net Losses | AP5: =Model!$H$373 -> Greenhouse Gases (All) | AQ5: =Model!$H$374 -> CO2 | AR5: =Model!$H$375 -> CH4 | AS5: =Model!$H$376 -> N2O | AT5: =Model!$H$377 -> F Gasses | AV5: =Model!$H$379 -> PM10 | AW5: =Model!$H$380 -> NOX | AX5: =Model!$H$381 -> SO2 | AY5: =Model!$H$382 -> NMVOC | AZ5: =Model!$H$383 -> PM2.5 | BA5: =Model!$H$384 -> NH3 | BD5: IPCC Category | BK5: =Model!$H$747 -> Space Heat | BL5: =Model!$H$748 -> Hot Water | BM5: =Model!$H$754 -> Passenger Distance Travelled | BN5: =Model!$H$756 -> Vehicle Distance Travelled | BO5: =Model!$H$755 -> Freight Distance Travelled | BR5: Model Sector | BS5: FED Calibration group
E6: =Model!$I$762 -> fElc. | F6: =Model!$I$770 -> fH2G. | G6: =Model!$I$764 -> fBiS. | H6: =Model!$I$765 -> fBiL. | I6: =Model!$I$766 -> fBiG. | J6: =Model!$I$767 -> fFsS. | K6: =Model!$I$768 -> fFsL. | L6: =Model!$I$769 -> fFsG. | M6: =Model!$I$772 -> fNwkH. | N6: =Model!$I$773 -> fWstH. | O6: =Model!$I$775 -> rEnvH. | P6: =Model!$I$776 -> rExpH. | Q6: =Model!$I$777 -> rEnvE. | R6: =Model!$I$779 -> rBiS. | S6: =Model!$I$780 -> rWstD. | T6: =Model!$I$781 -> rWstW. | U6: =Model!$I$782 -> rUCO. | V6: =Model!$I$783 -> rLndFG. | W6: =Model!$I$784 -> rURN. | X6: =Model!$I$785 -> rFsS. | Y6: =Model!$I$786 -> rFsL. | Z6: =Model!$I$787 -> rFsG. | AA6: =Model!$I$803 -> lsCnv. | AB6: =Model!$I$804 -> lsDst. | AC6: =Model!$I$807 -> lsH2G. | AD6: =Model!$I$806 -> lsBiG. | AE6: =Model!$I$805 -> lsFsG. | AF6: =Model!$I$749 -> dHt. | AG6: =Model!$I$751 -> dCk. | AH6: =Model!$I$752 -> dLt. | AI6: =Model!$I$753 -> dAp. | AJ6: =Model!$I$750 -> dCl. | AK6: =Model!$I$760 -> NetEn. | AP6: =Model!$I$373 -> GHG. | AQ6: =Model!$I$374 -> CO2. | AR6: =Model!$I$375 -> CH4. | AS6: =Model!$I$376 -> N2O. | AT6: =Model!$I$377 -> Fgas. | AV6: =Model!$I$379 -> PM10. | AW6: =Model!$I$380 -> NOX. | AX6: =Model!$I$381 -> SO2. | AY6: =Model!$I$382 -> NMVOC. | AZ6: =Model!$I$383 -> PM2.5. | BA6: =Model!$I$384 -> NH3. | BE6: 1 | BF6: 2 | BG6: 3 | BH6: 4 | BI6: 5 | BK6: =Model!$I$747 -> dSH. | BL6: =Model!$I$748 -> dHW. | BM6: =Model!$I$754 -> dDPs. | BN6: =Model!$I$756 -> dDVh. | BO6: =Model!$I$755 -> dDFr.
E7: 0 | F7: 0 | G7: 0 | H7: 0 | I7: 0 | J7: 0 | K7: 0 | L7: 0 | M7: 0 | N7: 0 | O7: 0 | P7: 0 | Q7: 0 | R7: 0 | S7: 0 | T7: 0 | U7: 0 | V7: 0 | W7: 0 | X7: 0 | Y7: 0 | Z7: 0 | AA7: 0 | AB7: 0 | AC7: 0 | AD7: 0 | AE7: 0 | AF7: 0 | AG7: 0 | AH7: 0 | AI7: 0 | AJ7: 0 | AK7: 0
B8: =Model!$H$625 -> Direct Air Capture | C8: =Model!$I$625 -> ggrAirCap. | E8: =+SUMIFS(EB.ggrAirCap.fElc., Prd., $E$3) -> 0 | F8: 0 | G8: 0 | H8: 0 | I8: 0 | J8: 0 | K8: 0 | L8: 0 | M8: 0 | N8: 0 | O8: 0 | P8: 0 | Q8: 0 | R8: 0 | S8: 0 | T8: 0 | U8: 0 | V8: 0 | W8: 0 | X8: 0 | Y8: 0 | Z8: 0 | AA8: 0 | AB8: 0 | AC8: 0 | AD8: 0 | AE8: 0 | AF8: 0 | AG8: 0 | AH8: 0 | AI8: 0 | AJ8: 0 | AK8: 0 | AL8: =SUM(E8:N8) -> 0 | AM8: =SUM(O8:Z8) -> 0 | AN8: =SUM(AA8:AE8) -> 0 | AP8: =+SUMIFS(Em.GHG.ggrAirCap., Prd., $AP$3) -> 0 | AQ8: =+SUMIFS(Em.CO2.ggrAirCap., Prd., $AQ$3) -> 0 | AR8: 0 | AS8: 0 | AT8: 0 | AV8: 0 | AW8: 0 | AX8: 0 | AY8: 0 | AZ8: 0 | BA8: 0 | BR8: =Results!$E$269 -> Dedicated GHG Removal | BS8: GGR
B9: =Model!$H$626 -> Enhanced Weathering | C9: =Model!$I$626 -> ggrEnhWth. | E9: =+SUMIFS(EB.ggrEnhWth.fElc., Prd., $E$3) -> 0 | F9: 0 | G9: 0 | H9: 0 | I9: 0 | J9: 0 | K9: 0 | L9: 0 | M9: 0 | N9: 0 | O9: 0 | P9: 0 | Q9: 0 | R9: 0 | S9: 0 | T9: 0 | U9: 0 | V9: 0 | W9: 0 | X9: 0 | Y9: 0 | Z9: 0 | AA9: 0 | AB9: 0 | AC9: 0 | AD9: 0 | AE9: 0 | AF9: 0 | AG9: 0 | AH9: 0 | AI9: 0 | AJ9: 0 | AK9: 0 | AL9: =SUM(E9:N9) -> 0 | AM9: =SUM(O9:Z9) -> 0 | AN9: =SUM(AA9:AE9) -> 0 | AP9: =+SUMIFS(Em.GHG.ggrEnhWth., Prd., $AP$3) -> 0 | AQ9: =+SUMIFS(Em.CO2.ggrEnhWth., Prd., $AQ$3) -> 0 | AR9: 0 | AS9: 0 | AT9: 0 | AV9: 0 | AW9: 0 | AX9: 0 | AY9: 0 | AZ9: 0 | BA9: 0 | BR9: =Results!$E$269 -> Dedicated GHG Removal | BS9: GGR
E10: 0 | F10: 0 | G10: 0 | H10: 0 | I10: 0 | J10: 0 | K10: 0 | L10: 0 | M10: 0 | N10: 0 | O10: 0 | P10: 0 | Q10: 0 | R10: 0 | S10: 0 | T10: 0 | U10: 0 | V10: 0 | W10: 0 | X10: 0 | Y10: 0 | Z10: 0 | AA10: 0 | AB10: 0 | AC10: 0 | AD10: 0 | AE10: 0 | AF10: 0 | AG10: 0 | AH10: 0 | AI10: 0 | AJ10: 0 | AK10: 0
B11: =Model!$H$497 -> Domestic District Heat Network | C11: =Model!$I$497 -> dDHN. | E11: 0 | F11: 0 | G11: 0 | H11: 0 | I11: 0 | J11: 0 | K11: 0 | L11: 0 | M11: =+SUMIFS(EB.dDHN.fNwkH., Prd., $M$3) -> 0 | N11: 0 | O11: 0 | P11: 0 | Q11: 0 | R11: 0 | S11: 0 | T11: 0 | U11: 0 | V11: 0 | W11: 0 | X11: 0 | Y11: 0 | Z11: 0 | AA11: 0 | AB11: =+SUMIFS(EB.dDHN.lsDst., Prd., $AB$3) -> 0 | AC11: 0 | AD11: 0 | AE11: 0 | AF11: =+SUMIFS(EB.dDHN.dHt., Prd., $AF$3) -> 0 | AG11: 0 | AH11: 0 | AI11: 0 | AJ11: 0 | AK11: =+SUMIFS(EB.dDHN.NetEn., Prd., $AK$3) -> 0 | AL11: =SUM(E11:N11) -> 0 | AM11: =SUM(O11:Z11) -> 0 | AN11: =SUM(AA11:AE11) -> 0 | AP11: =+SUMIFS(Em.GHG.dDHN., Prd., $AP$3) -> 0 | AQ11: =+SUMIFS(Em.CO2.dDHN., Prd., $AQ$3) -> 0 | AR11: =+SUMIFS(Em.CH4.dDHN., Prd., $AR$3) -> 0 | AS11: =+SUMIFS(Em.N2O.dDHN., Prd., $AS$3) -> 0 | AT11: 0 | AV11: =+SUMIFS(Em.PM10.dDHN., Prd., $AV$3) -> 0 | AW11: =+SUMIFS(Em.NOX.dDHN., Prd., $AW$3) -> 0 | AX11: =+SUMIFS(Em.SO2.dDHN., Prd., $AX$3) -> 0 | AY11: =+SUMIFS(Em.NMVOC.dDHN., Prd., $AY$3) -> 0 | AZ11: =+SUMIFS(Em.PM2.5.dDHN., Prd., $AZ$3) -> 0 | BA11: =+SUMIFS(Em.NH3.dDHN., Prd., $BA$3) -> 0 | BD11: =BE11&BF11&BG11&BH11&BI11 -> 1A4b | BE11: 1 | BF11: A | BG11: 4 | BH11: b | BR11: =Results!$E$276 -> Buildings-Residential | BS11: BuildingHeat
B12: =Model!$H$494 -> Domestic Heat Pump Air Source | C12: =Model!$I$494 -> dHPA. | E12: =+SUMIFS(EB.dHPA.fElc., Prd., $E$3) -> 0 | F12: 0 | G12: 0 | H12: 0 | I12: 0 | J12: 0 | K12: 0 | L12: 0 | M12: 0 | N12: 0 | O12: =+SUMIFS(EB.dHPA.rEnvH., Prd., $O$3) -> 0 | P12: 0 | Q12: 0 | R12: 0 | S12: 0 | T12: 0 | U12: 0 | V12: 0 | W12: 0 | X12: 0 | Y12: 0 | Z12: 0 | AA12: 0 | AB12: 0 | AC12: 0 | AD12: 0 | AE12: 0 | AF12: =+SUMIFS(EB.dHPA.dHt., Prd., $AF$3) -> 0 | AG12: 0 | AH12: 0 | AI12: 0 | AJ12: 0 | AK12: =+SUMIFS(EB.dHPA.NetEn., Prd., $AK$3) -> 0 | AL12: 0 | AM12: 0 | AN12: 0 | AP12: =+SUMIFS(Em.GHG.dHPA., Prd., $AP$3) -> 0 | AQ12: =+SUMIFS(Em.CO2.dHPA., Prd., $AQ$3) -> 0 | AR12: =+SUMIFS(Em.CH4.dHPA., Prd., $AR$3) -> 0 | AS12: =+SUMIFS(Em.N2O.dHPA., Prd., $AS$3) -> 0 | AT12: 0 | AV12: =+SUMIFS(Em.PM10.dHPA., Prd., $AV$3) -> 0 | AW12: =+SUMIFS(Em.NOX.dHPA., Prd., $AW$3) -> 0 | AX12: =+SUMIFS(Em.SO2.dHPA., Prd., $AX$3) -> 0 | AY12: =+SUMIFS(Em.NMVOC.dHPA., Prd., $AY$3) -> 0 | AZ12: =+SUMIFS(Em.PM2.5.dHPA., Prd., $AZ$3) -> 0 | BA12: =+SUMIFS(Em.NH3.dHPA., Prd., $BA$3) -> 0 | BD12: =BE12&BF12&BG12&BH12&BI12 -> 1A4b | BE12: 1 | BF12: A | BG12: 4 | BH12: b | BR12: =Results!$E$276 -> Buildings-Residential | BS12: BuildingHeat
B13: =Model!$H$495 -> Domestic Heat Pump Ground Source | C13: =Model!$I$495 -> dHPG. | E13: =+SUMIFS(EB.dHPG.fElc., Prd., $E$3) -> 0 | F13: 0 | G13: 0 | H13: 0 | I13: 0 | J13: 0 | K13: 0 | L13: 0 | M13: 0 | N13: 0 | O13: =+SUMIFS(EB.dHPG.rEnvH., Prd., $O$3) -> 0 | P13: 0 | Q13: 0 | R13: 0 | S13: 0 | T13: 0 | U13: 0 | V13: 0 | W13: 0 | X13: 0 | Y13: 0 | Z13: 0 | AA13: 0 | AB13: 0 | AC13: 0 | AD13: 0 | AE13: 0 | AF13: =+SUMIFS(EB.dHPG.dHt., Prd., $AF$3) -> 0 | AG13: 0 | AH13: 0 | AI13: 0 | AJ13: 0 | AK13: =+SUMIFS(EB.dHPG.NetEn., Prd., $AK$3) -> 0 | AL13: 0 | AM13: 0 | AN13: 0 | AP13: =+SUMIFS(Em.GHG.dHPG., Prd., $AP$3) -> 0 | AQ13: =+SUMIFS(Em.CO2.dHPG., Prd., $AQ$3) -> 0 | AR13: =+SUMIFS(Em.CH4.dHPG., Prd., $AR$3) -> 0 | AS13: =+SUMIFS(Em.N2O.dHPG., Prd., $AS$3) -> 0 | AT13: 0 | AV13: =+SUMIFS(Em.PM10.dHPG., Prd., $AV$3) -> 0 | AW13: =+SUMIFS(Em.NOX.dHPG., Prd., $AW$3) -> 0 | AX13: =+SUMIFS(Em.SO2.dHPG., Prd., $AX$3) -> 0 | AY13: =+SUMIFS(Em.NMVOC.dHPG., Prd., $AY$3) -> 0 | AZ13: =+SUMIFS(Em.PM2.5.dHPG., Prd., $AZ$3) -> 0 | BA13: =+SUMIFS(Em.NH3.dHPG., Prd., $BA$3) -> 0 | BD13: 1A4b | BE13: 1 | BF13: A | BG13: 4 | BH13: b | BR13: =Results!$E$276 -> Buildings-Residential | BS13: BuildingHeat
B14: =Model!$H$496 -> Domestic Hybrid Heat Pump / Gas Boiler | C14: =Model!$I$496 -> dHyb. | E14: =+SUMIFS(EB.dHyb.fElc., Prd., $E$3) -> 0 | F14: =+SUMIFS(EB.dHyb.fH2G., Prd., $F$3) -> 0 | G14: 0 | H14: 0 | I14: =+SUMIFS(EB.dHyb.fBiG., Prd., $I$3) -> 0 | J14: 0 | K14: 0 | L14: =+SUMIFS(EB.dHyb.fFsG., Prd., $L$3) -> 0 | M14: 0 | N14: 0 | O14: =+SUMIFS(EB.dHyb.rEnvH., Prd., $O$3) -> 0 | P14: 0 | Q14: 0 | R14: 0 | S14: 0 | T14: 0 | U14: 0 | V14: 0 | W14: 0 | X14: 0 | Y14: 0 | Z14: 0 | AA14: =+SUMIFS(EB.dHyb.lsCnv., Prd., $AA$3) -> 0 | AB14: 0 | AC14: 0 | AD14: 0 | AE14: 0 | AF14: =+SUMIFS(EB.dHyb.dHt., Prd., $AF$3) -> 0 | AG14: 0 | AH14: 0 | AI14: 0 | AJ14: 0 | AK14: =+SUMIFS(EB.dHyb.NetEn., Prd., $AK$3) -> 0 | AL14: 0 | AM14: 0 | AN14: 0 | AP14: =+SUMIFS(Em.GHG.dHyb., Prd., $AP$3) -> 0 | AQ14: =+SUMIFS(Em.CO2.dHyb., Prd., $AQ$3) -> 0 | AR14: =+SUMIFS(Em.CH4.dHyb., Prd., $AR$3) -> 0 | AS14: =+SUMIFS(Em.N2O.dHyb., Prd., $AS$3) -> 0 | AT14: 0 | AV14: =+SUMIFS(Em.PM10.dHyb., Prd., $AV$3) -> 0 | AW14: =+SUMIFS(Em.NOX.dHyb., Prd., $AW$3) -> 0 | AX14: =+SUMIFS(Em.SO2.dHyb., Prd., $AX$3) -> 0 | AY14: =+SUMIFS(Em.NMVOC.dHyb., Prd., $AY$3) -> 0 | AZ14: =+SUMIFS(Em.PM2.5.dHyb., Prd., $AZ$3) -> 0 | BA14: =+SUMIFS(Em.NH3.dHyb., Prd., $BA$3) -> 0 | BD14: 1A4b | BE14: 1 | BF14: A | BG14: 4 | BH14: b | BR14: =Results!$E$276 -> Buildings-Residential | BS14: BuildingHeat
B15: =Model!$H$488 -> Domestic Oil Fuel Boiler | C15: =Model!$I$488 -> dblO. | E15: 0 | F15: 0 | G15: 0 | H15: =+SUMIFS(EB.dblO.fBiL., Prd., $H$3) -> 0 | I15: 0 | J15: 0 | K15: =+SUMIFS(EB.dblO.fFsL., Prd., $K$3) -> 0 | L15: 0 | M15: 0 | N15: 0 | O15: 0 | P15: 0 | Q15: 0 | R15: 0 | S15: 0 | T15: 0 | U15: 0 | V15: 0 | W15: 0 | X15: 0 | Y15: 0 | Z15: 0 | AA15: =+SUMIFS(EB.dblO.lsCnv., Prd., $AA$3) -> 0 | AB15: 0 | AC15: 0 | AD15: 0 | AE15: 0 | AF15: =+SUMIFS(EB.dblO.dHt., Prd., $AF$3) -> 0 | AG15: 0 | AH15: 0 | AI15: 0 | AJ15: 0 | AK15: =+SUMIFS(EB.dblO.NetEn., Prd., $AK$3) -> 0 | AL15: 0 | AM15: 0 | AN15: 0 | AP15: =+SUMIFS(Em.GHG.dblO., Prd., $AP$3) -> 0 | AQ15: =+SUMIFS(Em.CO2.dblO., Prd., $AQ$3) -> 0 | AR15: =+SUMIFS(Em.CH4.dblO., Prd., $AR$3) -> 0 | AS15: =+SUMIFS(Em.N2O.dblO., Prd., $AS$3) -> 0 | AT15: 0 | AV15: =+SUMIFS(Em.PM10.dblO., Prd., $AV$3) -> 0 | AW15: =+SUMIFS(Em.NOX.dblO., Prd., $AW$3) -> 0 | AX15: =+SUMIFS(Em.SO2.dblO., Prd., $AX$3) -> 0 | AY15: =+SUMIFS(Em.NMVOC.dblO., Prd., $AY$3) -> 0 | AZ15: =+SUMIFS(Em.PM2.5.dblO., Prd., $AZ$3) -> 0 | BA15: =+SUMIFS(Em.NH3.dblO., Prd., $BA$3) -> 0 | BD15: 1A4b | BE15: 1 | BF15: A | BG15: 4 | BH15: b | BR15: =Results!$E$276 -> Buildings-Residential | BS15: BuildingHeat
B16: =Model!$H$489 -> Domestic Solid Fuel Boiler | C16: =Model!$I$489 -> dblS. | E16: 0 | F16: 0 | G16: =+SUMIFS(EB.dblS.fBiS., Prd., $G$3) -> 0 | H16: 0 | I16: 0 | J16: =+SUMIFS(EB.dblS.fFsS., Prd., $J$3) -> 0 | K16: 0 | L16: 0 | M16: 0 | N16: 0 | O16: 0 | P16: 0 | Q16: 0 | R16: 0 | S16: 0 | T16: 0 | U16: 0 | V16: 0 | W16: 0 | X16: 0 | Y16: 0 | Z16: 0 | AA16: =+SUMIFS(EB.dblS.lsCnv., Prd., $AA$3) -> 0 | AB16: 0 | AC16: 0 | AD16: 0 | AE16: 0 | AF16: =+SUMIFS(EB.dblS.dHt., Prd., $AF$3) -> 0 | AG16: 0 | AH16: 0 | AI16: 0 | AJ16: 0 | AK16: =+SUMIFS(EB.dblS.NetEn., Prd., $AK$3) -> 0 | AL16: 0 | AM16: 0 | AN16: 0 | AP16: =+SUMIFS(Em.GHG.dblS., Prd., $AP$3) -> 0 | AQ16: =+SUMIFS(Em.CO2.dblS., Prd., $AQ$3) -> 0 | AR16: =+SUMIFS(Em.CH4.dblS., Prd., $AR$3) -> 0 | AS16: =+SUMIFS(Em.N2O.dblS., Prd., $AS$3) -> 0 | AT16: 0 | AV16: =+SUMIFS(Em.PM10.dblS., Prd., $AV$3) -> 0 | AW16: =+SUMIFS(Em.NOX.dblS., Prd., $AW$3) -> 0 | AX16: =+SUMIFS(Em.SO2.dblS., Prd., $AX$3) -> 0 | AY16: =+SUMIFS(Em.NMVOC.dblS., Prd., $AY$3) -> 0 | AZ16: =+SUMIFS(Em.PM2.5.dblS., Prd., $AZ$3) -> 0 | BA16: =+SUMIFS(Em.NH3.dblS., Prd., $BA$3) -> 0 | BD16: 1A4b | BE16: 1 | BF16: A | BG16: 4 | BH16: b | BR16: =Results!$E$276 -> Buildings-Residential | BS16: BuildingHeat
B17: =Model!$H$487 -> Domestic Gas Boiler | C17: =Model!$I$487 -> dblG. | E17: 0 | F17: =+SUMIFS(EB.dblG.fH2G., Prd., $F$3) -> 0 | G17: 0 | H17: 0 | I17: =+SUMIFS(EB.dblG.fBiG., Prd., $I$3) -> 0 | J17: 0 | K17: 0 | L17: =+SUMIFS(EB.dblG.fFsG., Prd., $L$3) -> 0 | M17: 0 | N17: 0 | O17: 0 | P17: 0 | Q17: 0 | R17: 0 | S17: 0 | T17: 0 | U17: 0 | V17: 0 | W17: 0 | X17: 0 | Y17: 0 | Z17: 0 | AA17: =+SUMIFS(EB.dblG.lsCnv., Prd., $AA$3) -> 0 | AB17: 0 | AC17: 0 | AD17: 0 | AE17: 0 | AF17: =+SUMIFS(EB.dblG.dHt., Prd., $AF$3) -> 0 | AG17: 0 | AH17: 0 | AI17: 0 | AJ17: 0 | AK17: =+SUMIFS(EB.dblG.NetEn., Prd., $AK$3) -> 0 | AL17: 0 | AM17: 0 | AN17: 0 | AP17: =+SUMIFS(Em.GHG.dblG., Prd., $AP$3) -> 0 | AQ17: =+SUMIFS(Em.CO2.dblG., Prd., $AQ$3) -> 0 | AR17: =+SUMIFS(Em.CH4.dblG., Prd., $AR$3) -> 0 | AS17: =+SUMIFS(Em.N2O.dblG., Prd., $AS$3) -> 0 | AT17: 0 | AV17: =+SUMIFS(Em.PM10.dblG., Prd., $AV$3) -> 0 | AW17: =+SUMIFS(Em.NOX.dblG., Prd., $AW$3) -> 0 | AX17: =+SUMIFS(Em.SO2.dblG., Prd., $AX$3) -> 0 | AY17: =+SUMIFS(Em.NMVOC.dblG., Prd., $AY$3) -> 0 | AZ17: =+SUMIFS(Em.PM2.5.dblG., Prd., $AZ$3) -> 0 | BA17: =+SUMIFS(Em.NH3.dblG., Prd., $BA$3) -> 0 | BD17: 1A4b | BE17: 1 | BF17: A | BG17: 4 | BH17: b | BR17: =Results!$E$276 -> Buildings-Residential | BS17: BuildingHeat
B18: =Model!$H$491 -> Domestic Electric Heater | C18: =Model!$I$491 -> dhtE. | E18: =+SUMIFS(EB.dhtE.fElc., Prd., $E$3) -> -3.909493831 | F18: 0 | G18: 0 | H18: 0 | I18: 0 | J18: 0 | K18: 0 | L18: 0 | M18: 0 | N18: 0 | O18: 0 | P18: 0 | Q18: 0 | R18: 0 | S18: 0 | T18: 0 | U18: 0 | V18: 0 | W18: 0 | X18: 0 | Y18: 0 | Z18: 0 | AA18: =+SUMIFS(EB.dhtE.lsCnv., Prd., $AA$3) -> 0.1954746915 | AB18: 0 | AC18: 0 | AD18: 0 | AE18: 0 | AF18: =+SUMIFS(EB.dhtE.dHt., Prd., $AF$3) -> 3.714019139 | AG18: 0 | AH18: 0 | AI18: 0 | AJ18: 0 | AK18: =+SUMIFS(EB.dhtE.NetEn., Prd., $AK$3) -> 0 | AL18: -3.909493831 | AM18: 0 | AN18: 0.1954746915 | AP18: =+SUMIFS(Em.GHG.dhtE., Prd., $AP$3) -> 0 | AQ18: =+SUMIFS(Em.CO2.dhtE., Prd., $AQ$3) -> 0 | AR18: =+SUMIFS(Em.CH4.dhtE., Prd., $AR$3) -> 0 | AS18: =+SUMIFS(Em.N2O.dhtE., Prd., $AS$3) -> 0 | AT18: 0 | AV18: =+SUMIFS(Em.PM10.dhtE., Prd., $AV$3) -> 14074163.72 | AW18: =+SUMIFS(Em.NOX.dhtE., Prd., $AW$3) -> 14074163.72 | AX18: =+SUMIFS(Em.SO2.dhtE., Prd., $AX$3) -> 14074163.72 | AY18: =+SUMIFS(Em.NMVOC.dhtE., Prd., $AY$3) -> 14074163.72 | AZ18: =+SUMIFS(Em.PM2.5.dhtE., Prd., $AZ$3) -> 14074163.72 | BA18: =+SUMIFS(Em.NH3.dhtE., Prd., $BA$3) -> 14074163.72 | BD18: 1A4b | BE18: 1 | BF18: A | BG18: 4 | BH18: b | BR18: =Results!$E$276 -> Buildings-Residential | BS18: BuildingHeat
B19: =Model!$H$490 -> Domestic Solar Heater | C19: =Model!$I$490 -> dSlr. | E19: =+SUMIFS(EB.dhtS.Slr., Prd., $E$3) -> -5.713875599 | F19: 0 | G19: 0 | H19: 0 | I19: 0 | J19: 0 | K19: 0 | L19: 0 | M19: 0 | N19: 0 | O19: 0 | P19: 0 | Q19: 0 | R19: 0 | S19: 0 | T19: 0 | U19: 0 | V19: 0 | W19: 0 | X19: 0 | Y19: 0 | Z19: 0 | AA19: 0 | AB19: 0 | AC19: 0 | AD19: 0 | AE19: 0 | AF19: 0 | AG19: 0 | AH19: 0 | AI19: 0 | AJ19: 0 | AK19: 0 | AL19: 0 | AM19: 0 | AN19: 0 | AO19: 0 | AP19: 0 | AQ19: 0 | AR19: 0 | AS19: 0 | AT19: 0 | AU19: 0 | AV19: 0 | AW19: 0 | AX19: 0 | AY19: 0 | AZ19: 0 | BA19: 0 | BD19: =BE19&BF19&BG19&BH19&BI19 -> 2A5b | BE19: 2 | BF19: A | BG19: 5 | BH19: b | BR19: =Results!$E$276 -> Buildings-Residential | BS19: BuildingHeat
E20: 0 | F20: 0 | G20: 0 | H20: 0 | I20: 0 | J20: 0 | K20: 0 | L20: 0 | M20: 0 | N20: 0 | O20: 0 | P20: 0 | Q20: 0 | R20: 0 | S20: 0 | T20: 0 | U20: 0 | V20: 0 | W20: 0 | X20: 0 | Y20: 0 | Z20: 0 | AA20: 0 | AB20: 0 | AC20: 0 | AD20: 0 | AE20: 0 | AF20: 0 | AG20: 0 | AH20: 0 | AI20: 0 | AJ20: 0 | AK20: 0
B21: =Model!$H$512 -> Non-Domestic District Heat Network | C21: =Model!$I$512 -> nDHN. | E21: 0 | F21: 0 | G21: 0 | H21: 0 | I21: 0 | J21: 0 | K21: 0 | L21: 0 | M21: =+SUMIFS(EB.nDHN.fNwkH., Prd., $M$3) -> 0 | N21: 0 | O21: 0 | P21: 0 | Q21: 0 | R21: 0 | S21: 0 | T21: 0 | U21: 0 | V21: 0 | W21: 0 | X21: 0 | Y21: 0 | Z21: 0 | AA21: 0 | AB21: =+SUMIFS(EB.nDHN.lsDst., Prd., $AB$3) -> 0 | AC21: 0 | AD21: 0 | AE21: 0 | AF21: =+SUMIFS(EB.nDHN.dHt., Prd., $AF$3) -> 0 | AG21: 0 | AH21: 0 | AI21: 0 | AJ21: 0 | AK21: =+SUMIFS(EB.nDHN.NetEn., Prd., $AK$3) -> 0 | AL21: =SUM(E21:N21) -> 0 | AM21: =SUM(O21:Z21) -> 0 | AN21: =SUM(AA21:AE21) -> 0 | AP21: =+SUMIFS(Em.GHG.nDHN., Prd., $AP$3) -> 0 | AQ21: =+SUMIFS(Em.CO2.nDHN., Prd., $AQ$3) -> 0 | AR21: =+SUMIFS(Em.CH4.nDHN., Prd., $AR$3) -> 0 | AS21: =+SUMIFS(Em.N2O.nDHN., Prd., $AS$3) -> 0 | AT21: 0 | AV21: =+SUMIFS(Em.PM10.nDHN., Prd., $AV$3) -> 0 | AW21: =+SUMIFS(Em.NOX.nDHN., Prd., $AW$3) -> 0 | AX21: =+SUMIFS(Em.SO2.nDHN., Prd., $AX$3) -> 0 | AY21: =+SUMIFS(Em.NMVOC.nDHN., Prd., $AY$3) -> 0 | AZ21: =+SUMIFS(Em.PM2.5.nDHN., Prd., $AZ$3) -> 0 | BA21: =+SUMIFS(Em.NH3.nDHN., Prd., $BA$3) -> 0 | BD21: 1A4a | BE21: 1 | BF21: A | BG21: 4 | BH21: a | BR21: =Results!$E$277 -> Buildings-Non-Residential | BS21: BuildingHeat
B22: =Model!$H$509 -> Non-Domestic Heat Pump Air Source | C22: =Model!$I$509 -> nHPA. | E22: =+SUMIFS(EB.nHPA.fElc., Prd., $E$3) -> 0 | F22: 0 | G22: 0 | H22: 0 | I22: 0 | J22: 0 | K22: 0 | L22: 0 | M22: 0 | N22: 0 | O22: =+SUMIFS(EB.nHPA.rEnvH., Prd., $O$3) -> 0 | P22: 0 | Q22: 0 | R22: 0 | S22: 0 | T22: 0 | U22: 0 | V22: 0 | W22: 0 | X22: 0 | Y22: 0 | Z22: 0 | AA22: 0 | AB22: 0 | AC22: 0 | AD22: 0 | AE22: 0 | AF22: =+SUMIFS(EB.nHPA.dHt., Prd., $AF$3) -> 0 | AG22: 0 | AH22: 0 | AI22: 0 | AJ22: 0 | AK22: =+SUMIFS(EB.nHPA.NetEn., Prd., $AK$3) -> 0 | AL22: 0 | AM22: 0 | AN22: 0 | AP22: =+SUMIFS(Em.GHG.nHPA., Prd., $AP$3) -> 0 | AQ22: =+SUMIFS(Em.CO2.nHPA., Prd., $AQ$3) -> 0 | AR22: =+SUMIFS(Em.CH4.nHPA., Prd., $AR$3) -> 0 | AS22: =+SUMIFS(Em.N2O.nHPA., Prd., $AS$3) -> 0 | AT22: 0 | AV22: =+SUMIFS(Em.PM10.nHPA., Prd., $AV$3) -> 0 | AW22: =+SUMIFS(Em.NOX.nHPA., Prd., $AW$3) -> 0 | AX22: =+SUMIFS(Em.SO2.nHPA., Prd., $AX$3) -> 0 | AY22: =+SUMIFS(Em.NMVOC.nHPA., Prd., $AY$3) -> 0 | AZ22: =+SUMIFS(Em.PM2.5.nHPA., Prd., $AZ$3) -> 0 | BA22: =+SUMIFS(Em.NH3.nHPA., Prd., $BA$3) -> 0 | BD22: 1A4a | BE22: 1 | BF22: A | BG22: 4 | BH22: a | BR22: =Results!$E$277 -> Buildings-Non-Residential | BS22: BuildingHeat
B23: =Model!$H$510 -> Non-Domestic Heat Pump Ground Source | C23: =Model!$I$510 -> nHPG. | E23: =+SUMIFS(EB.nHPG.fElc., Prd., $E$3) -> 0 | F23: 0 | G23: 0 | H23: 0 | I23: 0 | J23: 0 | K23: 0 | L23: 0 | M23: 0 | N23: 0 | O23: =+SUMIFS(EB.nHPG.rEnvH., Prd., $O$3) -> 0 | P23: 0 | Q23: 0 | R23: 0 | S23: 0 | T23: 0 | U23: 0 | V23: 0 | W23: 0 | X23: 0 | Y23: 0 | Z23: 0 | AA23: 0 | AB23: 0 | AC23: 0 | AD23: 0 | AE23: 0 | AF23: =+SUMIFS(EB.nHPG.dHt., Prd., $AF$3) -> 0 | AG23: 0 | AH23: 0 | AI23: 0 | AJ23: 0 | AK23: =+SUMIFS(EB.nHPG.NetEn., Prd., $AK$3) -> 0 | AL23: 0 | AM23: 0 | AN23: 0 | AP23: =+SUMIFS(Em.GHG.nHPG., Prd., $AP$3) -> 0 | AQ23: =+SUMIFS(Em.CO2.nHPG., Prd., $AQ$3) -> 0 | AR23: =+SUMIFS(Em.CH4.nHPG., Prd., $AR$3) -> 0 | AS23: =+SUMIFS(Em.N2O.nHPG., Prd., $AS$3) -> 0 | AT23: 0 | AV23: =+SUMIFS(Em.PM10.nHPG., Prd., $AV$3) -> 0 | AW23: =+SUMIFS(Em.NOX.nHPG., Prd., $AW$3) -> 0 | AX23: =+SUMIFS(Em.SO2.nHPG., Prd., $AX$3) -> 0 | AY23: =+SUMIFS(Em.NMVOC.nHPG., Prd., $AY$3) -> 0 | AZ23: =+SUMIFS(Em.PM2.5.nHPG., Prd., $AZ$3) -> 0 | BA23: =+SUMIFS(Em.NH3.nHPG., Prd., $BA$3) -> 0 | BD23: 1A4a | BE23: 1 | BF23: A | BG23: 4 | BH23: a | BR23: =Results!$E$277 -> Buildings-Non-Residential | BS23: BuildingHeat
B24: =Model!$H$511 -> Non-Domestic Hybrid Heat Pump / Gas Boiler | C24: =Model!$I$511 -> nHyb. | E24: =+SUMIFS(EB.nHyb.fElc., Prd., $E$3) -> 0 | F24: =+SUMIFS(EB.nHyb.fH2G., Prd., $F$3) -> 0 | G24: 0 | H24: 0 | I24: =+SUMIFS(EB.nHyb.fBiG., Prd., $I$3) -> 0 | J24: 0 | K24: 0 | L24: =+SUMIFS(EB.nHyb.fFsG., Prd., $L$3) -> 0 | M24: 0 | N24: 0 | O24: =+SUMIFS(EB.nHyb.rEnvH., Prd., $O$3) -> 0 | P24: 0 | Q24: 0 | R24: 0 | S24: 0 | T24: 0 | U24: 0 | V24: 0 | W24: 0 | X24: 0 | Y24: 0 | Z24: 0 | AA24: =+SUMIFS(EB.nHyb.lsCnv., Prd., $AA$3) -> 0 | AB24: 0 | AC24: 0 | AD24: 0 | AE24: 0 | AF24: =+SUMIFS(EB.nHyb.dHt., Prd., $AF$3) -> 0 | AG24: 0 | AH24: 0 | AI24: 0 | AJ24: 0 | AK24: =+SUMIFS(EB.nHyb.NetEn., Prd., $AK$3) -> 0 | AL24: 0 | AM24: 0 | AN24: 0 | AP24: =+SUMIFS(Em.GHG.nHyb., Prd., $AP$3) -> 0 | AQ24: =+SUMIFS(Em.CO2.nHyb., Prd., $AQ$3) -> 0 | AR24: =+SUMIFS(Em.CH4.nHyb., Prd., $AR$3) -> 0 | AS24: =+SUMIFS(Em.N2O.nHyb., Prd., $AS$3) -> 0 | AT24: 0 | AV24: =+SUMIFS(Em.PM10.nHyb., Prd., $AV$3) -> 0 | AW24: =+SUMIFS(Em.NOX.nHyb., Prd., $AW$3) -> 0 | AX24: =+SUMIFS(Em.SO2.nHyb., Prd., $AX$3) -> 0 | AY24: =+SUMIFS(Em.NMVOC.nHyb., Prd., $AY$3) -> 0 | AZ24: =+SUMIFS(Em.PM2.5.nHyb., Prd., $AZ$3) -> 0 | BA24: =+SUMIFS(Em.NH3.nHyb., Prd., $BA$3) -> 0 | BD24: 1A4a | BE24: 1 | BF24: A | BG24: 4 | BH24: a | BR24: =Results!$E$277 -> Buildings-Non-Residential | BS24: BuildingHeat
B25: =Model!$H$503 -> Non-Domestic Oil Fuel Boiler | C25: =Model!$I$503 -> nblO. | E25: 0 | F25: 0 | G25: 0 | H25: =+SUMIFS(EB.nffb.ffb, Prd., $H$3) -> -0.3957861748 | I25: 0 | J25: 0 | K25: =+SUMIFS(EB.nblO.fFsL., Prd., $K$3) -> 0 | L25: 0 | M25: 0 | N25: 0 | O25: 0 | P25: 0 | Q25: 0 | R25: 0 | S25: 0 | T25: 0 | U25: 0 | V25: 0 | W25: 0 | X25: 0 | Y25: 0 | Z25: 0 | AA25: =+SUMIFS(EB.nffb.lsCnv., Prd., $AA$3) -> 0.7322044234 | AB25: 0 | AC25: 0 | AD25: 0 | AE25: 0 | AF25: =+SUMIFS(EB.nffb.dHt., Prd., $AF$3) -> 0.3364182486 | AG25: 0 | AH25: 0 | AI25: 0 | AJ25: 0 | AK25: =+SUMIFS(EB.nffb.NetEn., Prd., $AK$3) -> 0.6728364972 | AL25: -0.3957861748 | AM25: 0 | AN25: 0.7322044234 | AP25: =+SUMIFS(Em.GHG.nffb., Prd., $AP$3) -> 0.09952313938 | AQ25: =+SUMIFS(Em.CO2.nffb., Prd., $AQ$3) -> 0.09871350054 | AR25: =+SUMIFS(Em.CH4.nffb., Prd., $AR$3) -> 1.924995862e-05 | AS25: =+SUMIFS(Em.N2O.nffb., Prd., $AS$3) -> 0.0007903888737 | AT25: 0 | AV25: =+SUMIFS(Em.PM10.nblO., Prd., $AV$3) -> 1424828.804 | AW25: =+SUMIFS(Em.NOX.nblO., Prd., $AW$3) -> 1424828.804 | AX25: =+SUMIFS(Em.SO2.nblO., Prd., $AX$3) -> 1424828.804 | AY25: =+SUMIFS(Em.NMVOC.nblO., Prd., $AY$3) -> 1424828.804 | AZ25: =+SUMIFS(Em.PM2.5.nblO., Prd., $AZ$3) -> 1424828.804 | BA25: =+SUMIFS(Em.NH3.nblO., Prd., $BA$3) -> 1424828.804 | BD25: 1A4a | BE25: 1 | BF25: A | BG25: 4 | BH25: a | BR25: =Results!$E$277 -> Buildings-Non-Residential | BS25: BuildingHeat
B26: =Model!$H$504 -> Non-Domestic Solid Fuel Boiler | C26: =Model!$I$504 -> nblS. | E26: 0 | F26: 0 | G26: =+SUMIFS(EB.nblS.fBiS., Prd., $G$3) -> 0 | H26: 0 | I26: 0 | J26: =+SUMIFS(EB.nblS.fFsS., Prd., $J$3) -> 0 | K26: 0 | L26: 0 | M26: 0 | N26: 0 | O26: 0 | P26: 0 | Q26: 0 | R26: 0 | S26: 0 | T26: 0 | U26: 0 | V26: 0 | W26: 0 | X26: 0 | Y26: 0 | Z26: 0 | AA26: =+SUMIFS(EB.nblS.lsCnv., Prd., $AA$3) -> 0 | AB26: 0 | AC26: 0 | AD26: 0 | AE26: 0 | AF26: =+SUMIFS(EB.nblS.dHt., Prd., $AF$3) -> 0 | AG26: 0 | AH26: 0 | AI26: 0 | AJ26: 0 | AK26: =+SUMIFS(EB.nblS.NetEn., Prd., $AK$3) -> 0 | AL26: 0 | AM26: 0 | AN26: 0 | AP26: =+SUMIFS(Em.GHG.nblS., Prd., $AP$3) -> 0 | AQ26: =+SUMIFS(Em.CO2.nblS., Prd., $AQ$3) -> 0 | AR26: =+SUMIFS(Em.CH4.nblS., Prd., $AR$3) -> 0 | AS26: =+SUMIFS(Em.N2O.nblS., Prd., $AS$3) -> 0 | AT26: 0 | AV26: =+SUMIFS(Em.PM10.nblS., Prd., $AV$3) -> 0 | AW26: =+SUMIFS(Em.NOX.nblS., Prd., $AW$3) -> 0 | AX26: =+SUMIFS(Em.SO2.nblS., Prd., $AX$3) -> 0 | AY26: =+SUMIFS(Em.NMVOC.nblS., Prd., $AY$3) -> 0 | AZ26: =+SUMIFS(Em.PM2.5.nblS., Prd., $AZ$3) -> 0 | BA26: =+SUMIFS(Em.NH3.nblS., Prd., $BA$3) -> 0 | BD26: 1A4a | BE26: 1 | BF26: A | BG26: 4 | BH26: a | BR26: =Results!$E$277 -> Buildings-Non-Residential | BS26: BuildingHeat
B27: =Model!$H$502 -> Non-Domestic Gas Boiler | C27: =Model!$I$502 -> nblG. | E27: 0 | F27: =+SUMIFS(EB.nblG.fH2G., Prd., $F$3) -> 0 | G27: 0 | H27: 0 | I27: =+SUMIFS(EB.nblG.fBiG., Prd., $I$3) -> 0 | J27: 0 | K27: 0 | L27: =+SUMIFS(EB.nblG.fFsG., Prd., $L$3) -> 0 | M27: 0 | N27: 0 | O27: 0 | P27: 0 | Q27: 0 | R27: 0 | S27: 0 | T27: 0 | U27: 0 | V27: 0 | W27: 0 | X27: 0 | Y27: 0 | Z27: 0 | AA27: =+SUMIFS(EB.nblG.lsCnv., Prd., $AA$3) -> 0 | AB27: 0 | AC27: 0 | AD27: 0 | AE27: 0 | AF27: =+SUMIFS(EB.nblG.dHt., Prd., $AF$3) -> 0 | AG27: 0 | AH27: 0 | AI27: 0 | AJ27: 0 | AK27: =+SUMIFS(EB.nblG.NetEn., Prd., $AK$3) -> 0 | AL27: 0 | AM27: 0 | AN27: 0 | AP27: =+SUMIFS(Em.GHG.nblG., Prd., $AP$3) -> 0 | AQ27: =+SUMIFS(Em.CO2.nblG., Prd., $AQ$3) -> 0 | AR27: =+SUMIFS(Em.CH4.nblG., Prd., $AR$3) -> 0 | AS27: =+SUMIFS(Em.N2O.nblG., Prd., $AS$3) -> 0 | AT27: 0 | AV27: =+SUMIFS(Em.PM10.nblG., Prd., $AV$3) -> 0 | AW27: =+SUMIFS(Em.NOX.nblG., Prd., $AW$3) -> 0 | AX27: =+SUMIFS(Em.SO2.nblG., Prd., $AX$3) -> 0 | AY27: =+SUMIFS(Em.NMVOC.nblG., Prd., $AY$3) -> 0 | AZ27: =+SUMIFS(Em.PM2.5.nblG., Prd., $AZ$3) -> 0 | BA27: =+SUMIFS(Em.NH3.nblG., Prd., $BA$3) -> 0 | BD27: 1A4a | BE27: 1 | BF27: A | BG27: 4 | BH27: a | BR27: =Results!$E$277 -> Buildings-Non-Residential | BS27: BuildingHeat
B28: =Model!$H$505 -> Non-Domestic Electric Heater | C28: =Model!$I$505 -> nhtE. | E28: =+SUMIFS(EB.nhtE.fElc., Prd., $E$3) -> -0.09608699536 | F28: 0 | G28: 0 | H28: 0 | I28: 0 | J28: 0 | K28: 0 | L28: 0 | M28: 0 | N28: 0 | O28: 0 | P28: 0 | Q28: 0 | R28: 0 | S28: 0 | T28: 0 | U28: 0 | V28: 0 | W28: 0 | X28: 0 | Y28: 0 | Z28: 0 | AA28: =+SUMIFS(EB.nhtE.lsCnv., Prd., $AA$3) -> 0.004804349768 | AB28: 0 | AC28: 0 | AD28: 0 | AE28: 0 | AF28: =+SUMIFS(EB.nhtE.dHt., Prd., $AF$3) -> 0.0912826456 | AG28: 0 | AH28: 0 | AI28: 0 | AJ28: 0 | AK28: =+SUMIFS(EB.nhtE.NetEn., Prd., $AK$3) -> 0 | AL28: -0.09608699536 | AM28: 0 | AN28: 0.004804349768 | AP28: =+SUMIFS(Em.GHG.nhtE., Prd., $AP$3) -> 0 | AQ28: =+SUMIFS(Em.CO2.nhtE., Prd., $AQ$3) -> 0 | AR28: =+SUMIFS(Em.CH4.nhtE., Prd., $AR$3) -> 0 | AS28: =+SUMIFS(Em.N2O.nhtE., Prd., $AS$3) -> 0 | AT28: 0 | AV28: =+SUMIFS(Em.PM10.nhtE., Prd., $AV$3) -> 345912.8374 | AW28: =+SUMIFS(Em.NOX.nhtE., Prd., $AW$3) -> 345912.8374 | AX28: =+SUMIFS(Em.SO2.nhtE., Prd., $AX$3) -> 345912.8374 | AY28: =+SUMIFS(Em.NMVOC.nhtE., Prd., $AY$3) -> 345912.8374 | AZ28: =+SUMIFS(Em.PM2.5.nhtE., Prd., $AZ$3) -> 345912.8374 | BA28: =+SUMIFS(Em.NH3.nhtE., Prd., $BA$3) -> 345912.8374 | BD28: 1A4a | BE28: 1 | BF28: A | BG28: 4 | BH28: a | BR28: =Results!$E$277 -> Buildings-Non-Residential | BS28: BuildingHeat
B29: =Model!$H$506 -> Non-Domestic Solar Heater | C29: =Model!$I$506 -> nS | E29: =+SUMIFS(EB.nS.fS., Prd., $E$3) -> -0.004827394019 | F29: 0 | G29: 0 | H29: 0 | I29: 0 | J29: 0 | K29: 0 | L29: 0 | M29: 0 | N29: 0 | O29: 0 | P29: 0 | Q29: 0 | R29: 0 | S29: 0 | T29: 0 | U29: 0 | V29: 0 | W29: 0 | X29: 0 | Y29: 0 | Z29: 0 | AA29: =+SUMIFS(EB.nS.IsCnv., Prd., $AA$3) -> 0.001689587907 | AB29: 0 | AC29: 0 | AD29: 0 | AE29: 0 | AF29: =+SUMIFS(EB.nS.dHt., Prd., $AF$3) -> 0.003137806113 | AG29: 0 | AH29: 0 | AI29: 0 | AJ29: 0 | AK29: 0 | AL29: =SUM(E29:N29) -> -0.004827394019 | AM29: =SUM(O29:Z29) -> 0 | AN29: =SUM(AA29:AE29) -> 0.001689587907 | AP29: 0 | AQ29: 0 | AR29: 0 | AS29: 0 | AT29: 0 | BD29: =BE29&BF29&BG29&BH29&BI29 -> 1A4a | BE29: 1 | BF29: A | BG29: 4 | BH29: a | BR29: =Results!$E$277 -> Buildings-Non-Residential | BS29: BuildingHeat
E30: 0 | F30: 0 | G30: 0 | H30: 0 | I30: 0 | J30: 0 | K30: 0 | L30: 0 | M30: 0 | N30: 0 | O30: 0 | P30: 0 | Q30: 0 | R30: 0 | S30: 0 | T30: 0 | U30: 0 | V30: 0 | W30: 0 | X30: 0 | Y30: 0 | Z30: 0 | AA30: 0 | AB30: 0 | AC30: 0 | AD30: 0 | AE30: 0 | AF30: 0 | AG30: 0 | AH30: 0 | AI30: 0 | AJ30: 0 | AK30: 0
B31: =Model!$H$528 -> Heat Network Waste Heat Offtake from Power | C31: =Model!$I$528 -> hnWHO. | E31: =+SUMIFS(EB.hnWHO.fElc., Prd., $M$3) -> 0 | F31: 0 | G31: 0 | H31: 0 | I31: 0 | J31: 0 | K31: 0 | L31: 0 | M31: =+SUMIFS(EB.hnWHO.fNwkH., Prd., $M$3) -> 0 | N31: =+SUMIFS(EB.hnWHO.fWstH., Prd., $N$3) -> 0 | O31: 0 | P31: 0 | Q31: 0 | R31: 0 | S31: 0 | T31: 0 | U31: 0 | V31: 0 | W31: 0 | X31: 0 | Y31: 0 | Z31: 0 | AA31: =+SUMIFS(EB.hnWHO.lsCnv., Prd., $AB$3) -> 0 | AB31: =+SUMIFS(EB.hnWHO.lsDst., Prd., $AB$3) -> 0 | AC31: 0 | AD31: 0 | AE31: 0 | AF31: 0 | AG31: 0 | AH31: 0 | AI31: 0 | AJ31: 0 | AK31: =+SUMIFS(EB.hnWHO.NetEn., Prd., $AK$3) -> 0 | AL31: =SUM(E31:N31) -> 0 | AM31: =SUM(O31:Z31) -> 0 | AN31: =SUM(AA31:AE31) -> 0 | AP31: =+SUMIFS(Em.GHG.hnWHO., Prd., $AP$3) -> 0 | AQ31: =+SUMIFS(Em.CO2.hnWHO., Prd., $AQ$3) -> 0 | AR31: =+SUMIFS(Em.CH4.hnWHO., Prd., $AR$3) -> 0 | AS31: =+SUMIFS(Em.N2O.hnWHO., Prd., $AS$3) -> 0 | AT31: 0 | AV31: =+SUMIFS(Em.PM10.hnWHO., Prd., $AV$3) -> 0 | AW31: =+SUMIFS(Em.NOX.hnWHO., Prd., $AW$3) -> 0 | AX31: =+SUMIFS(Em.SO2.hnWHO., Prd., $AX$3) -> 0 | AY31: =+SUMIFS(Em.NMVOC.hnWHO., Prd., $AY$3) -> 0 | AZ31: =+SUMIFS(Em.PM2.5.hnWHO., Prd., $AZ$3) -> 0 | BA31: =+SUMIFS(Em.NH3.hnWHO., Prd., $BA$3) -> 0 | BD31: =BE31&BF31&BG31&BH31&BI31 -> 1A1a | BE31: 1 | BF31: A | BG31: 1 | BH31: a | BR31: =Results!$E$281 -> Buildings-Heat Network | BS31: BuildingHeat
B32: =Model!$H$520 -> Heat Network Heat Pump Water Source | C32: =Model!$I$520 -> hnHPW. | E32: =+SUMIFS(EB.hnHPW.fElc., Prd., $E$3) -> 0 | F32: 0 | G32: 0 | H32: 0 | I32: 0 | J32: 0 | K32: 0 | L32: 0 | M32: =+SUMIFS(EB.hnHPW.fNwkH., Prd., $M$3) -> 0 | N32: 0 | O32: =+SUMIFS(EB.hnHPW.rEnvH., Prd., $O$3) -> 0 | P32: 0 | Q32: 0 | R32: 0 | S32: 0 | T32: 0 | U32: 0 | V32: 0 | W32: 0 | X32: 0 | Y32: 0 | Z32: 0 | AA32: 0 | AB32: 0 | AC32: 0 | AD32: 0 | AE32: 0 | AF32: 0 | AG32: 0 | AH32: 0 | AI32: 0 | AJ32: 0 | AK32: =+SUMIFS(EB.hnHPW.NetEn., Prd., $AK$3) -> 0 | AL32: 0 | AM32: 0 | AN32: 0 | AP32: =+SUMIFS(Em.GHG.hnHPW., Prd., $AP$3) -> 0 | AQ32: =+SUMIFS(Em.CO2.hnHPW., Prd., $AQ$3) -> 0 | AR32: =+SUMIFS(Em.CH4.hnHPW., Prd., $AR$3) -> 0 | AS32: =+SUMIFS(Em.N2O.hnHPW., Prd., $AS$3) -> 0 | AT32: 0 | AV32: =+SUMIFS(Em.PM10.hnHPW., Prd., $AV$3) -> 0 | AW32: =+SUMIFS(Em.NOX.hnHPW., Prd., $AW$3) -> 0 | AX32: =+SUMIFS(Em.SO2.hnHPW., Prd., $AX$3) -> 0 | AY32: =+SUMIFS(Em.NMVOC.hnHPW., Prd., $AY$3) -> 0 | AZ32: =+SUMIFS(Em.PM2.5.hnHPW., Prd., $AZ$3) -> 0 | BA32: =+SUMIFS(Em.NH3.hnHPW., Prd., $BA$3) -> 0 | BD32: 1A1a | BE32: 1 | BF32: A | BG32: 1 | BH32: a | BR32: =Results!$E$281 -> Buildings-Heat Network | BS32: BuildingHeat
B33: =Model!$H$521 -> Heat Network Heat Pump Ground Source | C33: =Model!$I$521 -> hnHPG. | E33: =+SUMIFS(EB.hnHPG.fElc., Prd., $E$3) -> 0 | F33: 0 | G33: 0 | H33: 0 | I33: 0 | J33: 0 | K33: 0 | L33: 0 | M33: =+SUMIFS(EB.hnHPG.fNwkH., Prd., $M$3) -> 0 | N33: 0 | O33: =+SUMIFS(EB.hnHPG.rEnvH., Prd., $O$3) -> 0 | P33: 0 | Q33: 0 | R33: 0 | S33: 0 | T33: 0 | U33: 0 | V33: 0 | W33: 0 | X33: 0 | Y33: 0 | Z33: 0 | AA33: 0 | AB33: 0 | AC33: 0 | AD33: 0 | AE33: 0 | AF33: 0 | AG33: 0 | AH33: 0 | AI33: 0 | AJ33: 0 | AK33: =+SUMIFS(EB.hnHPG.NetEn., Prd., $AK$3) -> 0 | AL33: 0 | AM33: 0 | AN33: 0 | AP33: =+SUMIFS(Em.GHG.hnHPG., Prd., $AP$3) -> 0 | AQ33: =+SUMIFS(Em.CO2.hnHPG., Prd., $AQ$3) -> 0 | AR33: =+SUMIFS(Em.CH4.hnHPG., Prd., $AR$3) -> 0 | AS33: =+SUMIFS(Em.N2O.hnHPG., Prd., $AS$3) -> 0 | AT33: 0 | AV33: =+SUMIFS(Em.PM10.hnHPG., Prd., $AV$3) -> 0 | AW33: =+SUMIFS(Em.NOX.hnHPG., Prd., $AW$3) -> 0 | AX33: =+SUMIFS(Em.SO2.hnHPG., Prd., $AX$3) -> 0 | AY33: =+SUMIFS(Em.NMVOC.hnHPG., Prd., $AY$3) -> 0 | AZ33: =+SUMIFS(Em.PM2.5.hnHPG., Prd., $AZ$3) -> 0 | BA33: =+SUMIFS(Em.NH3.hnHPG., Prd., $BA$3) -> 0 | BD33: 1A1a | BE33: 1 | BF33: A | BG33: 1 | BH33: a | BR33: =Results!$E$281 -> Buildings-Heat Network | BS33: BuildingHeat
B34: =Model!$H$524 -> Heat Network Biomass CHP Heat Processes Heat Component | C34: =Model!$I$524 -> hnCHPB_HtComp. | E34: 0 | F34: 0 | G34: =+SUMIFS(EB.hnCHPB_HtComp.fBiS., Prd., $G$3) -> 0 | H34: 0 | I34: 0 | J34: 0 | K34: 0 | L34: 0 | M34: =+SUMIFS(EB.hnCHPB_HtComp.fNwkH., Prd., $M$3) -> 0 | N34: 0 | O34: 0 | P34: 0 | Q34: 0 | R34: 0 | S34: 0 | T34: 0 | U34: 0 | V34: 0 | W34: 0 | X34: 0 | Y34: 0 | Z34: 0 | AA34: =+SUMIFS(EB.hnCHPB_HtComp.lsCnv., Prd., $AA$3) -> 0 | AB34: 0 | AC34: 0 | AD34: 0 | AE34: 0 | AF34: 0 | AG34: 0 | AH34: 0 | AI34: 0 | AJ34: 0 | AK34: =+SUMIFS(EB.hnCHPB_HtComp.NetEn., Prd., $AK$3) -> 0 | AL34: 0 | AM34: 0 | AN34: 0 | AP34: =+SUMIFS(Em.GHG.hnCHPB_HtComp., Prd., $AP$3) -> 0 | AQ34: =+SUMIFS(Em.CO2.hnCHPB_HtComp., Prd., $AQ$3) -> 0 | AR34: =+SUMIFS(Em.CH4.hnCHPB_HtComp., Prd., $AR$3) -> 0 | AS34: =+SUMIFS(Em.N2O.hnCHPB_HtComp., Prd., $AS$3) -> 0 | AT34: 0 | AV34: =+SUMIFS(Em.PM10.hnCHPB_HtComp., Prd., $AV$3) -> 0 | AW34: =+SUMIFS(Em.NOX.hnCHPB_HtComp., Prd., $AW$3) -> 0 | AX34: =+SUMIFS(Em.SO2.hnCHPB_HtComp., Prd., $AX$3) -> 0 | AY34: =+SUMIFS(Em.NMVOC.hnCHPB_HtComp., Prd., $AY$3) -> 0 | AZ34: =+SUMIFS(Em.PM2.5.hnCHPB_HtComp., Prd., $AZ$3) -> 0 | BA34: =+SUMIFS(Em.NH3.hnCHPB_HtComp., Prd., $BA$3) -> 0 | BD34: 1A1a | BE34: 1 | BF34: A | BG34: 1 | BH34: a | BR34: =Results!$E$281 -> Buildings-Heat Network | BS34: BuildingHeat
B35: =Model!$H$523 -> Heat Network Biomass CHP Electrical Component | C35: =Model!$I$523 -> hnCHPB_ElecComp. | E35: =+SUMIFS(EB.hnCHPB_ElecComp.fElc., Prd., $E$3) -> 0 | F35: 0 | G35: =+SUMIFS(EB.hnCHPB_ElecComp.fBiS., Prd., $G$3) -> 0 | H35: 0 | I35: 0 | J35: 0 | K35: 0 | L35: 0 | M35: 0 | N35: 0 | O35: 0 | P35: 0 | Q35: 0 | R35: 0 | S35: 0 | T35: 0 | U35: 0 | V35: 0 | W35: 0 | X35: 0 | Y35: 0 | Z35: 0 | AA35: =+SUMIFS(EB.hnCHPB_ElecComp.lsCnv., Prd., $AA$3) -> 0 | AB35: 0 | AC35: 0 | AD35: 0 | AE35: 0 | AF35: 0 | AG35: 0 | AH35: 0 | AI35: 0 | AJ35: 0 | AK35: =+SUMIFS(EB.hnCHPB_ElecComp.NetEn., Prd., $AK$3) -> 0 | AL35: 0 | AM35: 0 | AN35: 0 | AP35: =+SUMIFS(Em.GHG.hnCHPB_ElecComp., Prd., $AP$3) -> 0 | AQ35: =+SUMIFS(Em.CO2.hnCHPB_ElecComp., Prd., $AQ$3) -> 0 | AR35: =+SUMIFS(Em.CH4.hnCHPB_ElecComp., Prd., $AR$3) -> 0 | AS35: =+SUMIFS(Em.N2O.hnCHPB_ElecComp., Prd., $AS$3) -> 0 | AT35: 0 | AV35: =+SUMIFS(Em.PM10.hnCHPB_ElecComp., Prd., $AV$3) -> 0 | AW35: =+SUMIFS(Em.NOX.hnCHPB_ElecComp., Prd., $AW$3) -> 0 | AX35: =+SUMIFS(Em.SO2.hnCHPB_ElecComp., Prd., $AX$3) -> 0 | AY35: =+SUMIFS(Em.NMVOC.hnCHPB_ElecComp., Prd., $AY$3) -> 0 | AZ35: =+SUMIFS(Em.PM2.5.hnCHPB_ElecComp., Prd., $AZ$3) -> 0 | BA35: =+SUMIFS(Em.NH3.hnCHPB_ElecComp., Prd., $BA$3) -> 0 | BD35: 1A1a | BE35: 1 | BF35: A | BG35: 1 | BH35: a | BR35: =Results!$E$270 -> Electricity Generation | BS35: PowerStations
B36: =Model!$H$527 -> Heat Network Gas CHP Heat Processes Heat Component | C36: =Model!$I$527 -> hnCHPG_HtComp. | E36: 0 | F36: =+SUMIFS(EB.hnCHPG_HtComp.fH2G., Prd., $F$3) -> 0 | G36: 0 | H36: 0 | I36: =+SUMIFS(EB.hnCHPG_HtComp.fBiG., Prd., $I$3) -> 0 | J36: 0 | K36: 0 | L36: =+SUMIFS(EB.hnCHPG_HtComp.fFsG., Prd., $L$3) -> 0 | M36: =+SUMIFS(EB.hnCHPG_HtComp.fNwkH., Prd., $M$3) -> 0 | N36: 0 | O36: 0 | P36: 0 | Q36: 0 | R36: 0 | S36: 0 | T36: 0 | U36: 0 | V36: 0 | W36: 0 | X36: 0 | Y36: 0 | Z36: 0 | AA36: =+SUMIFS(EB.hnCHPG_HtComp.lsCnv., Prd., $AA$3) -> 0 | AB36: 0 | AC36: 0 | AD36: 0 | AE36: 0 | AF36: 0 | AG36: 0 | AH36: 0 | AI36: 0 | AJ36: 0 | AK36: =+SUMIFS(EB.hnCHPG_HtComp.NetEn., Prd., $AK$3) -> 0 | AL36: 0 | AM36: 0 | AN36: 0 | AP36: =+SUMIFS(Em.GHG.hnCHPG_HtComp., Prd., $AP$3) -> 0 | AQ36: =+SUMIFS(Em.CO2.hnCHPG_HtComp., Prd., $AQ$3) -> 0 | AR36: =+SUMIFS(Em.CH4.hnCHPG_HtComp., Prd., $AR$3) -> 0 | AS36: =+SUMIFS(Em.N2O.hnCHPG_HtComp., Prd., $AS$3) -> 0 | AT36: 0 | AV36: =+SUMIFS(Em.PM10.hnCHPG_HtComp., Prd., $AV$3) -> 0 | AW36: =+SUMIFS(Em.NOX.hnCHPG_HtComp., Prd., $AW$3) -> 0 | AX36: =+SUMIFS(Em.SO2.hnCHPG_HtComp., Prd., $AX$3) -> 0 | AY36: =+SUMIFS(Em.NMVOC.hnCHPG_HtComp., Prd., $AY$3) -> 0 | AZ36: =+SUMIFS(Em.PM2.5.hnCHPG_HtComp., Prd., $AZ$3) -> 0 | BA36: =+SUMIFS(Em.NH3.hnCHPG_HtComp., Prd., $BA$3) -> 0 | BD36: 1A1a | BE36: 1 | BF36: A | BG36: 1 | BH36: a | BR36: =Results!$E$281 -> Buildings-Heat Network | BS36: BuildingHeat
B37: =Model!$H$526 -> Heat Network Gas CHP Electrical Component | C37: =Model!$I$526 -> hnCHPG_ElecComp. | E37: =+SUMIFS(EB.hnCHPG_ElecComp.fElc., Prd., $E$3) -> 0 | F37: =+SUMIFS(EB.hnCHPG_ElecComp.fH2G., Prd., $F$3) -> 0 | G37: 0 | H37: 0 | I37: =+SUMIFS(EB.hnCHPG_ElecComp.fBiG., Prd., $I$3) -> 0 | J37: 0 | K37: 0 | L37: =+SUMIFS(EB.hnCHPG_ElecComp.fFsG., Prd., $L$3) -> 0 | M37: 0 | N37: 0 | O37: 0 | P37: 0 | Q37: 0 | R37: 0 | S37: 0 | T37: 0 | U37: 0 | V37: 0 | W37: 0 | X37: 0 | Y37: 0 | Z37: 0 | AA37: =+SUMIFS(EB.hnCHPG_ElecComp.lsCnv., Prd., $AA$3) -> 0 | AB37: 0 | AC37: 0 | AD37: 0 | AE37: 0 | AF37: 0 | AG37: 0 | AH37: 0 | AI37: 0 | AJ37: 0 | AK37: =+SUMIFS(EB.hnCHPG_ElecComp.NetEn., Prd., $AK$3) -> 0 | AL37: 0 | AM37: 0 | AN37: 0 | AP37: =+SUMIFS(Em.GHG.hnCHPG_ElecComp., Prd., $AP$3) -> 0 | AQ37: =+SUMIFS(Em.CO2.hnCHPG_ElecComp., Prd., $AQ$3) -> 0 | AR37: =+SUMIFS(Em.CH4.hnCHPG_ElecComp., Prd., $AR$3) -> 0 | AS37: =+SUMIFS(Em.N2O.hnCHPG_ElecComp., Prd., $AS$3) -> 0 | AT37: 0 | AV37: =+SUMIFS(Em.PM10.hnCHPG_ElecComp., Prd., $AV$3) -> 0 | AW37: =+SUMIFS(Em.NOX.hnCHPG_ElecComp., Prd., $AW$3) -> 0 | AX37: =+SUMIFS(Em.SO2.hnCHPG_ElecComp., Prd., $AX$3) -> 0 | AY37: =+SUMIFS(Em.NMVOC.hnCHPG_ElecComp., Prd., $AY$3) -> 0 | AZ37: =+SUMIFS(Em.PM2.5.hnCHPG_ElecComp., Prd., $AZ$3) -> 0 | BA37: =+SUMIFS(Em.NH3.hnCHPG_ElecComp., Prd., $BA$3) -> 0 | BD37: 1A1a | BE37: 1 | BF37: A | BG37: 1 | BH37: a | BR37: =Results!$E$270 -> Electricity Generation | BS37: PowerStations
E38: 0 | F38: 0 | G38: 0 | H38: 0 | I38: 0 | J38: 0 | K38: 0 | L38: 0 | M38: 0 | N38: 0 | O38: 0 | P38: 0 | Q38: 0 | R38: 0 | S38: 0 | T38: 0 | U38: 0 | V38: 0 | W38: 0 | X38: 0 | Y38: 0 | Z38: 0 | AA38: 0 | AB38: 0 | AC38: 0 | AD38: 0 | AE38: 0 | AF38: 0 | AG38: 0 | AH38: 0 | AI38: 0 | AJ38: 0 | AK38: 0
B39: =Model!$H$530 -> Domestic Gas Stove | C39: =Model!$I$530 -> dStvG. | E39: 0 | F39: =+SUMIFS(EB.dStvG.fH2G., Prd., $F$3) -> 0 | G39: 0 | H39: 0 | I39: =+SUMIFS(EB.dStvG.fBiG., Prd., $I$3) -> -3.615213287 | J39: 0 | K39: 0 | L39: =+SUMIFS(EB.dStvG.fFsG., Prd., $L$3) -> -26.47107638 | M39: 0 | N39: 0 | O39: 0 | P39: 0 | Q39: 0 | R39: 0 | S39: 0 | T39: 0 | U39: 0 | V39: 0 | W39: 0 | X39: 0 | Y39: 0 | Z39: 0 | AA39: =+SUMIFS(EB.dStvG.lsCnv., Prd., $AA$3) -> 13.23553819 | AB39: 0 | AC39: 0 | AD39: 0 | AE39: 0 | AF39: 0 | AG39: =+SUMIFS(EB.dStvG.dCk., Prd., $AG$3) -> 13.23553819 | AH39: 0 | AI39: 0 | AJ39: 0 | AK39: =+SUMIFS(EB.dStvG.NetEn., Prd., $AK$3) -> 0 | AL39: =SUM(E39:N39) -> -30.08628966 | AM39: =SUM(O39:Z39) -> 0 | AN39: =SUM(AA39:AE39) -> 13.23553819 | AP39: =+SUMIFS(Em.GHG.dStvG., Prd., $AP$3) -> 4.875019021 | AQ39: =+SUMIFS(Em.CO2.dStvG., Prd., $AQ$3) -> 4.865597703 | AR39: =+SUMIFS(Em.CH4.dStvG., Prd., $AR$3) -> 0.006865469606 | AS39: =+SUMIFS(Em.N2O.dStvG., Prd., $AS$3) -> 0.002555848596 | AT39: 0 | AV39: =+SUMIFS(Em.PM10.dStvG., Prd., $AV$3) -> 108310534.5 | AW39: =+SUMIFS(Em.NOX.dStvG., Prd., $AW$3) -> 108310534.5 | AX39: =+SUMIFS(Em.SO2.dStvG., Prd., $AX$3) -> 108310534.5 | AY39: =+SUMIFS(Em.NMVOC.dStvG., Prd., $AY$3) -> 108310534.5 | AZ39: =+SUMIFS(Em.PM2.5.dStvG., Prd., $AZ$3) -> 108310534.5 | BA39: =+SUMIFS(Em.NH3.dStvG., Prd., $BA$3) -> 108310534.5 | BD39: 1A4b | BE39: 1 | BF39: A | BG39: 4 | BH39: b | BR39: =Results!$E$276 -> Buildings-Residential | BS39: BuildingHeat
B40: =Model!$H$531 -> Domestic Electric Stove | C40: =Model!$I$531 -> dStvE. | E40: =+SUMIFS(EB.dStvE.fElc., Prd., $E$3) -> -14.52648031 | F40: 0 | G40: 0 | H40: 0 | I40: 0 | J40: 0 | K40: 0 | L40: 0 | M40: 0 | N40: 0 | O40: 0 | P40: 0 | Q40: 0 | R40: 0 | S40: 0 | T40: 0 | U40: 0 | V40: 0 | W40: 0 | X40: 0 | Y40: 0 | Z40: 0 | AA40: =+SUMIFS(EB.dStvE.lsCnv., Prd., $AA$3) -> 4.430576495 | AB40: 0 | AC40: 0 | AD40: 0 | AE40: 0 | AF40: 0 | AG40: =+SUMIFS(EB.dStvE.dCk., Prd., $AG$3) -> 10.09590382 | AH40: 0 | AI40: 0 | AJ40: 0 | AK40: =+SUMIFS(EB.dStvE.NetEn., Prd., $AK$3) -> 0 | AL40: -14.52648031 | AM40: 0 | AN40: 4.430576495 | AP40: =+SUMIFS(Em.GHG.dStvE., Prd., $AP$3) -> 0 | AQ40: =+SUMIFS(Em.CO2.dStvE., Prd., $AQ$3) -> 0 | AR40: =+SUMIFS(Em.CH4.dStvE., Prd., $AR$3) -> 0 | AS40: =+SUMIFS(Em.N2O.dStvE., Prd., $AS$3) -> 0 | AT40: 0 | AV40: =+SUMIFS(Em.PM10.dStvE., Prd., $AV$3) -> 52295276.83 | AW40: =+SUMIFS(Em.NOX.dStvE., Prd., $AW$3) -> 52295276.83 | AX40: =+SUMIFS(Em.SO2.dStvE., Prd., $AX$3) -> 52295276.83 | AY40: =+SUMIFS(Em.NMVOC.dStvE., Prd., $AY$3) -> 52295276.83 | AZ40: =+SUMIFS(Em.PM2.5.dStvE., Prd., $AZ$3) -> 52295276.83 | BA40: =+SUMIFS(Em.NH3.dStvE., Prd., $BA$3) -> 52295276.83 | BD40: 1A4b | BE40: 1 | BF40: A | BG40: 4 | BH40: b | BR40: =Results!$E$276 -> Buildings-Residential | BS40: BuildingHeat
B41: =Model!$H$532 -> Domestic Kerosene Stove | C41: =Model!$I$532 -> dStvKero. | E41: 0 | F41: 0 | G41: 0 | H41: 0 | I41: 0 | J41: 0 | K41: =+SUMIFS(EB.dStvKero.fKero., Prd., $K$3) -> -13.38893674 | L41: 0 | M41: 0 | N41: 0 | O41: 0 | P41: 0 | Q41: 0 | R41: 0 | S41: 0 | T41: 0 | U41: 0 | V41: 0 | W41: 0 | X41: 0 | Y41: 0 | Z41: 0 | AA41: =+SUMIFS(EB.dStvKero.lsCnv., Prd., $AA$3) -> 9.640034452 | AB41: 0 | AC41: 0 | AD41: 0 | AE41: 0 | AF41: 0 | AG41: =+SUMIFS(EB.dStvKero.dCk., Prd., $AG$3) -> 3.748902287 | AH41: 0 | AI41: 0 | AJ41: 0 | AK41: 0 | AL41: -13.38893674 | AM41: 0 | AN41: 9.640034452 | BR41: =Results!$E$276 -> Buildings-Residential | BS41: BuildingHeat
B42: =Model!$H$533 -> Domestic Wood Stove | C42: =Model!$I$533 -> dStvWd. | E42: 0 | F42: 0 | G42: =+SUMIFS(EB.dStvWd.fWood., Prd., $G$3) -> -113.7976032 | H42: 0 | I42: 0 | J42: 0 | K42: 0 | L42: 0 | M42: 0 | N42: 0 | O42: 0 | P42: 0 | Q42: 0 | R42: 0 | S42: 0 | T42: 0 | U42: 0 | V42: 0 | W42: 0 | X42: 0 | Y42: 0 | Z42: 0 | AA42: =+SUMIFS(EB.dStvWd.lsCnv., Prd., $AA$3) -> 95.58998667 | AB42: 0 | AC42: 0 | AD42: 0 | AE42: 0 | AF42: 0 | AG42: =+SUMIFS(EB.dStvWd.dCk., Prd., $AG$3) -> 18.20761651 | AH42: 0 | AI42: 0 | AJ42: 0 | AK42: 0 | AL42: -113.7976032 | AM42: 0 | AN42: 95.58998667 | BR42: =Results!$E$276 -> Buildings-Residential | BS42: BuildingHeat
B43: =Model!$H$534 -> Domestic Charcoal Stove | C43: =Model!$I$534 -> dStvChar. | E43: 0 | F43: 0 | G43: =+SUMIFS(EB.dStvChar.fChar., Prd., $G$3) -> -35.14595894 | H43: 0 | I43: 0 | J43: 0 | K43: 0 | L43: 0 | M43: 0 | N43: 0 | O43: 0 | P43: 0 | Q43: 0 | R43: 0 | S43: 0 | T43: 0 | U43: 0 | V43: 0 | W43: 0 | X43: 0 | Y43: 0 | Z43: 0 | AA43: =+SUMIFS(EB.dStvChar.lsCnv., Prd., $AA$3) -> 29.52260551 | AB43: 0 | AC43: 0 | AD43: 0 | AE43: 0 | AF43: 0 | AG43: =+SUMIFS(EB.dStvChar.dCk., Prd., $AG$3) -> 5.62335343 | AH43: 0 | AI43: 0 | AJ43: 0 | AK43: 0 | AL43: -35.14595894 | AM43: 0 | AN43: 29.52260551 | BR43: =Results!$E$276 -> Buildings-Residential | BS43: BuildingHeat
B44: =Model!$H$535 -> Domestic Bioethanol Stove | C44: =Model!$I$535 -> dStvBE. | E44: 0 | F44: 0 | G44: 0 | H44: =+SUMIFS(EB.dStvBE.fBioeth., Prd., $H$3) -> -4.201760516 | I44: 0 | J44: 0 | K44: 0 | L44: 0 | M44: 0 | N44: 0 | O44: 0 | P44: 0 | Q44: 0 | R44: 0 | S44: 0 | T44: 0 | U44: 0 | V44: 0 | W44: 0 | X44: 0 | Y44: 0 | Z44: 0 | AA44: =+SUMIFS(EB.dStvBE.lsCnv., Prd., $AA$3) -> 1.890792232 | AB44: 0 | AC44: 0 | AD44: 0 | AE44: 0 | AF44: 0 | AG44: =+SUMIFS(EB.dStvBE.dCk., Prd., $AG$3) -> 2.310968284 | AH44: 0 | AI44: 0 | AJ44: 0 | AK44: 0 | AL44: -4.201760516 | AM44: 0 | AN44: 1.890792232 | BR44: =Results!$E$276 -> Buildings-Residential | BS44: BuildingHeat
B45: =Model!$H$537 -> Domestic Biogas Stove | C45: =Model!$I$537 -> dStvBG. | E45: 0 | F45: 0 | G45: 0 | H45: 0 | I45: =+SUMIFS(EB.dStvBG.fBiogas., Prd., $G$3) -> -2.418347269 | J45: 0 | K45: 0 | L45: 0 | M45: 0 | N45: 0 | O45: 0 | P45: 0 | Q45: 0 | R45: 0 | S45: 0 | T45: 0 | U45: 0 | V45: 0 | W45: 0 | X45: 0 | Y45: 0 | Z45: 0 | AA45: =+SUMIFS(EB.dStvBG.lsCnv., Prd., $AA$3) -> 1.209173634 | AB45: 0 | AC45: 0 | AD45: 0 | AE45: 0 | AF45: 0 | AG45: =+SUMIFS(EB.dStvBG.dCk., Prd., $AG$3) -> 1.209173634 | AH45: 0 | AI45: 0 | AJ45: 0 | AK45: 0 | AL45: -2.418347269 | AM45: 0 | AN45: 1.209173634 | BR45: =Results!$E$276 -> Buildings-Residential | BS45: BuildingHeat
B46: =Model!$H$538 -> Non-Domestic Gas Stove | C46: =Model!$I$538 -> nStvG. | E46: 0 | F46: =+SUMIFS(EB.nStvG.fH2G., Prd., $F$3) -> 0 | G46: 0 | H46: 0 | I46: =+SUMIFS(EB.nStvG.fBiG., Prd., $I$3) -> 0 | J46: 0 | K46: 0 | L46: =+SUMIFS(EB.nStvG.fFsG., Prd., $L$3) -> -0.15287132 | M46: 0 | N46: 0 | O46: 0 | P46: 0 | Q46: 0 | R46: 0 | S46: 0 | T46: 0 | U46: 0 | V46: 0 | W46: 0 | X46: 0 | Y46: 0 | Z46: 0 | AA46: =+SUMIFS(EB.nStvG.lsCnv., Prd., $AA$3) -> 0.030574264 | AB46: 0 | AC46: 0 | AD46: 0 | AE46: 0 | AF46: 0 | AG46: =+SUMIFS(EB.nStvG.dCk., Prd., $AG$3) -> 0.122297056 | AH46: 0 | AI46: 0 | AJ46: 0 | AK46: 0 | AL46: -0.15287132 | AM46: 0 | AN46: 0.030574264 | AP46: =+SUMIFS(Em.GHG.nStvG., Prd., $AP$3) -> 0.02815339211 | AQ46: =+SUMIFS(Em.CO2.nStvG., Prd., $AQ$3) -> 0.02809898369 | AR46: =+SUMIFS(Em.CH4.nStvG., Prd., $AR$3) -> 3.964830845e-05 | AS46: =+SUMIFS(Em.N2O.nStvG., Prd., $AS$3) -> 1.476010809e-05 | AT46: 0 | AV46: =+SUMIFS(Em.PM10.nStvG., Prd., $AV$3) -> 550336.2017 | AW46: =+SUMIFS(Em.NOX.nStvG., Prd., $AW$3) -> 550336.2017 | AX46: =+SUMIFS(Em.SO2.nStvG., Prd., $AX$3) -> 550336.2017 | AY46: =+SUMIFS(Em.NMVOC.nStvG., Prd., $AY$3) -> 550336.2017 | AZ46: =+SUMIFS(Em.PM2.5.nStvG., Prd., $AZ$3) -> 550336.2017 | BA46: =+SUMIFS(Em.NH3.nStvG., Prd., $BA$3) -> 550336.2017 | BD46: 1A4a | BE46: 1 | BF46: A | BG46: 4 | BH46: a | BR46: =Results!$E$277 -> Buildings-Non-Residential | BS46: BuildingHeat
B47: =Model!$H$539 -> Non-Domestic Electric Stove | C47: =Model!$I$539 -> nStvE. | E47: =+SUMIFS(EB.nStvE.fElc., Prd., $E$3) -> -0.5419977186 | F47: 0 | G47: 0 | H47: 0 | I47: 0 | J47: 0 | K47: 0 | L47: 0 | M47: 0 | N47: 0 | O47: 0 | P47: 0 | Q47: 0 | R47: 0 | S47: 0 | T47: 0 | U47: 0 | V47: 0 | W47: 0 | X47: 0 | Y47: 0 | Z47: 0 | AA47: =+SUMIFS(EB.nStvE.lsCnv., Prd., $AA$3) -> 0.1571793384 | AB47: 0 | AC47: 0 | AD47: 0 | AE47: 0 | AF47: 0 | AG47: =+SUMIFS(EB.nStvE.dCk., Prd., $AG$3) -> 0.3848183802 | AH47: 0 | AI47: 0 | AJ47: 0 | AK47: =+SUMIFS(EB.nStvE.NetEn., Prd., $AK$3) -> 0 | AL47: -0.5419977186 | AM47: 0 | AN47: 0.1571793384 | AP47: =+SUMIFS(Em.GHG.nStvE., Prd., $AP$3) -> 0 | AQ47: =+SUMIFS(Em.CO2.nStvE., Prd., $AQ$3) -> 0 | AR47: =+SUMIFS(Em.CH4.nStvE., Prd., $AR$3) -> 0 | AS47: =+SUMIFS(Em.N2O.nStvE., Prd., $AS$3) -> 0 | AT47: 0 | AV47: =+SUMIFS(Em.PM10.nStvE., Prd., $AV$3) -> 1951189.836 | AW47: =+SUMIFS(Em.NOX.nStvE., Prd., $AW$3) -> 1951189.836 | AX47: =+SUMIFS(Em.SO2.nStvE., Prd., $AX$3) -> 1951189.836 | AY47: =+SUMIFS(Em.NMVOC.nStvE., Prd., $AY$3) -> 1951189.836 | AZ47: =+SUMIFS(Em.PM2.5.nStvE., Prd., $AZ$3) -> 1951189.836 | BA47: =+SUMIFS(Em.NH3.nStvE., Prd., $BA$3) -> 1951189.836 | BD47: 1A4a | BE47: 1 | BF47: A | BG47: 4 | BH47: a | BR47: =Results!$E$277 -> Buildings-Non-Residential | BS47: BuildingHeat
B48: =Model!$H$548 -> Domestic Lighting | C48: =Model!$I$548 -> dLt. | E48: =+SUMIFS(EB.dLt.fElc., Prd., $E$3) -> -7.316679625 | F48: 0 | G48: 0 | H48: 0 | I48: 0 | J48: 0 | K48: 0 | L48: 0 | M48: 0 | N48: 0 | O48: 0 | P48: 0 | Q48: 0 | R48: 0 | S48: 0 | T48: 0 | U48: 0 | V48: 0 | W48: 0 | X48: 0 | Y48: 0 | Z48: 0 | AA48: 0 | AB48: 0 | AC48: 0 | AD48: 0 | AE48: 0 | AF48: 0 | AG48: 0 | AH48: =+SUMIFS(EB.dLt.dLt., Prd., $AH$3) -> 7.316679625 | AI48: 0 | AJ48: 0 | AK48: =+SUMIFS(EB.dLt.NetEn., Prd., $AK$3) -> 0 | AL48: -7.316679625 | AM48: 0 | AN48: 0 | AP48: =+SUMIFS(Em.GHG.dLt., Prd., $AP$3) -> 0 | AQ48: =+SUMIFS(Em.CO2.dLt., Prd., $AQ$3) -> 0 | AR48: =+SUMIFS(Em.CH4.dLt., Prd., $AR$3) -> 0 | AS48: =+SUMIFS(Em.N2O.dLt., Prd., $AS$3) -> 0 | AT48: 0 | AV48: =+SUMIFS(Em.PM10.dLt., Prd., $AV$3) -> 26340020.31 | AW48: =+SUMIFS(Em.NOX.dLt., Prd., $AW$3) -> 26340020.31 | AX48: =+SUMIFS(Em.SO2.dLt., Prd., $AX$3) -> 26340020.31 | AY48: =+SUMIFS(Em.NMVOC.dLt., Prd., $AY$3) -> 26340020.31 | AZ48: =+SUMIFS(Em.PM2.5.dLt., Prd., $AZ$3) -> 26340020.31 | BA48: =+SUMIFS(Em.NH3.dLt., Prd., $BA$3) -> 26340020.31 | BD48: 1A4b | BE48: 1 | BF48: A | BG48: 4 | BH48: b | BR48: =Results!$E$276 -> Buildings-Residential | BS48: BuildingOther
B49: =Model!$H$549 -> Non-Domestic Lighting | C49: =Model!$I$549 -> nLt. | E49: =+SUMIFS(EB.nLt.fElc., Prd., $E$3) -> -1.045005518 | F49: 0 | G49: 0 | H49: 0 | I49: 0 | J49: 0 | K49: 0 | L49: 0 | M49: 0 | N49: 0 | O49: 0 | P49: 0 | Q49: 0 | R49: 0 | S49: 0 | T49: 0 | U49: 0 | V49: 0 | W49: 0 | X49: 0 | Y49: 0 | Z49: 0 | AA49: 0 | AB49: 0 | AC49: 0 | AD49: 0 | AE49: 0 | AF49: 0 | AG49: 0 | AH49: =+SUMIFS(EB.nLt.dLt., Prd., $AH$3) -> 1.045005518 | AI49: 0 | AJ49: 0 | AK49: =+SUMIFS(EB.nLt.NetEn., Prd., $AK$3) -> 0 | AL49: -1.045005518 | AM49: 0 | AN49: 0 | AP49: =+SUMIFS(Em.GHG.nLt., Prd., $AP$3) -> 0 | AQ49: =+SUMIFS(Em.CO2.nLt., Prd., $AQ$3) -> 0 | AR49: =+SUMIFS(Em.CH4.nLt., Prd., $AR$3) -> 0 | AS49: =+SUMIFS(Em.N2O.nLt., Prd., $AS$3) -> 0 | AT49: 0 | AV49: =+SUMIFS(Em.PM10.nLt., Prd., $AV$3) -> 3762016.104 | AW49: =+SUMIFS(Em.NOX.nLt., Prd., $AW$3) -> 3762016.104 | AX49: =+SUMIFS(Em.SO2.nLt., Prd., $AX$3) -> 3762016.104 | AY49: =+SUMIFS(Em.NMVOC.nLt., Prd., $AY$3) -> 3762016.104 | AZ49: =+SUMIFS(Em.PM2.5.nLt., Prd., $AZ$3) -> 3762016.104 | BA49: =+SUMIFS(Em.NH3.nLt., Prd., $BA$3) -> 3762016.104 | BD49: 1A4a | BE49: 1 | BF49: A | BG49: 4 | BH49: a | BR49: =Results!$E$277 -> Buildings-Non-Residential | BS49: BuildingOther
B50: =Model!$H$550 -> Domestic Appliances | C50: =Model!$I$550 -> dAp. | E50: =+SUMIFS(EB.dAp.fElc., Prd., $E$3) -> -9.929800941 | F50: 0 | G50: 0 | H50: 0 | I50: 0 | J50: 0 | K50: 0 | L50: 0 | M50: 0 | N50: 0 | O50: 0 | P50: 0 | Q50: 0 | R50: 0 | S50: 0 | T50: 0 | U50: 0 | V50: 0 | W50: 0 | X50: 0 | Y50: 0 | Z50: 0 | AA50: 0 | AB50: 0 | AC50: 0 | AD50: 0 | AE50: 0 | AF50: 0 | AG50: 0 | AH50: 0 | AI50: =+SUMIFS(EB.dAp.dAp., Prd., $AI$3) -> 9.929800941 | AJ50: 0 | AK50: =+SUMIFS(EB.dAp.NetEn., Prd., $AK$3) -> 0 | AL50: -9.929800941 | AM50: 0 | AN50: 0 | AP50: =+SUMIFS(Em.GHG.dAp., Prd., $AP$3) -> 0 | AQ50: =+SUMIFS(Em.CO2.dAp., Prd., $AQ$3) -> 0 | AR50: =+SUMIFS(Em.CH4.dAp., Prd., $AR$3) -> 0 | AS50: =+SUMIFS(Em.N2O.dAp., Prd., $AS$3) -> 0 | AT50: 0 | AV50: =+SUMIFS(Em.PM10.dAp., Prd., $AV$3) -> 35747247.64 | AW50: =+SUMIFS(Em.NOX.dAp., Prd., $AW$3) -> 35747247.64 | AX50: =+SUMIFS(Em.SO2.dAp., Prd., $AX$3) -> 35747247.64 | AY50: =+SUMIFS(Em.NMVOC.dAp., Prd., $AY$3) -> 35747247.64 | AZ50: =+SUMIFS(Em.PM2.5.dAp., Prd., $AZ$3) -> 35747247.64 | BA50: =+SUMIFS(Em.NH3.dAp., Prd., $BA$3) -> 35747247.64 | BD50: 1A4b | BE50: 1 | BF50: A | BG50: 4 | BH50: b | BR50: =Results!$E$276 -> Buildings-Residential | BS50: BuildingOther
B51: =Model!$H$551 -> Non-Domestic Appliances | C51: =Model!$I$551 -> nAp. | E51: =+SUMIFS(EB.nAp.fElc., Prd., $E$3) -> -0.9962285266 | F51: 0 | G51: 0 | H51: 0 | I51: 0 | J51: 0 | K51: 0 | L51: 0 | M51: 0 | N51: 0 | O51: 0 | P51: 0 | Q51: 0 | R51: 0 | S51: 0 | T51: 0 | U51: 0 | V51: 0 | W51: 0 | X51: 0 | Y51: 0 | Z51: 0 | AA51: 0 | AB51: 0 | AC51: 0 | AD51: 0 | AE51: 0 | AF51: 0 | AG51: 0 | AH51: 0 | AI51: =+SUMIFS(EB.nAp.dAp., Prd., $AI$3) -> 0.9962285266 | AJ51: 0 | AK51: =+SUMIFS(EB.nAp.NetEn., Prd., $AK$3) -> 0 | AL51: -0.9962285266 | AM51: 0 | AN51: 0 | AP51: =+SUMIFS(Em.GHG.nAp., Prd., $AP$3) -> 0 | AQ51: =+SUMIFS(Em.CO2.nAp., Prd., $AQ$3) -> 0 | AR51: =+SUMIFS(Em.CH4.nAp., Prd., $AR$3) -> 0 | AS51: =+SUMIFS(Em.N2O.nAp., Prd., $AS$3) -> 0 | AT51: 0 | AV51: =+SUMIFS(Em.PM10.nAp., Prd., $AV$3) -> 3586419.109 | AW51: =+SUMIFS(Em.NOX.nAp., Prd., $AW$3) -> 3586419.109 | AX51: =+SUMIFS(Em.SO2.nAp., Prd., $AX$3) -> 3586419.109 | AY51: =+SUMIFS(Em.NMVOC.nAp., Prd., $AY$3) -> 3586419.109 | AZ51: =+SUMIFS(Em.PM2.5.nAp., Prd., $AZ$3) -> 3586419.109 | BA51: =+SUMIFS(Em.NH3.nAp., Prd., $BA$3) -> 3586419.109 | BD51: 1A4a | BE51: 1 | BF51: A | BG51: 4 | BH51: a | BR51: =Results!$E$277 -> Buildings-Non-Residential | BS51: BuildingOther
B52: =Model!$H$552 -> Domestic Air Conditioning | C52: =Model!$I$552 -> dAC. | E52: =+SUMIFS(EB.dAC.fElc., Prd., $E$3) -> -1.645281185 | F52: 0 | G52: 0 | H52: 0 | I52: 0 | J52: 0 | K52: 0 | L52: 0 | M52: 0 | N52: 0 | O52: 0 | P52: =+SUMIFS(EB.dAC.rExpH., Prd., $O$3) -> 5.30146257 | Q52: 0 | R52: 0 | S52: 0 | T52: 0 | U52: 0 | V52: 0 | W52: 0 | X52: 0 | Y52: 0 | Z52: 0 | AA52: 0 | AB52: 0 | AC52: 0 | AD52: 0 | AE52: 0 | AF52: 0 | AG52: 0 | AH52: 0 | AI52: 0 | AJ52: =+SUMIFS(EB.dAC.dCl., Prd., $AJ$3) -> -3.656181385 | AK52: =+SUMIFS(EB.dAC.NetEn., Prd., $AK$3) -> 0 | AL52: -1.645281185 | AM52: 5.30146257 | AN52: 0 | AP52: =+SUMIFS(Em.GHG.dAC., Prd., $AP$3) -> 0 | AQ52: =+SUMIFS(Em.CO2.dAC., Prd., $AQ$3) -> 0 | AR52: =+SUMIFS(Em.CH4.dAC., Prd., $AR$3) -> 0 | AS52: =+SUMIFS(Em.N2O.dAC., Prd., $AS$3) -> 0 | AT52: 0 | AV52: =+SUMIFS(Em.PM10.dAC., Prd., $AV$3) -> 5923006.344 | AW52: =+SUMIFS(Em.NOX.dAC., Prd., $AW$3) -> 5923006.344 | AX52: =+SUMIFS(Em.SO2.dAC., Prd., $AX$3) -> 5923006.344 | AY52: =+SUMIFS(Em.NMVOC.dAC., Prd., $AY$3) -> 5923006.344 | AZ52: =+SUMIFS(Em.PM2.5.dAC., Prd., $AZ$3) -> 5923006.344 | BA52: =+SUMIFS(Em.NH3.dAC., Prd., $BA$3) -> 5923006.344 | BD52: 1A4b | BE52: 1 | BF52: A | BG52: 4 | BH52: b | BR52: =Results!$E$276 -> Buildings-Residential | BS52: Cooling
B53: =Model!$H$553 -> Non-Domestic Air Conditioning | C53: =Model!$I$553 -> nAC. | E53: =+SUMIFS(EB.nAC.fElc., Prd., $E$3) -> -0.8685868564 | F53: 0 | G53: 0 | H53: 0 | I53: 0 | J53: 0 | K53: 0 | L53: 0 | M53: 0 | N53: 0 | O53: 0 | P53: =+SUMIFS(EB.nAC.rExpH., Prd., $O$3) -> 2.798780384 | Q53: 0 | R53: 0 | S53: 0 | T53: 0 | U53: 0 | V53: 0 | W53: 0 | X53: 0 | Y53: 0 | Z53: 0 | AA53: 0 | AB53: 0 | AC53: 0 | AD53: 0 | AE53: 0 | AF53: 0 | AG53: 0 | AH53: 0 | AI53: 0 | AJ53: =+SUMIFS(EB.nAC.dCl., Prd., $AJ$3) -> -1.930193528 | AK53: =+SUMIFS(EB.nAC.NetEn., Prd., $AK$3) -> 0 | AL53: -0.8685868564 | AM53: 2.798780384 | AN53: 0 | AP53: =+SUMIFS(Em.GHG.nAC., Prd., $AP$3) -> 0.0001740151293 | AQ53: =+SUMIFS(Em.CO2.nAC., Prd., $AQ$3) -> 0 | AR53: =+SUMIFS(Em.CH4.nAC., Prd., $AR$3) -> 0 | AS53: =+SUMIFS(Em.N2O.nAC., Prd., $AS$3) -> 0 | AT53: =+SUMIFS(Em.Fgas.nAC., Prd., $AT$3) -> 0.0001740151293 | AV53: =+SUMIFS(Em.PM10.nAC., Prd., $AV$3) -> 3126909.556 | AW53: =+SUMIFS(Em.NOX.nAC., Prd., $AW$3) -> 3126909.556 | AX53: =+SUMIFS(Em.SO2.nAC., Prd., $AX$3) -> 3126909.556 | AY53: =+SUMIFS(Em.NMVOC.nAC., Prd., $AY$3) -> 3126909.556 | AZ53: =+SUMIFS(Em.PM2.5.nAC., Prd., $AZ$3) -> 3126909.556 | BA53: =+SUMIFS(Em.NH3.nAC., Prd., $BA$3) -> 3126909.556 | BD53: 1A4a | BE53: 1 | BF53: A | BG53: 4 | BH53: a | BR53: =Results!$E$277 -> Buildings-Non-Residential | BS53: Cooling
E54: 0 | F54: 0 | G54: 0 | H54: 0 | I54: 0 | J54: 0 | K54: 0 | L54: 0 | M54: 0 | N54: 0 | O54: 0 | P54: 0 | Q54: 0 | R54: 0 | S54: 0 | T54: 0 | U54: 0 | V54: 0 | W54: 0 | X54: 0 | Y54: 0 | Z54: 0 | AA54: 0 | AB54: 0 | AC54: 0 | AD54: 0 | AE54: 0 | AF54: 0 | AG54: 0 | AH54: 0 | AI54: 0 | AJ54: 0 | AK54: 0
B55: =Model!$H$406 -> Car Electric | C55: =Model!$I$406 -> carE. | E55: =+SUMIFS(EB.carE.fElc., Prd., $E$3) -> -13.43764028 | F55: 0 | G55: 0 | H55: 0 | I55: 0 | J55: 0 | K55: 0 | L55: 0 | M55: 0 | N55: 0 | O55: 0 | P55: 0 | Q55: 0 | R55: 0 | S55: 0 | T55: 0 | U55: 0 | V55: 0 | W55: 0 | X55: 0 | Y55: 0 | Z55: 0 | AA55: 0 | AB55: 0 | AC55: 0 | AD55: 0 | AE55: 0 | AF55: 0 | AG55: 0 | AH55: 0 | AI55: 0 | AJ55: 0 | AK55: 0 | AL55: =SUM(E55:N55) -> -13.43764028 | AM55: =SUM(O55:Z55) -> 0 | AN55: =SUM(AA55:AE55) -> 0 | AP55: =+SUMIFS(Em.GHG.carE., Prd., $AP$3) -> 0 | AQ55: =+SUMIFS(Em.CO2.carE., Prd., $AQ$3) -> 0 | AR55: =+SUMIFS(Em.CH4.carE., Prd., $AR$3) -> 0 | AS55: =+SUMIFS(Em.N2O.carE., Prd., $AS$3) -> 0 | AT55: 0 | AV55: =+SUMIFS(Em.PM10.carE., Prd., $AV$3) -> 113826299.9 | AW55: =+SUMIFS(Em.NOX.carE., Prd., $AW$3) -> 113826299.9 | AX55: =+SUMIFS(Em.SO2.carE., Prd., $AX$3) -> 113826299.9 | AY55: =+SUMIFS(Em.NMVOC.carE., Prd., $AY$3) -> 113826299.9 | AZ55: =+SUMIFS(Em.PM2.5.carE., Prd., $AZ$3) -> 113826299.9 | BA55: =+SUMIFS(Em.NH3.carE., Prd., $BA$3) -> 113826299.9 | BD55: 1A3b | BE55: 1 | BF55: A | BG55: 3 | BH55: b | BR55: =Results!$E$279 -> Transport-Domestic | BS55: Cars
B56: =Model!$H$407 -> Car Hydrogen | C56: =Model!$I$407 -> carH2. | E56: 0 | F56: =+SUMIFS(EB.carH2.fH2G., Prd., $F$3) -> -0.04815696773 | G56: 0 | H56: 0 | I56: 0 | J56: 0 | K56: 0 | L56: 0 | M56: 0 | N56: 0 | O56: 0 | P56: 0 | Q56: 0 | R56: 0 | S56: 0 | T56: 0 | U56: 0 | V56: 0 | W56: 0 | X56: 0 | Y56: 0 | Z56: 0 | AA56: 0 | AB56: 0 | AC56: 0 | AD56: 0 | AE56: 0 | AF56: 0 | AG56: 0 | AH56: 0 | AI56: 0 | AJ56: 0 | AK56: 0 | AL56: -0.04815696773 | AM56: 0 | AN56: 0 | AP56: =+SUMIFS(Em.GHG.carH2., Prd., $AP$3) -> 0 | AQ56: =+SUMIFS(Em.CO2.carH2., Prd., $AQ$3) -> 0 | AR56: =+SUMIFS(Em.CH4.carH2., Prd., $AR$3) -> 0 | AS56: =+SUMIFS(Em.N2O.carH2., Prd., $AS$3) -> 0 | AT56: 0 | AV56: =+SUMIFS(Em.PM10.carH2., Prd., $AV$3) -> 185696.3225 | AW56: =+SUMIFS(Em.NOX.carH2., Prd., $AW$3) -> 185696.3225 | AX56: =+SUMIFS(Em.SO2.carH2., Prd., $AX$3) -> 185696.3225 | AY56: =+SUMIFS(Em.NMVOC.carH2., Prd., $AY$3) -> 185696.3225 | AZ56: =+SUMIFS(Em.PM2.5.carH2., Prd., $AZ$3) -> 185696.3225 | BA56: =+SUMIFS(Em.NH3.carH2., Prd., $BA$3) -> 185696.3225 | BD56: 1A3b | BE56: 1 | BF56: A | BG56: 3 | BH56: b | BR56: =Results!$E$279 -> Transport-Domestic | BS56: Cars
B57: =Model!$H$408 -> Car Plug-in Hybrid Electric Vehicle | C57: =Model!$I$408 -> carPHEV. | E57: =+SUMIFS(EB.carPHEV.fElc., Prd., $E$3) -> -0.009943078629 | F57: 0 | G57: 0 | H57: =+SUMIFS(EB.carPHEV.fBiL., Prd., $H$3) -> -0.004793377069 | I57: 0 | J57: 0 | K57: =+SUMIFS(EB.carPHEV.fFsL., Prd., $K$3) -> -0.0177157584 | L57: 0 | M57: 0 | N57: 0 | O57: 0 | P57: 0 | Q57: 0 | R57: 0 | S57: 0 | T57: 0 | U57: 0 | V57: 0 | W57: 0 | X57: 0 | Y57: 0 | Z57: 0 | AA57: 0 | AB57: 0 | AC57: 0 | AD57: 0 | AE57: 0 | AF57: 0 | AG57: 0 | AH57: 0 | AI57: 0 | AJ57: 0 | AK57: 0 | AL57: -0.0324522141 | AM57: 0 | AN57: 0 | AP57: =+SUMIFS(Em.GHG.carPHEV., Prd., $AP$3) -> 0.004465180081 | AQ57: =+SUMIFS(Em.CO2.carPHEV., Prd., $AQ$3) -> 0.004418508372 | AR57: =+SUMIFS(Em.CH4.carPHEV., Prd., $AR$3) -> 8.616461057e-07 | AS57: =+SUMIFS(Em.N2O.carPHEV., Prd., $AS$3) -> 4.581006306e-05 | AT57: 0 | AV57: =+SUMIFS(Em.PM10.carPHEV., Prd., $AV$3) -> 167488.2226 | AW57: =+SUMIFS(Em.NOX.carPHEV., Prd., $AW$3) -> 167488.2226 | AX57: =+SUMIFS(Em.SO2.carPHEV., Prd., $AX$3) -> 167488.2226 | AY57: =+SUMIFS(Em.NMVOC.carPHEV., Prd., $AY$3) -> 167488.2226 | AZ57: =+SUMIFS(Em.PM2.5.carPHEV., Prd., $AZ$3) -> 167488.2226 | BA57: =+SUMIFS(Em.NH3.carPHEV., Prd., $BA$3) -> 167488.2226 | BD57: 1A3b | BE57: 1 | BF57: A | BG57: 3 | BH57: b | BR57: =Results!$E$279 -> Transport-Domestic | BS57: Cars
B58: =Model!$H$409 -> Car Internal Combustion Engine | C58: =Model!$I$409 -> carIC. | E58: 0 | F58: 0 | G58: 0 | H58: =+SUMIFS(EB.carIC.fBiL., Prd., $H$3) -> -14.04446235 | I58: 0 | J58: 0 | K58: =+SUMIFS(EB.carIC.fFsL., Prd., $K$3) -> -51.90668257 | L58: 0 | M58: 0 | N58: 0 | O58: 0 | P58: 0 | Q58: 0 | R58: 0 | S58: 0 | T58: 0 | U58: 0 | V58: 0 | W58: 0 | X58: 0 | Y58: 0 | Z58: 0 | AA58: 0 | AB58: 0 | AC58: 0 | AD58: 0 | AE58: 0 | AF58: 0 | AG58: 0 | AH58: 0 | AI58: 0 | AJ58: 0 | AK58: 0 | AL58: -65.95114492 | AM58: 0 | AN58: 0 | AP58: =+SUMIFS(Em.GHG.carIC., Prd., $AP$3) -> 13.08285425 | AQ58: =+SUMIFS(Em.CO2.carIC., Prd., $AQ$3) -> 12.94610743 | AR58: =+SUMIFS(Em.CH4.carIC., Prd., $AR$3) -> 0.002524599279 | AS58: =+SUMIFS(Em.N2O.carIC., Prd., $AS$3) -> 0.1342222189 | AT58: 0 | AV58: =+SUMIFS(Em.PM10.carIC., Prd., $AV$3) -> 158282589.5 | AW58: =+SUMIFS(Em.NOX.carIC., Prd., $AW$3) -> 158282589.5 | AX58: =+SUMIFS(Em.SO2.carIC., Prd., $AX$3) -> 158282589.5 | AY58: =+SUMIFS(Em.NMVOC.carIC., Prd., $AY$3) -> 158282589.5 | AZ58: =+SUMIFS(Em.PM2.5.carIC., Prd., $AZ$3) -> 158282589.5 | BA58: =+SUMIFS(Em.NH3.carIC., Prd., $BA$3) -> 158282589.5 | BD58: 1A3b | BE58: 1 | BF58: A | BG58: 3 | BH58: b | BR58: =Results!$E$279 -> Transport-Domestic | BS58: Cars
B59: =Model!$H$410 -> LGV (van) Electric | C59: =Model!$I$410 -> lgvE. | E59: =+SUMIFS(EB.lgvE.fElc., Prd., $E$3) -> -0.6783766914 | F59: 0 | G59: 0 | H59: 0 | I59: 0 | J59: 0 | K59: 0 | L59: 0 | M59: 0 | N59: 0 | O59: 0 | P59: 0 | Q59: 0 | R59: 0 | S59: 0 | T59: 0 | U59: 0 | V59: 0 | W59: 0 | X59: 0 | Y59: 0 | Z59: 0 | AA59: 0 | AB59: 0 | AC59: 0 | AD59: 0 | AE59: 0 | AF59: 0 | AG59: 0 | AH59: 0 | AI59: 0 | AJ59: 0 | AK59: 0 | AL59: -0.6783766914 | AM59: 0 | AN59: 0 | AP59: =+SUMIFS(Em.GHG.lgvE., Prd., $AP$3) -> 0 | AQ59: =+SUMIFS(Em.CO2.lgvE., Prd., $AQ$3) -> 0 | AR59: =+SUMIFS(Em.CH4.lgvE., Prd., $AR$3) -> 0 | AS59: =+SUMIFS(Em.N2O.lgvE., Prd., $AS$3) -> 0 | AT59: 0 | AV59: =+SUMIFS(Em.PM10.lgvE., Prd., $AV$3) -> 0 | AW59: =+SUMIFS(Em.NOX.lgvE., Prd., $AW$3) -> 0 | AX59: =+SUMIFS(Em.SO2.lgvE., Prd., $AX$3) -> 0 | AY59: =+SUMIFS(Em.NMVOC.lgvE., Prd., $AY$3) -> 0 | AZ59: =+SUMIFS(Em.PM2.5.lgvE., Prd., $AZ$3) -> 0 | BA59: =+SUMIFS(Em.NH3.lgvE., Prd., $BA$3) -> 0 | BD59: 1A3b | BE59: 1 | BF59: A | BG59: 3 | BH59: b | BR59: =Results!$E$279 -> Transport-Domestic | BS59: LGV
B60: =Model!$H$411 -> LGV (van) Hydrogen | C60: =Model!$I$411 -> lgvH2. | E60: 0 | F60: =+SUMIFS(EB.lgvH2.fH2G., Prd., $F$3) -> -0.004180384771 | G60: 0 | H60: 0 | I60: 0 | J60: 0 | K60: 0 | L60: 0 | M60: 0 | N60: 0 | O60: 0 | P60: 0 | Q60: 0 | R60: 0 | S60: 0 | T60: 0 | U60: 0 | V60: 0 | W60: 0 | X60: 0 | Y60: 0 | Z60: 0 | AA60: 0 | AB60: 0 | AC60: 0 | AD60: 0 | AE60: 0 | AF60: 0 | AG60: 0 | AH60: 0 | AI60: 0 | AJ60: 0 | AK60: 0 | AL60: -0.004180384771 | AM60: 0 | AN60: 0 | AP60: =+SUMIFS(Em.GHG.lgvH2., Prd., $AP$3) -> 0 | AQ60: =+SUMIFS(Em.CO2.lgvH2., Prd., $AQ$3) -> 0 | AR60: =+SUMIFS(Em.CH4.lgvH2., Prd., $AR$3) -> 0 | AS60: =+SUMIFS(Em.N2O.lgvH2., Prd., $AS$3) -> 0 | AT60: 0 | AV60: =+SUMIFS(Em.PM10.lgvH2., Prd., $AV$3) -> 0 | AW60: =+SUMIFS(Em.NOX.lgvH2., Prd., $AW$3) -> 0 | AX60: =+SUMIFS(Em.SO2.lgvH2., Prd., $AX$3) -> 0 | AY60: =+SUMIFS(Em.NMVOC.lgvH2., Prd., $AY$3) -> 0 | AZ60: =+SUMIFS(Em.PM2.5.lgvH2., Prd., $AZ$3) -> 0 | BA60: =+SUMIFS(Em.NH3.lgvH2., Prd., $BA$3) -> 0 | BD60: 1A3b | BE60: 1 | BF60: A | BG60: 3 | BH60: b | BR60: =Results!$E$279 -> Transport-Domestic | BS60: LGV
B61: =Model!$H$412 -> LGV (van) Plug-in Hybrid Electric Vehicle | C61: =Model!$I$412 -> lgvPHEV. | E61: =+SUMIFS(EB.lgvPHEV.fElc., Prd., $E$3) -> -0.0006595747364 | F61: 0 | G61: 0 | H61: =+SUMIFS(EB.lgvPHEV.fBiL., Prd., $H$3) -> -0.0002969703699 | I61: 0 | J61: 0 | K61: =+SUMIFS(EB.lgvPHEV.fFsL., Prd., $K$3) -> -0.001097567592 | L61: 0 | M61: 0 | N61: 0 | O61: 0 | P61: 0 | Q61: 0 | R61: 0 | S61: 0 | T61: 0 | U61: 0 | V61: 0 | W61: 0 | X61: 0 | Y61: 0 | Z61: 0 | AA61: 0 | AB61: 0 | AC61: 0 | AD61: 0 | AE61: 0 | AF61: 0 | AG61: 0 | AH61: 0 | AI61: 0 | AJ61: 0 | AK61: 0 | AL61: -0.002054112698 | AM61: 0 | AN61: 0 | AP61: =+SUMIFS(Em.GHG.lgvPHEV., Prd., $AP$3) -> 0.000276637152 | AQ61: =+SUMIFS(Em.CO2.lgvPHEV., Prd., $AQ$3) -> 0.0002737456384 | AR61: =+SUMIFS(Em.CH4.lgvPHEV., Prd., $AR$3) -> 5.338269014e-08 | AS61: =+SUMIFS(Em.N2O.lgvPHEV., Prd., $AS$3) -> 2.838130858e-06 | AT61: 0 | AV61: =+SUMIFS(Em.PM10.lgvPHEV., Prd., $AV$3) -> 0 | AW61: =+SUMIFS(Em.NOX.lgvPHEV., Prd., $AW$3) -> 0 | AX61: =+SUMIFS(Em.SO2.lgvPHEV., Prd., $AX$3) -> 0 | AY61: =+SUMIFS(Em.NMVOC.lgvPHEV., Prd., $AY$3) -> 0 | AZ61: =+SUMIFS(Em.PM2.5.lgvPHEV., Prd., $AZ$3) -> 0 | BA61: =+SUMIFS(Em.NH3.lgvPHEV., Prd., $BA$3) -> 0 | BD61: 1A3b | BE61: 1 | BF61: A | BG61: 3 | BH61: b | BR61: =Results!$E$279 -> Transport-Domestic | BS61: LGV
B62: =Model!$H$413 -> LGV (van) Internal Combustion Engine | C62: =Model!$I$413 -> lgvIC. | E62: 0 | F62: 0 | G62: 0 | H62: =+SUMIFS(EB.lgvIC.fBiL., Prd., $H$3) -> -0.9176814341 | I62: 0 | J62: 0 | K62: =+SUMIFS(EB.lgvIC.fFsL., Prd., $K$3) -> -3.391642749 | L62: 0 | M62: 0 | N62: 0 | O62: 0 | P62: 0 | Q62: 0 | R62: 0 | S62: 0 | T62: 0 | U62: 0 | V62: 0 | W62: 0 | X62: 0 | Y62: 0 | Z62: 0 | AA62: 0 | AB62: 0 | AC62: 0 | AD62: 0 | AE62: 0 | AF62: 0 | AG62: 0 | AH62: 0 | AI62: 0 | AJ62: 0 | AK62: 0 | AL62: -4.309324183 | AM62: 0 | AN62: 0 | AP62: =+SUMIFS(Em.GHG.lgvIC., Prd., $AP$3) -> 0.854848847 | AQ62: =+SUMIFS(Em.CO2.lgvIC., Prd., $AQ$3) -> 0.8459136515 | AR62: =+SUMIFS(Em.CH4.lgvIC., Prd., $AR$3) -> 0.0001649602405 | AS62: =+SUMIFS(Em.N2O.lgvIC., Prd., $AS$3) -> 0.008770235215 | AT62: 0 | AV62: =+SUMIFS(Em.PM10.lgvIC., Prd., $AV$3) -> 0 | AW62: =+SUMIFS(Em.NOX.lgvIC., Prd., $AW$3) -> 0 | AX62: =+SUMIFS(Em.SO2.lgvIC., Prd., $AX$3) -> 0 | AY62: =+SUMIFS(Em.NMVOC.lgvIC., Prd., $AY$3) -> 0 | AZ62: =+SUMIFS(Em.PM2.5.lgvIC., Prd., $AZ$3) -> 0 | BA62: =+SUMIFS(Em.NH3.lgvIC., Prd., $BA$3) -> 0 | BD62: 1A3b | BE62: 1 | BF62: A | BG62: 3 | BH62: b | BR62: =Results!$E$279 -> Transport-Domestic | BS62: LGV
B63: =Model!$H$414 -> HGV _Rigid Electric | C63: =Model!$I$414 -> hgvRE. | E63: =+SUMIFS(EB.hgvRE.fElc., Prd., $E$3) -> -0.3940009095 | F63: 0 | G63: 0 | H63: 0 | I63: 0 | J63: 0 | K63: 0 | L63: 0 | M63: 0 | N63: 0 | O63: 0 | P63: 0 | Q63: 0 | R63: 0 | S63: 0 | T63: 0 | U63: 0 | V63: 0 | W63: 0 | X63: 0 | Y63: 0 | Z63: 0 | AA63: 0 | AB63: 0 | AC63: 0 | AD63: 0 | AE63: 0 | AF63: 0 | AG63: 0 | AH63: 0 | AI63: 0 | AJ63: 0 | AK63: 0 | AL63: -0.3940009095 | AM63: 0 | AN63: 0 | AP63: =+SUMIFS(Em.GHG.hgvRE., Prd., $AP$3) -> 0 | AQ63: =+SUMIFS(Em.CO2.hgvRE., Prd., $AQ$3) -> 0 | AR63: =+SUMIFS(Em.CH4.hgvRE., Prd., $AR$3) -> 0 | AS63: =+SUMIFS(Em.N2O.hgvRE., Prd., $AS$3) -> 0 | AT63: 0 | AV63: =+SUMIFS(Em.PM10.hgvRE., Prd., $AV$3) -> 616696.4591 | AW63: =+SUMIFS(Em.NOX.hgvRE., Prd., $AW$3) -> 616696.4591 | AX63: =+SUMIFS(Em.SO2.hgvRE., Prd., $AX$3) -> 616696.4591 | AY63: =+SUMIFS(Em.NMVOC.hgvRE., Prd., $AY$3) -> 616696.4591 | AZ63: =+SUMIFS(Em.PM2.5.hgvRE., Prd., $AZ$3) -> 616696.4591 | BA63: =+SUMIFS(Em.NH3.hgvRE., Prd., $BA$3) -> 616696.4591 | BD63: 1A3b | BE63: 1 | BF63: A | BG63: 3 | BH63: b | BR63: =Results!$E$279 -> Transport-Domestic | BS63: HGV
B64: =Model!$H$415 -> HGV _Rigid Hydrogen | C64: =Model!$I$415 -> hgvRH2. | E64: 0 | F64: =+SUMIFS(EB.hgvRH2.fH2G., Prd., $F$3) -> -0.001949158541 | G64: 0 | H64: 0 | I64: 0 | J64: 0 | K64: 0 | L64: 0 | M64: 0 | N64: 0 | O64: 0 | P64: 0 | Q64: 0 | R64: 0 | S64: 0 | T64: 0 | U64: 0 | V64: 0 | W64: 0 | X64: 0 | Y64: 0 | Z64: 0 | AA64: 0 | AB64: 0 | AC64: 0 | AD64: 0 | AE64: 0 | AF64: 0 | AG64: 0 | AH64: 0 | AI64: 0 | AJ64: 0 | AK64: 0 | AL64: -0.001949158541 | AM64: 0 | AN64: 0 | AP64: =+SUMIFS(Em.GHG.hgvRH2., Prd., $AP$3) -> 0 | AQ64: =+SUMIFS(Em.CO2.hgvRH2., Prd., $AQ$3) -> 0 | AR64: =+SUMIFS(Em.CH4.hgvRH2., Prd., $AR$3) -> 0 | AS64: =+SUMIFS(Em.N2O.hgvRH2., Prd., $AS$3) -> 0 | AT64: 0 | AV64: =+SUMIFS(Em.PM10.hgvRH2., Prd., $AV$3) -> 2094.616039 | AW64: =+SUMIFS(Em.NOX.hgvRH2., Prd., $AW$3) -> 2094.616039 | AX64: =+SUMIFS(Em.SO2.hgvRH2., Prd., $AX$3) -> 2094.616039 | AY64: =+SUMIFS(Em.NMVOC.hgvRH2., Prd., $AY$3) -> 2094.616039 | AZ64: =+SUMIFS(Em.PM2.5.hgvRH2., Prd., $AZ$3) -> 2094.616039 | BA64: =+SUMIFS(Em.NH3.hgvRH2., Prd., $BA$3) -> 2094.616039 | BD64: 1A3b | BE64: 1 | BF64: A | BG64: 3 | BH64: b | BR64: =Results!$E$279 -> Transport-Domestic | BS64: HGV
B65: =Model!$H$416 -> HGV _Rigid Plug-in Hybrid Electric Vehicle | C65: =Model!$I$416 -> hgvRPHEV. | E65: =+SUMIFS(EB.hgvRPHEV.fElc., Prd., $E$3) -> -0.00560779333 | F65: 0 | G65: 0 | H65: =+SUMIFS(EB.hgvRPHEV.fBiL., Prd., $H$3) -> -0.0002749372403 | I65: 0 | J65: 0 | K65: =+SUMIFS(EB.hgvRPHEV.fFsL., Prd., $K$3) -> -0.01241998196 | L65: 0 | M65: 0 | N65: 0 | O65: 0 | P65: 0 | Q65: 0 | R65: 0 | S65: 0 | T65: 0 | U65: 0 | V65: 0 | W65: 0 | X65: 0 | Y65: 0 | Z65: 0 | AA65: 0 | AB65: 0 | AC65: 0 | AD65: 0 | AE65: 0 | AF65: 0 | AG65: 0 | AH65: 0 | AI65: 0 | AJ65: 0 | AK65: 0 | AL65: -0.01830271253 | AM65: 0 | AN65: 0 | AP65: =+SUMIFS(Em.GHG.hgvRPHEV., Prd., $AP$3) -> 0.003123687698 | AQ65: =+SUMIFS(Em.CO2.hgvRPHEV., Prd., $AQ$3) -> 0.00309768247 | AR65: =+SUMIFS(Em.CH4.hgvRPHEV., Prd., $AR$3) -> 6.040740025e-07 | AS65: =+SUMIFS(Em.N2O.hgvRPHEV., Prd., $AS$3) -> 2.540115413e-05 | AT65: 0 | AV65: =+SUMIFS(Em.PM10.hgvRPHEV., Prd., $AV$3) -> 18892.32445 | AW65: =+SUMIFS(Em.NOX.hgvRPHEV., Prd., $AW$3) -> 18892.32445 | AX65: =+SUMIFS(Em.SO2.hgvRPHEV., Prd., $AX$3) -> 18892.32445 | AY65: =+SUMIFS(Em.NMVOC.hgvRPHEV., Prd., $AY$3) -> 18892.32445 | AZ65: =+SUMIFS(Em.PM2.5.hgvRPHEV., Prd., $AZ$3) -> 18892.32445 | BA65: =+SUMIFS(Em.NH3.hgvRPHEV., Prd., $BA$3) -> 18892.32445 | BD65: 1A3b | BE65: 1 | BF65: A | BG65: 3 | BH65: b | BR65: =Results!$E$279 -> Transport-Domestic | BS65: HGV
B66: =Model!$H$417 -> HGV _Rigid Internal Combustion Engine | C66: =Model!$I$417 -> hgvRIC. | E66: 0 | F66: 0 | G66: 0 | H66: =+SUMIFS(EB.hgvRIC.fBiL., Prd., $H$3) -> -0.1098941455 | I66: 0 | J66: 0 | K66: =+SUMIFS(EB.hgvRIC.fFsL., Prd., $K$3) -> -4.964344964 | L66: 0 | M66: 0 | N66: 0 | O66: 0 | P66: 0 | Q66: 0 | R66: 0 | S66: 0 | T66: 0 | U66: 0 | V66: 0 | W66: 0 | X66: 0 | Y66: 0 | Z66: 0 | AA66: 0 | AB66: 0 | AC66: 0 | AD66: 0 | AE66: 0 | AF66: 0 | AG66: 0 | AH66: 0 | AI66: 0 | AJ66: 0 | AK66: 0 | AL66: -5.07423911 | AM66: 0 | AN66: 0 | AP66: =+SUMIFS(Em.GHG.hgvRIC., Prd., $AP$3) -> 1.248557635 | AQ66: =+SUMIFS(Em.CO2.hgvRIC., Prd., $AQ$3) -> 1.238163181 | AR66: =+SUMIFS(Em.CH4.hgvRIC., Prd., $AR$3) -> 0.0002414521811 | AS66: =+SUMIFS(Em.N2O.hgvRIC., Prd., $AS$3) -> 0.01015300119 | AT66: 0 | AV66: =+SUMIFS(Em.PM10.hgvRIC., Prd., $AV$3) -> 2435632.337 | AW66: =+SUMIFS(Em.NOX.hgvRIC., Prd., $AW$3) -> 2435632.337 | AX66: =+SUMIFS(Em.SO2.hgvRIC., Prd., $AX$3) -> 2435632.337 | AY66: =+SUMIFS(Em.NMVOC.hgvRIC., Prd., $AY$3) -> 2435632.337 | AZ66: =+SUMIFS(Em.PM2.5.hgvRIC., Prd., $AZ$3) -> 2435632.337 | BA66: =+SUMIFS(Em.NH3.hgvRIC., Prd., $BA$3) -> 2435632.337 | BD66: 1A3b | BE66: 1 | BF66: A | BG66: 3 | BH66: b | BR66: =Results!$E$279 -> Transport-Domestic | BS66: HGV
B67: =Model!$H$418 -> HGV _Articulated Electric | C67: =Model!$I$418 -> hgvAE. | E67: =+SUMIFS(EB.hgvAE.fElc., Prd., $E$3) -> -0.1594540626 | F67: 0 | G67: 0 | H67: 0 | I67: 0 | J67: 0 | K67: 0 | L67: 0 | M67: 0 | N67: 0 | O67: 0 | P67: 0 | Q67: 0 | R67: 0 | S67: 0 | T67: 0 | U67: 0 | V67: 0 | W67: 0 | X67: 0 | Y67: 0 | Z67: 0 | AA67: 0 | AB67: 0 | AC67: 0 | AD67: 0 | AE67: 0 | AF67: 0 | AG67: 0 | AH67: 0 | AI67: 0 | AJ67: 0 | AK67: 0 | AL67: -0.1594540626 | AM67: 0 | AN67: 0 | AP67: =+SUMIFS(Em.GHG.hgvAE., Prd., $AP$3) -> 0 | AQ67: =+SUMIFS(Em.CO2.hgvAE., Prd., $AQ$3) -> 0 | AR67: =+SUMIFS(Em.CH4.hgvAE., Prd., $AR$3) -> 0 | AS67: =+SUMIFS(Em.N2O.hgvAE., Prd., $AS$3) -> 0 | AT67: 0 | AV67: =+SUMIFS(Em.PM10.hgvAE., Prd., $AV$3) -> 256135.6161 | AW67: =+SUMIFS(Em.NOX.hgvAE., Prd., $AW$3) -> 256135.6161 | AX67: =+SUMIFS(Em.SO2.hgvAE., Prd., $AX$3) -> 256135.6161 | AY67: =+SUMIFS(Em.NMVOC.hgvAE., Prd., $AY$3) -> 256135.6161 | AZ67: =+SUMIFS(Em.PM2.5.hgvAE., Prd., $AZ$3) -> 256135.6161 | BA67: =+SUMIFS(Em.NH3.hgvAE., Prd., $BA$3) -> 256135.6161 | BD67: 1A3b | BE67: 1 | BF67: A | BG67: 3 | BH67: b | BR67: =Results!$E$279 -> Transport-Domestic | BS67: HGV
B68: =Model!$H$419 -> HGV _Articulated Hydrogen | C68: =Model!$I$419 -> hgvAH2. | E68: 0 | F68: =+SUMIFS(EB.hgvAH2.fH2G., Prd., $F$3) -> -0.01321420179 | G68: 0 | H68: 0 | I68: 0 | J68: 0 | K68: 0 | L68: 0 | M68: 0 | N68: 0 | O68: 0 | P68: 0 | Q68: 0 | R68: 0 | S68: 0 | T68: 0 | U68: 0 | V68: 0 | W68: 0 | X68: 0 | Y68: 0 | Z68: 0 | AA68: 0 | AB68: 0 | AC68: 0 | AD68: 0 | AE68: 0 | AF68: 0 | AG68: 0 | AH68: 0 | AI68: 0 | AJ68: 0 | AK68: 0 | AL68: -0.01321420179 | AM68: 0 | AN68: 0 | AP68: =+SUMIFS(Em.GHG.hgvAH2., Prd., $AP$3) -> 0 | AQ68: =+SUMIFS(Em.CO2.hgvAH2., Prd., $AQ$3) -> 0 | AR68: =+SUMIFS(Em.CH4.hgvAH2., Prd., $AR$3) -> 0 | AS68: =+SUMIFS(Em.N2O.hgvAH2., Prd., $AS$3) -> 0 | AT68: 0 | AV68: =+SUMIFS(Em.PM10.hgvAH2., Prd., $AV$3) -> 12618.32331 | AW68: =+SUMIFS(Em.NOX.hgvAH2., Prd., $AW$3) -> 12618.32331 | AX68: =+SUMIFS(Em.SO2.hgvAH2., Prd., $AX$3) -> 12618.32331 | AY68: =+SUMIFS(Em.NMVOC.hgvAH2., Prd., $AY$3) -> 12618.32331 | AZ68: =+SUMIFS(Em.PM2.5.hgvAH2., Prd., $AZ$3) -> 12618.32331 | BA68: =+SUMIFS(Em.NH3.hgvAH2., Prd., $BA$3) -> 12618.32331 | BD68: 1A3b | BE68: 1 | BF68: A | BG68: 3 | BH68: b | BR68: =Results!$E$279 -> Transport-Domestic | BS68: HGV
B69: =Model!$H$420 -> HGV _Articulated Plug-in Hybrid Electric Vehicle | C69: =Model!$I$420 -> hgvAPHEV. | E69: =+SUMIFS(EB.hgvAPHEV.fElc., Prd., $E$3) -> -0.002676124388 | F69: 0 | G69: 0 | H69: =+SUMIFS(EB.hgvAPHEV.fBiL., Prd., $H$3) -> -2.234065711e-05 | I69: 0 | J69: 0 | K69: =+SUMIFS(EB.hgvAPHEV.fFsL., Prd., $K$3) -> -0.006035868137 | L69: 0 | M69: 0 | N69: 0 | O69: 0 | P69: 0 | Q69: 0 | R69: 0 | S69: 0 | T69: 0 | U69: 0 | V69: 0 | W69: 0 | X69: 0 | Y69: 0 | Z69: 0 | AA69: 0 | AB69: 0 | AC69: 0 | AD69: 0 | AE69: 0 | AF69: 0 | AG69: 0 | AH69: 0 | AI69: 0 | AJ69: 0 | AK69: 0 | AL69: -0.008734333182 | AM69: 0 | AN69: 0 | AP69: =+SUMIFS(Em.GHG.hgvAPHEV., Prd., $AP$3) -> 0.001517808925 | AQ69: =+SUMIFS(Em.CO2.hgvAPHEV., Prd., $AQ$3) -> 0.00150541305 | AR69: =+SUMIFS(Em.CH4.hgvAPHEV., Prd., $AR$3) -> 2.935681418e-07 | AS69: =+SUMIFS(Em.N2O.hgvAPHEV., Prd., $AS$3) -> 1.210230642e-05 | AT69: 0 | AV69: =+SUMIFS(Em.PM10.hgvAPHEV., Prd., $AV$3) -> 8548.392829 | AW69: =+SUMIFS(Em.NOX.hgvAPHEV., Prd., $AW$3) -> 8548.392829 | AX69: =+SUMIFS(Em.SO2.hgvAPHEV., Prd., $AX$3) -> 8548.392829 | AY69: =+SUMIFS(Em.NMVOC.hgvAPHEV., Prd., $AY$3) -> 8548.392829 | AZ69: =+SUMIFS(Em.PM2.5.hgvAPHEV., Prd., $AZ$3) -> 8548.392829 | BA69: =+SUMIFS(Em.NH3.hgvAPHEV., Prd., $BA$3) -> 8548.392829 | BD69: 1A3b | BE69: 1 | BF69: A | BG69: 3 | BH69: b | BR69: =Results!$E$279 -> Transport-Domestic | BS69: HGV
B70: =Model!$H$421 -> HGV _Articulated Internal Combustion Engine | C70: =Model!$I$421 -> hgvAIC. | E70: 0 | F70: 0 | G70: 0 | H70: =+SUMIFS(EB.hgvAIC.fBiL., Prd., $H$3) -> -0.0226550681 | I70: 0 | J70: 0 | K70: =+SUMIFS(EB.hgvAIC.fFsL., Prd., $K$3) -> -6.120813861 | L70: 0 | M70: 0 | N70: 0 | O70: 0 | P70: 0 | Q70: 0 | R70: 0 | S70: 0 | T70: 0 | U70: 0 | V70: 0 | W70: 0 | X70: 0 | Y70: 0 | Z70: 0 | AA70: 0 | AB70: 0 | AC70: 0 | AD70: 0 | AE70: 0 | AF70: 0 | AG70: 0 | AH70: 0 | AI70: 0 | AJ70: 0 | AK70: 0 | AL70: -6.143468929 | AM70: 0 | AN70: 0 | AP70: =+SUMIFS(Em.GHG.hgvAIC., Prd., $AP$3) -> 1.539169792 | AQ70: =+SUMIFS(Em.CO2.hgvAIC., Prd., $AQ$3) -> 1.526599464 | AR70: =+SUMIFS(Em.CH4.hgvAIC., Prd., $AR$3) -> 0.0002976996698 | AS70: =+SUMIFS(Em.N2O.hgvAIC., Prd., $AS$3) -> 0.0122726281 | AT70: 0 | AV70: =+SUMIFS(Em.PM10.hgvAIC., Prd., $AV$3) -> 2796013.404 | AW70: =+SUMIFS(Em.NOX.hgvAIC., Prd., $AW$3) -> 2796013.404 | AX70: =+SUMIFS(Em.SO2.hgvAIC., Prd., $AX$3) -> 2796013.404 | AY70: =+SUMIFS(Em.NMVOC.hgvAIC., Prd., $AY$3) -> 2796013.404 | AZ70: =+SUMIFS(Em.PM2.5.hgvAIC., Prd., $AZ$3) -> 2796013.404 | BA70: =+SUMIFS(Em.NH3.hgvAIC., Prd., $BA$3) -> 2796013.404 | BD70: 1A3b | BE70: 1 | BF70: A | BG70: 3 | BH70: b | BR70: =Results!$E$279 -> Transport-Domestic | BS70: HGV
B71: =Model!$H$422 -> Bus Electric | C71: =Model!$I$422 -> busE. | E71: =+SUMIFS(EB.busE.fElc., Prd., $E$3) -> -2.7976933 | F71: 0 | G71: 0 | H71: 0 | I71: 0 | J71: 0 | K71: 0 | L71: 0 | M71: 0 | N71: 0 | O71: 0 | P71: 0 | Q71: 0 | R71: 0 | S71: 0 | T71: 0 | U71: 0 | V71: 0 | W71: 0 | X71: 0 | Y71: 0 | Z71: 0 | AA71: 0 | AB71: 0 | AC71: 0 | AD71: 0 | AE71: 0 | AF71: 0 | AG71: 0 | AH71: 0 | AI71: 0 | AJ71: 0 | AK71: 0 | AL71: -2.7976933 | AM71: 0 | AN71: 0 | AP71: =+SUMIFS(Em.GHG.busE., Prd., $AP$3) -> 0 | AQ71: =+SUMIFS(Em.CO2.busE., Prd., $AQ$3) -> 0 | AR71: =+SUMIFS(Em.CH4.busE., Prd., $AR$3) -> 0 | AS71: =+SUMIFS(Em.N2O.busE., Prd., $AS$3) -> 0 | AT71: 0 | AV71: =+SUMIFS(Em.PM10.busE., Prd., $AV$3) -> 3200624.428 | AW71: =+SUMIFS(Em.NOX.busE., Prd., $AW$3) -> 3200624.428 | AX71: =+SUMIFS(Em.SO2.busE., Prd., $AX$3) -> 3200624.428 | AY71: =+SUMIFS(Em.NMVOC.busE., Prd., $AY$3) -> 3200624.428 | AZ71: =+SUMIFS(Em.PM2.5.busE., Prd., $AZ$3) -> 3200624.428 | BA71: =+SUMIFS(Em.NH3.busE., Prd., $BA$3) -> 3200624.428 | BD71: 1A3b | BE71: 1 | BF71: A | BG71: 3 | BH71: b | BR71: =Results!$E$279 -> Transport-Domestic | BS71: Buses
B72: =Model!$H$423 -> Bus Hydrogen | C72: =Model!$I$423 -> busH2. | E72: 0 | F72: =+SUMIFS(EB.busH2.fH2G., Prd., $F$3) -> -1.792815888 | G72: 0 | H72: 0 | I72: 0 | J72: 0 | K72: 0 | L72: 0 | M72: 0 | N72: 0 | O72: 0 | P72: 0 | Q72: 0 | R72: 0 | S72: 0 | T72: 0 | U72: 0 | V72: 0 | W72: 0 | X72: 0 | Y72: 0 | Z72: 0 | AA72: 0 | AB72: 0 | AC72: 0 | AD72: 0 | AE72: 0 | AF72: 0 | AG72: 0 | AH72: 0 | AI72: 0 | AJ72: 0 | AK72: 0 | AL72: -1.792815888 | AM72: 0 | AN72: 0 | AP72: =+SUMIFS(Em.GHG.busH2., Prd., $AP$3) -> 0 | AQ72: =+SUMIFS(Em.CO2.busH2., Prd., $AQ$3) -> 0 | AR72: =+SUMIFS(Em.CH4.busH2., Prd., $AR$3) -> 0 | AS72: =+SUMIFS(Em.N2O.busH2., Prd., $AS$3) -> 0 | AT72: 0 | AV72: =+SUMIFS(Em.PM10.busH2., Prd., $AV$3) -> 933673.1443 | AW72: =+SUMIFS(Em.NOX.busH2., Prd., $AW$3) -> 933673.1443 | AX72: =+SUMIFS(Em.SO2.busH2., Prd., $AX$3) -> 933673.1443 | AY72: =+SUMIFS(Em.NMVOC.busH2., Prd., $AY$3) -> 933673.1443 | AZ72: =+SUMIFS(Em.PM2.5.busH2., Prd., $AZ$3) -> 933673.1443 | BA72: =+SUMIFS(Em.NH3.busH2., Prd., $BA$3) -> 933673.1443 | BD72: 1A3b | BE72: 1 | BF72: A | BG72: 3 | BH72: b | BR72: =Results!$E$279 -> Transport-Domestic | BS72: Buses
B73: =Model!$H$424 -> Bus Plug-in Hybrid Electric Vehicle | C73: =Model!$I$424 -> busPHEV. | E73: =+SUMIFS(EB.busPHEV.fElc., Prd., $E$3) -> -0.2780348803 | F73: 0 | G73: 0 | H73: =+SUMIFS(EB.busPHEV.fBiL., Prd., $H$3) -> -0.04642147394 | I73: 0 | J73: 0 | K73: =+SUMIFS(EB.busPHEV.fFsL., Prd., $K$3) -> -0.5829937224 | L73: 0 | M73: 0 | N73: 0 | O73: 0 | P73: 0 | Q73: 0 | R73: 0 | S73: 0 | T73: 0 | U73: 0 | V73: 0 | W73: 0 | X73: 0 | Y73: 0 | Z73: 0 | AA73: 0 | AB73: 0 | AC73: 0 | AD73: 0 | AE73: 0 | AF73: 0 | AG73: 0 | AH73: 0 | AI73: 0 | AJ73: 0 | AK73: 0 | AL73: -0.9074500767 | AM73: 0 | AN73: 0 | AP73: =+SUMIFS(Em.GHG.busPHEV., Prd., $AP$3) -> 0.1466987811 | AQ73: =+SUMIFS(Em.CO2.busPHEV., Prd., $AQ$3) -> 0.1454051576 | AR73: =+SUMIFS(Em.CH4.busPHEV., Prd., $AR$3) -> 2.835522246e-05 | AS73: =+SUMIFS(Em.N2O.busPHEV., Prd., $AS$3) -> 0.001265268266 | AT73: 0 | AV73: =+SUMIFS(Em.PM10.busPHEV., Prd., $AV$3) -> 632524.9891 | AW73: =+SUMIFS(Em.NOX.busPHEV., Prd., $AW$3) -> 632524.9891 | AX73: =+SUMIFS(Em.SO2.busPHEV., Prd., $AX$3) -> 632524.9891 | AY73: =+SUMIFS(Em.NMVOC.busPHEV., Prd., $AY$3) -> 632524.9891 | AZ73: =+SUMIFS(Em.PM2.5.busPHEV., Prd., $AZ$3) -> 632524.9891 | BA73: =+SUMIFS(Em.NH3.busPHEV., Prd., $BA$3) -> 632524.9891 | BD73: 1A3b | BE73: 1 | BF73: A | BG73: 3 | BH73: b | BR73: =Results!$E$279 -> Transport-Domestic | BS73: Buses
B74: =Model!$H$425 -> Bus Internal Combustion Engine | C74: =Model!$I$425 -> busIC. | E74: 0 | F74: 0 | G74: 0 | H74: =+SUMIFS(EB.busIC.fBiL., Prd., $H$3) -> -1.502539733 | I74: 0 | J74: 0 | K74: =+SUMIFS(EB.busIC.fFsL., Prd., $K$3) -> -18.86995732 | L74: 0 | M74: 0 | N74: 0 | O74: 0 | P74: 0 | Q74: 0 | R74: 0 | S74: 0 | T74: 0 | U74: 0 | V74: 0 | W74: 0 | X74: 0 | Y74: 0 | Z74: 0 | AA74: 0 | AB74: 0 | AC74: 0 | AD74: 0 | AE74: 0 | AF74: 0 | AG74: 0 | AH74: 0 | AI74: 0 | AJ74: 0 | AK74: 0 | AL74: -20.37249706 | AM74: 0 | AN74: 0 | AP74: =+SUMIFS(Em.GHG.busIC., Prd., $AP$3) -> 4.748249651 | AQ74: =+SUMIFS(Em.CO2.busIC., Prd., $AQ$3) -> 4.706378497 | AR74: =+SUMIFS(Em.CH4.busIC., Prd., $AR$3) -> 0.000917783189 | AS74: =+SUMIFS(Em.N2O.busIC., Prd., $AS$3) -> 0.04095337095 | AT74: 0 | AV74: =+SUMIFS(Em.PM10.busIC., Prd., $AV$3) -> 6603437.567 | AW74: =+SUMIFS(Em.NOX.busIC., Prd., $AW$3) -> 6603437.567 | AX74: =+SUMIFS(Em.SO2.busIC., Prd., $AX$3) -> 6603437.567 | AY74: =+SUMIFS(Em.NMVOC.busIC., Prd., $AY$3) -> 6603437.567 | AZ74: =+SUMIFS(Em.PM2.5.busIC., Prd., $AZ$3) -> 6603437.567 | BA74: =+SUMIFS(Em.NH3.busIC., Prd., $BA$3) -> 6603437.567 | BD74: 1A3b | BE74: 1 | BF74: A | BG74: 3 | BH74: b | BR74: =Results!$E$279 -> Transport-Domestic | BS74: Buses
B75: =Model!$H$426 -> Train Passenger Electric | C75: =Model!$I$426 -> trnPE. | E75: =+SUMIFS(EB.trnPE.fElc., Prd., $E$3) -> -13.4124693 | F75: 0 | G75: 0 | H75: 0 | I75: 0 | J75: 0 | K75: 0 | L75: 0 | M75: 0 | N75: 0 | O75: 0 | P75: 0 | Q75: 0 | R75: 0 | S75: 0 | T75: 0 | U75: 0 | V75: 0 | W75: 0 | X75: 0 | Y75: 0 | Z75: 0 | AA75: 0 | AB75: 0 | AC75: 0 | AD75: 0 | AE75: 0 | AF75: 0 | AG75: 0 | AH75: 0 | AI75: 0 | AJ75: 0 | AK75: 0 | AL75: -13.4124693 | AM75: 0 | AN75: 0 | AP75: =+SUMIFS(Em.GHG.trnPE., Prd., $AP$3) -> 0 | AQ75: =+SUMIFS(Em.CO2.trnPE., Prd., $AQ$3) -> 0 | AR75: =+SUMIFS(Em.CH4.trnPE., Prd., $AR$3) -> 0 | AS75: =+SUMIFS(Em.N2O.trnPE., Prd., $AS$3) -> 0 | AT75: 0 | AV75: =+SUMIFS(Em.PM10.trnPE., Prd., $AV$3) -> 994667.729 | AW75: =+SUMIFS(Em.NOX.trnPE., Prd., $AW$3) -> 994667.729 | AX75: =+SUMIFS(Em.SO2.trnPE., Prd., $AX$3) -> 994667.729 | AY75: =+SUMIFS(Em.NMVOC.trnPE., Prd., $AY$3) -> 994667.729 | AZ75: =+SUMIFS(Em.PM2.5.trnPE., Prd., $AZ$3) -> 994667.729 | BA75: =+SUMIFS(Em.NH3.trnPE., Prd., $BA$3) -> 994667.729 | BD75: 1A3c | BE75: 1 | BF75: A | BG75: 3 | BH75: c | BR75: =Results!$E$279 -> Transport-Domestic | BS75: Railway
B76: =Model!$H$427 -> Train Passenger Internal Combustion Engine | C76: =Model!$I$427 -> trnPIC. | E76: 0 | F76: 0 | G76: 0 | H76: =+SUMIFS(EB.trnPIC.fBiL., Prd., $H$3) -> 0 | I76: 0 | J76: 0 | K76: =+SUMIFS(EB.trnPIC.fFsL., Prd., $K$3) -> -4.824132452 | L76: 0 | M76: 0 | N76: 0 | O76: 0 | P76: 0 | Q76: 0 | R76: 0 | S76: 0 | T76: 0 | U76: 0 | V76: 0 | W76: 0 | X76: 0 | Y76: 0 | Z76: 0 | AA76: 0 | AB76: 0 | AC76: 0 | AD76: 0 | AE76: 0 | AF76: 0 | AG76: 0 | AH76: 0 | AI76: 0 | AJ76: 0 | AK76: 0 | AL76: -4.824132452 | AM76: 0 | AN76: 0 | AP76: =+SUMIFS(Em.GHG.trnPIC., Prd., $AP$3) -> 1.213061084 | AQ76: =+SUMIFS(Em.CO2.trnPIC., Prd., $AQ$3) -> 1.203192612 | AR76: =+SUMIFS(Em.CH4.trnPIC., Prd., $AR$3) -> 0.0002346326274 | AS76: =+SUMIFS(Em.N2O.trnPIC., Prd., $AS$3) -> 0.009633839831 | AT76: 0 | AV76: =+SUMIFS(Em.PM10.trnPIC., Prd., $AV$3) -> 133724.8178 | AW76: =+SUMIFS(Em.NOX.trnPIC., Prd., $AW$3) -> 133724.8178 | AX76: =+SUMIFS(Em.SO2.trnPIC., Prd., $AX$3) -> 133724.8178 | AY76: =+SUMIFS(Em.NMVOC.trnPIC., Prd., $AY$3) -> 133724.8178 | AZ76: =+SUMIFS(Em.PM2.5.trnPIC., Prd., $AZ$3) -> 133724.8178 | BA76: =+SUMIFS(Em.NH3.trnPIC., Prd., $BA$3) -> 133724.8178 | BD76: 1A3c | BE76: 1 | BF76: A | BG76: 3 | BH76: c | BR76: =Results!$E$279 -> Transport-Domestic | BS76: Railway
B77: =Model!$H$428 -> Train Freight Electric | C77: =Model!$I$428 -> trnFE. | E77: =+SUMIFS(EB.trnFE.fElc., Prd., $E$3) -> -30.37249663 | F77: 0 | G77: 0 | H77: 0 | I77: 0 | J77: 0 | K77: 0 | L77: 0 | M77: 0 | N77: 0 | O77: 0 | P77: 0 | Q77: 0 | R77: 0 | S77: 0 | T77: 0 | U77: 0 | V77: 0 | W77: 0 | X77: 0 | Y77: 0 | Z77: 0 | AA77: 0 | AB77: 0 | AC77: 0 | AD77: 0 | AE77: 0 | AF77: 0 | AG77: 0 | AH77: 0 | AI77: 0 | AJ77: 0 | AK77: 0 | AL77: -30.37249663 | AM77: 0 | AN77: 0 | AP77: =+SUMIFS(Em.GHG.trnFE., Prd., $AP$3) -> 0 | AQ77: =+SUMIFS(Em.CO2.trnFE., Prd., $AQ$3) -> 0 | AR77: =+SUMIFS(Em.CH4.trnFE., Prd., $AR$3) -> 0 | AS77: =+SUMIFS(Em.N2O.trnFE., Prd., $AS$3) -> 0 | AT77: 0 | AV77: =+SUMIFS(Em.PM10.trnFE., Prd., $AV$3) -> 2241488.01 | AW77: =+SUMIFS(Em.NOX.trnFE., Prd., $AW$3) -> 2241488.01 | AX77: =+SUMIFS(Em.SO2.trnFE., Prd., $AX$3) -> 2241488.01 | AY77: =+SUMIFS(Em.NMVOC.trnFE., Prd., $AY$3) -> 2241488.01 | AZ77: =+SUMIFS(Em.PM2.5.trnFE., Prd., $AZ$3) -> 2241488.01 | BA77: =+SUMIFS(Em.NH3.trnFE., Prd., $BA$3) -> 2241488.01 | BD77: 1A3c | BE77: 1 | BF77: A | BG77: 3 | BH77: c | BR77: =Results!$E$279 -> Transport-Domestic | BS77: Railway
B78: =Model!$H$429 -> Train Freight Internal Combustion Engine | C78: =Model!$I$429 -> trnFIC. | E78: 0 | F78: 0 | G78: 0 | H78: =+SUMIFS(EB.trnFIC.fBiL., Prd., $H$3) -> 0 | I78: 0 | J78: 0 | K78: =+SUMIFS(EB.trnFIC.fFsL., Prd., $K$3) -> -36.67083343 | L78: 0 | M78: 0 | N78: 0 | O78: 0 | P78: 0 | Q78: 0 | R78: 0 | S78: 0 | T78: 0 | U78: 0 | V78: 0 | W78: 0 | X78: 0 | Y78: 0 | Z78: 0 | AA78: 0 | AB78: 0 | AC78: 0 | AD78: 0 | AE78: 0 | AF78: 0 | AG78: 0 | AH78: 0 | AI78: 0 | AJ78: 0 | AK78: 0 | AL78: -36.67083343 | AM78: 0 | AN78: 0 | AP78: =+SUMIFS(Em.GHG.trnFIC., Prd., $AP$3) -> 9.22113176 | AQ78: =+SUMIFS(Em.CO2.trnFIC., Prd., $AQ$3) -> 9.146116176 | AR78: =+SUMIFS(Em.CH4.trnFIC., Prd., $AR$3) -> 0.001783569187 | AS78: =+SUMIFS(Em.N2O.trnFIC., Prd., $AS$3) -> 0.0732320141 | AT78: 0 | AV78: =+SUMIFS(Em.PM10.trnFIC., Prd., $AV$3) -> 1029715.973 | AW78: =+SUMIFS(Em.NOX.trnFIC., Prd., $AW$3) -> 1029715.973 | AX78: =+SUMIFS(Em.SO2.trnFIC., Prd., $AX$3) -> 1029715.973 | AY78: =+SUMIFS(Em.NMVOC.trnFIC., Prd., $AY$3) -> 1029715.973 | AZ78: =+SUMIFS(Em.PM2.5.trnFIC., Prd., $AZ$3) -> 1029715.973 | BA78: =+SUMIFS(Em.NH3.trnFIC., Prd., $BA$3) -> 1029715.973 | BD78: 1A3c | BE78: 1 | BF78: A | BG78: 3 | BH78: c | BR78: =Results!$E$279 -> Transport-Domestic | BS78: Railway
B79: =Model!$H$432 -> Non-Road Mobile Machinery Internal Combustion Engine | C79: =Model!$I$432 -> nrmIC. | E79: 0 | F79: 0 | G79: 0 | H79: =+SUMIFS(EB.nrmIC.fBiL., Prd., $H$3) -> 0 | I79: 0 | J79: 0 | K79: =+SUMIFS(EB.nrmIC.fFsL., Prd., $K$3) -> 0 | L79: 0 | M79: 0 | N79: 0 | O79: 0 | P79: 0 | Q79: 0 | R79: 0 | S79: 0 | T79: 0 | U79: 0 | V79: 0 | W79: 0 | X79: 0 | Y79: 0 | Z79: 0 | AA79: 0 | AB79: 0 | AC79: 0 | AD79: 0 | AE79: 0 | AF79: 0 | AG79: 0 | AH79: 0 | AI79: 0 | AJ79: 0 | AK79: 0 | AL79: 0 | AM79: 0 | AN79: 0 | AP79: =+SUMIFS(Em.GHG.nrmIC., Prd., $AP$3) -> 0 | AQ79: =+SUMIFS(Em.CO2.nrmIC., Prd., $AQ$3) -> 0 | AR79: =+SUMIFS(Em.CH4.nrmIC., Prd., $AR$3) -> 0 | AS79: =+SUMIFS(Em.N2O.nrmIC., Prd., $AS$3) -> 0 | AT79: 0 | AV79: =+SUMIFS(Em.PM10.nrmIC., Prd., $AV$3) -> 0 | AW79: =+SUMIFS(Em.NOX.nrmIC., Prd., $AW$3) -> 0 | AX79: =+SUMIFS(Em.SO2.nrmIC., Prd., $AX$3) -> 0 | AY79: =+SUMIFS(Em.NMVOC.nrmIC., Prd., $AY$3) -> 0 | AZ79: =+SUMIFS(Em.PM2.5.nrmIC., Prd., $AZ$3) -> 0 | BA79: =+SUMIFS(Em.NH3.nrmIC., Prd., $BA$3) -> 0 | BD79: 1A3e | BE79: 1 | BF79: A | BG79: 3 | BH79: e | BR79: =Results!$E$275 -> Industry | BS79: OffRoad
B80: =Model!$H$430 -> Shipping Domestic Internal Combustion Engine | C80: =Model!$I$430 -> shpDIC. | E80: 0 | F80: 0 | G80: 0 | H80: =+SUMIFS(EB.shpDIC.fBiL., Prd., $H$3) -> 0 | I80: 0 | J80: 0 | K80: =+SUMIFS(EB.shpDIC.fFsL., Prd., $K$3) -> 0 | L80: 0 | M80: 0 | N80: 0 | O80: 0 | P80: 0 | Q80: 0 | R80: 0 | S80: 0 | T80: 0 | U80: 0 | V80: 0 | W80: 0 | X80: 0 | Y80: 0 | Z80: 0 | AA80: 0 | AB80: 0 | AC80: 0 | AD80: 0 | AE80: 0 | AF80: 0 | AG80: 0 | AH80: 0 | AI80: 0 | AJ80: 0 | AK80: 0 | AL80: 0 | AM80: 0 | AN80: 0 | AP80: =+SUMIFS(Em.GHG.shpDIC., Prd., $AP$3) -> 0 | AQ80: =+SUMIFS(Em.CO2.shpDIC., Prd., $AQ$3) -> 0 | AR80: =+SUMIFS(Em.CH4.shpDIC., Prd., $AR$3) -> 0 | AS80: =+SUMIFS(Em.N2O.shpDIC., Prd., $AS$3) -> 0 | AT80: 0 | AV80: =+SUMIFS(Em.PM10.shpDIC., Prd., $AV$3) -> 0 | AW80: =+SUMIFS(Em.NOX.shpDIC., Prd., $AW$3) -> 0 | AX80: =+SUMIFS(Em.SO2.shpDIC., Prd., $AX$3) -> 0 | AY80: =+SUMIFS(Em.NMVOC.shpDIC., Prd., $AY$3) -> 0 | AZ80: =+SUMIFS(Em.PM2.5.shpDIC., Prd., $AZ$3) -> 0 | BA80: =+SUMIFS(Em.NH3.shpDIC., Prd., $BA$3) -> 0 | BD80: 1A3d | BE80: 1 | BF80: A | BG80: 3 | BH80: d | BR80: =Results!$E$279 -> Transport-Domestic | BS80: Aviation&ShippingDom
B81: =Model!$H$431 -> Shipping International Internal Combustion Engine | C81: =Model!$I$431 -> shpIIC. | E81: 0 | F81: 0 | G81: 0 | H81: =+SUMIFS(EB.shpIIC.fBiL., Prd., $H$3) -> 0 | I81: 0 | J81: 0 | K81: =+SUMIFS(EB.shpIIC.fFsL., Prd., $K$3) -> 0 | L81: 0 | M81: 0 | N81: 0 | O81: 0 | P81: 0 | Q81: 0 | R81: 0 | S81: 0 | T81: 0 | U81: 0 | V81: 0 | W81: 0 | X81: 0 | Y81: 0 | Z81: 0 | AA81: 0 | AB81: 0 | AC81: 0 | AD81: 0 | AE81: 0 | AF81: 0 | AG81: 0 | AH81: 0 | AI81: 0 | AJ81: 0 | AK81: 0 | AL81: 0 | AM81: 0 | AN81: 0 | AP81: =+SUMIFS(Em.GHG.shpIIC., Prd., $AP$3) -> 0 | AQ81: =+SUMIFS(Em.CO2.shpIIC., Prd., $AQ$3) -> 0 | AR81: =+SUMIFS(Em.CH4.shpIIC., Prd., $AR$3) -> 0 | AS81: =+SUMIFS(Em.N2O.shpIIC., Prd., $AS$3) -> 0 | AT81: 0 | AV81: =+SUMIFS(Em.PM10.shpIIC., Prd., $AV$3) -> 0 | AW81: =+SUMIFS(Em.NOX.shpIIC., Prd., $AW$3) -> 0 | AX81: =+SUMIFS(Em.SO2.shpIIC., Prd., $AX$3) -> 0 | AY81: =+SUMIFS(Em.NMVOC.shpIIC., Prd., $AY$3) -> 0 | AZ81: =+SUMIFS(Em.PM2.5.shpIIC., Prd., $AZ$3) -> 0 | BA81: =+SUMIFS(Em.NH3.shpIIC., Prd., $BA$3) -> 0 | BR81: =Results!$E$280 -> Transport-International | BS81: ShippingInt
B82: =Model!$H$441 -> Light Duty Vehicles Electric Refuelling Infrastructure | C82: =Model!$I$441 -> LVEref. | E82: =+SUMIFS(EB.LVEref.fElc., Prd., $E$3) -> 0 | F82: 0 | G82: 0 | H82: 0 | I82: 0 | J82: 0 | K82: 0 | L82: 0 | M82: 0 | N82: 0 | O82: 0 | P82: 0 | Q82: 0 | R82: 0 | S82: 0 | T82: 0 | U82: 0 | V82: 0 | W82: 0 | X82: 0 | Y82: 0 | Z82: 0 | AA82: 0 | AB82: =+SUMIFS(EB.LVEref.lsDst., Prd., $AB$3) -> 0 | AC82: 0 | AD82: 0 | AE82: 0 | AF82: 0 | AG82: 0 | AH82: 0 | AI82: 0 | AJ82: 0 | AK82: 0 | AL82: 0 | AM82: 0 | AN82: 0 | AP82: =+SUMIFS(Em.GHG.LVEref., Prd., $AP$3) -> 0 | AQ82: =+SUMIFS(Em.CO2.LVEref., Prd., $AQ$3) -> 0 | AR82: =+SUMIFS(Em.CH4.LVEref., Prd., $AR$3) -> 0 | AS82: =+SUMIFS(Em.N2O.LVEref., Prd., $AS$3) -> 0 | AT82: 0 | AV82: =+SUMIFS(Em.PM10.LVEref., Prd., $AV$3) -> 52294369.68 | AW82: =+SUMIFS(Em.NOX.LVEref., Prd., $AW$3) -> 52294369.68 | AX82: =+SUMIFS(Em.SO2.LVEref., Prd., $AX$3) -> 52294369.68 | AY82: =+SUMIFS(Em.NMVOC.LVEref., Prd., $AY$3) -> 52294369.68 | AZ82: =+SUMIFS(Em.PM2.5.LVEref., Prd., $AZ$3) -> 52294369.68 | BA82: =+SUMIFS(Em.NH3.LVEref., Prd., $BA$3) -> 52294369.68 | BD82: 1A3b | BE82: 1 | BF82: A | BG82: 3 | BH82: b | BR82: =Results!$E$279 -> Transport-Domestic | BS82: Cars
B83: =Model!$H$444 -> HGV _Articulated Electric Refuelling Infrastructure | C83: =Model!$I$444 -> hgvAEref. | E83: =+SUMIFS(EB.hgvAEref.fElc., Prd., $E$3) -> 0 | F83: 0 | G83: 0 | H83: 0 | I83: 0 | J83: 0 | K83: 0 | L83: 0 | M83: 0 | N83: 0 | O83: 0 | P83: 0 | Q83: 0 | R83: 0 | S83: 0 | T83: 0 | U83: 0 | V83: 0 | W83: 0 | X83: 0 | Y83: 0 | Z83: 0 | AA83: 0 | AB83: =+SUMIFS(EB.hgvAEref.lsDst., Prd., $AB$3) -> 0 | AC83: 0 | AD83: 0 | AE83: 0 | AF83: 0 | AG83: 0 | AH83: 0 | AI83: 0 | AJ83: 0 | AK83: 0 | AL83: 0 | AM83: 0 | AN83: 0 | AP83: =+SUMIFS(Em.GHG.hgvAEref., Prd., $AP$3) -> 0 | AQ83: =+SUMIFS(Em.CO2.hgvAEref., Prd., $AQ$3) -> 0 | AR83: =+SUMIFS(Em.CH4.hgvAEref., Prd., $AR$3) -> 0 | AS83: =+SUMIFS(Em.N2O.hgvAEref., Prd., $AS$3) -> 0 | AT83: 0 | AV83: =+SUMIFS(Em.PM10.hgvAEref., Prd., $AV$3) -> 583668.0896 | AW83: =+SUMIFS(Em.NOX.hgvAEref., Prd., $AW$3) -> 583668.0896 | AX83: =+SUMIFS(Em.SO2.hgvAEref., Prd., $AX$3) -> 583668.0896 | AY83: =+SUMIFS(Em.NMVOC.hgvAEref., Prd., $AY$3) -> 583668.0896 | AZ83: =+SUMIFS(Em.PM2.5.hgvAEref., Prd., $AZ$3) -> 583668.0896 | BA83: =+SUMIFS(Em.NH3.hgvAEref., Prd., $BA$3) -> 583668.0896 | BD83: 1A3b | BE83: 1 | BF83: A | BG83: 3 | BH83: b | BR83: =Results!$E$279 -> Transport-Domestic | BS83: HGV
B84: =Model!$H$447 -> Bus Electric Refuelling Infrastructure | C84: =Model!$I$447 -> busEref. | E84: =+SUMIFS(EB.busEref.fElc., Prd., $E$3) -> 0 | F84: 0 | G84: 0 | H84: 0 | I84: 0 | J84: 0 | K84: 0 | L84: 0 | M84: 0 | N84: 0 | O84: 0 | P84: 0 | Q84: 0 | R84: 0 | S84: 0 | T84: 0 | U84: 0 | V84: 0 | W84: 0 | X84: 0 | Y84: 0 | Z84: 0 | AA84: 0 | AB84: =+SUMIFS(EB.busEref.lsDst., Prd., $AB$3) -> 0 | AC84: 0 | AD84: 0 | AE84: 0 | AF84: 0 | AG84: 0 | AH84: 0 | AI84: 0 | AJ84: 0 | AK84: 0 | AL84: 0 | AM84: 0 | AN84: 0 | AP84: =+SUMIFS(Em.GHG.busEref., Prd., $AP$3) -> 0 | AQ84: =+SUMIFS(Em.CO2.busEref., Prd., $AQ$3) -> 0 | AR84: =+SUMIFS(Em.CH4.busEref., Prd., $AR$3) -> 0 | AS84: =+SUMIFS(Em.N2O.busEref., Prd., $AS$3) -> 0 | AT84: 0 | AV84: =+SUMIFS(Em.PM10.busEref., Prd., $AV$3) -> 11072610.38 | AW84: =+SUMIFS(Em.NOX.busEref., Prd., $AW$3) -> 11072610.38 | AX84: =+SUMIFS(Em.SO2.busEref., Prd., $AX$3) -> 11072610.38 | AY84: =+SUMIFS(Em.NMVOC.busEref., Prd., $AY$3) -> 11072610.38 | AZ84: =+SUMIFS(Em.PM2.5.busEref., Prd., $AZ$3) -> 11072610.38 | BA84: =+SUMIFS(Em.NH3.busEref., Prd., $BA$3) -> 11072610.38 | BD84: 1A3b | BE84: 1 | BF84: A | BG84: 3 | BH84: b | BR84: =Results!$E$279 -> Transport-Domestic | BS84: Buses
B85: =Model!$H$442 -> Light Duty Vehicles Hydrogen Refuelling Infrastructure | C85: =Model!$I$442 -> LVH2ref. | E85: =+SUMIFS(EB.LVH2ref.fElc., Prd., $E$3) -> -0.00226193796 | F85: 0 | G85: 0 | H85: 0 | I85: 0 | J85: 0 | K85: 0 | L85: 0 | M85: 0 | N85: 0 | O85: 0 | P85: 0 | Q85: 0 | R85: 0 | S85: 0 | T85: 0 | U85: 0 | V85: 0 | W85: 0 | X85: 0 | Y85: 0 | Z85: 0 | AA85: 0 | AB85: =+SUMIFS(EB.LVH2ref.lsDst., Prd., $AB$3) -> 0.00226193796 | AC85: 0 | AD85: 0 | AE85: 0 | AF85: 0 | AG85: 0 | AH85: 0 | AI85: 0 | AJ85: 0 | AK85: 0 | AL85: -0.00226193796 | AM85: 0 | AN85: 0.00226193796 | AP85: =+SUMIFS(Em.GHG.LVH2ref., Prd., $AP$3) -> 0 | AQ85: =+SUMIFS(Em.CO2.LVH2ref., Prd., $AQ$3) -> 0 | AR85: =+SUMIFS(Em.CH4.LVH2ref., Prd., $AR$3) -> 0 | AS85: =+SUMIFS(Em.N2O.LVH2ref., Prd., $AS$3) -> 0 | AT85: 0 | AV85: =+SUMIFS(Em.PM10.LVH2ref., Prd., $AV$3) -> 195431.2443 | AW85: =+SUMIFS(Em.NOX.LVH2ref., Prd., $AW$3) -> 195431.2443 | AX85: =+SUMIFS(Em.SO2.LVH2ref., Prd., $AX$3) -> 195431.2443 | AY85: =+SUMIFS(Em.NMVOC.LVH2ref., Prd., $AY$3) -> 195431.2443 | AZ85: =+SUMIFS(Em.PM2.5.LVH2ref., Prd., $AZ$3) -> 195431.2443 | BA85: =+SUMIFS(Em.NH3.LVH2ref., Prd., $BA$3) -> 195431.2443 | BD85: 1A3b | BE85: 1 | BF85: A | BG85: 3 | BH85: b | BR85: =Results!$E$279 -> Transport-Domestic | BS85: Cars
B86: =Model!$H$445 -> HGV _Articulated Hydrogen Refuelling Infrastructure | C86: =Model!$I$445 -> hgvAH2ref. | E86: =+SUMIFS(EB.hgvAH2ref.fElc., Prd., $E$3) -> -0.0005505917411 | F86: 0 | G86: 0 | H86: 0 | I86: 0 | J86: 0 | K86: 0 | L86: 0 | M86: 0 | N86: 0 | O86: 0 | P86: 0 | Q86: 0 | R86: 0 | S86: 0 | T86: 0 | U86: 0 | V86: 0 | W86: 0 | X86: 0 | Y86: 0 | Z86: 0 | AA86: 0 | AB86: =+SUMIFS(EB.hgvAH2ref.lsDst., Prd., $AB$3) -> 0.0005505917411 | AC86: 0 | AD86: 0 | AE86: 0 | AF86: 0 | AG86: 0 | AH86: 0 | AI86: 0 | AJ86: 0 | AK86: 0 | AL86: -0.0005505917411 | AM86: 0 | AN86: 0.0005505917411 | AP86: =+SUMIFS(Em.GHG.hgvAH2ref., Prd., $AP$3) -> 0 | AQ86: =+SUMIFS(Em.CO2.hgvAH2ref., Prd., $AQ$3) -> 0 | AR86: =+SUMIFS(Em.CH4.hgvAH2ref., Prd., $AR$3) -> 0 | AS86: =+SUMIFS(Em.N2O.hgvAH2ref., Prd., $AS$3) -> 0 | AT86: 0 | AV86: =+SUMIFS(Em.PM10.hgvAH2ref., Prd., $AV$3) -> 47571.07886 | AW86: =+SUMIFS(Em.NOX.hgvAH2ref., Prd., $AW$3) -> 47571.07886 | AX86: =+SUMIFS(Em.SO2.hgvAH2ref., Prd., $AX$3) -> 47571.07886 | AY86: =+SUMIFS(Em.NMVOC.hgvAH2ref., Prd., $AY$3) -> 47571.07886 | AZ86: =+SUMIFS(Em.PM2.5.hgvAH2ref., Prd., $AZ$3) -> 47571.07886 | BA86: =+SUMIFS(Em.NH3.hgvAH2ref., Prd., $BA$3) -> 47571.07886 | BD86: 1A3b | BE86: 1 | BF86: A | BG86: 3 | BH86: b | BR86: =Results!$E$279 -> Transport-Domestic | BS86: HGV
B87: =Model!$H$448 -> Bus Hydrogen Refuelling Infrastructure | C87: =Model!$I$448 -> busH2ref. | E87: =+SUMIFS(EB.busH2ref.fElc., Prd., $E$3) -> -0.074700662 | F87: 0 | G87: 0 | H87: 0 | I87: 0 | J87: 0 | K87: 0 | L87: 0 | M87: 0 | N87: 0 | O87: 0 | P87: 0 | Q87: 0 | R87: 0 | S87: 0 | T87: 0 | U87: 0 | V87: 0 | W87: 0 | X87: 0 | Y87: 0 | Z87: 0 | AA87: 0 | AB87: =+SUMIFS(EB.busH2ref.lsDst., Prd., $AB$3) -> 0.074700662 | AC87: 0 | AD87: 0 | AE87: 0 | AF87: 0 | AG87: 0 | AH87: 0 | AI87: 0 | AJ87: 0 | AK87: 0 | AL87: -0.074700662 | AM87: 0 | AN87: 0.074700662 | AP87: =+SUMIFS(Em.GHG.busH2ref., Prd., $AP$3) -> 0 | AQ87: =+SUMIFS(Em.CO2.busH2ref., Prd., $AQ$3) -> 0 | AR87: =+SUMIFS(Em.CH4.busH2ref., Prd., $AR$3) -> 0 | AS87: =+SUMIFS(Em.N2O.busH2ref., Prd., $AS$3) -> 0 | AT87: 0 | AV87: =+SUMIFS(Em.PM10.busH2ref., Prd., $AV$3) -> 6454130.742 | AW87: =+SUMIFS(Em.NOX.busH2ref., Prd., $AW$3) -> 6454130.742 | AX87: =+SUMIFS(Em.SO2.busH2ref., Prd., $AX$3) -> 6454130.742 | AY87: =+SUMIFS(Em.NMVOC.busH2ref., Prd., $AY$3) -> 6454130.742 | AZ87: =+SUMIFS(Em.PM2.5.busH2ref., Prd., $AZ$3) -> 6454130.742 | BA87: =+SUMIFS(Em.NH3.busH2ref., Prd., $BA$3) -> 6454130.742 | BD87: =BE87&BF87&BG87&BH87&BI87 -> 1A3b | BE87: 1 | BF87: A | BG87: 3 | BH87: b | BR87: =Results!$E$279 -> Transport-Domestic | BS87: Buses
B88: =Model!$H$443 -> Light Duty Vehicles Internal Combustion Engine Refuelling Infrastructure | C88: =Model!$I$443 -> LVICref. | E88: =+SUMIFS(EB.LVICref.fElc., Prd., $E$3) -> 0 | F88: 0 | G88: 0 | H88: 0 | I88: 0 | J88: 0 | K88: 0 | L88: 0 | M88: 0 | N88: 0 | O88: 0 | P88: 0 | Q88: 0 | R88: 0 | S88: 0 | T88: 0 | U88: 0 | V88: 0 | W88: 0 | X88: 0 | Y88: 0 | Z88: 0 | AA88: 0 | AB88: =+SUMIFS(EB.LVICref.lsDst., Prd., $AB$3) -> 0 | AC88: 0 | AD88: 0 | AE88: 0 | AF88: 0 | AG88: 0 | AH88: 0 | AI88: 0 | AJ88: 0 | AK88: 0 | AL88: 0 | AM88: 0 | AN88: 0 | AP88: =+SUMIFS(Em.GHG.LVICref., Prd., $AP$3) -> 0 | AQ88: =+SUMIFS(Em.CO2.LVICref., Prd., $AQ$3) -> 0 | AR88: =+SUMIFS(Em.CH4.LVICref., Prd., $AR$3) -> 0 | AS88: =+SUMIFS(Em.N2O.LVICref., Prd., $AS$3) -> 0 | AT88: 0 | AV88: =+SUMIFS(Em.PM10.LVICref., Prd., $AV$3) -> 271336433.2 | AW88: =+SUMIFS(Em.NOX.LVICref., Prd., $AW$3) -> 271336433.2 | AX88: =+SUMIFS(Em.SO2.LVICref., Prd., $AX$3) -> 271336433.2 | AY88: =+SUMIFS(Em.NMVOC.LVICref., Prd., $AY$3) -> 271336433.2 | AZ88: =+SUMIFS(Em.PM2.5.LVICref., Prd., $AZ$3) -> 271336433.2 | BA88: =+SUMIFS(Em.NH3.LVICref., Prd., $BA$3) -> 271336433.2 | BD88: 1A3b | BE88: 1 | BF88: A | BG88: 3 | BH88: b | BR88: =Results!$E$279 -> Transport-Domestic | BS88: Cars
B89: =Model!$H$446 -> HGV _Articulated Internal Combustion Engine Refuelling Infrastructure | C89: =Model!$I$446 -> hgvAICref. | E89: =+SUMIFS(EB.hgvAICref.fElc., Prd., $E$3) -> 0 | F89: 0 | G89: 0 | H89: 0 | I89: 0 | J89: 0 | K89: 0 | L89: 0 | M89: 0 | N89: 0 | O89: 0 | P89: 0 | Q89: 0 | R89: 0 | S89: 0 | T89: 0 | U89: 0 | V89: 0 | W89: 0 | X89: 0 | Y89: 0 | Z89: 0 | AA89: 0 | AB89: =+SUMIFS(EB.hgvAICref.lsDst., Prd., $AB$3) -> 0 | AC89: 0 | AD89: 0 | AE89: 0 | AF89: 0 | AG89: 0 | AH89: 0 | AI89: 0 | AJ89: 0 | AK89: 0 | AL89: 0 | AM89: 0 | AN89: 0 | AP89: =+SUMIFS(Em.GHG.hgvAICref., Prd., $AP$3) -> 0 | AQ89: =+SUMIFS(Em.CO2.hgvAICref., Prd., $AQ$3) -> 0 | AR89: =+SUMIFS(Em.CH4.hgvAICref., Prd., $AR$3) -> 0 | AS89: =+SUMIFS(Em.N2O.hgvAICref., Prd., $AS$3) -> 0 | AT89: 0 | AV89: =+SUMIFS(Em.PM10.hgvAICref., Prd., $AV$3) -> 22138275.56 | AW89: =+SUMIFS(Em.NOX.hgvAICref., Prd., $AW$3) -> 22138275.56 | AX89: =+SUMIFS(Em.SO2.hgvAICref., Prd., $AX$3) -> 22138275.56 | AY89: =+SUMIFS(Em.NMVOC.hgvAICref., Prd., $AY$3) -> 22138275.56 | AZ89: =+SUMIFS(Em.PM2.5.hgvAICref., Prd., $AZ$3) -> 22138275.56 | BA89: =+SUMIFS(Em.NH3.hgvAICref., Prd., $BA$3) -> 22138275.56 | BD89: 1A3b | BE89: 1 | BF89: A | BG89: 3 | BH89: b | BR89: =Results!$E$279 -> Transport-Domestic | BS89: HGV
B90: =Model!$H$449 -> Bus Internal Combustion Engine Refuelling Infrastructure | C90: =Model!$I$449 -> busICref. | E90: =+SUMIFS(EB.busICref.fElc., Prd., $E$3) -> 0 | F90: 0 | G90: 0 | H90: 0 | I90: 0 | J90: 0 | K90: 0 | L90: 0 | M90: 0 | N90: 0 | O90: 0 | P90: 0 | Q90: 0 | R90: 0 | S90: 0 | T90: 0 | U90: 0 | V90: 0 | W90: 0 | X90: 0 | Y90: 0 | Z90: 0 | AA90: 0 | AB90: =+SUMIFS(EB.busICref.lsDst., Prd., $AB$3) -> 0 | AC90: 0 | AD90: 0 | AE90: 0 | AF90: 0 | AG90: 0 | AH90: 0 | AI90: 0 | AJ90: 0 | AK90: 0 | AL90: 0 | AM90: 0 | AN90: 0 | AP90: =+SUMIFS(Em.GHG.busICref., Prd., $AP$3) -> 0 | AQ90: =+SUMIFS(Em.CO2.busICref., Prd., $AQ$3) -> 0 | AR90: =+SUMIFS(Em.CH4.busICref., Prd., $AR$3) -> 0 | AS90: =+SUMIFS(Em.N2O.busICref., Prd., $AS$3) -> 0 | AT90: 0 | AV90: =+SUMIFS(Em.PM10.busICref., Prd., $AV$3) -> 75606808.5 | AW90: =+SUMIFS(Em.NOX.busICref., Prd., $AW$3) -> 75606808.5 | AX90: =+SUMIFS(Em.SO2.busICref., Prd., $AX$3) -> 75606808.5 | AY90: =+SUMIFS(Em.NMVOC.busICref., Prd., $AY$3) -> 75606808.5 | AZ90: =+SUMIFS(Em.PM2.5.busICref., Prd., $AZ$3) -> 75606808.5 | BA90: =+SUMIFS(Em.NH3.busICref., Prd., $BA$3) -> 75606808.5 | BD90: 1A3b | BE90: 1 | BF90: A | BG90: 3 | BH90: b | BR90: =Results!$E$279 -> Transport-Domestic | BS90: Buses
B91: =Model!$H$435 -> Aviation Domestic Plug-in Hybrid Electric Vehicle | C91: =Model!$I$435 -> aviDPHEV. | E91: =+SUMIFS(EB.aviDPHEV.fElc., Prd., $E$3) -> 0 | F91: 0 | G91: 0 | H91: =+SUMIFS(EB.aviDPHEV.fBiL., Prd., $H$3) -> 0 | I91: 0 | J91: 0 | K91: =+SUMIFS(EB.aviDPHEV.fFsL., Prd., $K$3) -> 0 | L91: 0 | M91: 0 | N91: 0 | O91: 0 | P91: 0 | Q91: 0 | R91: 0 | S91: 0 | T91: 0 | U91: 0 | V91: 0 | W91: 0 | X91: 0 | Y91: 0 | Z91: 0 | AA91: 0 | AB91: 0 | AC91: 0 | AD91: 0 | AE91: 0 | AF91: 0 | AG91: 0 | AH91: 0 | AI91: 0 | AJ91: 0 | AK91: 0 | AL91: 0 | AM91: 0 | AN91: 0 | AP91: =+SUMIFS(Em.GHG.aviDPHEV., Prd., $AP$3) -> 0 | AQ91: =+SUMIFS(Em.CO2.aviDPHEV., Prd., $AQ$3) -> 0 | AR91: =+SUMIFS(Em.CH4.aviDPHEV., Prd., $AR$3) -> 0 | AS91: =+SUMIFS(Em.N2O.aviDPHEV., Prd., $AS$3) -> 0 | AT91: 0 | AV91: =+SUMIFS(Em.PM10.aviDPHEV., Prd., $AV$3) -> 0 | AW91: =+SUMIFS(Em.NOX.aviDPHEV., Prd., $AW$3) -> 0 | AX91: =+SUMIFS(Em.SO2.aviDPHEV., Prd., $AX$3) -> 0 | AY91: =+SUMIFS(Em.NMVOC.aviDPHEV., Prd., $AY$3) -> 0 | AZ91: =+SUMIFS(Em.PM2.5.aviDPHEV., Prd., $AZ$3) -> 0 | BA91: =+SUMIFS(Em.NH3.aviDPHEV., Prd., $BA$3) -> 0 | BD91: 1A3a | BE91: 1 | BF91: A | BG91: 3 | BH91: a | BR91: =Results!$E$279 -> Transport-Domestic | BS91: Aviation&ShippingDom
B92: =Model!$H$436 -> Aviation Domestic Conventional | C92: =Model!$I$436 -> aviDCon. | E92: 0 | F92: 0 | G92: 0 | H92: =+SUMIFS(EB.aviDCon.fBiL., Prd., $H$3) -> -0.1010093012 | I92: 0 | J92: 0 | K92: =+SUMIFS(EB.aviDCon.fFsL., Prd., $K$3) -> -11.06898452 | L92: 0 | M92: 0 | N92: 0 | O92: 0 | P92: 0 | Q92: 0 | R92: 0 | S92: 0 | T92: 0 | U92: 0 | V92: 0 | W92: 0 | X92: 0 | Y92: 0 | Z92: 0 | AA92: 0 | AB92: 0 | AC92: 0 | AD92: 0 | AE92: 0 | AF92: 0 | AG92: 0 | AH92: 0 | AI92: 0 | AJ92: 0 | AK92: 0 | AL92: -11.16999382 | AM92: 0 | AN92: 0 | AP92: =+SUMIFS(Em.GHG.aviDCon., Prd., $AP$3) -> 2.783591649 | AQ92: =+SUMIFS(Em.CO2.aviDCon., Prd., $AQ$3) -> 2.760728593 | AR92: =+SUMIFS(Em.CH4.aviDCon., Prd., $AR$3) -> 0.000538365177 | AS92: =+SUMIFS(Em.N2O.aviDCon., Prd., $AS$3) -> 0.02232469076 | AT92: 0 | AV92: =+SUMIFS(Em.PM10.aviDCon., Prd., $AV$3) -> 195196.3021 | AW92: =+SUMIFS(Em.NOX.aviDCon., Prd., $AW$3) -> 195196.3021 | AX92: =+SUMIFS(Em.SO2.aviDCon., Prd., $AX$3) -> 195196.3021 | AY92: =+SUMIFS(Em.NMVOC.aviDCon., Prd., $AY$3) -> 195196.3021 | AZ92: =+SUMIFS(Em.PM2.5.aviDCon., Prd., $AZ$3) -> 195196.3021 | BA92: =+SUMIFS(Em.NH3.aviDCon., Prd., $BA$3) -> 195196.3021 | BD92: 1A3a | BE92: 1 | BF92: A | BG92: 3 | BH92: a | BR92: =Results!$E$279 -> Transport-Domestic | BS92: Aviation&ShippingDom
B93: =Model!$H$437 -> Aviation International Plug-in Hybrid Electric Vehicle | C93: =Model!$I$437 -> aviIPHEV. | E93: =+SUMIFS(EB.aviIPHEV.fElc., Prd., $E$3) -> 0 | F93: 0 | G93: 0 | H93: =+SUMIFS(EB.aviIPHEV.fBiL., Prd., $H$3) -> 0 | I93: 0 | J93: 0 | K93: =+SUMIFS(EB.aviIPHEV.fFsL., Prd., $K$3) -> 0 | L93: 0 | M93: 0 | N93: 0 | O93: 0 | P93: 0 | Q93: 0 | R93: 0 | S93: 0 | T93: 0 | U93: 0 | V93: 0 | W93: 0 | X93: 0 | Y93: 0 | Z93: 0 | AA93: 0 | AB93: 0 | AC93: 0 | AD93: 0 | AE93: 0 | AF93: 0 | AG93: 0 | AH93: 0 | AI93: 0 | AJ93: 0 | AK93: 0 | AL93: 0 | AM93: 0 | AN93: 0 | AP93: =+SUMIFS(Em.GHG.aviIPHEV., Prd., $AP$3) -> 0 | AQ93: =+SUMIFS(Em.CO2.aviIPHEV., Prd., $AQ$3) -> 0 | AR93: =+SUMIFS(Em.CH4.aviIPHEV., Prd., $AR$3) -> 0 | AS93: =+SUMIFS(Em.N2O.aviIPHEV., Prd., $AS$3) -> 0 | AT93: 0 | AV93: =+SUMIFS(Em.PM10.aviIPHEV., Prd., $AV$3) -> 0 | AW93: =+SUMIFS(Em.NOX.aviIPHEV., Prd., $AW$3) -> 0 | AX93: =+SUMIFS(Em.SO2.aviIPHEV., Prd., $AX$3) -> 0 | AY93: =+SUMIFS(Em.NMVOC.aviIPHEV., Prd., $AY$3) -> 0 | AZ93: =+SUMIFS(Em.PM2.5.aviIPHEV., Prd., $AZ$3) -> 0 | BA93: =+SUMIFS(Em.NH3.aviIPHEV., Prd., $BA$3) -> 0 | BR93: =Results!$E$280 -> Transport-International | BS93: AviationInt
B94: =Model!$H$438 -> Aviation International Conventional | C94: =Model!$I$438 -> aviICon. | E94: 0 | F94: 0 | G94: 0 | H94: =+SUMIFS(EB.aviICon.fBiL., Prd., $H$3) -> -0.09673107075 | I94: 0 | J94: 0 | K94: =+SUMIFS(EB.aviICon.fFsL., Prd., $K$3) -> -10.60015971 | L94: 0 | M94: 0 | N94: 0 | O94: 0 | P94: 0 | Q94: 0 | R94: 0 | S94: 0 | T94: 0 | U94: 0 | V94: 0 | W94: 0 | X94: 0 | Y94: 0 | Z94: 0 | AA94: 0 | AB94: 0 | AC94: 0 | AD94: 0 | AE94: 0 | AF94: 0 | AG94: 0 | AH94: 0 | AI94: 0 | AJ94: 0 | AK94: 0 | AL94: -10.69689078 | AM94: 0 | AN94: 0 | AP94: =+SUMIFS(Em.GHG.aviICon., Prd., $AP$3) -> 2.665693134 | AQ94: =+SUMIFS(Em.CO2.aviICon., Prd., $AQ$3) -> 2.643798438 | AR94: =+SUMIFS(Em.CH4.aviICon., Prd., $AR$3) -> 0.0005155628183 | AS94: =+SUMIFS(Em.N2O.aviICon., Prd., $AS$3) -> 0.02137913256 | AT94: 0 | AV94: =+SUMIFS(Em.PM10.aviICon., Prd., $AV$3) -> 124634.5976 | AW94: =+SUMIFS(Em.NOX.aviICon., Prd., $AW$3) -> 124634.5976 | AX94: =+SUMIFS(Em.SO2.aviICon., Prd., $AX$3) -> 124634.5976 | AY94: =+SUMIFS(Em.NMVOC.aviICon., Prd., $AY$3) -> 124634.5976 | AZ94: =+SUMIFS(Em.PM2.5.aviICon., Prd., $AZ$3) -> 124634.5976 | BA94: =+SUMIFS(Em.NH3.aviICon., Prd., $BA$3) -> 124634.5976 | BR94: =Results!$E$280 -> Transport-International | BS94: AviationInt
E95: 0 | F95: 0 | G95: 0 | H95: 0 | I95: 0 | J95: 0 | K95: 0 | L95: 0 | M95: 0 | N95: 0 | O95: 0 | P95: 0 | Q95: 0 | R95: 0 | S95: 0 | T95: 0 | U95: 0 | V95: 0 | W95: 0 | X95: 0 | Y95: 0 | Z95: 0 | AA95: 0 | AB95: 0 | AC95: 0 | AD95: 0 | AE95: 0 | AF95: 0 | AG95: 0 | AH95: 0 | AI95: 0 | AJ95: 0 | AK95: 0
B96: =Model!$H$678 -> Industry Ferrous and non-ferrous metal production Electrical Processes | C96: =Model!$I$678 -> inSTLElc. | E96: =+SUMIFS(EB.inSTLElc.fElc., Prd., $E$3) -> -0.3038323848 | F96: 0 | G96: 0 | H96: 0 | I96: 0 | J96: 0 | K96: 0 | L96: 0 | M96: 0 | N96: 0 | O96: 0 | P96: 0 | Q96: 0 | R96: 0 | S96: 0 | T96: 0 | U96: 0 | V96: 0 | W96: 0 | X96: 0 | Y96: 0 | Z96: 0 | AA96: 0 | AB96: 0 | AC96: 0 | AD96: 0 | AE96: 0 | AF96: 0 | AG96: 0 | AH96: 0 | AI96: 0 | AJ96: 0 | AK96: 0 | AL96: =SUM(E96:N96) -> -0.3038323848 | AM96: =SUM(O96:Z96) -> 0 | AN96: =SUM(AA96:AE96) -> 0 | AP96: =+SUMIFS(Em.GHG.inSTLElc., Prd., $AP$3) -> 0 | AQ96: =+SUMIFS(Em.CO2.inSTLElc., Prd., $AQ$3) -> 0 | AR96: =+SUMIFS(Em.CH4.inSTLElc., Prd., $AR$3) -> 0 | AS96: =+SUMIFS(Em.N2O.inSTLElc., Prd., $AS$3) -> 0 | AT96: 0 | AV96: =+SUMIFS(Em.PM10.inSTLElc., Prd., $AV$3) -> 1093795.491 | AW96: =+SUMIFS(Em.NOX.inSTLElc., Prd., $AW$3) -> 1093795.491 | AX96: =+SUMIFS(Em.SO2.inSTLElc., Prd., $AX$3) -> 1093795.491 | AY96: =+SUMIFS(Em.NMVOC.inSTLElc., Prd., $AY$3) -> 1093795.491 | AZ96: =+SUMIFS(Em.PM2.5.inSTLElc., Prd., $AZ$3) -> 1093795.491 | BA96: =+SUMIFS(Em.NH3.inSTLElc., Prd., $BA$3) -> 1093795.491 | BR96: =Results!$E$275 -> Industry | BS96: Metals
B97: =Model!$H$679 -> Industry Ferrous and non-ferrous metal production Heat Processes | C97: =Model!$I$679 -> inSTLHt. | E97: =+SUMIFS(EB.inSTLHt.fElc., Prd., $E$3) -> -405.4398715 | F97: =+SUMIFS(EB.inSTLHt.fH2G., Prd., $F$3) -> 0 | G97: =+SUMIFS(EB.inSTLHt.fBiS., Prd., $G$3) -> 0 | H97: 0 | I97: =+SUMIFS(EB.inSTLHt.fBiG., Prd., $I$3) -> 0 | J97: =+SUMIFS(EB.inSTLHt.fFsS., Prd., $J$3) -> 0 | K97: =+SUMIFS(EB.inSTLHt.fFsL., Prd., $K$3) -> 0 | L97: =+SUMIFS(EB.inSTLHt.fFsG., Prd., $L$3) -> 0 | M97: 0 | N97: 0 | O97: 0 | P97: 0 | Q97: 0 | R97: 0 | S97: 0 | T97: 0 | U97: 0 | V97: 0 | W97: 0 | X97: 0 | Y97: 0 | Z97: 0 | AA97: 0 | AB97: 0 | AC97: 0 | AD97: 0 | AE97: 0 | AF97: 0 | AG97: 0 | AH97: 0 | AI97: 0 | AJ97: 0 | AK97: 0 | AL97: -405.4398715 | AM97: 0 | AN97: 0 | AP97: =+SUMIFS(Em.GHG.inSTLHt., Prd., $AP$3) -> 0 | AQ97: =+SUMIFS(Em.CO2.inSTLHt., Prd., $AQ$3) -> 0 | AR97: =+SUMIFS(Em.CH4.inSTLHt., Prd., $AR$3) -> 0 | AS97: =+SUMIFS(Em.N2O.inSTLHt., Prd., $AS$3) -> 0 | AT97: 0 | AV97: =+SUMIFS(Em.PM10.inSTLHt., Prd., $AV$3) -> 1459582078 | AW97: =+SUMIFS(Em.NOX.inSTLHt., Prd., $AW$3) -> 1459582078 | AX97: =+SUMIFS(Em.SO2.inSTLHt., Prd., $AX$3) -> 1459582078 | AY97: =+SUMIFS(Em.NMVOC.inSTLHt., Prd., $AY$3) -> 1459582078 | AZ97: =+SUMIFS(Em.PM2.5.inSTLHt., Prd., $AZ$3) -> 1459582078 | BA97: =+SUMIFS(Em.NH3.inSTLHt., Prd., $BA$3) -> 1459582078 | BR97: =Results!$E$275 -> Industry | BS97: Metals
B98: =Model!$H$688 -> Industry Ferrous and non-ferrous metal production Heat Processes CHP Heat Processes Heat Component | C98: =Model!$I$688 -> inSTLHtCHP_HtComp. | E98: 0 | F98: =IFERROR( +SUMIFS(EB.inSTLHtCHP_HtComp.fH2G., Prd., $F$3),0) -> 0 | G98: =IFERROR( +SUMIFS(EB.inSTLHtCHP_HtComp.fH2G., Prd., $F$3),0) -> 0 | H98: 0 | I98: =IFERROR( +SUMIFS(EB.inSTLHtCHP_HtComp.fH2G., Prd., $F$3),0) -> 0 | J98: =IFERROR( +SUMIFS(EB.inSTLHtCHP_HtComp.fH2G., Prd., $F$3),0) -> 0 | K98: =IFERROR( +SUMIFS(EB.inSTLHtCHP_HtComp.fH2G., Prd., $F$3),0) -> 0 | L98: =IFERROR( +SUMIFS(EB.inSTLHtCHP_HtComp.fH2G., Prd., $F$3),0) -> 0 | M98: 0 | N98: 0 | O98: 0 | P98: 0 | Q98: 0 | R98: 0 | S98: 0 | T98: 0 | U98: 0 | V98: 0 | W98: 0 | X98: 0 | Y98: 0 | Z98: 0 | AA98: 0 | AB98: 0 | AC98: 0 | AD98: 0 | AE98: 0 | AF98: 0 | AG98: 0 | AH98: 0 | AI98: 0 | AJ98: 0 | AK98: 0 | AL98: 0 | AM98: 0 | AN98: 0 | AP98: =+SUMIFS(Em.GHG.inSTLHtCHP_HtComp., Prd., $AP$3) -> 0 | AQ98: =+SUMIFS(Em.CO2.inSTLHtCHP_HtComp., Prd., $AQ$3) -> 0 | AR98: =+SUMIFS(Em.CH4.inSTLHtCHP_HtComp., Prd., $AR$3) -> 0 | AS98: =+SUMIFS(Em.N2O.inSTLHtCHP_HtComp., Prd., $AS$3) -> 0 | AT98: 0 | AV98: =+SUMIFS(Em.PM10.inSTLHtCHP_HtComp., Prd., $AV$3) -> 0 | AW98: =+SUMIFS(Em.NOX.inSTLHtCHP_HtComp., Prd., $AW$3) -> 0 | AX98: =+SUMIFS(Em.SO2.inSTLHtCHP_HtComp., Prd., $AX$3) -> 0 | AY98: =+SUMIFS(Em.NMVOC.inSTLHtCHP_HtComp., Prd., $AY$3) -> 0 | AZ98: =+SUMIFS(Em.PM2.5.inSTLHtCHP_HtComp., Prd., $AZ$3) -> 0 | BA98: =+SUMIFS(Em.NH3.inSTLHtCHP_HtComp., Prd., $BA$3) -> 0 | BR98: =Results!$E$275 -> Industry | BS98: Metals
B99: =Model!$H$685 -> Industry Ferrous and non-ferrous metal production Heat Processes CHP Electrical Component | C99: =Model!$I$685 -> inSTLHtCHP_ElecComp. | E99: =IFERROR( +SUMIFS(EB.inSTLHtCHP_ElecComp.fElc., Prd., $E$3),0) -> 0 | F99: =IFERROR( +SUMIFS(EB.inSTLHtCHP_ElecComp.fElc., Prd., $E$3),0) -> 0 | G99: =IFERROR( +SUMIFS(EB.inSTLHtCHP_ElecComp.fElc., Prd., $E$3),0) -> 0 | H99: 0 | I99: =IFERROR( +SUMIFS(EB.inSTLHtCHP_ElecComp.fElc., Prd., $E$3),0) -> 0 | J99: =IFERROR( +SUMIFS(EB.inSTLHtCHP_ElecComp.fElc., Prd., $E$3),0) -> 0 | K99: =IFERROR( +SUMIFS(EB.inSTLHtCHP_ElecComp.fElc., Prd., $E$3),0) -> 0 | L99: =IFERROR( +SUMIFS(EB.inSTLHtCHP_ElecComp.fElc., Prd., $E$3),0) -> 0 | M99: 0 | N99: 0 | O99: 0 | P99: 0 | Q99: 0 | R99: 0 | S99: 0 | T99: 0 | U99: 0 | V99: 0 | W99: 0 | X99: 0 | Y99: 0 | Z99: 0 | AA99: 0 | AB99: 0 | AC99: 0 | AD99: 0 | AE99: 0 | AF99: 0 | AG99: 0 | AH99: 0 | AI99: 0 | AJ99: 0 | AK99: 0 | AL99: =SUM(E99:N99) -> 0 | AM99: =SUM(O99:Z99) -> 0 | AN99: =SUM(AA99:AE99) -> 0 | AP99: =+SUMIFS(Em.GHG.inSTLHtCHP_ElecComp., Prd., $AP$3) -> 0 | AQ99: =+SUMIFS(Em.CO2.inSTLHtCHP_ElecComp., Prd., $AQ$3) -> 0 | AR99: =+SUMIFS(Em.CH4.inSTLHtCHP_ElecComp., Prd., $AR$3) -> 0 | AS99: =+SUMIFS(Em.N2O.inSTLHtCHP_ElecComp., Prd., $AS$3) -> 0 | AT99: 0 | AV99: =+SUMIFS(Em.PM10.inSTLHtCHP_ElecComp., Prd., $AV$3) -> 0 | AW99: =+SUMIFS(Em.NOX.inSTLHtCHP_ElecComp., Prd., $AW$3) -> 0 | AX99: =+SUMIFS(Em.SO2.inSTLHtCHP_ElecComp., Prd., $AX$3) -> 0 | AY99: =+SUMIFS(Em.NMVOC.inSTLHtCHP_ElecComp., Prd., $AY$3) -> 0 | AZ99: =+SUMIFS(Em.PM2.5.inSTLHtCHP_ElecComp., Prd., $AZ$3) -> 0 | BA99: =+SUMIFS(Em.NH3.inSTLHtCHP_ElecComp., Prd., $BA$3) -> 0 | BR99: =Results!$E$275 -> Industry | BS99: Metals
B100: =Model!$H$699 -> Industry Ferrous and non-ferrous metal production Process Emissions | C100: =Model!$I$699 -> inSTLPEm. | E100: 0 | F100: 0 | G100: 0 | H100: 0 | I100: 0 | J100: 0 | K100: 0 | L100: 0 | M100: 0 | N100: 0 | O100: 0 | P100: 0 | Q100: 0 | R100: 0 | S100: 0 | T100: 0 | U100: 0 | V100: 0 | W100: 0 | X100: 0 | Y100: 0 | Z100: 0 | AA100: 0 | AB100: 0 | AC100: 0 | AD100: 0 | AE100: 0 | AF100: 0 | AG100: 0 | AH100: 0 | AI100: 0 | AJ100: 0 | AK100: 0 | AL100: =SUM(E100:N100) -> 0 | AM100: =SUM(O100:Z100) -> 0 | AN100: =SUM(AA100:AE100) -> 0 | AP100: =+SUMIFS(Em.GHG.inSTLPEm., Prd., $AP$3) -> 0.3958341462 | AQ100: =+SUMIFS(Em.CO2.inSTLPEm., Prd., $AQ$3) -> 0.001096384804 | AR100: =+SUMIFS(Em.CH4.inSTLPEm., Prd., $AR$3) -> 0.1166482746 | AS100: =+SUMIFS(Em.N2O.inSTLPEm., Prd., $AS$3) -> 0.2780894868 | AT100: 0 | AU100: 0 | AV100: 0 | AW100: 0 | AX100: 0 | AY100: 0 | AZ100: 0 | BA100: 0 | BR100: =Results!$E$275 -> Industry | BS100: Metals
B101: =Model!$H$682 -> Industry SugarElectrical Processes | C101: =Model!$I$682 -> inSUGElc. | E101: =+SUMIFS(EB.inSUGElc.fElc., Prd., $E$3) -> -2.011386843 | F101: 0 | G101: 0 | H101: 0 | I101: 0 | J101: 0 | K101: 0 | L101: 0 | M101: 0 | N101: 0 | O101: 0 | P101: 0 | Q101: 0 | R101: 0 | S101: 0 | T101: 0 | U101: 0 | V101: 0 | W101: 0 | X101: 0 | Y101: 0 | Z101: 0 | AA101: 0 | AB101: 0 | AC101: 0 | AD101: 0 | AE101: 0 | AF101: 0 | AG101: 0 | AH101: 0 | AI101: 0 | AJ101: 0 | AK101: 0 | AL101: =SUM(E101:N101) -> -2.011386843 | AM101: =SUM(O101:Z101) -> 0 | AN101: =SUM(AA101:AE101) -> 0 | AP101: =+SUMIFS(Em.GHG.inSTLElc., Prd., $AP$3) -> 0 | AQ101: =+SUMIFS(Em.CO2.inSTLElc., Prd., $AQ$3) -> 0 | AR101: =+SUMIFS(Em.CH4.inSTLElc., Prd., $AR$3) -> 0 | AS101: =+SUMIFS(Em.N2O.inSTLElc., Prd., $AS$3) -> 0 | AT101: 0 | AV101: =+SUMIFS(Em.PM10.inSTLElc., Prd., $AV$3) -> 1093795.491 | AW101: =+SUMIFS(Em.NOX.inSTLElc., Prd., $AW$3) -> 1093795.491 | AX101: =+SUMIFS(Em.SO2.inSTLElc., Prd., $AX$3) -> 1093795.491 | AY101: =+SUMIFS(Em.NMVOC.inSTLElc., Prd., $AY$3) -> 1093795.491 | AZ101: =+SUMIFS(Em.PM2.5.inSTLElc., Prd., $AZ$3) -> 1093795.491 | BA101: =+SUMIFS(Em.NH3.inSTLElc., Prd., $BA$3) -> 1093795.491 | BR101: =Results!$E$275 -> Industry | BS101: Sugar
B102: =Model!$H$683 -> Industry SugarHeat Processes | C102: =Model!$I$683 -> inSUGHt. | E102: =+SUMIFS(EB.inSUGHt.fElc., Prd., $E$3) -> -0.0035225348 | F102: =+SUMIFS(EB.inSTLHt.fH2G., Prd., $F$3) -> 0 | G102: =+SUMIFS(EB.inSTLHt.fBiS., Prd., $G$3) -> 0 | H102: 0 | I102: =+SUMIFS(EB.inSTLHt.fBiG., Prd., $I$3) -> 0 | J102: =+SUMIFS(EB.inSTLHt.fFsS., Prd., $J$3) -> 0 | K102: =+SUMIFS(EB.inSTLHt.fFsL., Prd., $K$3) -> 0 | L102: =+SUMIFS(EB.inSTLHt.fFsG., Prd., $L$3) -> 0 | M102: 0 | N102: 0 | O102: 0 | P102: 0 | Q102: 0 | R102: 0 | S102: 0 | T102: 0 | U102: 0 | V102: 0 | W102: 0 | X102: 0 | Y102: 0 | Z102: 0 | AA102: 0 | AB102: 0 | AC102: 0 | AD102: 0 | AE102: 0 | AF102: 0 | AG102: 0 | AH102: 0 | AI102: 0 | AJ102: 0 | AK102: 0 | AL102: =SUM(E102:N102) -> -0.0035225348 | AM102: =SUM(O102:Z102) -> 0 | AN102: =SUM(AA102:AE102) -> 0 | AP102: =+SUMIFS(Em.GHG.inSTLHt., Prd., $AP$3) -> 0 | AQ102: =+SUMIFS(Em.CO2.inSTLHt., Prd., $AQ$3) -> 0 | AR102: =+SUMIFS(Em.CH4.inSTLHt., Prd., $AR$3) -> 0 | AS102: =+SUMIFS(Em.N2O.inSTLHt., Prd., $AS$3) -> 0 | AT102: 0 | AV102: =+SUMIFS(Em.PM10.inSTLHt., Prd., $AV$3) -> 1459582078 | AW102: =+SUMIFS(Em.NOX.inSTLHt., Prd., $AW$3) -> 1459582078 | AX102: =+SUMIFS(Em.SO2.inSTLHt., Prd., $AX$3) -> 1459582078 | AY102: =+SUMIFS(Em.NMVOC.inSTLHt., Prd., $AY$3) -> 1459582078 | AZ102: =+SUMIFS(Em.PM2.5.inSTLHt., Prd., $AZ$3) -> 1459582078 | BA102: =+SUMIFS(Em.NH3.inSTLHt., Prd., $BA$3) -> 1459582078 | BR102: =Results!$E$275 -> Industry | BS102: Sugar
B103: =Model!$H$687 -> Industry SugarHeat Processes CHP Electrical Component | C103: =Model!$I$687 -> inSUGHtCHP_ElecComp. | E103: 0 | F103: 0 | G103: =IFERROR( +SUMIFS(EB.inSUGHtCHP_ElecComp.fElc., Prd., $E$3),0) -> 0 | H103: 0 | I103: 0 | J103: 0 | K103: 0 | L103: 0 | M103: 0 | N103: 0 | O103: 0 | P103: 0 | Q103: 0 | R103: 0 | S103: 0 | T103: 0 | U103: 0 | V103: 0 | W103: 0 | X103: 0 | Y103: 0 | Z103: 0 | AA103: 0 | AB103: 0 | AC103: 0 | AD103: 0 | AE103: 0 | AF103: 0 | AG103: 0 | AH103: 0 | AI103: 0 | AJ103: 0 | AK103: 0 | AL103: =SUM(E103:N103) -> 0 | AM103: =SUM(O103:Z103) -> 0 | AN103: =SUM(AA103:AE103) -> 0 | AP103: =+SUMIFS(Em.GHG.inSUGHtCHP_ElecComp., Prd., $AP$3) -> 0 | AQ103: =+SUMIFS(Em.GHG.inSUGHtCHP_ElecComp., Prd., $AP$3) -> 0 | AR103: =+SUMIFS(Em.GHG.inSUGHtCHP_ElecComp., Prd., $AP$3) -> 0 | AS103: =+SUMIFS(Em.GHG.inSUGHtCHP_ElecComp., Prd., $AP$3) -> 0 | AT103: 0 | AV103: 0 | AW103: 0 | AX103: 0 | AY103: 0 | AZ103: 0 | BA103: =+SUMIFS(Em.NH3.inSTLHtCHP_ElecComp., Prd., $BA$3) -> 0 | BR103: =Results!$E$275 -> Industry | BS103: Sugar
B104: =Model!$H$692 -> Industry SugarHeat Processes CHP Heat Processes Heat Component | C104: =Model!$I$692 -> inSUGHtCHP_HtComp. | E104: 0 | F104: =IFERROR( +SUMIFS(EB.inSTLHtCHP_HtComp.fH2G., Prd., $F$3),0) -> 0 | G104: =IFERROR( +SUMIFS(EB.inSTLHtCHP_HtComp.fH2G., Prd., $F$3),0) -> 0 | H104: 0 | I104: =IFERROR( +SUMIFS(EB.inSTLHtCHP_HtComp.fH2G., Prd., $F$3),0) -> 0 | J104: =IFERROR( +SUMIFS(EB.inSTLHtCHP_HtComp.fH2G., Prd., $F$3),0) -> 0 | K104: =IFERROR( +SUMIFS(EB.inSTLHtCHP_HtComp.fH2G., Prd., $F$3),0) -> 0 | L104: =IFERROR( +SUMIFS(EB.inSTLHtCHP_HtComp.fH2G., Prd., $F$3),0) -> 0 | M104: 0 | N104: 0 | O104: 0 | P104: 0 | Q104: 0 | R104: 0 | S104: 0 | T104: 0 | U104: 0 | V104: 0 | W104: 0 | X104: 0 | Y104: 0 | Z104: 0 | AA104: 0 | AB104: 0 | AC104: 0 | AD104: 0 | AE104: 0 | AF104: 0 | AG104: 0 | AH104: 0 | AI104: 0 | AJ104: 0 | AK104: 0 | AL104: 0 | AP104: =+SUMIFS(Em.GHG.inSUGHt., Prd., $AP$3) -> 0 | AQ104: =+SUMIFS(Em.GHG.inSUGHt., Prd., $AP$3) -> 0 | AR104: =+SUMIFS(Em.GHG.inSUGHt., Prd., $AP$3) -> 0 | AS104: =+SUMIFS(Em.GHG.inSUGHt., Prd., $AP$3) -> 0 | AV104: 0 | AW104: 0 | AX104: 0 | AY104: 0 | AZ104: 0 | BA104: =+SUMIFS(Em.NH3.inSTLHtCHP_ElecComp., Prd., $BA$3) -> 0 | BR104: =Results!$E$275 -> Industry | BS104: Sugar
B105: =Model!$H$701 -> Industry SugarProcess Emissions | C105: =Model!$I$701 -> inSUGPEm. | E105: 0 | F105: 0 | G105: 0 | H105: 0 | I105: 0 | J105: 0 | K105: 0 | L105: 0 | M105: 0 | N105: 0 | O105: 0 | P105: 0 | Q105: 0 | R105: 0 | S105: 0 | T105: 0 | U105: 0 | V105: 0 | W105: 0 | X105: 0 | Y105: 0 | Z105: 0 | AA105: 0 | AB105: 0 | AC105: 0 | AD105: 0 | AE105: 0 | AF105: 0 | AG105: 0 | AH105: 0 | AI105: 0 | AJ105: 0 | AK105: 0 | BR105: =Results!$E$275 -> Industry | BS105: Sugar
B106: =Model!$H$680 -> Industry Tea Electrical Processes | C106: =Model!$I$680 -> inTEAElc. | E106: =+SUMIFS(EB.inTEAElc.fElc., Prd., $E$3) -> 0.2230468118 | F106: 0 | G106: 0 | H106: 0 | I106: 0 | J106: 0 | K106: 0 | L106: 0 | M106: 0 | N106: 0 | O106: 0 | P106: 0 | Q106: 0 | R106: 0 | S106: 0 | T106: 0 | U106: 0 | V106: 0 | W106: 0 | X106: 0 | Y106: 0 | Z106: 0 | AA106: 0 | AB106: 0 | AC106: 0 | AD106: 0 | AE106: 0 | AF106: 0 | AG106: 0 | AH106: 0 | AI106: 0 | AJ106: 0 | AK106: 0 | AL106: =SUM(E106:N106) -> 0.2230468118 | AM106: =SUM(O106:Z106) -> 0 | AN106: =SUM(AA106:AE106) -> 0 | AP106: =+SUMIFS(Em.GHG.inSTLElc., Prd., $AP$3) -> 0 | AQ106: =+SUMIFS(Em.CO2.inSTLElc., Prd., $AQ$3) -> 0 | AR106: =+SUMIFS(Em.CH4.inSTLElc., Prd., $AR$3) -> 0 | AS106: =+SUMIFS(Em.N2O.inSTLElc., Prd., $AS$3) -> 0 | AT106: 0 | AV106: =+SUMIFS(Em.PM10.inSTLElc., Prd., $AV$3) -> 1093795.491 | AW106: =+SUMIFS(Em.NOX.inSTLElc., Prd., $AW$3) -> 1093795.491 | AX106: =+SUMIFS(Em.SO2.inSTLElc., Prd., $AX$3) -> 1093795.491 | AY106: =+SUMIFS(Em.NMVOC.inSTLElc., Prd., $AY$3) -> 1093795.491 | AZ106: =+SUMIFS(Em.PM2.5.inSTLElc., Prd., $AZ$3) -> 1093795.491 | BA106: =+SUMIFS(Em.NH3.inSTLElc., Prd., $BA$3) -> 1093795.491 | BR106: =Results!$E$275 -> Industry | BS106: Tea
B107: =Model!$H$681 -> Industry Tea Heat Processes | C107: =Model!$I$681 -> inTEAHt. | E107: =+SUMIFS(EB.inTEAHt.fElc., Prd., $E$3) -> -2.163435813 | F107: =+SUMIFS(EB.inSTLHt.fH2G., Prd., $F$3) -> 0 | G107: =+SUMIFS(EB.inSTLHt.fBiS., Prd., $G$3) -> 0 | H107: 0 | I107: =+SUMIFS(EB.inSTLHt.fBiG., Prd., $I$3) -> 0 | J107: =+SUMIFS(EB.inSTLHt.fFsS., Prd., $J$3) -> 0 | K107: =+SUMIFS(EB.inSTLHt.fFsL., Prd., $K$3) -> 0 | L107: =+SUMIFS(EB.inSTLHt.fFsG., Prd., $L$3) -> 0 | M107: 0 | N107: 0 | O107: 0 | P107: 0 | Q107: 0 | R107: 0 | S107: 0 | T107: 0 | U107: 0 | V107: 0 | W107: 0 | X107: 0 | Y107: 0 | Z107: 0 | AA107: 0 | AB107: 0 | AC107: 0 | AD107: 0 | AE107: 0 | AF107: 0 | AG107: 0 | AH107: 0 | AI107: 0 | AJ107: 0 | AK107: 0 | AL107: =SUM(E107:N107) -> -2.163435813 | AM107: =SUM(O107:Z107) -> 0 | AN107: =SUM(AA107:AE107) -> 0 | AP107: =+SUMIFS(Em.GHG.inSTLHt., Prd., $AP$3) -> 0 | AQ107: =+SUMIFS(Em.CO2.inSTLHt., Prd., $AQ$3) -> 0 | AR107: =+SUMIFS(Em.CH4.inSTLHt., Prd., $AR$3) -> 0 | AS107: =+SUMIFS(Em.N2O.inSTLHt., Prd., $AS$3) -> 0 | AT107: 0 | AV107: =+SUMIFS(Em.PM10.inSTLHt., Prd., $AV$3) -> 1459582078 | AW107: =+SUMIFS(Em.NOX.inSTLHt., Prd., $AW$3) -> 1459582078 | AX107: =+SUMIFS(Em.SO2.inSTLHt., Prd., $AX$3) -> 1459582078 | AY107: =+SUMIFS(Em.NMVOC.inSTLHt., Prd., $AY$3) -> 1459582078 | AZ107: =+SUMIFS(Em.PM2.5.inSTLHt., Prd., $AZ$3) -> 1459582078 | BA107: =+SUMIFS(Em.NH3.inSTLHt., Prd., $BA$3) -> 1459582078 | BR107: =Results!$E$275 -> Industry | BS107: Tea
B108: =Model!$H$691 -> Industry Tea Heat Processes CHP Heat Processes Heat Component | C108: =Model!$I$691 -> inTEAHtCHP_HtComp. | E108: 0 | F108: =IFERROR( +SUMIFS(EB.inSTLHtCHP_HtComp.fH2G., Prd., $F$3),0) -> 0 | G108: =IFERROR( +SUMIFS(EB.inSTLHtCHP_HtComp.fH2G., Prd., $F$3),0) -> 0 | H108: 0 | I108: =IFERROR( +SUMIFS(EB.inSTLHtCHP_HtComp.fH2G., Prd., $F$3),0) -> 0 | J108: =IFERROR( +SUMIFS(EB.inSTLHtCHP_HtComp.fH2G., Prd., $F$3),0) -> 0 | K108: =IFERROR( +SUMIFS(EB.inSTLHtCHP_HtComp.fH2G., Prd., $F$3),0) -> 0 | L108: =IFERROR( +SUMIFS(EB.inSTLHtCHP_HtComp.fH2G., Prd., $F$3),0) -> 0 | M108: 0 | N108: 0 | O108: 0 | P108: 0 | Q108: 0 | R108: 0 | S108: 0 | T108: 0 | U108: 0 | V108: 0 | W108: 0 | X108: 0 | Y108: 0 | Z108: 0 | AA108: 0 | AB108: 0 | AC108: 0 | AD108: 0 | AE108: 0 | AF108: 0 | AG108: 0 | AH108: 0 | AI108: 0 | AJ108: 0 | AK108: 0 | AL108: =SUM(E108:N108) -> 0 | AP108: =+SUMIFS(Em.GHG.inTEAHt., Prd., $AP$3) -> 0.006868908705 | AQ108: =+SUMIFS(Em.GHG.inTEAHt., Prd., $AP$3) -> 0.006868908705 | AR108: =+SUMIFS(Em.GHG.inTEAHt., Prd., $AP$3) -> 0.006868908705 | AS108: =+SUMIFS(Em.GHG.inTEAHt., Prd., $AP$3) -> 0.006868908705 | AV108: 0 | AW108: 0 | AX108: 0 | AY108: 0 | AZ108: 0 | BA108: =+SUMIFS(Em.NH3.inSTLHtCHP_ElecComp., Prd., $BA$3) -> 0 | BR108: =Results!$E$275 -> Industry | BS108: Tea
B109: =Model!$H$686 -> Industry Tea Heat Processes CHP Electrical Component | C109: =Model!$I$686 -> inTEAHtCHP_ElecComp. | E109: 0 | F109: 0 | G109: 0 | H109: 0 | I109: 0 | J109: 0 | K109: 0 | L109: 0 | M109: 0 | N109: 0 | O109: 0 | P109: 0 | Q109: 0 | R109: 0 | S109: 0 | T109: 0 | U109: 0 | V109: 0 | W109: 0 | X109: 0 | Y109: 0 | Z109: 0 | AA109: 0 | AB109: 0 | AC109: 0 | AD109: 0 | AE109: 0 | AF109: 0 | AG109: 0 | AH109: 0 | AI109: 0 | AJ109: 0 | AK109: 0 | AL109: =SUM(E109:N109) -> 0 | AM109: 0 | AN109: =SUM(AA109:AE109) -> 0 | AP109: =+SUMIFS(Em.GHG.inTEAHtCHP_ElecComp., Prd., $AP$3) -> 0 | AQ109: =+SUMIFS(Em.GHG.inTEAHtCHP_ElecComp., Prd., $AP$3) -> 0 | AR109: =+SUMIFS(Em.GHG.inTEAHtCHP_ElecComp., Prd., $AP$3) -> 0 | AS109: =+SUMIFS(Em.GHG.inTEAHtCHP_ElecComp., Prd., $AP$3) -> 0 | AT109: 0 | AV109: 0 | AW109: 0 | AX109: 0 | AY109: 0 | AZ109: 0 | BA109: =+SUMIFS(Em.NH3.inSTLHtCHP_HtComp., Prd., $BA$3) -> 0 | BR109: =Results!$E$275 -> Industry | BS109: Tea
B110: =Model!$H$700 -> Industry Tea Process Emissions | C110: =Model!$I$700 -> inTEAPEm. | E110: 0 | F110: 0 | G110: 0 | H110: 0 | I110: 0 | J110: 0 | K110: 0 | L110: 0 | M110: 0 | N110: 0 | O110: 0 | P110: 0 | Q110: 0 | R110: 0 | S110: 0 | T110: 0 | U110: 0 | V110: 0 | W110: 0 | X110: 0 | Y110: 0 | Z110: 0 | AA110: 0 | AB110: 0 | AC110: 0 | AD110: 0 | AE110: 0 | AF110: 0 | AG110: 0 | AH110: 0 | AI110: 0 | AJ110: 0 | AK110: 0 | AL110: =SUM(E110:N110) -> 0 | AM110: =SUM(O110:Z110) -> 0 | AN110: =SUM(AA110:AE110) -> 0 | AP110: =+SUMIFS(Em.GHG.inTEAPEm., Prd., $AP$3) -> 0.101176359 | AQ110: =+SUMIFS(Em.GHG.inTEAPEm., Prd., $AP$3) -> 0.101176359 | AR110: =+SUMIFS(Em.GHG.inTEAPEm., Prd., $AP$3) -> 0.101176359 | AS110: =+SUMIFS(Em.GHG.inTEAPEm., Prd., $AP$3) -> 0.101176359 | BR110: =Results!$E$275 -> Industry | BS110: Tea
B111: =Model!$H$702 -> Industry Cement, ceramics and glass Electrical Processes | C111: =Model!$I$702 -> inCCGElc. | E111: =+SUMIFS(EB.inCCGElc.fElc., Prd., $E$3) -> -1.567150403 | F111: 0 | G111: 0 | H111: 0 | I111: 0 | J111: 0 | K111: 0 | L111: 0 | M111: 0 | N111: 0 | O111: 0 | P111: 0 | Q111: 0 | R111: 0 | S111: 0 | T111: 0 | U111: 0 | V111: 0 | W111: 0 | X111: 0 | Y111: 0 | Z111: 0 | AA111: 0 | AB111: 0 | AC111: 0 | AD111: 0 | AE111: 0 | AF111: 0 | AG111: 0 | AH111: 0 | AI111: 0 | AJ111: 0 | AK111: 0 | AL111: -1.567150403 | AM111: 0 | AN111: 0 | AP111: =+SUMIFS(Em.GHG.inCCGElc., Prd., $AP$3) -> 0 | AQ111: =+SUMIFS(Em.CO2.inCCGElc., Prd., $AQ$3) -> 0 | AR111: =+SUMIFS(Em.CH4.inCCGElc., Prd., $AR$3) -> 0 | AS111: =+SUMIFS(Em.N2O.inCCGElc., Prd., $AS$3) -> 0 | AT111: 0 | AU111: 0 | AV111: =+SUMIFS(Em.PM10.inCCGElc., Prd., $AV$3) -> 5641735.811 | AW111: =+SUMIFS(Em.NOX.inCCGElc., Prd., $AW$3) -> 5641735.811 | AX111: =+SUMIFS(Em.SO2.inCCGElc., Prd., $AX$3) -> 5641735.811 | AY111: =+SUMIFS(Em.NMVOC.inCCGElc., Prd., $AY$3) -> 5641735.811 | AZ111: =+SUMIFS(Em.PM2.5.inCCGElc., Prd., $AZ$3) -> 5641735.811 | BA111: =+SUMIFS(Em.NH3.inCCGElc., Prd., $BA$3) -> 5641735.811 | BR111: =Results!$E$275 -> Industry | BS111: IndustryAllOther
B112: =Model!$H$703 -> Industry Cement, ceramics and glass Heat Processes | C112: =Model!$I$703 -> inCCGHt. | E112: =+SUMIFS(EB.inCCGHt.fElc., Prd., $E$3) -> 0 | F112: =+SUMIFS(EB.inCCGHt.fH2G., Prd., $F$3) -> 0 | G112: =+SUMIFS(EB.inCCGHt.fBiS., Prd., $G$3) -> -7.089644037 | H112: 0 | I112: =+SUMIFS(EB.inCCGHt.fBiG., Prd., $I$3) -> 0 | J112: =+SUMIFS(EB.inCCGHt.fFsS., Prd., $J$3) -> 0 | K112: =+SUMIFS(EB.inCCGHt.fFsL., Prd., $K$3) -> 0 | L112: =+SUMIFS(EB.inCCGHt.fFsG., Prd., $L$3) -> 0 | M112: 0 | N112: 0 | O112: 0 | P112: 0 | Q112: 0 | R112: 0 | S112: 0 | T112: 0 | U112: 0 | V112: 0 | W112: 0 | X112: 0 | Y112: 0 | Z112: 0 | AA112: 0 | AB112: 0 | AC112: 0 | AD112: 0 | AE112: 0 | AF112: 0 | AG112: 0 | AH112: 0 | AI112: 0 | AJ112: 0 | AK112: 0 | AL112: -7.089644037 | AM112: 0 | AN112: 0 | AP112: =+SUMIFS(Em.GHG.inCCGHt., Prd., $AP$3) -> 0.09003847927 | AQ112: =+SUMIFS(Em.CO2.inCCGHt., Prd., $AQ$3) -> 0 | AR112: =+SUMIFS(Em.CH4.inCCGHt., Prd., $AR$3) -> 0 | AS112: =+SUMIFS(Em.N2O.inCCGHt., Prd., $AS$3) -> 0.09003847927 | AT112: 0 | AU112: 0 | AV112: =+SUMIFS(Em.PM10.inCCGHt., Prd., $AV$3) -> 25522693.01 | AW112: =+SUMIFS(Em.NOX.inCCGHt., Prd., $AW$3) -> 25522693.01 | AX112: =+SUMIFS(Em.SO2.inCCGHt., Prd., $AX$3) -> 25522693.01 | AY112: =+SUMIFS(Em.NMVOC.inCCGHt., Prd., $AY$3) -> 25522693.01 | AZ112: =+SUMIFS(Em.PM2.5.inCCGHt., Prd., $AZ$3) -> 25522693.01 | BA112: =+SUMIFS(Em.NH3.inCCGHt., Prd., $BA$3) -> 25522693.01 | BR112: =Results!$E$275 -> Industry | BS112: IndustryAllOther
B113: =Model!$H$706 -> Industry Cement, ceramics and glass Heat Processes CHP Heat Processes Heat Component | C113: =Model!$I$706 -> inCCGHtCHP_HtComp. | E113: 0 | F113: =+SUMIFS(EB.inCCGHtCHP_HtComp.fH2G., Prd., $F$3) -> 0 | G113: =+SUMIFS(EB.inCCGHtCHP_HtComp.fBiS., Prd., $G$3) -> 0 | H113: 0 | I113: =+SUMIFS(EB.inCCGHtCHP_HtComp.fBiG., Prd., $I$3) -> 0 | J113: =+SUMIFS(EB.inCCGHtCHP_HtComp.fFsS., Prd., $J$3) -> 0 | K113: =+SUMIFS(EB.inCCGHtCHP_HtComp.fFsL., Prd., $K$3) -> 0 | L113: =+SUMIFS(EB.inCCGHtCHP_HtComp.fFsG., Prd., $L$3) -> 0 | M113: 0 | N113: 0 | O113: 0 | P113: 0 | Q113: 0 | R113: 0 | S113: 0 | T113: 0 | U113: 0 | V113: 0 | W113: 0 | X113: 0 | Y113: 0 | Z113: 0 | AA113: 0 | AB113: 0 | AC113: 0 | AD113: 0 | AE113: 0 | AF113: 0 | AG113: 0 | AH113: 0 | AI113: 0 | AJ113: 0 | AK113: 0 | AL113: 0 | AM113: 0 | AN113: 0 | AP113: =+SUMIFS(Em.GHG.inCCGHtCHP_HtComp., Prd., $AP$3) -> 0 | AQ113: =+SUMIFS(Em.CO2.inCCGHtCHP_HtComp., Prd., $AQ$3) -> 0 | AR113: =+SUMIFS(Em.CH4.inCCGHtCHP_HtComp., Prd., $AR$3) -> 0 | AS113: =+SUMIFS(Em.N2O.inCCGHtCHP_HtComp., Prd., $AS$3) -> 0 | AT113: 0 | AU113: 0 | AV113: =+SUMIFS(Em.PM10.inCCGHtCHP_HtComp., Prd., $AV$3) -> 0 | AW113: =+SUMIFS(Em.NOX.inCCGHtCHP_HtComp., Prd., $AW$3) -> 0 | AX113: =+SUMIFS(Em.SO2.inCCGHtCHP_HtComp., Prd., $AX$3) -> 0 | AY113: =+SUMIFS(Em.NMVOC.inCCGHtCHP_HtComp., Prd., $AY$3) -> 0 | AZ113: =+SUMIFS(Em.PM2.5.inCCGHtCHP_HtComp., Prd., $AZ$3) -> 0 | BA113: =+SUMIFS(Em.NH3.inCCGHtCHP_HtComp., Prd., $BA$3) -> 0 | BR113: =Results!$E$275 -> Industry | BS113: IndustryAllOther
B114: =Model!$H$705 -> Industry Cement, ceramics and glass Heat Processes CHP Electrical Component | C114: =Model!$I$705 -> inCCGHtCHP_ElecComp. | E114: =+SUMIFS(EB.inCCGHtCHP_ElecComp.fElc., Prd., $E$3) -> 0 | F114: =+SUMIFS(EB.inCCGHtCHP_ElecComp.fH2G., Prd., $F$3) -> 0 | G114: =+SUMIFS(EB.inCCGHtCHP_ElecComp.fBiS., Prd., $G$3) -> 0 | H114: 0 | I114: =+SUMIFS(EB.inCCGHtCHP_ElecComp.fBiG., Prd., $I$3) -> 0 | J114: =+SUMIFS(EB.inCCGHtCHP_ElecComp.fFsS., Prd., $J$3) -> 0 | K114: =+SUMIFS(EB.inCCGHtCHP_ElecComp.fFsL., Prd., $K$3) -> 0 | L114: =+SUMIFS(EB.inCCGHtCHP_ElecComp.fFsG., Prd., $L$3) -> 0 | M114: 0 | N114: 0 | O114: 0 | P114: 0 | Q114: 0 | R114: 0 | S114: 0 | T114: 0 | U114: 0 | V114: 0 | W114: 0 | X114: 0 | Y114: 0 | Z114: 0 | AA114: 0 | AB114: 0 | AC114: 0 | AD114: 0 | AE114: 0 | AF114: 0 | AG114: 0 | AH114: 0 | AI114: 0 | AJ114: 0 | AK114: 0 | AL114: =SUM(E114:N114) -> 0 | AM114: =SUM(O114:Z114) -> 0 | AN114: =SUM(AA114:AE114) -> 0 | AP114: =+SUMIFS(Em.GHG.inCCGHtCHP_ElecComp., Prd., $AP$3) -> 0 | AQ114: =+SUMIFS(Em.CO2.inCCGHtCHP_ElecComp., Prd., $AQ$3) -> 0 | AR114: =+SUMIFS(Em.CH4.inCCGHtCHP_ElecComp., Prd., $AR$3) -> 0 | AS114: =+SUMIFS(Em.N2O.inCCGHtCHP_ElecComp., Prd., $AS$3) -> 0 | AT114: 0 | AU114: 0 | AV114: =+SUMIFS(Em.PM10.inCCGHtCHP_ElecComp., Prd., $AV$3) -> 0 | AW114: =+SUMIFS(Em.NOX.inCCGHtCHP_ElecComp., Prd., $AW$3) -> 0 | AX114: =+SUMIFS(Em.SO2.inCCGHtCHP_ElecComp., Prd., $AX$3) -> 0 | AY114: =+SUMIFS(Em.NMVOC.inCCGHtCHP_ElecComp., Prd., $AY$3) -> 0 | AZ114: =+SUMIFS(Em.PM2.5.inCCGHtCHP_ElecComp., Prd., $AZ$3) -> 0 | BA114: =+SUMIFS(Em.NH3.inCCGHtCHP_ElecComp., Prd., $BA$3) -> 0 | BR114: =Results!$E$275 -> Industry | BS114: IndustryAllOther
B115: =Model!$H$709 -> Industry Cement, ceramics and glass Process Emissions | C115: =Model!$I$709 -> inCCGPEm. | E115: 0 | F115: 0 | G115: 0 | H115: 0 | I115: 0 | J115: 0 | K115: 0 | L115: 0 | M115: 0 | N115: 0 | O115: 0 | P115: 0 | Q115: 0 | R115: 0 | S115: 0 | T115: 0 | U115: 0 | V115: 0 | W115: 0 | X115: 0 | Y115: 0 | Z115: 0 | AA115: 0 | AB115: 0 | AC115: 0 | AD115: 0 | AE115: 0 | AF115: 0 | AG115: 0 | AH115: 0 | AI115: 0 | AJ115: 0 | AK115: 0 | AL115: 0 | AM115: 0 | AN115: 0 | AP115: =+SUMIFS(Em.GHG.inCCGPEm., Prd., $AP$3) -> 5.654824019 | AQ115: =+SUMIFS(Em.CO2.inCCGPEm., Prd., $AQ$3) -> 5.531499681 | AR115: =+SUMIFS(Em.CH4.inCCGPEm., Prd., $AR$3) -> 0.1085117019 | AS115: =+SUMIFS(Em.N2O.inCCGPEm., Prd., $AS$3) -> 0.01481263539 | AT115: 0 | AU115: 0 | AV115: 0 | AW115: 0 | AX115: 0 | AY115: 0 | AZ115: 0 | BA115: 0 | BR115: =Results!$E$275 -> Industry | BS115: IndustryAllOther
B116: =Model!$H$710 -> Industry Chemicals Electrical Processes | C116: =Model!$I$710 -> inCHEElc. | E116: =+SUMIFS(EB.inCHEElc.fElc., Prd., $E$3) -> 0 | F116: 0 | G116: 0 | H116: 0 | I116: 0 | J116: 0 | K116: 0 | L116: 0 | M116: 0 | N116: 0 | O116: 0 | P116: 0 | Q116: 0 | R116: 0 | S116: 0 | T116: 0 | U116: 0 | V116: 0 | W116: 0 | X116: 0 | Y116: 0 | Z116: 0 | AA116: 0 | AB116: 0 | AC116: 0 | AD116: 0 | AE116: 0 | AF116: 0 | AG116: 0 | AH116: 0 | AI116: 0 | AJ116: 0 | AK116: 0 | AL116: 0 | AM116: 0 | AN116: 0 | AP116: =+SUMIFS(Em.GHG.inCHEElc., Prd., $AP$3) -> 0 | AQ116: =+SUMIFS(Em.CO2.inCHEElc., Prd., $AQ$3) -> 0 | AR116: =+SUMIFS(Em.CH4.inCHEElc., Prd., $AR$3) -> 0 | AS116: =+SUMIFS(Em.N2O.inCHEElc., Prd., $AS$3) -> 0 | AT116: 0 | AU116: 0 | AV116: =+SUMIFS(Em.PM10.inCHEElc., Prd., $AV$3) -> 0 | AW116: =+SUMIFS(Em.NOX.inCHEElc., Prd., $AW$3) -> 0 | AX116: =+SUMIFS(Em.SO2.inCHEElc., Prd., $AX$3) -> 0 | AY116: =+SUMIFS(Em.NMVOC.inCHEElc., Prd., $AY$3) -> 0 | AZ116: =+SUMIFS(Em.PM2.5.inCHEElc., Prd., $AZ$3) -> 0 | BA116: =+SUMIFS(Em.NH3.inCHEElc., Prd., $BA$3) -> 0 | BR116: =Results!$E$275 -> Industry | BS116: IndustryAllOther
B117: =Model!$H$711 -> Industry Chemicals Heat Processes | C117: =Model!$I$711 -> inCHEHt. | E117: =+SUMIFS(EB.inCHEHt.fElc., Prd., $E$3) -> 0 | F117: =+SUMIFS(EB.inCHEHt.fH2G., Prd., $F$3) -> 0 | G117: =+SUMIFS(EB.inCHEHt.fBiS., Prd., $G$3) -> 0 | H117: 0 | I117: =+SUMIFS(EB.inCHEHt.fBiG., Prd., $I$3) -> 0 | J117: =+SUMIFS(EB.inCHEHt.fFsS., Prd., $J$3) -> 0 | K117: =+SUMIFS(EB.inCHEHt.fFsL., Prd., $K$3) -> 0 | L117: =+SUMIFS(EB.inCHEHt.fFsG., Prd., $L$3) -> 0 | M117: 0 | N117: 0 | O117: 0 | P117: 0 | Q117: 0 | R117: 0 | S117: 0 | T117: 0 | U117: 0 | V117: 0 | W117: 0 | X117: 0 | Y117: 0 | Z117: 0 | AA117: 0 | AB117: 0 | AC117: 0 | AD117: 0 | AE117: 0 | AF117: 0 | AG117: 0 | AH117: 0 | AI117: 0 | AJ117: 0 | AK117: 0 | AL117: 0 | AM117: 0 | AN117: 0 | AP117: =+SUMIFS(Em.GHG.inCHEHt., Prd., $AP$3) -> 0 | AQ117: =+SUMIFS(Em.CO2.inCHEHt., Prd., $AQ$3) -> 0 | AR117: =+SUMIFS(Em.CH4.inCHEHt., Prd., $AR$3) -> 0 | AS117: =+SUMIFS(Em.N2O.inCHEHt., Prd., $AS$3) -> 0 | AT117: 0 | AU117: 0 | AV117: =+SUMIFS(Em.PM10.inCHEHt., Prd., $AV$3) -> 0 | AW117: =+SUMIFS(Em.NOX.inCHEHt., Prd., $AW$3) -> 0 | AX117: =+SUMIFS(Em.SO2.inCHEHt., Prd., $AX$3) -> 0 | AY117: =+SUMIFS(Em.NMVOC.inCHEHt., Prd., $AY$3) -> 0 | AZ117: =+SUMIFS(Em.PM2.5.inCHEHt., Prd., $AZ$3) -> 0 | BA117: =+SUMIFS(Em.NH3.inCHEHt., Prd., $BA$3) -> 0 | BR117: =Results!$E$275 -> Industry | BS117: IndustryAllOther
B118: =Model!$H$714 -> Industry Chemicals Heat Processes CHP Heat Processes Heat Component | C118: =Model!$I$714 -> inCHEHtCHP_HtComp. | E118: 0 | F118: =+SUMIFS(EB.inCHEHtCHP_HtComp.fH2G., Prd., $F$3) -> 0 | G118: =+SUMIFS(EB.inCHEHtCHP_HtComp.fBiS., Prd., $G$3) -> 0 | H118: 0 | I118: =+SUMIFS(EB.inCHEHtCHP_HtComp.fBiG., Prd., $I$3) -> 0 | J118: =+SUMIFS(EB.inCHEHtCHP_HtComp.fFsS., Prd., $J$3) -> 0 | K118: =+SUMIFS(EB.inCHEHtCHP_HtComp.fFsL., Prd., $K$3) -> 0 | L118: =+SUMIFS(EB.inCHEHtCHP_HtComp.fFsG., Prd., $L$3) -> 0 | M118: 0 | N118: 0 | O118: 0 | P118: 0 | Q118: 0 | R118: 0 | S118: 0 | T118: 0 | U118: 0 | V118: 0 | W118: 0 | X118: 0 | Y118: 0 | Z118: 0 | AA118: 0 | AB118: 0 | AC118: 0 | AD118: 0 | AE118: 0 | AF118: 0 | AG118: 0 | AH118: 0 | AI118: 0 | AJ118: 0 | AK118: 0 | AL118: 0 | AM118: 0 | AN118: 0 | AP118: =+SUMIFS(Em.GHG.inCHEHtCHP_HtComp., Prd., $AP$3) -> 0 | AQ118: =+SUMIFS(Em.CO2.inCHEHtCHP_HtComp., Prd., $AQ$3) -> 0 | AR118: =+SUMIFS(Em.CH4.inCHEHtCHP_HtComp., Prd., $AR$3) -> 0 | AS118: =+SUMIFS(Em.N2O.inCHEHtCHP_HtComp., Prd., $AS$3) -> 0 | AT118: 0 | AU118: 0 | AV118: =+SUMIFS(Em.PM10.inCHEHtCHP_HtComp., Prd., $AV$3) -> 0 | AW118: =+SUMIFS(Em.NOX.inCHEHtCHP_HtComp., Prd., $AW$3) -> 0 | AX118: =+SUMIFS(Em.SO2.inCHEHtCHP_HtComp., Prd., $AX$3) -> 0 | AY118: =+SUMIFS(Em.NMVOC.inCHEHtCHP_HtComp., Prd., $AY$3) -> 0 | AZ118: =+SUMIFS(Em.PM2.5.inCHEHtCHP_HtComp., Prd., $AZ$3) -> 0 | BA118: =+SUMIFS(Em.NH3.inCHEHtCHP_HtComp., Prd., $BA$3) -> 0 | BR118: =Results!$E$275 -> Industry | BS118: IndustryAllOther
B119: =Model!$H$713 -> Industry Chemicals Heat Processes CHP Electrical Component | C119: =Model!$I$713 -> inCHEHtCHP_ElecComp. | E119: =+SUMIFS(EB.inCHEHtCHP_ElecComp.fElc., Prd., $E$3) -> 0 | F119: =+SUMIFS(EB.inCHEHtCHP_ElecComp.fH2G., Prd., $F$3) -> 0 | G119: =+SUMIFS(EB.inCHEHtCHP_ElecComp.fBiS., Prd., $G$3) -> 0 | H119: 0 | I119: =+SUMIFS(EB.inCHEHtCHP_ElecComp.fBiG., Prd., $I$3) -> 0 | J119: =+SUMIFS(EB.inCHEHtCHP_ElecComp.fFsS., Prd., $J$3) -> 0 | K119: =+SUMIFS(EB.inCHEHtCHP_ElecComp.fFsL., Prd., $K$3) -> 0 | L119: =+SUMIFS(EB.inCHEHtCHP_ElecComp.fFsG., Prd., $L$3) -> 0 | M119: 0 | N119: 0 | O119: 0 | P119: 0 | Q119: 0 | R119: 0 | S119: 0 | T119: 0 | U119: 0 | V119: 0 | W119: 0 | X119: 0 | Y119: 0 | Z119: 0 | AA119: 0 | AB119: 0 | AC119: 0 | AD119: 0 | AE119: 0 | AF119: 0 | AG119: 0 | AH119: 0 | AI119: 0 | AJ119: 0 | AK119: 0 | AL119: =SUM(E119:N119) -> 0 | AM119: =SUM(O119:Z119) -> 0 | AN119: =SUM(AA119:AE119) -> 0 | AP119: =+SUMIFS(Em.GHG.inCHEHtCHP_ElecComp., Prd., $AP$3) -> 0 | AQ119: =+SUMIFS(Em.CO2.inCHEHtCHP_ElecComp., Prd., $AQ$3) -> 0 | AR119: =+SUMIFS(Em.CH4.inCHEHtCHP_ElecComp., Prd., $AR$3) -> 0 | AS119: =+SUMIFS(Em.N2O.inCHEHtCHP_ElecComp., Prd., $AS$3) -> 0 | AT119: 0 | AU119: 0 | AV119: =+SUMIFS(Em.PM10.inCHEHtCHP_ElecComp., Prd., $AV$3) -> 0 | AW119: =+SUMIFS(Em.NOX.inCHEHtCHP_ElecComp., Prd., $AW$3) -> 0 | AX119: =+SUMIFS(Em.SO2.inCHEHtCHP_ElecComp., Prd., $AX$3) -> 0 | AY119: =+SUMIFS(Em.NMVOC.inCHEHtCHP_ElecComp., Prd., $AY$3) -> 0 | AZ119: =+SUMIFS(Em.PM2.5.inCHEHtCHP_ElecComp., Prd., $AZ$3) -> 0 | BA119: =+SUMIFS(Em.NH3.inCHEHtCHP_ElecComp., Prd., $BA$3) -> 0 | BR119: =Results!$E$275 -> Industry | BS119: IndustryAllOther
B120: =Model!$H$717 -> Industry Chemicals Process Emissions | C120: =Model!$I$717 -> inCHEPEm. | E120: 0 | F120: 0 | G120: 0 | H120: 0 | I120: 0 | J120: 0 | K120: 0 | L120: 0 | M120: 0 | N120: 0 | O120: 0 | P120: 0 | Q120: 0 | R120: 0 | S120: 0 | T120: 0 | U120: 0 | V120: 0 | W120: 0 | X120: 0 | Y120: 0 | Z120: 0 | AA120: 0 | AB120: 0 | AC120: 0 | AD120: 0 | AE120: 0 | AF120: 0 | AG120: 0 | AH120: 0 | AI120: 0 | AJ120: 0 | AK120: 0 | AL120: 0 | AM120: 0 | AN120: 0 | AP120: =+SUMIFS(Em.GHG.inCHEPEm., Prd., $AP$3) -> 0 | AQ120: =+SUMIFS(Em.CO2.inCHEPEm., Prd., $AQ$3) -> 0 | AR120: =+SUMIFS(Em.CH4.inCHEPEm., Prd., $AR$3) -> 0 | AS120: =+SUMIFS(Em.N2O.inCHEPEm., Prd., $AS$3) -> 0 | AT120: 0 | AU120: 0 | AV120: 0 | AW120: 0 | AX120: 0 | AY120: 0 | AZ120: 0 | BA120: 0 | BR120: =Results!$E$275 -> Industry | BS120: IndustryAllOther
B121: =Model!$H$726 -> Industry Other Industry Electrical Processes | C121: =Model!$I$726 -> inOTHElc. | E121: =+SUMIFS(EB.inOTHElc.fElc., Prd., $E$3) -> 0 | F121: 0 | G121: 0 | H121: 0 | I121: 0 | J121: 0 | K121: 0 | L121: 0 | M121: 0 | N121: 0 | O121: 0 | P121: 0 | Q121: 0 | R121: 0 | S121: 0 | T121: 0 | U121: 0 | V121: 0 | W121: 0 | X121: 0 | Y121: 0 | Z121: 0 | AA121: 0 | AB121: 0 | AC121: 0 | AD121: 0 | AE121: 0 | AF121: 0 | AG121: 0 | AH121: 0 | AI121: 0 | AJ121: 0 | AK121: 0 | AL121: 0 | AM121: 0 | AN121: 0 | AP121: =+SUMIFS(Em.GHG.inOTHElc., Prd., $AP$3) -> 0 | AQ121: =+SUMIFS(Em.CO2.inOTHElc., Prd., $AQ$3) -> 0 | AR121: =+SUMIFS(Em.CH4.inOTHElc., Prd., $AR$3) -> 0 | AS121: =+SUMIFS(Em.N2O.inOTHElc., Prd., $AS$3) -> 0 | AT121: 0 | AU121: 0 | AV121: =+SUMIFS(Em.PM10.inOTHElc., Prd., $AV$3) -> 0 | AW121: =+SUMIFS(Em.NOX.inOTHElc., Prd., $AW$3) -> 0 | AX121: =+SUMIFS(Em.SO2.inOTHElc., Prd., $AX$3) -> 0 | AY121: =+SUMIFS(Em.NMVOC.inOTHElc., Prd., $AY$3) -> 0 | AZ121: =+SUMIFS(Em.PM2.5.inOTHElc., Prd., $AZ$3) -> 0 | BA121: =+SUMIFS(Em.NH3.inOTHElc., Prd., $BA$3) -> 0 | BR121: =Results!$E$275 -> Industry | BS121: IndustryAllOther
B122: =Model!$H$727 -> Industry Other Industry Heat Processes | C122: =Model!$I$727 -> inOTHHt. | E122: =+SUMIFS(EB.inOTHHt.fElc., Prd., $E$3) -> 0 | F122: =+SUMIFS(EB.inOTHHt.fH2G., Prd., $F$3) -> 0 | G122: =+SUMIFS(EB.inOTHHt.fBiS., Prd., $G$3) -> 0 | H122: 0 | I122: =+SUMIFS(EB.inOTHHt.fBiG., Prd., $I$3) -> 0 | J122: =+SUMIFS(EB.inOTHHt.fFsS., Prd., $J$3) -> 0 | K122: =+SUMIFS(EB.inOTHHt.fFsL., Prd., $K$3) -> 0 | L122: =+SUMIFS(EB.inOTHHt.fFsG., Prd., $L$3) -> 0 | M122: 0 | N122: 0 | O122: 0 | P122: 0 | Q122: 0 | R122: 0 | S122: 0 | T122: 0 | U122: 0 | V122: 0 | W122: 0 | X122: 0 | Y122: 0 | Z122: 0 | AA122: 0 | AB122: 0 | AC122: 0 | AD122: 0 | AE122: 0 | AF122: 0 | AG122: 0 | AH122: 0 | AI122: 0 | AJ122: 0 | AK122: 0 | AL122: 0 | AM122: 0 | AN122: 0 | AP122: =+SUMIFS(Em.GHG.inOTHHt., Prd., $AP$3) -> 0 | AQ122: =+SUMIFS(Em.CO2.inOTHHt., Prd., $AQ$3) -> 0 | AR122: =+SUMIFS(Em.CH4.inOTHHt., Prd., $AR$3) -> 0 | AS122: =+SUMIFS(Em.N2O.inOTHHt., Prd., $AS$3) -> 0 | AT122: 0 | AU122: 0 | AV122: =+SUMIFS(Em.PM10.inOTHHt., Prd., $AV$3) -> 0 | AW122: =+SUMIFS(Em.NOX.inOTHHt., Prd., $AW$3) -> 0 | AX122: =+SUMIFS(Em.SO2.inOTHHt., Prd., $AX$3) -> 0 | AY122: =+SUMIFS(Em.NMVOC.inOTHHt., Prd., $AY$3) -> 0 | AZ122: =+SUMIFS(Em.PM2.5.inOTHHt., Prd., $AZ$3) -> 0 | BA122: =+SUMIFS(Em.NH3.inOTHHt., Prd., $BA$3) -> 0 | BR122: =Results!$E$275 -> Industry | BS122: IndustryAllOther
B123: =Model!$H$730 -> Industry Other Industry Heat Processes CHP Heat Processes Heat Component | C123: =Model!$I$730 -> inOTHHtCHP_HtComp. | E123: 0 | F123: =+SUMIFS(EB.inOTHHtCHP_HtComp.fH2G., Prd., $F$3) -> 0 | G123: =+SUMIFS(EB.inOTHHtCHP_HtComp.fBiS., Prd., $G$3) -> 0 | H123: 0 | I123: =+SUMIFS(EB.inOTHHtCHP_HtComp.fBiG., Prd., $I$3) -> 0 | J123: =+SUMIFS(EB.inOTHHtCHP_HtComp.fFsS., Prd., $J$3) -> 0 | K123: =+SUMIFS(EB.inOTHHtCHP_HtComp.fFsL., Prd., $K$3) -> 0 | L123: =+SUMIFS(EB.inOTHHtCHP_HtComp.fFsG., Prd., $L$3) -> 0 | M123: 0 | N123: 0 | O123: 0 | P123: 0 | Q123: 0 | R123: 0 | S123: 0 | T123: 0 | U123: 0 | V123: 0 | W123: 0 | X123: 0 | Y123: 0 | Z123: 0 | AA123: 0 | AB123: 0 | AC123: 0 | AD123: 0 | AE123: 0 | AF123: 0 | AG123: 0 | AH123: 0 | AI123: 0 | AJ123: 0 | AK123: 0 | AL123: 0 | AM123: 0 | AN123: 0 | AP123: =+SUMIFS(Em.GHG.inOTHHtCHP_HtComp., Prd., $AP$3) -> 0 | AQ123: =+SUMIFS(Em.CO2.inOTHHtCHP_HtComp., Prd., $AQ$3) -> 0 | AR123: =+SUMIFS(Em.CH4.inOTHHtCHP_HtComp., Prd., $AR$3) -> 0 | AS123: =+SUMIFS(Em.N2O.inOTHHtCHP_HtComp., Prd., $AS$3) -> 0 | AT123: 0 | AU123: 0 | AV123: =+SUMIFS(Em.PM10.inOTHHtCHP_HtComp., Prd., $AV$3) -> 0 | AW123: =+SUMIFS(Em.NOX.inOTHHtCHP_HtComp., Prd., $AW$3) -> 0 | AX123: =+SUMIFS(Em.SO2.inOTHHtCHP_HtComp., Prd., $AX$3) -> 0 | AY123: =+SUMIFS(Em.NMVOC.inOTHHtCHP_HtComp., Prd., $AY$3) -> 0 | AZ123: =+SUMIFS(Em.PM2.5.inOTHHtCHP_HtComp., Prd., $AZ$3) -> 0 | BA123: =+SUMIFS(Em.NH3.inOTHHtCHP_HtComp., Prd., $BA$3) -> 0 | BR123: =Results!$E$275 -> Industry | BS123: IndustryAllOther
B124: =Model!$H$729 -> Industry Other Industry Heat Processes CHP Electrical Component | C124: =Model!$I$729 -> inOTHHtCHP_ElecComp. | E124: =+SUMIFS(EB.inOTHHtCHP_ElecComp.fElc., Prd., $E$3) -> 0 | F124: =+SUMIFS(EB.inOTHHtCHP_ElecComp.fH2G., Prd., $F$3) -> 0 | G124: =+SUMIFS(EB.inOTHHtCHP_ElecComp.fBiS., Prd., $G$3) -> 0 | H124: 0 | I124: =+SUMIFS(EB.inOTHHtCHP_ElecComp.fBiG., Prd., $I$3) -> 0 | J124: =+SUMIFS(EB.inOTHHtCHP_ElecComp.fFsS., Prd., $J$3) -> 0 | K124: =+SUMIFS(EB.inOTHHtCHP_ElecComp.fFsL., Prd., $K$3) -> 0 | L124: =+SUMIFS(EB.inOTHHtCHP_ElecComp.fFsG., Prd., $L$3) -> 0 | M124: 0 | N124: 0 | O124: 0 | P124: 0 | Q124: 0 | R124: 0 | S124: 0 | T124: 0 | U124: 0 | V124: 0 | W124: 0 | X124: 0 | Y124: 0 | Z124: 0 | AA124: 0 | AB124: 0 | AC124: 0 | AD124: 0 | AE124: 0 | AF124: 0 | AG124: 0 | AH124: 0 | AI124: 0 | AJ124: 0 | AK124: 0 | AL124: =SUM(E124:N124) -> 0 | AM124: =SUM(O124:Z124) -> 0 | AN124: =SUM(AA124:AE124) -> 0 | AP124: =+SUMIFS(Em.GHG.inOTHHtCHP_ElecComp., Prd., $AP$3) -> 0 | AQ124: =+SUMIFS(Em.CO2.inOTHHtCHP_ElecComp., Prd., $AQ$3) -> 0 | AR124: =+SUMIFS(Em.CH4.inOTHHtCHP_ElecComp., Prd., $AR$3) -> 0 | AS124: =+SUMIFS(Em.N2O.inOTHHtCHP_ElecComp., Prd., $AS$3) -> 0 | AT124: 0 | AU124: 0 | AV124: =+SUMIFS(Em.PM10.inOTHHtCHP_ElecComp., Prd., $AV$3) -> 0 | AW124: =+SUMIFS(Em.NOX.inOTHHtCHP_ElecComp., Prd., $AW$3) -> 0 | AX124: =+SUMIFS(Em.SO2.inOTHHtCHP_ElecComp., Prd., $AX$3) -> 0 | AY124: =+SUMIFS(Em.NMVOC.inOTHHtCHP_ElecComp., Prd., $AY$3) -> 0 | AZ124: =+SUMIFS(Em.PM2.5.inOTHHtCHP_ElecComp., Prd., $AZ$3) -> 0 | BA124: =+SUMIFS(Em.NH3.inOTHHtCHP_ElecComp., Prd., $BA$3) -> 0 | BR124: =Results!$E$275 -> Industry | BS124: IndustryAllOther
B125: =Model!$H$733 -> Industry Other Industry Process Emissions | C125: =Model!$I$733 -> inOTHPEm. | E125: 0 | F125: 0 | G125: 0 | H125: 0 | I125: 0 | J125: 0 | K125: 0 | L125: 0 | M125: 0 | N125: 0 | O125: 0 | P125: 0 | Q125: 0 | R125: 0 | S125: 0 | T125: 0 | U125: 0 | V125: 0 | W125: 0 | X125: 0 | Y125: 0 | Z125: 0 | AA125: 0 | AB125: 0 | AC125: 0 | AD125: 0 | AE125: 0 | AF125: 0 | AG125: 0 | AH125: 0 | AI125: 0 | AJ125: 0 | AK125: 0 | AL125: 0 | AM125: 0 | AN125: 0 | AP125: =+SUMIFS(Em.GHG.inOTHPEm., Prd., $AP$3) -> 0 | AQ125: =+SUMIFS(Em.CO2.inOTHPEm., Prd., $AQ$3) -> 0 | AR125: =+SUMIFS(Em.CH4.inOTHPEm., Prd., $AR$3) -> 0 | AS125: =+SUMIFS(Em.N2O.inOTHPEm., Prd., $AS$3) -> 0 | AT125: 0 | AU125: 0 | AV125: 0 | AW125: 0 | AX125: 0 | AY125: 0 | AZ125: 0 | BA125: 0 | BR125: =Results!$E$275 -> Industry | BS125: IndustryAllOther
B126: =Model!$H$718 -> Industry Refineries Electrical Processes | C126: =Model!$I$718 -> inREFElc. | E126: =+SUMIFS(EB.inREFElc.fElc., Prd., $E$3) -> 0 | F126: 0 | G126: 0 | H126: 0 | I126: 0 | J126: 0 | K126: 0 | L126: 0 | M126: 0 | N126: 0 | O126: 0 | P126: 0 | Q126: 0 | R126: 0 | S126: 0 | T126: 0 | U126: 0 | V126: 0 | W126: 0 | X126: 0 | Y126: 0 | Z126: 0 | AA126: 0 | AB126: 0 | AC126: 0 | AD126: 0 | AE126: 0 | AF126: 0 | AG126: 0 | AH126: 0 | AI126: 0 | AJ126: 0 | AK126: 0 | AL126: 0 | AM126: 0 | AN126: 0 | AP126: =+SUMIFS(Em.GHG.inREFElc., Prd., $AP$3) -> 0 | AQ126: =+SUMIFS(Em.CO2.inREFElc., Prd., $AQ$3) -> 0 | AR126: =+SUMIFS(Em.CH4.inREFElc., Prd., $AR$3) -> 0 | AS126: =+SUMIFS(Em.N2O.inREFElc., Prd., $AS$3) -> 0 | AT126: 0 | AU126: 0 | AV126: =+SUMIFS(Em.PM10.inREFElc., Prd., $AV$3) -> 0 | AW126: =+SUMIFS(Em.NOX.inREFElc., Prd., $AW$3) -> 0 | AX126: =+SUMIFS(Em.SO2.inREFElc., Prd., $AX$3) -> 0 | AY126: =+SUMIFS(Em.NMVOC.inREFElc., Prd., $AY$3) -> 0 | AZ126: =+SUMIFS(Em.PM2.5.inREFElc., Prd., $AZ$3) -> 0 | BA126: =+SUMIFS(Em.NH3.inREFElc., Prd., $BA$3) -> 0 | BR126: =Results!$E$272 -> Other Energy Supply | BS126: Refineries
B127: =Model!$H$719 -> Industry Refineries Heat Processes | C127: =Model!$I$719 -> inREFHt. | E127: =+SUMIFS(EB.inREFHt.fElc., Prd., $E$3) -> 0 | F127: =+SUMIFS(EB.inREFHt.fH2G., Prd., $F$3) -> 0 | G127: =+SUMIFS(EB.inREFHt.fBiS., Prd., $G$3) -> 0 | H127: 0 | I127: =+SUMIFS(EB.inREFHt.fBiG., Prd., $I$3) -> 0 | J127: =+SUMIFS(EB.inREFHt.fFsS., Prd., $J$3) -> 0 | K127: =+SUMIFS(EB.inREFHt.fFsL., Prd., $K$3) -> 0 | L127: =+SUMIFS(EB.inREFHt.fFsG., Prd., $L$3) -> 0 | M127: 0 | N127: 0 | O127: 0 | P127: 0 | Q127: 0 | R127: 0 | S127: 0 | T127: 0 | U127: 0 | V127: 0 | W127: 0 | X127: 0 | Y127: 0 | Z127: 0 | AA127: 0 | AB127: 0 | AC127: 0 | AD127: 0 | AE127: 0 | AF127: 0 | AG127: 0 | AH127: 0 | AI127: 0 | AJ127: 0 | AK127: 0 | AL127: 0 | AM127: 0 | AN127: 0 | AP127: =+SUMIFS(Em.GHG.inREFHt., Prd., $AP$3) -> 0 | AQ127: =+SUMIFS(Em.CO2.inREFHt., Prd., $AQ$3) -> 0 | AR127: =+SUMIFS(Em.CH4.inREFHt., Prd., $AR$3) -> 0 | AS127: =+SUMIFS(Em.N2O.inREFHt., Prd., $AS$3) -> 0 | AT127: 0 | AU127: 0 | AV127: =+SUMIFS(Em.PM10.inREFHt., Prd., $AV$3) -> 0 | AW127: =+SUMIFS(Em.NOX.inREFHt., Prd., $AW$3) -> 0 | AX127: =+SUMIFS(Em.SO2.inREFHt., Prd., $AX$3) -> 0 | AY127: =+SUMIFS(Em.NMVOC.inREFHt., Prd., $AY$3) -> 0 | AZ127: =+SUMIFS(Em.PM2.5.inREFHt., Prd., $AZ$3) -> 0 | BA127: =+SUMIFS(Em.NH3.inREFHt., Prd., $BA$3) -> 0 | BR127: =Results!$E$272 -> Other Energy Supply | BS127: Refineries
B128: =Model!$H$722 -> Industry Refineries Heat Processes CHP Heat Processes Heat Component | C128: =Model!$I$722 -> inREFHtCHP_HtComp. | E128: 0 | F128: =+SUMIFS(EB.inREFHtCHP_HtComp.fH2G., Prd., $F$3) -> 0 | G128: =+SUMIFS(EB.inREFHtCHP_HtComp.fBiS., Prd., $G$3) -> 0 | H128: 0 | I128: =+SUMIFS(EB.inREFHtCHP_HtComp.fBiG., Prd., $I$3) -> 0 | J128: =+SUMIFS(EB.inREFHtCHP_HtComp.fFsS., Prd., $J$3) -> 0 | K128: =+SUMIFS(EB.inREFHtCHP_HtComp.fFsL., Prd., $K$3) -> 0 | L128: =+SUMIFS(EB.inREFHtCHP_HtComp.fFsG., Prd., $L$3) -> 0 | M128: 0 | N128: 0 | O128: 0 | P128: 0 | Q128: 0 | R128: 0 | S128: 0 | T128: 0 | U128: 0 | V128: 0 | W128: 0 | X128: 0 | Y128: 0 | Z128: 0 | AA128: 0 | AB128: 0 | AC128: 0 | AD128: 0 | AE128: 0 | AF128: 0 | AG128: 0 | AH128: 0 | AI128: 0 | AJ128: 0 | AK128: 0 | AL128: 0 | AM128: 0 | AN128: 0 | AP128: =+SUMIFS(Em.GHG.inREFHtCHP_HtComp., Prd., $AP$3) -> 0 | AQ128: =+SUMIFS(Em.CO2.inREFHtCHP_HtComp., Prd., $AQ$3) -> 0 | AR128: =+SUMIFS(Em.CH4.inREFHtCHP_HtComp., Prd., $AR$3) -> 0 | AS128: =+SUMIFS(Em.N2O.inREFHtCHP_HtComp., Prd., $AS$3) -> 0 | AT128: 0 | AU128: 0 | AV128: =+SUMIFS(Em.PM10.inREFHtCHP_HtComp., Prd., $AV$3) -> 0 | AW128: =+SUMIFS(Em.NOX.inREFHtCHP_HtComp., Prd., $AW$3) -> 0 | AX128: =+SUMIFS(Em.SO2.inREFHtCHP_HtComp., Prd., $AX$3) -> 0 | AY128: =+SUMIFS(Em.NMVOC.inREFHtCHP_HtComp., Prd., $AY$3) -> 0 | AZ128: =+SUMIFS(Em.PM2.5.inREFHtCHP_HtComp., Prd., $AZ$3) -> 0 | BA128: =+SUMIFS(Em.NH3.inREFHtCHP_HtComp., Prd., $BA$3) -> 0 | BR128: =Results!$E$272 -> Other Energy Supply | BS128: Refineries
B129: =Model!$H$721 -> Industry Refineries Heat Processes CHP Electrical Component | C129: =Model!$I$721 -> inREFHtCHP_ElecComp. | E129: =+SUMIFS(EB.inREFHtCHP_ElecComp.fElc., Prd., $E$3) -> 0 | F129: =+SUMIFS(EB.inREFHtCHP_ElecComp.fH2G., Prd., $F$3) -> 0 | G129: =+SUMIFS(EB.inREFHtCHP_ElecComp.fBiS., Prd., $G$3) -> 0 | H129: 0 | I129: =+SUMIFS(EB.inREFHtCHP_ElecComp.fBiG., Prd., $I$3) -> 0 | J129: =+SUMIFS(EB.inREFHtCHP_ElecComp.fFsS., Prd., $J$3) -> 0 | K129: =+SUMIFS(EB.inREFHtCHP_ElecComp.fFsL., Prd., $K$3) -> 0 | L129: =+SUMIFS(EB.inREFHtCHP_ElecComp.fFsG., Prd., $L$3) -> 0 | M129: 0 | N129: 0 | O129: 0 | P129: 0 | Q129: 0 | R129: 0 | S129: 0 | T129: 0 | U129: 0 | V129: 0 | W129: 0 | X129: 0 | Y129: 0 | Z129: 0 | AA129: 0 | AB129: 0 | AC129: 0 | AD129: 0 | AE129: 0 | AF129: 0 | AG129: 0 | AH129: 0 | AI129: 0 | AJ129: 0 | AK129: 0 | AL129: =SUM(E129:N129) -> 0 | AM129: =SUM(O129:Z129) -> 0 | AN129: =SUM(AA129:AE129) -> 0 | AP129: =+SUMIFS(Em.GHG.inREFHtCHP_ElecComp., Prd., $AP$3) -> 0 | AQ129: =+SUMIFS(Em.CO2.inREFHtCHP_ElecComp., Prd., $AQ$3) -> 0 | AR129: =+SUMIFS(Em.CH4.inREFHtCHP_ElecComp., Prd., $AR$3) -> 0 | AS129: =+SUMIFS(Em.N2O.inREFHtCHP_ElecComp., Prd., $AS$3) -> 0 | AT129: 0 | AU129: 0 | AV129: =+SUMIFS(Em.PM10.inREFHtCHP_ElecComp., Prd., $AV$3) -> 0 | AW129: =+SUMIFS(Em.NOX.inREFHtCHP_ElecComp., Prd., $AW$3) -> 0 | AX129: =+SUMIFS(Em.SO2.inREFHtCHP_ElecComp., Prd., $AX$3) -> 0 | AY129: =+SUMIFS(Em.NMVOC.inREFHtCHP_ElecComp., Prd., $AY$3) -> 0 | AZ129: =+SUMIFS(Em.PM2.5.inREFHtCHP_ElecComp., Prd., $AZ$3) -> 0 | BA129: =+SUMIFS(Em.NH3.inREFHtCHP_ElecComp., Prd., $BA$3) -> 0 | BR129: =Results!$E$272 -> Other Energy Supply | BS129: IndustryAllOther
B130: =Model!$H$725 -> Industry Refineries Process Emissions | C130: =Model!$I$725 -> inREFPEm. | E130: 0 | F130: 0 | G130: 0 | H130: 0 | I130: 0 | J130: 0 | K130: 0 | L130: 0 | M130: 0 | N130: 0 | O130: 0 | P130: 0 | Q130: 0 | R130: 0 | S130: 0 | T130: 0 | U130: 0 | V130: 0 | W130: 0 | X130: 0 | Y130: 0 | Z130: 0 | AA130: 0 | AB130: 0 | AC130: 0 | AD130: 0 | AE130: 0 | AF130: 0 | AG130: 0 | AH130: 0 | AI130: 0 | AJ130: 0 | AK130: 0 | AL130: 0 | AM130: 0 | AN130: 0 | AP130: =+SUMIFS(Em.GHG.inREFPEm., Prd., $AP$3) -> 0 | AQ130: =+SUMIFS(Em.CO2.inREFPEm., Prd., $AQ$3) -> 0 | AR130: =+SUMIFS(Em.CH4.inREFPEm., Prd., $AR$3) -> 0 | AS130: =+SUMIFS(Em.N2O.inREFPEm., Prd., $AS$3) -> 0 | AT130: 0 | AU130: 0 | AV130: 0 | AW130: 0 | AX130: 0 | AY130: 0 | AZ130: 0 | BA130: 0 | BR130: =Results!$E$272 -> Other Energy Supply | BS130: Refineries
E131: 0 | F131: 0 | G131: 0 | H131: 0 | I131: 0 | J131: 0 | K131: 0 | L131: 0 | M131: 0 | N131: 0 | O131: 0 | P131: 0 | Q131: 0 | R131: 0 | S131: 0 | T131: 0 | U131: 0 | V131: 0 | W131: 0 | X131: 0 | Y131: 0 | Z131: 0 | AA131: 0 | AB131: 0 | AC131: 0 | AD131: 0 | AE131: 0 | AF131: 0 | AG131: 0 | AH131: 0 | AI131: 0 | AJ131: 0 | AK131: 0
B132: =Model!$H$622 -> Agricultural Fuel Use | C132: =Model!$I$622 -> AgrFU. | E132: =+SUMIFS(EB.AgrFU.fElc., Prd., $E$3) -> 0 | F132: =+SUMIFS(EB.AgrFU.fH2G., Prd., $F$3) -> 0 | G132: =+SUMIFS(EB.AgrFU.fBiS., Prd., $G$3) -> -0.0424495 | H132: =+SUMIFS(EB.AgrFU.fBiL., Prd., $H$3) -> -0.2 | I132: =+SUMIFS(EB.AgrFU.fBiG., Prd., $I$3) -> 0 | J132: 0 | K132: =+SUMIFS(EB.AgrFU.fFsL., Prd., $K$3) -> -2.220446049e-17 | L132: =+SUMIFS(EB.AgrFU.fFsG., Prd., $L$3) -> 0 | M132: 0 | N132: 0 | O132: 0 | P132: 0 | Q132: 0 | R132: 0 | S132: 0 | T132: 0 | U132: 0 | V132: 0 | W132: 0 | X132: 0 | Y132: 0 | Z132: 0 | AA132: 0 | AB132: 0 | AC132: 0 | AD132: 0 | AE132: 0 | AF132: 0 | AG132: 0 | AH132: 0 | AI132: 0 | AJ132: 0 | AK132: 0 | AL132: =SUM(E132:N132) -> -0.2424495 | AM132: =SUM(O132:Z132) -> 0 | AN132: =SUM(AA132:AE132) -> 0 | AP132: =+SUMIFS(Em.GHG.AgrFU., Prd., $AP$3) -> 0.00097435585 | AQ132: =+SUMIFS(Em.CO2.AgrFU., Prd., $AQ$3) -> 5.538040898e-18 | AR132: =+SUMIFS(Em.CH4.AgrFU., Prd., $AR$3) -> 1.079964316e-21 | AS132: =+SUMIFS(Em.N2O.AgrFU., Prd., $AS$3) -> 0.00097435585 | AT132: 0 | AV132: =+SUMIFS(Em.PM10.AgrFU., Prd., $AV$3) -> 7199999.281 | AW132: =+SUMIFS(Em.NOX.AgrFU., Prd., $AW$3) -> 7199999.291 | AX132: =+SUMIFS(Em.SO2.AgrFU., Prd., $AX$3) -> 7199999.286 | AY132: =+SUMIFS(Em.NMVOC.AgrFU., Prd., $AY$3) -> 8728181.127 | AZ132: =+SUMIFS(Em.PM2.5.AgrFU., Prd., $AZ$3) -> 8728181.127 | BA132: =+SUMIFS(Em.NH3.AgrFU., Prd., $BA$3) -> 8728181.127 | BR132: =Results!$E$274 -> Agriculture & Land Use | BS132: AgriFuel
B133: =Model!$H$612 -> Woodland Business as Usual | C133: =Model!$I$612 -> LndWdlBaU. | E133: 0 | F133: 0 | G133: 0 | H133: 0 | I133: 0 | J133: 0 | K133: 0 | L133: 0 | M133: 0 | N133: 0 | O133: 0 | P133: 0 | Q133: 0 | R133: =+SUMIFS(EB.LndWdlBaU.rBiS., Prd., $R$3) -> 5.023710255 | S133: 0 | T133: 0 | U133: 0 | V133: 0 | W133: 0 | X133: 0 | Y133: 0 | Z133: 0 | AA133: 0 | AB133: 0 | AC133: 0 | AD133: 0 | AE133: 0 | AF133: 0 | AG133: 0 | AH133: 0 | AI133: 0 | AJ133: 0 | AK133: 0 | AL133: 0 | AM133: 5.023710255 | AN133: 0 | AP133: 0 | AQ133: 0 | AR133: 0 | AS133: 0 | AT133: 0 | AU133: 0 | AV133: 0 | AW133: 0 | AX133: 0 | AY133: 0 | AZ133: 0 | BA133: 0 | BB133: emissions set to zero as they would double count the row for total woodland | BR133: =Results!$E$274 -> Agriculture & Land Use | BS133: Soils
B134: =Model!$H$613 -> Woodland difference | C134: =Model!$I$613 -> LndWdlDif. | E134: 0 | F134: 0 | G134: 0 | H134: 0 | I134: 0 | J134: 0 | K134: 0 | L134: 0 | M134: 0 | N134: 0 | O134: 0 | P134: 0 | Q134: 0 | R134: =+SUMIFS(EB.LndWdlDif.rBiS., Prd., $R$3) -> 0.6223818844 | S134: 0 | T134: 0 | U134: 0 | V134: 0 | W134: 0 | X134: 0 | Y134: 0 | Z134: 0 | AA134: 0 | AB134: 0 | AC134: 0 | AD134: 0 | AE134: 0 | AF134: 0 | AG134: 0 | AH134: 0 | AI134: 0 | AJ134: 0 | AK134: 0 | AL134: 0 | AM134: 0.6223818844 | AN134: 0 | AP134: 0 | AQ134: 0 | AR134: 0 | AS134: 0 | AT134: 0 | AU134: 0 | AV134: 0 | AW134: 0 | AX134: 0 | AY134: 0 | AZ134: 0 | BA134: 0 | BB134: emissions set to zero as they would double count the row for total woodland | BR134: =Results!$E$274 -> Agriculture & Land Use | BS134: Soils
B135: =Model!$H$606 -> Woodland | C135: =Model!$I$606 -> LndWdl. | E135: 0 | F135: 0 | G135: 0 | H135: 0 | I135: 0 | J135: 0 | K135: 0 | L135: 0 | M135: 0 | N135: 0 | O135: 0 | P135: 0 | Q135: 0 | R135: 0 | S135: 0 | T135: 0 | U135: 0 | V135: 0 | W135: 0 | X135: 0 | Y135: 0 | Z135: 0 | AA135: 0 | AB135: 0 | AC135: 0 | AD135: 0 | AE135: 0 | AF135: 0 | AG135: 0 | AH135: 0 | AI135: 0 | AJ135: 0 | AK135: 0 | AL135: 0 | AM135: 0 | AN135: 0 | AP135: =+SUMIFS(Em.GHG.LndWdl., Prd., $AP$3) -> -100.0060167 | AQ135: =+SUMIFS(Em.CO2.LndWdl., Prd., $AQ$3) -> -100.0060167 | AR135: 0 | AS135: 0 | AT135: 0 | AV135: 0 | AW135: 0 | AX135: 0 | AY135: 0 | AZ135: 0 | BA135: 0 | BR135: =Results!$E$274 -> Agriculture & Land Use | BS135: Soils
B136: =Model!$H$606&Model!$H$780 -> Woodland Dry Waste | C136: =Model!$I$606&Model!$I$779 -> LndWdl.rBiS. | E136: 0 | F136: 0 | G136: 0 | H136: 0 | I136: 0 | J136: 0 | K136: 0 | L136: 0 | M136: 0 | N136: 0 | O136: 0 | P136: 0 | Q136: 0 | R136: 0 | S136: 0 | T136: 0 | U136: 0 | V136: 0 | W136: 0 | X136: 0 | Y136: 0 | Z136: 0 | AA136: 0 | AB136: 0 | AC136: 0 | AD136: 0 | AE136: 0 | AF136: 0 | AG136: 0 | AH136: 0 | AI136: 0 | AJ136: 0 | AK136: 0 | AL136: 0 | AM136: 0 | AN136: 0 | AP136: =+SUMIFS(Em.GHG.LndWdl.rBiS., Prd., $AP$3) -> 0.02433388334 | AQ136: =+SUMIFS(Em.CO2.LndWdl.rBiS., Prd., $AP$3) -> 0.02372927443 | AR136: =+SUMIFS(Em.CH4.LndWdl.rBiS., Prd., $AR$3) -> 9.751756617e-06 | AS136: =+SUMIFS(Em.N2O.LndWdl.rBiS., Prd., $AS$3) -> 0.0005948571536 | AT136: 0 | AV136: 0 | AW136: 0 | AX136: 0 | AY136: 0 | AZ136: 0 | BA136: 0 | BR136: =Results!$E$274 -> Agriculture & Land Use | BS136: Soils
B137: =Model!$H$607 -> Bioenergy Land | C137: =Model!$I$607 -> LndBi. | E137: 0 | F137: 0 | G137: 0 | H137: 0 | I137: 0 | J137: 0 | K137: 0 | L137: 0 | M137: 0 | N137: 0 | O137: 0 | P137: 0 | Q137: 0 | R137: =+SUMIFS(EB.LndBi.rBiS., Prd., $R$3) -> 89.25 | S137: 0 | T137: 0 | U137: 0 | V137: 0 | W137: 0 | X137: 0 | Y137: 0 | Z137: 0 | AA137: 0 | AB137: 0 | AC137: 0 | AD137: 0 | AE137: 0 | AF137: 0 | AG137: 0 | AH137: 0 | AI137: 0 | AJ137: 0 | AK137: 0 | AL137: 0 | AM137: 89.25 | AN137: 0 | AP137: 0 | AQ137: 0 | AR137: 0 | AS137: 0 | AT137: 0 | AV137: 0 | AW137: 0 | AX137: 0 | AY137: 0 | AZ137: 0 | BA137: 0 | BR137: =Results!$E$274 -> Agriculture & Land Use | BS137: Soils
B138: =Model!$H$607&Model!$H$779 -> Bioenergy LandBioenergy Solid | C138: =Model!$I$607&Model!$I$779 -> LndBi.rBiS. | E138: 0 | F138: 0 | G138: 0 | H138: 0 | I138: 0 | J138: 0 | K138: 0 | L138: 0 | M138: 0 | N138: 0 | O138: 0 | P138: 0 | Q138: 0 | R138: 0 | S138: 0 | T138: 0 | U138: 0 | V138: 0 | W138: 0 | X138: 0 | Y138: 0 | Z138: 0 | AA138: 0 | AB138: 0 | AC138: 0 | AD138: 0 | AE138: 0 | AF138: 0 | AG138: 0 | AH138: 0 | AI138: 0 | AJ138: 0 | AK138: 0 | AL138: 0 | AM138: 0 | AN138: 0 | AP138: =+SUMIFS(Em.GHG.LndBi.rBiS., Prd., $AP$3) -> 6.020612026 | AQ138: =+SUMIFS(Em.CO2.LndBi.rBiS., Prd., $AQ$3) -> 5.003235583 | AR138: =+SUMIFS(Em.CH4.LndBi.rBiS., Prd., $AR$3) -> 0.03216800314 | AS138: =+SUMIFS(Em.N2O.LndBi.rBiS., Prd., $AS$3) -> 0.9852084393 | AT138: 0 | AV138: 0 | AW138: 0 | AX138: 0 | AY138: 0 | AZ138: 0 | BA138: 0 | BR138: =Results!$E$274 -> Agriculture & Land Use | BS138: Soils
B139: =Model!$H$608 -> Arable Land for Food | C139: =Model!$I$608 -> LndArbl. | E139: 0 | F139: 0 | G139: 0 | H139: 0 | I139: 0 | J139: 0 | K139: 0 | L139: 0 | M139: 0 | N139: 0 | O139: 0 | P139: 0 | Q139: 0 | R139: =+SUMIFS(EB.LndArbl.rBiS., Prd., $R$3) -> 8.13452919 | S139: 0 | T139: 0 | U139: 0 | V139: 0 | W139: 0 | X139: 0 | Y139: 0 | Z139: 0 | AA139: 0 | AB139: 0 | AC139: 0 | AD139: 0 | AE139: 0 | AF139: 0 | AG139: 0 | AH139: 0 | AI139: 0 | AJ139: 0 | AK139: 0 | AL139: 0 | AM139: 8.13452919 | AN139: 0 | AP139: =+SUMIFS(Em.GHG.LndArbl., Prd., $AP$3) -> 0 | AQ139: =+SUMIFS(Em.CO2.LndArbl., Prd., $AQ$3) -> 0 | AR139: 0 | AS139: 0 | AT139: 0 | AV139: 0 | AW139: 0 | AX139: 0 | AY139: 0 | AZ139: 0 | BA139: 0 | BR139: =Results!$E$274 -> Agriculture & Land Use | BS139: Soils
B140: =Model!$H$608&Model!$H$780 -> Arable Land for Food Dry Waste | C140: =Model!$I$608&Model!$I$779 -> LndArbl.rBiS. | E140: 0 | F140: 0 | G140: 0 | H140: 0 | I140: 0 | J140: 0 | K140: 0 | L140: 0 | M140: 0 | N140: 0 | O140: 0 | P140: 0 | Q140: 0 | R140: 0 | S140: 0 | T140: 0 | U140: 0 | V140: 0 | W140: 0 | X140: 0 | Y140: 0 | Z140: 0 | AA140: 0 | AB140: 0 | AC140: 0 | AD140: 0 | AE140: 0 | AF140: 0 | AG140: 0 | AH140: 0 | AI140: 0 | AJ140: 0 | AK140: 0 | AL140: 0 | AM140: 0 | AN140: 0 | AP140: =+SUMIFS(Em.GHG.LndArbl.rBiS., Prd., $AP$3) -> 0.04019075644 | AQ140: =+SUMIFS(Em.CO2.LndArbl.rBiS., Prd., $AQ$3) -> 0.03919216164 | AR140: =+SUMIFS(Em.CH4.LndArbl.rBiS., Prd., $AR$3) -> 1.61063678e-05 | AS140: =+SUMIFS(Em.N2O.LndArbl.rBiS., Prd., $AS$3) -> 0.0009824884356 | AT140: 0 | AV140: 0 | AW140: 0 | AX140: 0 | AY140: 0 | AZ140: 0 | BA140: 0 | BR140: =Results!$E$274 -> Agriculture & Land Use | BS140: Soils
B141: =Model!$H$609 -> Livestock Grazing Land | C141: =Model!$I$609 -> LndLivG. | E141: 0 | F141: 0 | G141: 0 | H141: 0 | I141: 0 | J141: 0 | K141: 0 | L141: 0 | M141: 0 | N141: 0 | O141: 0 | P141: 0 | Q141: 0 | R141: 0 | S141: 0 | T141: 0 | U141: 0 | V141: 0 | W141: 0 | X141: 0 | Y141: 0 | Z141: 0 | AA141: 0 | AB141: 0 | AC141: 0 | AD141: 0 | AE141: 0 | AF141: 0 | AG141: 0 | AH141: 0 | AI141: 0 | AJ141: 0 | AK141: 0 | AL141: 0 | AM141: 0 | AN141: 0 | AP141: =+SUMIFS(Em.GHG.LndLivG., Prd., $AP$3) -> 0 | AQ141: =+SUMIFS(Em.CO2.LndLivG., Prd., $AQ$3) -> 0 | AR141: 0 | AS141: 0 | AT141: 0 | AV141: 0 | AW141: 0 | AX141: 0 | AY141: 0 | AZ141: 0 | BA141: 0 | BR141: =Results!$E$274 -> Agriculture & Land Use | BS141: Soils
B142: =Model!$H$610 -> Settlement Land | C142: =Model!$I$610 -> LndSet. | E142: 0 | F142: 0 | G142: 0 | H142: 0 | I142: 0 | J142: 0 | K142: 0 | L142: 0 | M142: 0 | N142: 0 | O142: 0 | P142: 0 | Q142: 0 | R142: 0 | S142: 0 | T142: 0 | U142: 0 | V142: 0 | W142: 0 | X142: 0 | Y142: 0 | Z142: 0 | AA142: 0 | AB142: 0 | AC142: 0 | AD142: 0 | AE142: 0 | AF142: 0 | AG142: 0 | AH142: 0 | AI142: 0 | AJ142: 0 | AK142: 0 | AL142: 0 | AM142: 0 | AN142: 0 | AP142: =+SUMIFS(Em.GHG.LndSet., Prd., $AP$3) -> 0 | AQ142: =+SUMIFS(Em.CO2.LndSet., Prd., $AQ$3) -> 0 | AR142: 0 | AS142: 0 | AT142: 0 | AV142: 0 | AW142: 0 | AX142: 0 | AY142: 0 | AZ142: 0 | BA142: 0 | BR142: =Results!$E$274 -> Agriculture & Land Use | BS142: Soils
B143: =Model!$H$611 -> Other Land | C143: =Model!$I$611 -> LndOth. | E143: 0 | F143: 0 | G143: 0 | H143: 0 | I143: 0 | J143: 0 | K143: 0 | L143: 0 | M143: 0 | N143: 0 | O143: 0 | P143: 0 | Q143: 0 | R143: 0 | S143: 0 | T143: 0 | U143: 0 | V143: 0 | W143: 0 | X143: 0 | Y143: 0 | Z143: 0 | AA143: 0 | AB143: 0 | AC143: 0 | AD143: 0 | AE143: 0 | AF143: 0 | AG143: 0 | AH143: 0 | AI143: 0 | AJ143: 0 | AK143: 0 | AL143: 0 | AM143: 0 | AN143: 0 | AP143: =+SUMIFS(Em.GHG.LndOth., Prd., $AP$3) -> 0 | AQ143: =+SUMIFS(Em.CO2.LndOth., Prd., $AQ$3) -> 0 | AR143: 0 | AS143: 0 | AT143: 0 | AV143: 0 | AW143: 0 | AX143: 0 | AY143: 0 | AZ143: 0 | BA143: 0 | BR143: =Results!$E$274 -> Agriculture & Land Use | BS143: Soils
B144: =Model!$H$620 -> Soil Management | C144: =Model!$I$620 -> SoilMng. | E144: 0 | F144: 0 | G144: 0 | H144: 0 | I144: 0 | J144: 0 | K144: 0 | L144: 0 | M144: 0 | N144: 0 | O144: 0 | P144: 0 | Q144: 0 | R144: 0 | S144: 0 | T144: 0 | U144: 0 | V144: 0 | W144: 0 | X144: 0 | Y144: 0 | Z144: 0 | AA144: 0 | AB144: 0 | AC144: 0 | AD144: 0 | AE144: 0 | AF144: 0 | AG144: 0 | AH144: 0 | AI144: 0 | AJ144: 0 | AK144: 0 | AL144: 0 | AM144: 0 | AN144: 0 | AP144: =+SUMIFS(Em.GHG.SoilMng., Prd., $AP$3) -> 5.8408 | AQ144: 0 | AR144: 0 | AS144: =+SUMIFS(Em.N2O.SoilMng., Prd., $AS$3) -> 5.8408 | AT144: 0 | AV144: 0 | AW144: 0 | AX144: 0 | AY144: 0 | AZ144: 0 | BA144: 0 | BR144: =Results!$E$274 -> Agriculture & Land Use | BS144: Soils
B145: =Model!$H$618 -> Manure Management | C145: =Model!$I$618 -> MnrMng. | E145: 0 | F145: 0 | G145: 0 | H145: 0 | I145: 0 | J145: 0 | K145: 0 | L145: 0 | M145: 0 | N145: 0 | O145: 0 | P145: 0 | Q145: 0 | R145: 0 | S145: 0 | T145: =+SUMIFS(EB.MnrMng.rWstW., Prd., $T$3) -> 12.83139918 | U145: 0 | V145: 0 | W145: 0 | X145: 0 | Y145: 0 | Z145: 0 | AA145: 0 | AB145: 0 | AC145: 0 | AD145: 0 | AE145: 0 | AF145: 0 | AG145: 0 | AH145: 0 | AI145: 0 | AJ145: 0 | AK145: 0 | AL145: 0 | AM145: 12.83139918 | AN145: 0 | AP145: =+SUMIFS(Em.GHG.MnrMng., Prd., $AP$3) -> 0.3493284284 | AQ145: 0 | AR145: =+SUMIFS(Em.CH4.MnrMng., Prd., $AR$3) -> 0.3493284284 | AS145: 0 | AT145: 0 | AV145: 0 | AW145: 0 | AX145: 0 | AY145: 0 | AZ145: 0 | BA145: 0 | BR145: =Results!$E$274 -> Agriculture & Land Use | BS145: Manure
B146: =Model!$H$618&Model!$H$781 -> Manure Management Wet Waste | C146: =Model!$I$618&Model!$I$781 -> MnrMng.rWstW. | E146: 0 | F146: 0 | G146: 0 | H146: 0 | I146: 0 | J146: 0 | K146: 0 | L146: 0 | M146: 0 | N146: 0 | O146: 0 | P146: 0 | Q146: 0 | R146: 0 | S146: 0 | T146: 0 | U146: 0 | V146: 0 | W146: 0 | X146: 0 | Y146: 0 | Z146: 0 | AA146: 0 | AB146: 0 | AC146: 0 | AD146: 0 | AE146: 0 | AF146: 0 | AG146: 0 | AH146: 0 | AI146: 0 | AJ146: 0 | AK146: 0 | AL146: 0 | AM146: 0 | AN146: 0 | AP146: =+SUMIFS(Em.GHG.MnrMng.rWstW., Prd., $AP$3) -> 0 | AQ146: =+SUMIFS(Em.CO2.MnrMng.rWstW., Prd., $AQ$3) -> 0 | AR146: =+SUMIFS(Em.CH4.MnrMng.rWstW., Prd., $AR$3) -> 0 | AS146: =+SUMIFS(Em.N2O.MnrMng.rWstW., Prd., $AS$3) -> 0 | AT146: 0 | AV146: 0 | AW146: 0 | AX146: 0 | AY146: 0 | AZ146: 0 | BA146: 0 | BR146: =Results!$E$274 -> Agriculture & Land Use | BS146: Manure
B147: =Model!$H$619 -> Enteric Fermentation | C147: =Model!$I$619 -> EntFrm. | E147: 0 | F147: 0 | G147: 0 | H147: 0 | I147: 0 | J147: 0 | K147: 0 | L147: 0 | M147: 0 | N147: 0 | O147: 0 | P147: 0 | Q147: 0 | R147: 0 | S147: 0 | T147: 0 | U147: 0 | V147: 0 | W147: 0 | X147: 0 | Y147: 0 | Z147: 0 | AA147: 0 | AB147: 0 | AC147: 0 | AD147: 0 | AE147: 0 | AF147: 0 | AG147: 0 | AH147: 0 | AI147: 0 | AJ147: 0 | AK147: 0 | AL147: 0 | AM147: 0 | AN147: 0 | AP147: =+SUMIFS(Em.GHG.EntFrm., Prd., $AP$3) -> 9.999448362 | AQ147: 0 | AR147: =+SUMIFS(Em.CH4.EntFrm., Prd., $AR$3) -> 9.999448362 | AS147: 0 | AT147: 0 | AV147: 0 | AW147: 0 | AX147: 0 | AY147: 0 | AZ147: 0 | BA147: 0 | BR147: =Results!$E$274 -> Agriculture & Land Use | BS147: Enteric
B148: =Model!$H$615 -> Livestock - Poultry | C148: =Model!$I$615 -> LivPol. | E148: 0 | F148: 0 | G148: 0 | H148: 0 | I148: 0 | J148: 0 | K148: 0 | L148: 0 | M148: 0 | N148: 0 | O148: 0 | P148: 0 | Q148: 0 | R148: 0 | S148: 0 | T148: 0 | U148: 0 | V148: 0 | W148: 0 | X148: 0 | Y148: 0 | Z148: 0 | AA148: 0 | AB148: 0 | AC148: 0 | AD148: 0 | AE148: 0 | AF148: 0 | AG148: 0 | AH148: 0 | AI148: 0 | AJ148: 0 | AK148: 0 | AL148: 0 | AM148: 0 | AN148: 0 | AP148: 0 | AQ148: 0 | AR148: 0 | AS148: 0 | AT148: 0 | AV148: =+SUMIFS(Em.PM10.LivPol., Prd., $AV$3) -> 15095792.88 | AW148: 0 | AX148: 0 | AY148: 0 | AZ148: 0 | BA148: 0 | BR148: =Results!$E$274 -> Agriculture & Land Use | BS148: Manure
B149: =Model!$H$616 -> Livestock - Cattle | C149: =Model!$I$616 -> LivCat. | E149: 0 | F149: 0 | G149: 0 | H149: 0 | I149: 0 | J149: 0 | K149: 0 | L149: 0 | M149: 0 | N149: 0 | O149: 0 | P149: 0 | Q149: 0 | R149: 0 | S149: 0 | T149: 0 | U149: 0 | V149: 0 | W149: 0 | X149: 0 | Y149: 0 | Z149: 0 | AA149: 0 | AB149: 0 | AC149: 0 | AD149: 0 | AE149: 0 | AF149: 0 | AG149: 0 | AH149: 0 | AI149: 0 | AJ149: 0 | AK149: 0 | AL149: 0 | AM149: 0 | AN149: 0 | AP149: 0 | AQ149: 0 | AR149: 0 | AS149: 0 | AT149: 0 | AV149: =+SUMIFS(Em.PM10.LivCat., Prd., $AV$3) -> 7499999.25 | AW149: 0 | AX149: 0 | AY149: 0 | AZ149: 0 | BA149: 0 | BR149: =Results!$E$274 -> Agriculture & Land Use | BS149: Manure
B150: =Model!$H$617 -> Livestock - Other | C150: =Model!$I$617 -> LivOth. | E150: 0 | F150: 0 | G150: 0 | H150: 0 | I150: 0 | J150: 0 | K150: 0 | L150: 0 | M150: 0 | N150: 0 | O150: 0 | P150: 0 | Q150: 0 | R150: 0 | S150: 0 | T150: 0 | U150: 0 | V150: 0 | W150: 0 | X150: 0 | Y150: 0 | Z150: 0 | AA150: 0 | AB150: 0 | AC150: 0 | AD150: 0 | AE150: 0 | AF150: 0 | AG150: 0 | AH150: 0 | AI150: 0 | AJ150: 0 | AK150: 0 | AL150: 0 | AM150: 0 | AN150: 0 | AP150: 0 | AQ150: 0 | AR150: 0 | AS150: 0 | AT150: 0 | AV150: =+SUMIFS(Em.PM10.LivOth., Prd., $AV$3) -> 7501059.92 | AW150: 0 | AX150: 0 | AY150: 0 | AZ150: 0 | BA150: 0 | BR150: =Results!$E$274 -> Agriculture & Land Use | BS150: Manure
E151: 0 | F151: 0 | G151: 0 | H151: 0 | I151: 0 | J151: 0 | K151: 0 | L151: 0 | M151: 0 | N151: 0 | O151: 0 | P151: 0 | Q151: 0 | R151: 0 | S151: 0 | T151: 0 | U151: 0 | V151: 0 | W151: 0 | X151: 0 | Y151: 0 | Z151: 0 | AA151: 0 | AB151: 0 | AC151: 0 | AD151: 0 | AE151: 0 | AF151: 0 | AG151: 0 | AH151: 0 | AI151: 0 | AJ151: 0 | AK151: 0
B152: =Model!$H$639 -> Waste Diverted to Energy | C152: =Model!$I$639 -> bcWstToE. | E152: 0 | F152: 0 | G152: 0 | H152: 0 | I152: 0 | J152: 0 | K152: 0 | L152: 0 | M152: 0 | N152: 0 | O152: 0 | P152: 0 | Q152: 0 | R152: 0 | S152: =+SUMIFS(EB.bcWstToE.rWstD., Prd., $S$3) -> 0.0002740400527 | T152: =+SUMIFS(EB.bcWstToE.rWstW., Prd., $T$3) -> 0.0005406608042 | U152: =+SUMIFS(EB.bcWstToE.rUCO., Prd., $U$3) -> 0.08928011984 | V152: =+SUMIFS(EB.bcWstToE.rLndFG., Prd., $V$3) -> 32.94400286 | W152: 0 | X152: 0 | Y152: 0 | Z152: 0 | AA152: 0 | AB152: 0 | AC152: 0 | AD152: 0 | AE152: 0 | AF152: 0 | AG152: 0 | AH152: 0 | AI152: 0 | AJ152: 0 | AK152: 0 | AL152: =SUM(E152:N152) -> 0 | AM152: =SUM(O152:Z152) -> 33.03409768 | AN152: =SUM(AA152:AE152) -> 0 | AP152: 0 | AQ152: 0 | AR152: 0 | AS152: 0 | AT152: 0 | AV152: 0 | AW152: 0 | AX152: 0 | AY152: 0 | AZ152: 0 | BA152: 0 | BR152: =Results!$E$273 -> Waste Management | BS152: Bio&Waste
B153: =Model!$H$630 -> Biomass Pelletisation Plant | C153: =Model!$I$630 -> bcBS. | E153: 0 | F153: 0 | G153: =+SUMIFS(EB.bcBS.fBiS., Prd., $G$3) -> 7.67295249 | H153: 0 | I153: 0 | J153: 0 | K153: 0 | L153: 0 | M153: 0 | N153: 0 | O153: 0 | P153: 0 | Q153: 0 | R153: =+SUMIFS(EB.bcBS.rBiS., Prd., $R$3) -> -9.568171755 | S153: 0 | T153: 0 | U153: 0 | V153: 0 | W153: 0 | X153: 0 | Y153: 0 | Z153: 0 | AA153: =+SUMIFS(EB.bcBS.lsCnv., Prd., $AA$3) -> 1.895219265 | AB153: 0 | AC153: 0 | AD153: 0 | AE153: 0 | AF153: 0 | AG153: 0 | AH153: 0 | AI153: 0 | AJ153: 0 | AK153: 0 | AL153: 7.67295249 | AM153: -9.568171755 | AN153: 1.895219265 | AP153: =+SUMIFS(Em.GHG.bcBS., Prd., $AP$3) -> 0.063250948 | AQ153: =+SUMIFS(Em.CO2.bcBS., Prd., $AQ$3) -> 0 | AR153: =+SUMIFS(Em.CH4.bcBS., Prd., $AR$3) -> 0 | AS153: =+SUMIFS(Em.N2O.bcBS., Prd., $AS$3) -> 0.063250948 | AT153: 0 | AV153: =+SUMIFS(Em.PM10.bcBS., Prd., $AV$3) -> 34445383.87 | AW153: =+SUMIFS(Em.NOX.bcBS., Prd., $AW$3) -> 34445383.87 | AX153: =+SUMIFS(Em.SO2.bcBS., Prd., $AX$3) -> 34445383.87 | AY153: =+SUMIFS(Em.NMVOC.bcBS., Prd., $AY$3) -> 34445383.87 | AZ153: =+SUMIFS(Em.PM2.5.bcBS., Prd., $AZ$3) -> 34445383.87 | BA153: =+SUMIFS(Em.NH3.bcBS., Prd., $BA$3) -> 34445383.87 | BR153: =Results!$E$272 -> Other Energy Supply | BS153: Bio&Waste
B154: =Model!$H$645 -> Landfill Gas Collection | C154: =Model!$I$645 -> bcLndFGC. | E154: 0 | F154: 0 | G154: 0 | H154: 0 | I154: =+SUMIFS(EB.bcLndFGC.fBiG., Prd., $I$3) -> 0 | J154: 0 | K154: 0 | L154: 0 | M154: 0 | N154: 0 | O154: 0 | P154: 0 | Q154: 0 | R154: 0 | S154: 0 | T154: 0 | U154: 0 | V154: =+SUMIFS(EB.bcLndFGC.rLndFG., Prd., $V$3) -> 0 | W154: 0 | X154: 0 | Y154: 0 | Z154: 0 | AA154: =+SUMIFS(EB.bcLndFGC.lsCnv., Prd., $AA$3) -> 0 | AB154: 0 | AC154: 0 | AD154: 0 | AE154: 0 | AF154: 0 | AG154: 0 | AH154: 0 | AI154: 0 | AJ154: 0 | AK154: 0 | AL154: 0 | AM154: 0 | AN154: 0 | AP154: =+SUMIFS(Em.GHG.bcLndFGC., Prd., $AP$3) -> 0 | AQ154: =+SUMIFS(Em.CO2.bcLndFGC., Prd., $AQ$3) -> 0 | AR154: =+SUMIFS(Em.CH4.bcLndFGC., Prd., $AR$3) -> 0 | AS154: =+SUMIFS(Em.N2O.bcLndFGC., Prd., $AS$3) -> 0 | AT154: 0 | AV154: =+SUMIFS(Em.PM10.bcLndFGC., Prd., $AV$3) -> 0 | AW154: =+SUMIFS(Em.NOX.bcLndFGC., Prd., $AW$3) -> 0 | AX154: =+SUMIFS(Em.SO2.bcLndFGC., Prd., $AX$3) -> 0 | AY154: =+SUMIFS(Em.NMVOC.bcLndFGC., Prd., $AY$3) -> 0 | AZ154: =+SUMIFS(Em.PM2.5.bcLndFGC., Prd., $AZ$3) -> 0 | BA154: =+SUMIFS(Em.NH3.bcLndFGC., Prd., $BA$3) -> 0 | BR154: =Results!$E$272 -> Other Energy Supply | BS154: Bio&Waste
B155: =Model!$H$646 -> Waste Water | C155: =Model!$I$646 -> bcWW. | E155: 0 | F155: 0 | G155: 0 | H155: 0 | I155: 0 | J155: 0 | K155: 0 | L155: 0 | M155: 0 | N155: 0 | O155: 0 | P155: 0 | Q155: 0 | R155: 0 | S155: 0 | T155: 0 | U155: 0 | V155: 0 | W155: 0 | X155: 0 | Y155: 0 | Z155: 0 | AA155: 0 | AB155: 0 | AC155: 0 | AD155: 0 | AE155: 0 | AF155: 0 | AG155: 0 | AH155: 0 | AI155: 0 | AJ155: 0 | AK155: 0 | AL155: 0 | AM155: 0 | AN155: 0 | AP155: =+SUMIFS(Em.GHG.bcLndFGRel., Prd., $AP$3) -> 15.28223472 | AQ155: 0 | AR155: =+SUMIFS(Em.CH4.bcLndFGRel., Prd., $AR$3) -> 15.28223472 | AS155: 0 | AT155: 0 | AV155: =+SUMIFS(Em.PM10.bcLndFGRel., Prd., $AV$3) -> 611288.7774 | AW155: =+SUMIFS(Em.NOX.bcLndFGRel., Prd., $AW$3) -> 611288.7774 | AX155: =+SUMIFS(Em.SO2.bcLndFGRel., Prd., $AX$3) -> 611288.7774 | AY155: =+SUMIFS(Em.NMVOC.bcLndFGRel., Prd., $AY$3) -> 611288.7774 | AZ155: =+SUMIFS(Em.PM2.5.bcLndFGRel., Prd., $AZ$3) -> 611288.7774 | BA155: =+SUMIFS(Em.NH3.bcLndFGRel., Prd., $BA$3) -> 611288.7774 | BR155: =Results!$E$273 -> Waste Management | BS155: Bio&Waste
B156: =Model!$H$637 -> Anaerobic Digestion Plant | C156: =Model!$I$637 -> bcAD. | E156: 0 | F156: 0 | G156: 0 | H156: 0 | I156: =+SUMIFS(EB.bcAD.fBiG., Prd., $I$3) -> 0 | J156: 0 | K156: 0 | L156: 0 | M156: 0 | N156: 0 | O156: 0 | P156: 0 | Q156: 0 | R156: 0 | S156: 0 | T156: =+SUMIFS(EB.bcAD.rWstW., Prd., $T$3) -> 0 | U156: 0 | V156: 0 | W156: 0 | X156: 0 | Y156: 0 | Z156: 0 | AA156: =+SUMIFS(EB.bcAD.lsCnv., Prd., $AA$3) -> 0 | AB156: 0 | AC156: 0 | AD156: 0 | AE156: 0 | AF156: 0 | AG156: 0 | AH156: 0 | AI156: 0 | AJ156: 0 | AK156: 0 | AL156: 0 | AM156: 0 | AN156: 0 | AP156: =+SUMIFS(Em.GHG.bcAD., Prd., $AP$3) -> 0 | AQ156: =+SUMIFS(Em.CO2.bcAD., Prd., $AQ$3) -> 0 | AR156: =+SUMIFS(Em.CH4.bcAD., Prd., $AR$3) -> 0 | AS156: =+SUMIFS(Em.N2O.bcAD., Prd., $AS$3) -> 0 | AT156: 0 | AV156: =+SUMIFS(Em.PM10.bcAD., Prd., $AV$3) -> 0 | AW156: =+SUMIFS(Em.NOX.bcAD., Prd., $AW$3) -> 0 | AX156: =+SUMIFS(Em.SO2.bcAD., Prd., $AX$3) -> 0 | AY156: =+SUMIFS(Em.NMVOC.bcAD., Prd., $AY$3) -> 0 | AZ156: =+SUMIFS(Em.PM2.5.bcAD., Prd., $AZ$3) -> 0 | BA156: =+SUMIFS(Em.NH3.bcAD., Prd., $BA$3) -> 0 | BR156: =Results!$E$272 -> Other Energy Supply | BS156: Bio&Waste
B157: =Model!$H$632 -> Biomass Gasification Plant (BioSNG) | C157: =Model!$I$632 -> bcBG. | E157: 0 | F157: 0 | G157: 0 | H157: 0 | I157: =+SUMIFS(EB.bcBG.fBiG., Prd., $I$3) -> 0 | J157: 0 | K157: 0 | L157: 0 | M157: 0 | N157: 0 | O157: 0 | P157: 0 | Q157: 0 | R157: =+SUMIFS(EB.bcBG.rBiS., Prd., $R$3) -> 0 | S157: 0 | T157: 0 | U157: 0 | V157: 0 | W157: 0 | X157: 0 | Y157: 0 | Z157: 0 | AA157: =+SUMIFS(EB.bcBG.lsCnv., Prd., $AA$3) -> 0 | AB157: 0 | AC157: 0 | AD157: 0 | AE157: 0 | AF157: 0 | AG157: 0 | AH157: 0 | AI157: 0 | AJ157: 0 | AK157: 0 | AL157: 0 | AM157: 0 | AN157: 0 | AP157: =+SUMIFS(Em.GHG.bcBG., Prd., $AP$3) -> 0 | AQ157: =+SUMIFS(Em.CO2.bcBG., Prd., $AQ$3) -> 0 | AR157: =+SUMIFS(Em.CH4.bcBG., Prd., $AR$3) -> 0 | AS157: =+SUMIFS(Em.N2O.bcBG., Prd., $AS$3) -> 0 | AT157: 0 | AV157: =+SUMIFS(Em.PM10.bcBG., Prd., $AV$3) -> 0 | AW157: =+SUMIFS(Em.NOX.bcBG., Prd., $AW$3) -> 0 | AX157: =+SUMIFS(Em.SO2.bcBG., Prd., $AX$3) -> 0 | AY157: =+SUMIFS(Em.NMVOC.bcBG., Prd., $AY$3) -> 0 | AZ157: =+SUMIFS(Em.PM2.5.bcBG., Prd., $AZ$3) -> 0 | BA157: =+SUMIFS(Em.NH3.bcBG., Prd., $BA$3) -> 0 | BR157: =Results!$E$272 -> Other Energy Supply | BS157: Bio&Waste
B158: =Model!$H$633 -> Biomass Gasification Plant (BioSNG) with CCS | C158: =Model!$I$633 -> bcBGccs. | E158: 0 | F158: 0 | G158: 0 | H158: 0 | I158: =+SUMIFS(EB.bcBGccs.fBiG., Prd., $I$3) -> 0 | J158: 0 | K158: 0 | L158: 0 | M158: 0 | N158: 0 | O158: 0 | P158: 0 | Q158: 0 | R158: =+SUMIFS(EB.bcBGccs.rBiS., Prd., $R$3) -> 0 | S158: 0 | T158: 0 | U158: 0 | V158: 0 | W158: 0 | X158: 0 | Y158: 0 | Z158: 0 | AA158: =+SUMIFS(EB.bcBGccs.lsCnv., Prd., $AA$3) -> 0 | AB158: 0 | AC158: 0 | AD158: 0 | AE158: 0 | AF158: 0 | AG158: 0 | AH158: 0 | AI158: 0 | AJ158: 0 | AK158: 0 | AL158: 0 | AM158: 0 | AN158: 0 | AP158: =+SUMIFS(Em.GHG.bcBGccs., Prd., $AP$3) -> 0 | AQ158: =+SUMIFS(Em.CO2.bcBGccs., Prd., $AQ$3) -> 0 | AR158: =+SUMIFS(Em.CH4.bcBGccs., Prd., $AR$3) -> 0 | AS158: =+SUMIFS(Em.N2O.bcBGccs., Prd., $AS$3) -> 0 | AT158: 0 | AV158: =+SUMIFS(Em.PM10.bcBGccs., Prd., $AV$3) -> 0 | AW158: =+SUMIFS(Em.NOX.bcBGccs., Prd., $AW$3) -> 0 | AX158: =+SUMIFS(Em.SO2.bcBGccs., Prd., $AX$3) -> 0 | AY158: =+SUMIFS(Em.NMVOC.bcBGccs., Prd., $AY$3) -> 0 | AZ158: =+SUMIFS(Em.PM2.5.bcBGccs., Prd., $AZ$3) -> 0 | BA158: =+SUMIFS(Em.NH3.bcBGccs., Prd., $BA$3) -> 0 | BR158: =Results!$E$272 -> Other Energy Supply | BS158: Bio&Waste
B159: =Model!$H$635 -> Biofuel Plant | C159: =Model!$I$635 -> bcBL. | E159: 0 | F159: 0 | G159: 0 | H159: =+SUMIFS(EB.bcBL.fBiL., Prd., $H$3) -> 20.65085131 | I159: 0 | J159: 0 | K159: 0 | L159: 0 | M159: 0 | N159: 0 | O159: 0 | P159: 0 | Q159: 0 | R159: =+SUMIFS(EB.bcBL.rBiS., Prd., $R$3) -> -24.77744885 | S159: 0 | T159: =+SUMIFS(EB.bcBL.rWstW., Prd., $T$3) -> -12.43756176 | U159: =+SUMIFS(EB.bcBL.rUCO., Prd., $U$3) -> -0.086536176 | V159: 0 | W159: 0 | X159: 0 | Y159: 0 | Z159: 0 | AA159: =+SUMIFS(EB.bcBL.lsCnv., Prd., $AA$3) -> 16.65069548 | AB159: 0 | AC159: 0 | AD159: 0 | AE159: 0 | AF159: 0 | AG159: 0 | AH159: 0 | AI159: 0 | AJ159: 0 | AK159: 0 | AL159: 20.65085131 | AM159: -37.30154679 | AN159: 16.65069548 | AP159: =+SUMIFS(Em.GHG.bcBL., Prd., $AP$3) -> 0.3760106678 | AQ159: =+SUMIFS(Em.CO2.bcBL., Prd., $AQ$3) -> 0 | AR159: =+SUMIFS(Em.CH4.bcBL., Prd., $AR$3) -> 0.003506747421 | AS159: =+SUMIFS(Em.N2O.bcBL., Prd., $AS$3) -> 0.3725039204 | AT159: 0 | AV159: =+SUMIFS(Em.PM10.bcBL., Prd., $AV$3) -> 134285434.2 | AW159: =+SUMIFS(Em.NOX.bcBL., Prd., $AW$3) -> 134285434.2 | AX159: =+SUMIFS(Em.SO2.bcBL., Prd., $AX$3) -> 134285434.2 | AY159: =+SUMIFS(Em.NMVOC.bcBL., Prd., $AY$3) -> 134285434.2 | AZ159: =+SUMIFS(Em.PM2.5.bcBL., Prd., $AZ$3) -> 134285434.2 | BA159: =+SUMIFS(Em.NH3.bcBL., Prd., $BA$3) -> 134285434.2 | BR159: =Results!$E$272 -> Other Energy Supply | BS159: Bio&Waste
B160: =Model!$H$636 -> Biofuel Plant with CCS | C160: =Model!$I$636 -> bcBLccs. | E160: 0 | F160: 0 | G160: 0 | H160: =+SUMIFS(EB.bcBLccs.fBiL., Prd., $H$3) -> 0.6548102633 | I160: 0 | J160: 0 | K160: 0 | L160: 0 | M160: 0 | N160: 0 | O160: 0 | P160: 0 | Q160: 0 | R160: =+SUMIFS(EB.bcBLccs.rBiS., Prd., $R$3) -> -0.7856590301 | S160: 0 | T160: =+SUMIFS(EB.bcBLccs.rWstW., Prd., $T$3) -> -0.39437808 | U160: =+SUMIFS(EB.bcBLccs.rUCO., Prd., $U$3) -> -0.002743943838 | V160: 0 | W160: 0 | X160: 0 | Y160: 0 | Z160: 0 | AA160: =+SUMIFS(EB.bcBLccs.lsCnv., Prd., $AA$3) -> 0.5279707907 | AB160: 0 | AC160: 0 | AD160: 0 | AE160: 0 | AF160: 0 | AG160: 0 | AH160: 0 | AI160: 0 | AJ160: 0 | AK160: 0 | AL160: 0.6548102633 | AM160: -1.182781054 | AN160: 0.5279707907 | AP160: =+SUMIFS(Em.GHG.bcBLccs., Prd., $AP$3) -> -0.09770734814 | AQ160: =+SUMIFS(Em.CO2.bcBLccs., Prd., $AQ$3) -> -0.1096301324 | AR160: =+SUMIFS(Em.CH4.bcBLccs., Prd., $AR$3) -> 0.0001111941667 | AS160: =+SUMIFS(Em.N2O.bcBLccs., Prd., $AS$3) -> 0.01181159007 | AT160: 0 | AV160: =+SUMIFS(Em.PM10.bcBLccs., Prd., $AV$3) -> 4258007.536 | AW160: =+SUMIFS(Em.NOX.bcBLccs., Prd., $AW$3) -> 4258007.536 | AX160: =+SUMIFS(Em.SO2.bcBLccs., Prd., $AX$3) -> 4258007.536 | AY160: =+SUMIFS(Em.NMVOC.bcBLccs., Prd., $AY$3) -> 4258007.536 | AZ160: =+SUMIFS(Em.PM2.5.bcBLccs., Prd., $AZ$3) -> 4258007.536 | BA160: =+SUMIFS(Em.NH3.bcBLccs., Prd., $BA$3) -> 4258007.536 | BR160: =Results!$E$272 -> Other Energy Supply | BS160: Bio&Waste
B161: =Model!$H$641 -> Energy from Waste | C161: =Model!$I$641 -> bcEfW. | E161: =+SUMIFS(EB.bcEfW.fElc., Prd., $E$3) -> 8.129272062 | F161: 0 | G161: 0 | H161: 0 | I161: 0 | J161: 0 | K161: 0 | L161: 0 | M161: 0 | N161: 0 | O161: 0 | P161: 0 | Q161: 0 | R161: 0 | S161: =+SUMIFS(EB.bcEfW.rWstD., Prd., $S$3) -> -0.0002579992609 | T161: =+SUMIFS(EB.bcEfW.rWstW., Prd., $T$3) -> 0 | U161: =+SUMIFS(EB.bcEfW.rUCO., Prd., $U$3) -> 0 | V161: =+SUMIFS(EB.bcEfW.rLndFG., Prd., $V$3) -> -31.0156428 | W161: 0 | X161: 0 | Y161: 0 | Z161: 0 | AA161: =+SUMIFS(EB.bcEfW.lsCnv., Prd., $AA$3) -> 22.88662873 | AB161: 0 | AC161: 0 | AD161: 0 | AE161: 0 | AF161: 0 | AG161: 0 | AH161: 0 | AI161: 0 | AJ161: 0 | AK161: 0 | AL161: 8.129272062 | AM161: -31.01590079 | AN161: 22.88662873 | AP161: =+SUMIFS(Em.GHG.bcEfW., Prd., $AP$3) -> 0.01107987066 | AQ161: =+SUMIFS(Em.CO2.bcEfW., Prd., $AQ$3) -> 3.302316678e-05 | AR161: =+SUMIFS(Em.CH4.bcEfW., Prd., $AR$3) -> 0.008051102527 | AS161: =+SUMIFS(Em.N2O.bcEfW., Prd., $AS$3) -> 0.002995744971 | AT161: 0 | AV161: =+SUMIFS(Em.PM10.bcEfW., Prd., $AV$3) -> 111657131.2 | AW161: =+SUMIFS(Em.NOX.bcEfW., Prd., $AW$3) -> 111657131.2 | AX161: =+SUMIFS(Em.SO2.bcEfW., Prd., $AX$3) -> 111657131.2 | AY161: =+SUMIFS(Em.NMVOC.bcEfW., Prd., $AY$3) -> 111657131.2 | AZ161: =+SUMIFS(Em.PM2.5.bcEfW., Prd., $AZ$3) -> 111657131.2 | BA161: =+SUMIFS(Em.NH3.bcEfW., Prd., $BA$3) -> 111657131.2 | BR161: =Results!$E$270 -> Electricity Generation | BS161: PowerStations
B162: =Model!$H$642 -> Energy from Waste with CCS | C162: =Model!$I$642 -> bcEfWccs. | E162: =+SUMIFS(EB.bcEfWccs.fElc., Prd., $E$3) -> 0.2577681036 | F162: 0 | G162: 0 | H162: 0 | I162: 0 | J162: 0 | K162: 0 | L162: 0 | M162: 0 | N162: 0 | O162: 0 | P162: 0 | Q162: 0 | R162: 0 | S162: =+SUMIFS(EB.bcEfWccs.rWstD., Prd., $S$3) -> -1.604079187e-05 | T162: =+SUMIFS(EB.bcEfWccs.rWstW., Prd., $T$3) -> 0 | U162: =+SUMIFS(EB.bcEfWccs.rUCO., Prd., $U$3) -> 0 | V162: =+SUMIFS(EB.bcEfWccs.rLndFG., Prd., $V$3) -> -1.928360062 | W162: 0 | X162: 0 | Y162: 0 | Z162: 0 | AA162: =+SUMIFS(EB.bcEfWccs.lsCnv., Prd., $AA$3) -> 1.670608 | AB162: 0 | AC162: 0 | AD162: 0 | AE162: 0 | AF162: 0 | AG162: 0 | AH162: 0 | AI162: 0 | AJ162: 0 | AK162: 0 | AL162: 0.2577681036 | AM162: -1.928376103 | AN162: 1.670608 | AP162: =+SUMIFS(Em.GHG.bcEfWccs., Prd., $AP$3) -> -0.601874738 | AQ162: =+SUMIFS(Em.CO2.bcEfWccs., Prd., $AQ$3) -> -0.6025615624 | AR162: =+SUMIFS(Em.CH4.bcEfWccs., Prd., $AR$3) -> 0.0005005675579 | AS162: =+SUMIFS(Em.N2O.bcEfWccs., Prd., $AS$3) -> 0.0001862568187 | AT162: 0 | AV162: =+SUMIFS(Em.PM10.bcEfWccs., Prd., $AV$3) -> 6942147.029 | AW162: =+SUMIFS(Em.NOX.bcEfWccs., Prd., $AW$3) -> 6942147.029 | AX162: =+SUMIFS(Em.SO2.bcEfWccs., Prd., $AX$3) -> 6942147.029 | AY162: =+SUMIFS(Em.NMVOC.bcEfWccs., Prd., $AY$3) -> 6942147.029 | AZ162: =+SUMIFS(Em.PM2.5.bcEfWccs., Prd., $AZ$3) -> 6942147.029 | BA162: =+SUMIFS(Em.NH3.bcEfWccs., Prd., $BA$3) -> 6942147.029 | BR162: =Results!$E$270 -> Electricity Generation | BS162: PowerStations
E163: 0 | F163: 0 | G163: 0 | H163: 0 | I163: 0 | J163: 0 | K163: 0 | L163: 0 | M163: 0 | N163: 0 | O163: 0 | P163: 0 | Q163: 0 | R163: 0 | S163: 0 | T163: 0 | U163: 0 | V163: 0 | W163: 0 | X163: 0 | Y163: 0 | Z163: 0 | AA163: 0 | AB163: 0 | AC163: 0 | AD163: 0 | AE163: 0 | AF163: 0 | AG163: 0 | AH163: 0 | AI163: 0 | AJ163: 0 | AK163: 0
B164: =Model!$H$564 -> H2 prod Bio Gasification with CCS | C164: =Model!$I$564 -> hpBccs. | E164: =+SUMIFS(EB.hpBccs.fElc., Prd., $F$3) -> 0 | F164: =+SUMIFS(EB.hpBccs.fH2G., Prd., $F$3) -> 0 | G164: =+SUMIFS(EB.hpBccs.fBiS., Prd., $G$3) -> 0 | H164: 0 | I164: 0 | J164: 0 | K164: 0 | L164: 0 | M164: 0 | N164: 0 | O164: 0 | P164: 0 | Q164: 0 | R164: 0 | S164: 0 | T164: 0 | U164: 0 | V164: 0 | W164: 0 | X164: 0 | Y164: 0 | Z164: 0 | AA164: =+SUMIFS(EB.hpBccs.lsCnv., Prd., $AA$3) -> 0 | AB164: 0 | AC164: 0 | AD164: 0 | AE164: 0 | AF164: 0 | AG164: 0 | AH164: 0 | AI164: 0 | AJ164: 0 | AK164: 0 | AL164: =SUM(E164:N164) -> 0 | AM164: =SUM(O164:Z164) -> 0 | AN164: =SUM(AA164:AE164) -> 0 | AP164: =+SUMIFS(Em.GHG.hpBccs., Prd., $AP$3) -> 0 | AQ164: =+SUMIFS(Em.CO2.hpBccs., Prd., $AQ$3) -> 0 | AR164: =+SUMIFS(Em.CH4.hpBccs., Prd., $AR$3) -> 0 | AS164: =+SUMIFS(Em.N2O.hpBccs., Prd., $AS$3) -> 0 | AT164: 0 | AV164: =+SUMIFS(Em.PM10.hpBccs., Prd., $AV$3) -> 0 | AW164: =+SUMIFS(Em.NOX.hpBccs., Prd., $AW$3) -> 0 | AX164: =+SUMIFS(Em.SO2.hpBccs., Prd., $AX$3) -> 0 | AY164: =+SUMIFS(Em.NMVOC.hpBccs., Prd., $AY$3) -> 0 | AZ164: =+SUMIFS(Em.PM2.5.hpBccs., Prd., $AZ$3) -> 0 | BA164: =+SUMIFS(Em.NH3.hpBccs., Prd., $BA$3) -> 0 | BR164: =Results!$E$271 -> Hydrogen Production | BS164: H2ProdStor
B165: =Model!$H$565 -> H2 prod SMR with CCS | C165: =Model!$I$565 -> hpGccs. | E165: 0 | F165: =+SUMIFS(EB.hpGccs.fH2G., Prd., $F$3) -> 0 | G165: 0 | H165: 0 | I165: 0 | J165: 0 | K165: 0 | L165: =+SUMIFS(EB.hpGccs.fFsG., Prd., $L$3) -> 0 | M165: 0 | N165: 0 | O165: 0 | P165: 0 | Q165: 0 | R165: 0 | S165: 0 | T165: 0 | U165: 0 | V165: 0 | W165: 0 | X165: 0 | Y165: 0 | Z165: 0 | AA165: =+SUMIFS(EB.hpGccs.lsCnv., Prd., $AA$3) -> 0 | AB165: 0 | AC165: 0 | AD165: 0 | AE165: 0 | AF165: 0 | AG165: 0 | AH165: 0 | AI165: 0 | AJ165: 0 | AK165: 0 | AL165: =SUM(E165:N165) -> 0 | AM165: =SUM(O165:Z165) -> 0 | AN165: =SUM(AA165:AE165) -> 0 | AP165: =+SUMIFS(Em.GHG.hpGccs., Prd., $AP$3) -> 0 | AQ165: =+SUMIFS(Em.CO2.hpGccs., Prd., $AQ$3) -> 0 | AR165: =+SUMIFS(Em.CH4.hpGccs., Prd., $AR$3) -> 0 | AS165: =+SUMIFS(Em.N2O.hpGccs., Prd., $AS$3) -> 0 | AT165: 0 | AV165: =+SUMIFS(Em.PM10.hpGccs., Prd., $AV$3) -> 0 | AW165: =+SUMIFS(Em.NOX.hpGccs., Prd., $AW$3) -> 0 | AX165: =+SUMIFS(Em.SO2.hpGccs., Prd., $AX$3) -> 0 | AY165: =+SUMIFS(Em.NMVOC.hpGccs., Prd., $AY$3) -> 0 | AZ165: =+SUMIFS(Em.PM2.5.hpGccs., Prd., $AZ$3) -> 0 | BA165: =+SUMIFS(Em.NH3.hpGccs., Prd., $BA$3) -> 0 | BR165: =Results!$E$271 -> Hydrogen Production | BS165: H2ProdStor
B166: =Model!$H$567 -> H2 prod Electrolysis | C166: =Model!$I$567 -> hpElc. | E166: =+SUMIFS(EB.hpElc.fElc., Prd., $E$3) -> -2.110720915 | F166: =+SUMIFS(EB.hpElc.fH2G., Prd., $F$3) -> 1.899648823 | G166: 0 | H166: 0 | I166: 0 | J166: 0 | K166: 0 | L166: 0 | M166: 0 | N166: 0 | O166: 0 | P166: 0 | Q166: 0 | R166: 0 | S166: 0 | T166: 0 | U166: 0 | V166: 0 | W166: 0 | X166: 0 | Y166: 0 | Z166: 0 | AA166: =+SUMIFS(EB.hpElc.lsCnv., Prd., $AA$3) -> 0.2110720915 | AB166: 0 | AC166: 0 | AD166: 0 | AE166: 0 | AF166: 0 | AG166: 0 | AH166: 0 | AI166: 0 | AJ166: 0 | AK166: 0 | AL166: =SUM(E166:N166) -> -0.2110720915 | AM166: =SUM(O166:Z166) -> 0 | AN166: =SUM(AA166:AE166) -> 0.2110720915 | AP166: =+SUMIFS(Em.GHG.hpElc., Prd., $AP$3) -> 0 | AQ166: =+SUMIFS(Em.CO2.hpElc., Prd., $AQ$3) -> 0 | AR166: =+SUMIFS(Em.CH4.hpElc., Prd., $AR$3) -> 0 | AS166: =+SUMIFS(Em.N2O.hpElc., Prd., $AS$3) -> 0 | AT166: 0 | AV166: =+SUMIFS(Em.PM10.hpElc., Prd., $AV$3) -> 2110718.804 | AW166: =+SUMIFS(Em.NOX.hpElc., Prd., $AW$3) -> 2110718.804 | AX166: =+SUMIFS(Em.SO2.hpElc., Prd., $AX$3) -> 2110718.804 | AY166: =+SUMIFS(Em.NMVOC.hpElc., Prd., $AY$3) -> 2110718.804 | AZ166: =+SUMIFS(Em.PM2.5.hpElc., Prd., $AZ$3) -> 2110718.804 | BA166: =+SUMIFS(Em.NH3.hpElc., Prd., $BA$3) -> 2110718.804 | BR166: =Results!$E$271 -> Hydrogen Production | BS166: H2ProdStor
B167: =Model!$H$563 -> H2 prod Seasonal Storage | C167: =Model!$I$563 -> hpSsnStr. | E167: 0 | F167: =+SUMIFS(EB.hpSsnStr.fH2G., Prd., $F$3) -> -0.03933222238 | G167: 0 | H167: 0 | I167: 0 | J167: 0 | K167: 0 | L167: 0 | M167: 0 | N167: 0 | O167: 0 | P167: 0 | Q167: 0 | R167: 0 | S167: 0 | T167: 0 | U167: 0 | V167: 0 | W167: 0 | X167: 0 | Y167: 0 | Z167: 0 | AA167: 0 | AB167: 0 | AC167: =+SUMIFS(EB.hpSsnStr.lsH2G., Prd., $AC$3) -> 0.03933222238 | AD167: 0 | AE167: 0 | AF167: 0 | AG167: 0 | AH167: 0 | AI167: 0 | AJ167: 0 | AK167: 0 | AL167: =SUM(E167:N167) -> -0.03933222238 | AM167: =SUM(O167:Z167) -> 0 | AN167: =SUM(AA167:AE167) -> 0.03933222238 | AP167: =+SUMIFS(Em.GHG.hpSsnStr., Prd., $AP$3) -> 0 | AQ167: =+SUMIFS(Em.CO2.hpSsnStr., Prd., $AQ$3) -> 0 | AR167: =+SUMIFS(Em.CH4.hpSsnStr., Prd., $AR$3) -> 0 | AS167: =+SUMIFS(Em.N2O.hpSsnStr., Prd., $AS$3) -> 0 | AT167: 0 | AV167: =+SUMIFS(Em.PM10.hpSsnStr., Prd., $AV$3) -> -39332.18305 | AW167: =+SUMIFS(Em.NOX.hpSsnStr., Prd., $AW$3) -> -39332.18305 | AX167: =+SUMIFS(Em.SO2.hpSsnStr., Prd., $AX$3) -> -39332.18305 | AY167: =+SUMIFS(Em.NMVOC.hpSsnStr., Prd., $AY$3) -> -39332.18305 | AZ167: =+SUMIFS(Em.PM2.5.hpSsnStr., Prd., $AZ$3) -> -39332.18305 | BA167: =+SUMIFS(Em.NH3.hpSsnStr., Prd., $BA$3) -> -39332.18305 | BR167: =Results!$E$271 -> Hydrogen Production | BS167: H2ProdStor
E168: 0 | F168: 0 | G168: 0 | H168: 0 | I168: 0 | J168: 0 | K168: 0 | L168: 0 | M168: 0 | N168: 0 | O168: 0 | P168: 0 | Q168: 0 | R168: 0 | S168: 0 | T168: 0 | U168: 0 | V168: 0 | W168: 0 | X168: 0 | Y168: 0 | Z168: 0 | AA168: 0 | AB168: 0 | AC168: 0 | AD168: 0 | AE168: 0 | AF168: 0 | AG168: 0 | AH168: 0 | AI168: 0 | AJ168: 0 | AK168: 0
B169: =Model!$H$594 -> Electricity - Distribution | C169: =Model!$I$594 -> eDst. | E169: =+SUMIFS(EB.eDst.fElc., Prd., $E$3) -> -27.04044 | F169: 0 | G169: 0 | H169: 0 | I169: 0 | J169: 0 | K169: 0 | L169: 0 | M169: 0 | N169: 0 | O169: 0 | P169: 0 | Q169: 0 | R169: 0 | S169: 0 | T169: 0 | U169: 0 | V169: 0 | W169: 0 | X169: 0 | Y169: 0 | Z169: 0 | AA169: 0 | AB169: =+SUMIFS(EB.eDst.lsDst., Prd., $AB$3) -> 27.04044 | AC169: 0 | AD169: 0 | AE169: 0 | AF169: 0 | AG169: 0 | AH169: 0 | AI169: 0 | AJ169: 0 | AK169: 0 | AL169: =SUM(E169:N169) -> -27.04044 | AM169: =SUM(O169:Z169) -> 0 | AN169: =SUM(AA169:AE169) -> 27.04044 | AP169: =+SUMIFS(Em.GHG.eDst., Prd., $AP$3) -> 0 | AQ169: =+SUMIFS(Em.CO2.eDst., Prd., $AQ$3) -> 0 | AR169: =+SUMIFS(Em.CH4.eDst., Prd., $AR$3) -> 0 | AS169: =+SUMIFS(Em.N2O.eDst., Prd., $AS$3) -> 0 | AT169: 0 | AV169: =+SUMIFS(Em.PM10.eDst., Prd., $AV$3) -> 0 | AW169: =+SUMIFS(Em.NOX.eDst., Prd., $AW$3) -> 0 | AX169: =+SUMIFS(Em.SO2.eDst., Prd., $AX$3) -> 0 | AY169: =+SUMIFS(Em.NMVOC.eDst., Prd., $AY$3) -> 0 | AZ169: =+SUMIFS(Em.PM2.5.eDst., Prd., $AZ$3) -> 0 | BA169: =+SUMIFS(Em.NH3.eDst., Prd., $BA$3) -> 0 | BR169: =Results!$E$270 -> Electricity Generation | BS169: ElectricityDistributionStorage
B170: =Model!$H$595 -> Electricity - Transmission | C170: =Model!$I$595 -> eTms. | E170: =+SUMIFS(EB.eTms.fElc., Prd., $E$3) -> -95.80932722 | F170: 0 | G170: 0 | H170: 0 | I170: 0 | J170: 0 | K170: 0 | L170: 0 | M170: 0 | N170: 0 | O170: 0 | P170: 0 | Q170: 0 | R170: 0 | S170: 0 | T170: 0 | U170: 0 | V170: 0 | W170: 0 | X170: 0 | Y170: 0 | Z170: 0 | AA170: 0 | AB170: =+SUMIFS(EB.eTms.lsDst., Prd., $AB$3) -> 95.80932722 | AC170: 0 | AD170: 0 | AE170: 0 | AF170: 0 | AG170: 0 | AH170: 0 | AI170: 0 | AJ170: 0 | AK170: 0 | AL170: -95.80932722 | AM170: 0 | AN170: 95.80932722 | AP170: =+SUMIFS(Em.GHG.eTms., Prd., $AP$3) -> 0 | AQ170: =+SUMIFS(Em.CO2.eTms., Prd., $AQ$3) -> 0 | AR170: =+SUMIFS(Em.CH4.eTms., Prd., $AR$3) -> 0 | AS170: =+SUMIFS(Em.N2O.eTms., Prd., $AS$3) -> 0 | AT170: 0 | AV170: =+SUMIFS(Em.PM10.eTms., Prd., $AV$3) -> 0 | AW170: =+SUMIFS(Em.NOX.eTms., Prd., $AW$3) -> 0 | AX170: =+SUMIFS(Em.SO2.eTms., Prd., $AX$3) -> 0 | AY170: =+SUMIFS(Em.NMVOC.eTms., Prd., $AY$3) -> 0 | AZ170: =+SUMIFS(Em.PM2.5.eTms., Prd., $AZ$3) -> 0 | BA170: =+SUMIFS(Em.NH3.eTms., Prd., $BA$3) -> 0 | BR170: =Results!$E$270 -> Electricity Generation | BS170: ElectricityDistributionStorage
B171: =Model!$H$596 -> Electricity - Energy Spilt | C171: =Model!$I$596 -> eSPILL. | E171: =+SUMIFS(EB.eSPILL.fElc., Prd., $E$3) -> 0 | F171: 0 | G171: 0 | H171: 0 | I171: 0 | J171: 0 | K171: 0 | L171: 0 | M171: 0 | N171: 0 | O171: 0 | P171: 0 | Q171: 0 | R171: 0 | S171: 0 | T171: 0 | U171: 0 | V171: 0 | W171: 0 | X171: 0 | Y171: 0 | Z171: 0 | AA171: 0 | AB171: =+SUMIFS(EB.eSPILL.lsDst., Prd., $AB$3) -> 0 | AC171: 0 | AD171: 0 | AE171: 0 | AF171: 0 | AG171: 0 | AH171: 0 | AI171: 0 | AJ171: 0 | AK171: 0 | AL171: =SUM(E171:N171) -> 0 | AM171: =SUM(O171:Z171) -> 0 | AN171: =SUM(AA171:AE171) -> 0 | AP171: =+SUMIFS(Em.GHG.eSPILL., Prd., $AP$3) -> 0 | AQ171: =+SUMIFS(Em.CO2.eSPILL., Prd., $AQ$3) -> 0 | AR171: =+SUMIFS(Em.CH4.eSPILL., Prd., $AR$3) -> 0 | AS171: =+SUMIFS(Em.N2O.eSPILL., Prd., $AS$3) -> 0 | AT171: 0 | AV171: =+SUMIFS(Em.PM10.eSpill., Prd., $AV$3) -> 0 | AW171: =+SUMIFS(Em.NOX.eSpill., Prd., $AW$3) -> 0 | AX171: =+SUMIFS(Em.SO2.eSpill., Prd., $AX$3) -> 0 | AY171: =+SUMIFS(Em.NMVOC.eSpill., Prd., $AY$3) -> 0 | AZ171: =+SUMIFS(Em.PM2.5.eSpill., Prd., $AZ$3) -> 0 | BA171: =+SUMIFS(Em.NH3.eSpill., Prd., $BA$3) -> 0 | BR171: =Results!$E$270 -> Electricity Generation | BS171: ElectricityDistributionStorage
B172: =Model!$H$573 -> Electricity - Biomass CCS | C172: =Model!$I$573 -> eBccs. | E172: =+SUMIFS(EB.eBccs.fElc., Prd., $E$3) -> 0 | F172: 0 | G172: =+SUMIFS(EB.eBccs.fBiS., Prd., $G$3) -> 0 | H172: 0 | I172: 0 | J172: 0 | K172: 0 | L172: 0 | M172: 0 | N172: =+SUMIFS(EB.eBccs.fWstH., Prd., $N$3) -> 0 | O172: 0 | P172: 0 | Q172: 0 | R172: 0 | S172: 0 | T172: 0 | U172: 0 | V172: 0 | W172: 0 | X172: 0 | Y172: 0 | Z172: 0 | AA172: =+SUMIFS(EB.eBccs.lsCnv., Prd., $AA$3) -> 0 | AB172: 0 | AC172: 0 | AD172: 0 | AE172: 0 | AF172: 0 | AG172: 0 | AH172: 0 | AI172: 0 | AJ172: 0 | AK172: 0 | AL172: 0 | AM172: 0 | AN172: 0 | AP172: =+SUMIFS(Em.GHG.eBccs., Prd., $AP$3) -> 0 | AQ172: =+SUMIFS(Em.CO2.eBccs., Prd., $AQ$3) -> 0 | AR172: =+SUMIFS(Em.CH4.eBccs., Prd., $AR$3) -> 0 | AS172: =+SUMIFS(Em.N2O.eBccs., Prd., $AS$3) -> 0 | AT172: 0 | AV172: =+SUMIFS(Em.PM10.eBccs., Prd., $AV$3) -> 0 | AW172: =+SUMIFS(Em.NOX.eBccs., Prd., $AW$3) -> 0 | AX172: =+SUMIFS(Em.SO2.eBccs., Prd., $AX$3) -> 0 | AY172: =+SUMIFS(Em.NMVOC.eBccs., Prd., $AY$3) -> 0 | AZ172: =+SUMIFS(Em.PM2.5.eBccs., Prd., $AZ$3) -> 0 | BA172: =+SUMIFS(Em.NH3.eBccs., Prd., $BA$3) -> 0 | BR172: =Results!$E$270 -> Electricity Generation | BS172: PowerStations
B173: =Model!$H$574 -> Electricity - Nuclear | C173: =Model!$I$574 -> eNuc. | E173: =+SUMIFS(EB.eNuc.fElc., Prd., $E$3) -> 5.0000532 | F173: 0 | G173: 0 | H173: 0 | I173: 0 | J173: 0 | K173: 0 | L173: 0 | M173: 0 | N173: =+SUMIFS(EB.eNuc.fWstH., Prd., $N$3) -> 7.628654617 | O173: 0 | P173: 0 | Q173: 0 | R173: 0 | S173: 0 | T173: 0 | U173: 0 | V173: 0 | W173: =+SUMIFS(EB.eNuc.rURN., Prd., $W$3) -> -14.28586629 | X173: 0 | Y173: 0 | Z173: 0 | AA173: =+SUMIFS(EB.eNuc.lsCnv., Prd., $AA$3) -> 1.657158469 | AB173: 0 | AC173: 0 | AD173: 0 | AE173: 0 | AF173: 0 | AG173: 0 | AH173: 0 | AI173: 0 | AJ173: 0 | AK173: 0 | AL173: 12.62870782 | AM173: -14.28586629 | AN173: 1.657158469 | AP173: =+SUMIFS(Em.GHG.eNuc., Prd., $AP$3) -> 0 | AQ173: =+SUMIFS(Em.CO2.eNuc., Prd., $AQ$3) -> 0 | AR173: =+SUMIFS(Em.CH4.eNuc., Prd., $AR$3) -> 0 | AS173: =+SUMIFS(Em.N2O.eNuc., Prd., $AS$3) -> 0 | AT173: 0 | AV173: =+SUMIFS(Em.PM10.eNuc., Prd., $AV$3) -> 0 | AW173: =+SUMIFS(Em.NOX.eNuc., Prd., $AW$3) -> 0 | AX173: =+SUMIFS(Em.SO2.eNuc., Prd., $AX$3) -> 0 | AY173: =+SUMIFS(Em.NMVOC.eNuc., Prd., $AY$3) -> 0 | AZ173: =+SUMIFS(Em.PM2.5.eNuc., Prd., $AZ$3) -> 0 | BA173: =+SUMIFS(Em.NH3.eNuc., Prd., $BA$3) -> 0 | BR173: =Results!$E$270 -> Electricity Generation | BS173: PowerStations
B174: =Model!$H$575 -> Electricity - Hydro | C174: =Model!$I$575 -> eHyd. | E174: =+SUMIFS(EB.eHyd.fElc., Prd., $E$3) -> 18.81792 | F174: 0 | G174: 0 | H174: 0 | I174: 0 | J174: 0 | K174: 0 | L174: 0 | M174: 0 | N174: 0 | O174: 0 | P174: 0 | Q174: =+SUMIFS(EB.eHyd.rEnvE., Prd., $Q$3) -> -21.384 | R174: 0 | S174: 0 | T174: 0 | U174: 0 | V174: 0 | W174: 0 | X174: 0 | Y174: 0 | Z174: 0 | AA174: =+SUMIFS(EB.eHyd.lsCnv., Prd., $AA$3) -> 2.56608 | AB174: 0 | AC174: 0 | AD174: 0 | AE174: 0 | AF174: 0 | AG174: 0 | AH174: 0 | AI174: 0 | AJ174: 0 | AK174: 0 | AL174: 18.81792 | AM174: -21.384 | AN174: 2.56608 | AP174: =+SUMIFS(Em.GHG.eHyd., Prd., $AP$3) -> 0 | AQ174: =+SUMIFS(Em.CO2.eHyd., Prd., $AQ$3) -> 0 | AR174: =+SUMIFS(Em.CH4.eHyd., Prd., $AR$3) -> 0 | AS174: =+SUMIFS(Em.N2O.eHyd., Prd., $AS$3) -> 0 | AT174: 0 | AV174: =+SUMIFS(Em.PM10.eHyd., Prd., $AV$3) -> 0 | AW174: =+SUMIFS(Em.NOX.eHyd., Prd., $AW$3) -> 0 | AX174: =+SUMIFS(Em.SO2.eHyd., Prd., $AX$3) -> 0 | AY174: =+SUMIFS(Em.NMVOC.eHyd., Prd., $AY$3) -> 0 | AZ174: =+SUMIFS(Em.PM2.5.eHyd., Prd., $AZ$3) -> 0 | BA174: =+SUMIFS(Em.NH3.eHyd., Prd., $BA$3) -> 0 | BR174: =Results!$E$270 -> Electricity Generation | BS174: PowerStations
B175: =Model!$H$576 -> Electricity - Wind (onshore) | C175: =Model!$I$576 -> eWons. | E175: =+SUMIFS(EB.eWons.fElc., Prd., $E$3) -> 13.40615178 | F175: 0 | G175: 0 | H175: 0 | I175: 0 | J175: 0 | K175: 0 | L175: 0 | M175: 0 | N175: 0 | O175: 0 | P175: 0 | Q175: =+SUMIFS(EB.eWons.rEnvE., Prd., $Q$3) -> -13.40615178 | R175: 0 | S175: 0 | T175: 0 | U175: 0 | V175: 0 | W175: 0 | X175: 0 | Y175: 0 | Z175: 0 | AA175: =+SUMIFS(EB.eWons.lsCnv., Prd., $AA$3) -> 0 | AB175: 0 | AC175: 0 | AD175: 0 | AE175: 0 | AF175: 0 | AG175: 0 | AH175: 0 | AI175: 0 | AJ175: 0 | AK175: 0 | AL175: 13.40615178 | AM175: -13.40615178 | AN175: 0 | AP175: =+SUMIFS(Em.GHG.eWons., Prd., $AP$3) -> 0 | AQ175: =+SUMIFS(Em.CO2.eWons., Prd., $AQ$3) -> 0 | AR175: =+SUMIFS(Em.CH4.eWons., Prd., $AR$3) -> 0 | AS175: =+SUMIFS(Em.N2O.eWons., Prd., $AS$3) -> 0 | AT175: 0 | AV175: =+SUMIFS(Em.PM10.eWons., Prd., $AV$3) -> 0 | AW175: =+SUMIFS(Em.NOX.eWons., Prd., $AW$3) -> 0 | AX175: =+SUMIFS(Em.SO2.eWons., Prd., $AX$3) -> 0 | AY175: =+SUMIFS(Em.NMVOC.eWons., Prd., $AY$3) -> 0 | AZ175: =+SUMIFS(Em.PM2.5.eWons., Prd., $AZ$3) -> 0 | BA175: =+SUMIFS(Em.NH3.eWons., Prd., $BA$3) -> 0 | BR175: =Results!$E$270 -> Electricity Generation | BS175: PowerStations
B176: =Model!$H$577 -> Electricity - Wind (offshore) | C176: =Model!$I$577 -> eWoff. | E176: =+SUMIFS(EB.eWoff.fElc., Prd., $E$3) -> 0 | F176: 0 | G176: 0 | H176: 0 | I176: 0 | J176: 0 | K176: 0 | L176: 0 | M176: 0 | N176: 0 | O176: 0 | P176: 0 | Q176: =+SUMIFS(EB.eWoff.rEnvE., Prd., $Q$3) -> 0 | R176: 0 | S176: 0 | T176: 0 | U176: 0 | V176: 0 | W176: 0 | X176: 0 | Y176: 0 | Z176: 0 | AA176: =+SUMIFS(EB.eWoff.lsCnv., Prd., $AA$3) -> 0 | AB176: 0 | AC176: 0 | AD176: 0 | AE176: 0 | AF176: 0 | AG176: 0 | AH176: 0 | AI176: 0 | AJ176: 0 | AK176: 0 | AL176: 0 | AM176: 0 | AN176: 0 | AP176: =+SUMIFS(Em.GHG.eWoff., Prd., $AP$3) -> 0 | AQ176: =+SUMIFS(Em.CO2.eWoff., Prd., $AQ$3) -> 0 | AR176: =+SUMIFS(Em.CH4.eWoff., Prd., $AR$3) -> 0 | AS176: =+SUMIFS(Em.N2O.eWoff., Prd., $AS$3) -> 0 | AT176: 0 | AV176: =+SUMIFS(Em.PM10.eWoff., Prd., $AV$3) -> 0 | AW176: =+SUMIFS(Em.NOX.eWoff., Prd., $AW$3) -> 0 | AX176: =+SUMIFS(Em.SO2.eWoff., Prd., $AX$3) -> 0 | AY176: =+SUMIFS(Em.NMVOC.eWoff., Prd., $AY$3) -> 0 | AZ176: =+SUMIFS(Em.PM2.5.eWoff., Prd., $AZ$3) -> 0 | BA176: =+SUMIFS(Em.NH3.eWoff., Prd., $BA$3) -> 0 | BR176: =Results!$E$270 -> Electricity Generation | BS176: PowerStations
B177: =Model!$H$578 -> Electricity - Solar PV | C177: =Model!$I$578 -> eSol. | E177: =+SUMIFS(EB.eSol.fElc., Prd., $E$3) -> 2.9866755 | F177: 0 | G177: 0 | H177: 0 | I177: 0 | J177: 0 | K177: 0 | L177: 0 | M177: 0 | N177: 0 | O177: 0 | P177: 0 | Q177: =+SUMIFS(EB.eSol.rEnvE., Prd., $Q$3) -> -2.9866755 | R177: 0 | S177: 0 | T177: 0 | U177: 0 | V177: 0 | W177: 0 | X177: 0 | Y177: 0 | Z177: 0 | AA177: =+SUMIFS(EB.eSol.lsCnv., Prd., $AA$3) -> 0 | AB177: 0 | AC177: 0 | AD177: 0 | AE177: 0 | AF177: 0 | AG177: 0 | AH177: 0 | AI177: 0 | AJ177: 0 | AK177: 0 | AL177: 2.9866755 | AM177: -2.9866755 | AN177: 0 | AP177: =+SUMIFS(Em.GHG.eSol., Prd., $AP$3) -> 0 | AQ177: =+SUMIFS(Em.CO2.eSol., Prd., $AQ$3) -> 0 | AR177: =+SUMIFS(Em.CH4.eSol., Prd., $AR$3) -> 0 | AS177: =+SUMIFS(Em.N2O.eSol., Prd., $AS$3) -> 0 | AT177: 0 | AV177: =+SUMIFS(Em.PM10.eSol., Prd., $AV$3) -> 0 | AW177: =+SUMIFS(Em.NOX.eSol., Prd., $AW$3) -> 0 | AX177: =+SUMIFS(Em.SO2.eSol., Prd., $AX$3) -> 0 | AY177: =+SUMIFS(Em.NMVOC.eSol., Prd., $AY$3) -> 0 | AZ177: =+SUMIFS(Em.PM2.5.eSol., Prd., $AZ$3) -> 0 | BA177: =+SUMIFS(Em.NH3.eSol., Prd., $BA$3) -> 0 | BR177: =Results!$E$270 -> Electricity Generation | BS177: PowerStations
B178: =Model!$H$579 -> Electricity - Tidal Stream | C178: =Model!$I$579 -> eTidS. | E178: =+SUMIFS(EB.eTidS.fElc., Prd., $E$3) -> 0 | F178: 0 | G178: 0 | H178: 0 | I178: 0 | J178: 0 | K178: 0 | L178: 0 | M178: 0 | N178: 0 | O178: 0 | P178: 0 | Q178: =+SUMIFS(EB.eTidS.rEnvE., Prd., $Q$3) -> 0 | R178: 0 | S178: 0 | T178: 0 | U178: 0 | V178: 0 | W178: 0 | X178: 0 | Y178: 0 | Z178: 0 | AA178: =+SUMIFS(EB.eTidS.lsCnv., Prd., $AA$3) -> 0 | AB178: 0 | AC178: 0 | AD178: 0 | AE178: 0 | AF178: 0 | AG178: 0 | AH178: 0 | AI178: 0 | AJ178: 0 | AK178: 0 | AL178: 0 | AM178: 0 | AN178: 0 | AP178: =+SUMIFS(Em.GHG.eTidS., Prd., $AP$3) -> 0 | AQ178: =+SUMIFS(Em.CO2.eTidS., Prd., $AQ$3) -> 0 | AR178: =+SUMIFS(Em.CH4.eTidS., Prd., $AR$3) -> 0 | AS178: =+SUMIFS(Em.N2O.eTidS., Prd., $AS$3) -> 0 | AT178: 0 | AV178: =+SUMIFS(Em.PM10.eTidS., Prd., $AV$3) -> 0 | AW178: =+SUMIFS(Em.NOX.eTidS., Prd., $AW$3) -> 0 | AX178: =+SUMIFS(Em.SO2.eTidS., Prd., $AX$3) -> 0 | AY178: =+SUMIFS(Em.NMVOC.eTidS., Prd., $AY$3) -> 0 | AZ178: =+SUMIFS(Em.PM2.5.eTidS., Prd., $AZ$3) -> 0 | BA178: =+SUMIFS(Em.NH3.eTidS., Prd., $BA$3) -> 0 | BR178: =Results!$E$270 -> Electricity Generation | BS178: PowerStations
B179: =Model!$H$580 -> Electricity - Tidal Range | C179: =Model!$I$580 -> eTidR. | E179: =+SUMIFS(EB.eTidR.fElc., Prd., $E$3) -> 0 | F179: 0 | G179: 0 | H179: 0 | I179: 0 | J179: 0 | K179: 0 | L179: 0 | M179: 0 | N179: 0 | O179: 0 | P179: 0 | Q179: =+SUMIFS(EB.eTidR.rEnvE., Prd., $Q$3) -> 0 | R179: 0 | S179: 0 | T179: 0 | U179: 0 | V179: 0 | W179: 0 | X179: 0 | Y179: 0 | Z179: 0 | AA179: =+SUMIFS(EB.eTidR.lsCnv., Prd., $AA$3) -> 0 | AB179: 0 | AC179: 0 | AD179: 0 | AE179: 0 | AF179: 0 | AG179: 0 | AH179: 0 | AI179: 0 | AJ179: 0 | AK179: 0 | AL179: 0 | AM179: 0 | AN179: 0 | AP179: =+SUMIFS(Em.GHG.eTidR., Prd., $AP$3) -> 0 | AQ179: =+SUMIFS(Em.CO2.eTidR., Prd., $AQ$3) -> 0 | AR179: =+SUMIFS(Em.CH4.eTidR., Prd., $AR$3) -> 0 | AS179: =+SUMIFS(Em.N2O.eTidR., Prd., $AS$3) -> 0 | AT179: 0 | AV179: =+SUMIFS(Em.PM10.eTidR., Prd., $AV$3) -> 0 | AW179: =+SUMIFS(Em.NOX.eTidR., Prd., $AW$3) -> 0 | AX179: =+SUMIFS(Em.SO2.eTidR., Prd., $AX$3) -> 0 | AY179: =+SUMIFS(Em.NMVOC.eTidR., Prd., $AY$3) -> 0 | AZ179: =+SUMIFS(Em.PM2.5.eTidR., Prd., $AZ$3) -> 0 | BA179: =+SUMIFS(Em.NH3.eTidR., Prd., $BA$3) -> 0 | BR179: =Results!$E$270 -> Electricity Generation | BS179: PowerStations
B180: =Model!$H$581 -> Electricity - Wave | C180: =Model!$I$581 -> eWav. | E180: =+SUMIFS(EB.eWav.fElc., Prd., $E$3) -> 0 | F180: 0 | G180: 0 | H180: 0 | I180: 0 | J180: 0 | K180: 0 | L180: 0 | M180: 0 | N180: 0 | O180: 0 | P180: 0 | Q180: =+SUMIFS(EB.eWav.rEnvE., Prd., $Q$3) -> 0 | R180: 0 | S180: 0 | T180: 0 | U180: 0 | V180: 0 | W180: 0 | X180: 0 | Y180: 0 | Z180: 0 | AA180: =+SUMIFS(EB.eWav.lsCnv., Prd., $AA$3) -> 0 | AB180: 0 | AC180: 0 | AD180: 0 | AE180: 0 | AF180: 0 | AG180: 0 | AH180: 0 | AI180: 0 | AJ180: 0 | AK180: 0 | AL180: 0 | AM180: 0 | AN180: 0 | AP180: =+SUMIFS(Em.GHG.eWav., Prd., $AP$3) -> 0 | AQ180: =+SUMIFS(Em.CO2.eWav., Prd., $AQ$3) -> 0 | AR180: =+SUMIFS(Em.CH4.eWav., Prd., $AR$3) -> 0 | AS180: =+SUMIFS(Em.N2O.eWav., Prd., $AS$3) -> 0 | AT180: 0 | AV180: =+SUMIFS(Em.PM10.eWav., Prd., $AV$3) -> 0 | AW180: =+SUMIFS(Em.NOX.eWav., Prd., $AW$3) -> 0 | AX180: =+SUMIFS(Em.SO2.eWav., Prd., $AX$3) -> 0 | AY180: =+SUMIFS(Em.NMVOC.eWav., Prd., $AY$3) -> 0 | AZ180: =+SUMIFS(Em.PM2.5.eWav., Prd., $AZ$3) -> 0 | BA180: =+SUMIFS(Em.NH3.eWav., Prd., $BA$3) -> 0 | BR180: =Results!$E$270 -> Electricity Generation | BS180: PowerStations
B181: =Model!$H$582 -> Electricity - Biomass | C181: =Model!$I$582 -> eBio. | E181: =+SUMIFS(EB.eBio.fElc., Prd., $E$3) -> 0 | F181: 0 | G181: =+SUMIFS(EB.eBio.fBiS., Prd., $G$3) -> 0 | H181: 0 | I181: 0 | J181: 0 | K181: 0 | L181: 0 | M181: 0 | N181: =+SUMIFS(EB.eBio.fWstH., Prd., $N$3) -> 0 | O181: 0 | P181: 0 | Q181: 0 | R181: 0 | S181: 0 | T181: 0 | U181: 0 | V181: 0 | W181: 0 | X181: 0 | Y181: 0 | Z181: 0 | AA181: =+SUMIFS(EB.eBio.lsCnv., Prd., $AA$3) -> 0 | AB181: 0 | AC181: 0 | AD181: 0 | AE181: 0 | AF181: 0 | AG181: 0 | AH181: 0 | AI181: 0 | AJ181: 0 | AK181: 0 | AL181: 0 | AM181: 0 | AN181: 0 | AP181: =+SUMIFS(Em.GHG.eBio., Prd., $AP$3) -> 0 | AQ181: =+SUMIFS(Em.CO2.eBio., Prd., $AQ$3) -> 0 | AR181: =+SUMIFS(Em.CH4.eBio., Prd., $AR$3) -> 0 | AS181: =+SUMIFS(Em.N2O.eBio., Prd., $AS$3) -> 0 | AT181: 0 | AV181: =+SUMIFS(Em.PM10.eBio., Prd., $AV$3) -> 0 | AW181: =+SUMIFS(Em.NOX.eBio., Prd., $AW$3) -> 0 | AX181: =+SUMIFS(Em.SO2.eBio., Prd., $AX$3) -> 0 | AY181: =+SUMIFS(Em.NMVOC.eBio., Prd., $AY$3) -> 0 | AZ181: =+SUMIFS(Em.PM2.5.eBio., Prd., $AZ$3) -> 0 | BA181: =+SUMIFS(Em.NH3.eBio., Prd., $BA$3) -> 0 | BR181: =Results!$E$270 -> Electricity Generation | BS181: PowerStations
B182: =Model!$H$584 -> Electricity - Gas CCS | C182: =Model!$I$584 -> eGccs. | E182: =+SUMIFS(EB.eGccs.fElc., Prd., $E$3) -> 0 | F182: 0 | G182: 0 | H182: 0 | I182: 0 | J182: 0 | K182: 0 | L182: =+SUMIFS(EB.eGccs.fFsG., Prd., $L$3) -> 0 | M182: 0 | N182: =+SUMIFS(EB.eGccs.fWstH., Prd., $N$3) -> 0 | O182: 0 | P182: 0 | Q182: 0 | R182: 0 | S182: 0 | T182: 0 | U182: 0 | V182: 0 | W182: 0 | X182: 0 | Y182: 0 | Z182: 0 | AA182: =+SUMIFS(EB.eGccs.lsCnv., Prd., $AA$3) -> 0 | AB182: 0 | AC182: 0 | AD182: 0 | AE182: 0 | AF182: 0 | AG182: 0 | AH182: 0 | AI182: 0 | AJ182: 0 | AK182: 0 | AL182: 0 | AM182: 0 | AN182: 0 | AP182: =+SUMIFS(Em.GHG.eGccs., Prd., $AP$3) -> 0 | AQ182: =+SUMIFS(Em.CO2.eGccs., Prd., $AQ$3) -> 0 | AR182: =+SUMIFS(Em.CH4.eGccs., Prd., $AR$3) -> 0 | AS182: =+SUMIFS(Em.N2O.eGccs., Prd., $AS$3) -> 0 | AT182: 0 | AV182: =+SUMIFS(Em.PM10.eGccs., Prd., $AV$3) -> 0 | AW182: =+SUMIFS(Em.NOX.eGccs., Prd., $AW$3) -> 0 | AX182: =+SUMIFS(Em.SO2.eGccs., Prd., $AX$3) -> 0 | AY182: =+SUMIFS(Em.NMVOC.eGccs., Prd., $AY$3) -> 0 | AZ182: =+SUMIFS(Em.PM2.5.eGccs., Prd., $AZ$3) -> 0 | BA182: =+SUMIFS(Em.NH3.eGccs., Prd., $BA$3) -> 0 | BR182: =Results!$E$270 -> Electricity Generation | BS182: PowerStations
B183: =Model!$H$586 -> Electricity - Coal Unabated | C183: =Model!$I$586 -> eCoal. | E183: =+SUMIFS(EB.eCoal.fElc., Prd., $E$3) -> 0 | F183: 0 | G183: 0 | H183: 0 | I183: 0 | J183: =+SUMIFS(EB.eCoal.fFsS., Prd., $J$3) -> 0 | K183: 0 | L183: 0 | M183: 0 | N183: =+SUMIFS(EB.eCoal.fWstH., Prd., $N$3) -> 0 | O183: 0 | P183: 0 | Q183: 0 | R183: 0 | S183: 0 | T183: 0 | U183: 0 | V183: 0 | W183: 0 | X183: 0 | Y183: 0 | Z183: 0 | AA183: =+SUMIFS(EB.eCoal.lsCnv., Prd., $AA$3) -> 0 | AB183: 0 | AC183: 0 | AD183: 0 | AE183: 0 | AF183: 0 | AG183: 0 | AH183: 0 | AI183: 0 | AJ183: 0 | AK183: 0 | AL183: 0 | AM183: 0 | AN183: 0 | AP183: =+SUMIFS(Em.GHG.eCoal., Prd., $AP$3) -> 0 | AQ183: =+SUMIFS(Em.CO2.eCoal., Prd., $AQ$3) -> 0 | AR183: =+SUMIFS(Em.CH4.eCoal., Prd., $AR$3) -> 0 | AS183: =+SUMIFS(Em.N2O.eCoal., Prd., $AS$3) -> 0 | AT183: 0 | AV183: =+SUMIFS(Em.PM10.eCoal., Prd., $AV$3) -> 0 | AW183: =+SUMIFS(Em.NOX.eCoal., Prd., $AW$3) -> 0 | AX183: =+SUMIFS(Em.SO2.eCoal., Prd., $AX$3) -> 0 | AY183: =+SUMIFS(Em.NMVOC.eCoal., Prd., $AY$3) -> 0 | AZ183: =+SUMIFS(Em.PM2.5.eCoal., Prd., $AZ$3) -> 0 | BA183: =+SUMIFS(Em.NH3.eCoal., Prd., $BA$3) -> 0 | BR183: =Results!$E$270 -> Electricity Generation | BS183: PowerStations
B184: =Model!$H$587 -> Electricity - Gas Unabated (CCGT) | C184: =Model!$I$587 -> eGas. | E184: =+SUMIFS(EB.eGas.fElc., Prd., $E$3) -> 0 | F184: 0 | G184: 0 | H184: 0 | I184: 0 | J184: 0 | K184: 0 | L184: =+SUMIFS(EB.eGas.fFsG., Prd., $L$3) -> 0 | M184: 0 | N184: =+SUMIFS(EB.eGas.fWstH., Prd., $N$3) -> 0 | O184: 0 | P184: 0 | Q184: 0 | R184: 0 | S184: 0 | T184: 0 | U184: 0 | V184: 0 | W184: 0 | X184: 0 | Y184: 0 | Z184: 0 | AA184: =+SUMIFS(EB.eGas.lsCnv., Prd., $AA$3) -> 0 | AB184: 0 | AC184: 0 | AD184: 0 | AE184: 0 | AF184: 0 | AG184: 0 | AH184: 0 | AI184: 0 | AJ184: 0 | AK184: 0 | AL184: 0 | AM184: 0 | AN184: 0 | AP184: =+SUMIFS(Em.GHG.eGas., Prd., $AP$3) -> 0 | AQ184: =+SUMIFS(Em.CO2.eGas., Prd., $AQ$3) -> 0 | AR184: =+SUMIFS(Em.CH4.eGas., Prd., $AR$3) -> 0 | AS184: =+SUMIFS(Em.N2O.eGas., Prd., $AS$3) -> 0 | AT184: 0 | AV184: =+SUMIFS(Em.PM10.eGas., Prd., $AV$3) -> 0 | AW184: =+SUMIFS(Em.NOX.eGas., Prd., $AW$3) -> 0 | AX184: =+SUMIFS(Em.SO2.eGas., Prd., $AX$3) -> 0 | AY184: =+SUMIFS(Em.NMVOC.eGas., Prd., $AY$3) -> 0 | AZ184: =+SUMIFS(Em.PM2.5.eGas., Prd., $AZ$3) -> 0 | BA184: =+SUMIFS(Em.NH3.eGas., Prd., $BA$3) -> 0 | BR184: =Results!$E$270 -> Electricity Generation | BS184: PowerStations
B185: =Model!$H$588 -> Electricity - Gas Unabated Peaking plant (OCGT) | C185: =Model!$I$588 -> eGasPk. | E185: =+SUMIFS(EB.eGasPk.fElc., Prd., $E$3) -> 0 | F185: 0 | G185: 0 | H185: 0 | I185: 0 | J185: 0 | K185: 0 | L185: =+SUMIFS(EB.eGasPk.fFsG., Prd., $L$3) -> 0 | M185: 0 | N185: 0 | O185: 0 | P185: 0 | Q185: 0 | R185: 0 | S185: 0 | T185: 0 | U185: 0 | V185: 0 | W185: 0 | X185: 0 | Y185: 0 | Z185: 0 | AA185: =+SUMIFS(EB.eGasPk.lsCnv., Prd., $AA$3) -> 0 | AB185: 0 | AC185: 0 | AD185: 0 | AE185: 0 | AF185: 0 | AG185: 0 | AH185: 0 | AI185: 0 | AJ185: 0 | AK185: 0 | AL185: 0 | AM185: 0 | AN185: 0 | AP185: =+SUMIFS(Em.GHG.eGasPk., Prd., $AP$3) -> 0 | AQ185: =+SUMIFS(Em.CO2.eGasPk., Prd., $AQ$3) -> 0 | AR185: =+SUMIFS(Em.CH4.eGasPk., Prd., $AR$3) -> 0 | AS185: =+SUMIFS(Em.N2O.eGasPk., Prd., $AS$3) -> 0 | AT185: 0 | AV185: =+SUMIFS(Em.PM10.eGasPk., Prd., $AV$3) -> 0 | AW185: =+SUMIFS(Em.NOX.eGasPk., Prd., $AW$3) -> 0 | AX185: =+SUMIFS(Em.SO2.eGasPk., Prd., $AX$3) -> 0 | AY185: =+SUMIFS(Em.NMVOC.eGasPk., Prd., $AY$3) -> 0 | AZ185: =+SUMIFS(Em.PM2.5.eGasPk., Prd., $AZ$3) -> 0 | BA185: =+SUMIFS(Em.NH3.eGasPk., Prd., $BA$3) -> 0 | BR185: =Results!$E$270 -> Electricity Generation | BS185: PowerStations
B186: =Model!$H$598 -> Electricity - Seasonal Storage | C186: =Model!$I$598 -> eSsnStr. | E186: =+SUMIFS(EB.eSsnStr.fElc., Prd., $E$3) -> 0 | F186: 0 | G186: 0 | H186: 0 | I186: 0 | J186: 0 | K186: 0 | L186: 0 | M186: 0 | N186: 0 | O186: 0 | P186: 0 | Q186: 0 | R186: 0 | S186: 0 | T186: 0 | U186: 0 | V186: 0 | W186: 0 | X186: 0 | Y186: 0 | Z186: 0 | AA186: 0 | AB186: =+SUMIFS(EB.eSsnStr.lsDst., Prd., $AB$3) -> 0 | AC186: 0 | AD186: 0 | AE186: 0 | AF186: 0 | AG186: 0 | AH186: 0 | AI186: 0 | AJ186: 0 | AK186: 0 | AL186: 0 | AM186: 0 | AN186: 0 | AP186: =+SUMIFS(Em.GHG.eSsnStr., Prd., $AP$3) -> 0 | AQ186: =+SUMIFS(Em.CO2.eSsnStr., Prd., $AQ$3) -> 0 | AR186: =+SUMIFS(Em.CH4.eSsnStr., Prd., $AR$3) -> 0 | AS186: =+SUMIFS(Em.N2O.eSsnStr., Prd., $AS$3) -> 0 | AT186: 0 | AV186: =+SUMIFS(Em.PM10.eSsnStr., Prd., $AV$3) -> 0 | AW186: =+SUMIFS(Em.NOX.eSsnStr., Prd., $AW$3) -> 0 | AX186: =+SUMIFS(Em.SO2.eSsnStr., Prd., $AX$3) -> 0 | AY186: =+SUMIFS(Em.NMVOC.eSsnStr., Prd., $AY$3) -> 0 | AZ186: =+SUMIFS(Em.PM2.5.eSsnStr., Prd., $AZ$3) -> 0 | BA186: =+SUMIFS(Em.NH3.eSsnStr., Prd., $BA$3) -> 0 | BR186: =Results!$E$270 -> Electricity Generation | BS186: ElectricityDistributionStorage
E187: 0 | F187: 0 | G187: 0 | H187: 0 | I187: 0 | J187: 0 | K187: 0 | L187: 0 | M187: 0 | N187: 0 | O187: 0 | P187: 0 | Q187: 0 | R187: 0 | S187: 0 | T187: 0 | U187: 0 | V187: 0 | W187: 0 | X187: 0 | Y187: 0 | Z187: 0 | AA187: 0 | AB187: 0 | AC187: 0 | AD187: 0 | AE187: 0 | AF187: 0 | AG187: 0 | AH187: 0 | AI187: 0 | AJ187: 0 | AK187: 0
B188: =Model!$H$556 -> Gas Grid Distribution All Types | C188: =Model!$I$556 -> ggDstALL. | E188: 0 | F188: =+SUMIFS(EB.ggDstALL.fH2G., Prd., $F$3) -> 0 | G188: 0 | H188: 0 | I188: =+SUMIFS(EB.ggDstALL.fBiG., Prd., $I$3) -> 0 | J188: 0 | K188: 0 | L188: =+SUMIFS(EB.ggDstALL.fFsG., Prd., $L$3) -> 0 | M188: 0 | N188: 0 | O188: 0 | P188: 0 | Q188: 0 | R188: 0 | S188: 0 | T188: 0 | U188: 0 | V188: 0 | W188: 0 | X188: 0 | Y188: 0 | Z188: 0 | AA188: 0 | AB188: 0 | AC188: =+SUMIFS(EB.ggDstALL.lsH2G., Prd., $AC$3) -> 0 | AD188: =+SUMIFS(EB.ggDstALL.lsBiG., Prd., $AD$3) -> 0 | AE188: =+SUMIFS(EB.ggDstALL.lsFsG., Prd., $AE$3) -> 0 | AF188: 0 | AG188: 0 | AH188: 0 | AI188: 0 | AJ188: 0 | AK188: =+SUMIFS(EB.ggDstALL.NetEn., Prd., $AK$3) -> 0 | AL188: =SUM(E188:N188) -> 0 | AM188: =SUM(O188:Z188) -> 0 | AN188: =SUM(AA188:AE188) -> 0 | AP188: =+SUMIFS(Em.GHG.ggDstALL., Prd., $AP$3) -> 0 | AQ188: =+SUMIFS(Em.CO2.ggDstALL., Prd., $AQ$3) -> 0 | AR188: =+SUMIFS(Em.CH4.ggDstALL., Prd., $AR$3) -> 0 | AS188: =+SUMIFS(Em.N2O.ggDstALL., Prd., $AS$3) -> 0 | AT188: 0 | AV188: =+SUMIFS(Em.PM10.ggDstALL., Prd., $AV$3) -> 0 | AW188: =+SUMIFS(Em.NOX.ggDstALL., Prd., $AW$3) -> 0 | AX188: =+SUMIFS(Em.SO2.ggDstALL., Prd., $AX$3) -> 0 | AY188: =+SUMIFS(Em.NMVOC.ggDstALL., Prd., $AY$3) -> 0 | AZ188: =+SUMIFS(Em.PM2.5.ggDstALL., Prd., $AZ$3) -> 0 | BA188: =+SUMIFS(Em.NH3.ggDstALL., Prd., $BA$3) -> 0 | BD188: =BE188&BF188&BG188&BH188&BI188 -> 1A1a | BE188: 1 | BF188: A | BG188: 1 | BH188: a | BR188: =Results!$E$272 -> Other Energy Supply | BS188: FossilFuels
B189: =Model!$H$559 -> Gas Grid Transmission All Types | C189: =Model!$I$559 -> ggTmsALL. | E189: 0 | F189: =+SUMIFS(EB.ggTmsALL.fH2G., Prd., $F$3) -> 0 | G189: 0 | H189: 0 | I189: =+SUMIFS(EB.ggTmsALL.fBiG., Prd., $I$3) -> 0 | J189: 0 | K189: 0 | L189: =+SUMIFS(EB.ggTmsALL.fFsG., Prd., $L$3) -> 0 | M189: 0 | N189: 0 | O189: 0 | P189: 0 | Q189: 0 | R189: 0 | S189: 0 | T189: 0 | U189: 0 | V189: 0 | W189: 0 | X189: 0 | Y189: 0 | Z189: 0 | AA189: 0 | AB189: 0 | AC189: =+SUMIFS(EB.ggTmsALL.lsH2G., Prd., $AC$3) -> 0 | AD189: =+SUMIFS(EB.ggTmsALL.lsBiG., Prd., $AD$3) -> 0 | AE189: =+SUMIFS(EB.ggTmsALL.lsFsG., Prd., $AE$3) -> 0 | AF189: 0 | AG189: 0 | AH189: 0 | AI189: 0 | AJ189: 0 | AK189: =+SUMIFS(EB.ggTmsALL.NetEn., Prd., $AK$3) -> 0 | AL189: =SUM(E189:N189) -> 0 | AM189: =SUM(O189:Z189) -> 0 | AN189: =SUM(AA189:AE189) -> 0 | AP189: =+SUMIFS(Em.GHG.ggTmsALL., Prd., $AP$3) -> 0 | AQ189: =+SUMIFS(Em.CO2.ggTmsALL., Prd., $AQ$3) -> 0 | AR189: =+SUMIFS(Em.CH4.ggTmsALL., Prd., $AR$3) -> 0 | AS189: =+SUMIFS(Em.N2O.ggTmsALL., Prd., $AS$3) -> 0 | AT189: 0 | AV189: =+SUMIFS(Em.PM10.ggTmsALL., Prd., $AV$3) -> 0 | AW189: =+SUMIFS(Em.NOX.ggTmsALL., Prd., $AW$3) -> 0 | AX189: =+SUMIFS(Em.SO2.ggTmsALL., Prd., $AX$3) -> 0 | AY189: =+SUMIFS(Em.NMVOC.ggTmsALL., Prd., $AY$3) -> 0 | AZ189: =+SUMIFS(Em.PM2.5.ggTmsALL., Prd., $AZ$3) -> 0 | BA189: =+SUMIFS(Em.NH3.ggTmsALL., Prd., $BA$3) -> 0 | BD189: =BE189&BF189&BG189&BH189&BI189 -> 1A1a | BE189: 1 | BF189: A | BG189: 1 | BH189: a | BR189: =Results!$E$272 -> Other Energy Supply | BS189: FossilFuels
B191: =Model!$H$650 -> Non-Energy Use | C191: =Model!$I$650 -> nonEnergy. | E191: 0 | F191: 0 | G191: 0 | H191: 0 | I191: 0 | J191: =+SUMIFS(EB.nonEnergy.fFsS., Prd., $K$3) -> 0 | K191: =+SUMIFS(EB.nonEnergy.fFsL., Prd., $K$3) -> 0 | L191: =+SUMIFS(EB.nonEnergy.fFsG., Prd., $K$3) -> 0 | M191: 0 | N191: 0 | O191: 0 | P191: 0 | Q191: 0 | R191: 0 | S191: 0 | T191: 0 | U191: 0 | V191: 0 | W191: 0 | X191: 0 | Y191: 0 | Z191: 0 | AA191: 0 | AB191: 0 | AC191: 0 | AD191: 0 | AE191: 0 | AF191: 0 | AG191: 0 | AH191: 0 | AI191: 0 | AJ191: 0 | AK191: 0 | AL191: =SUM(E191:N191) -> 0 | AM191: =SUM(O191:Z191) -> 0 | AN191: =SUM(AA191:AE191) -> 0 | AP191: 0 | AQ191: 0 | AR191: 0 | AS191: 0 | AV191: 0 | AW191: 0 | AX191: 0 | AY191: 0 | AZ191: 0 | BA191: 0 | BR191: Non-Energy Use
E192: 0 | F192: 0 | G192: 0 | H192: 0 | I192: 0 | J192: 0 | K192: 0 | L192: 0 | M192: 0 | N192: 0 | O192: 0 | P192: 0 | Q192: 0 | R192: 0 | S192: 0 | T192: 0 | U192: 0 | V192: 0 | W192: 0 | X192: 0 | Y192: 0 | Z192: 0 | AA192: 0 | AB192: 0 | AC192: 0 | AD192: 0 | AE192: 0 | AF192: 0 | AG192: 0 | AH192: 0 | AI192: 0 | AJ192: 0 | AK192: 0
B193: =Model!$H$652 -> Domestic Resource Extraction Fossil Fuel Solid | C193: =Model!$I$652 -> DRExFsS. | E193: =+SUMIFS(EB.DRExFsS.fElc., Prd., $E$3) -> 0 | F193: 0 | G193: 0 | H193: 0 | I193: 0 | J193: =+SUMIFS(EB.DRExFsS.fFsS., Prd., $J$3) -> 0 | K193: 0 | L193: =+SUMIFS(EB.DRExFsS.fFsG., Prd., $L$3) -> 0 | M193: 0 | N193: 0 | O193: 0 | P193: 0 | Q193: 0 | R193: 0 | S193: 0 | T193: 0 | U193: 0 | V193: 0 | W193: 0 | X193: =+SUMIFS(EB.DRExFsS.rFsS., Prd., $X$3) -> 0 | Y193: 0 | Z193: 0 | AA193: =+SUMIFS(EB.DRExFsS.lsCnv., Prd., $AA$3) -> 0 | AB193: 0 | AC193: 0 | AD193: 0 | AE193: 0 | AF193: 0 | AG193: 0 | AH193: 0 | AI193: 0 | AJ193: 0 | AK193: 0 | AL193: =SUM(E193:N193) -> 0 | AM193: =SUM(O193:Z193) -> 0 | AN193: =SUM(AA193:AE193) -> 0 | AP193: =+SUMIFS(Em.GHG.DRExFsS., Prd., $AP$3) -> 0 | AQ193: =+SUMIFS(Em.CO2.DRExFsS., Prd., $AQ$3) -> 0 | AR193: =+SUMIFS(Em.CH4.DRExFsS., Prd., $AR$3) -> 0 | AS193: =+SUMIFS(Em.N2O.DRExFsS., Prd., $AS$3) -> 0 | AT193: 0 | AV193: =+SUMIFS(Em.PM10.DRExFsS., Prd., $AV$3) -> 0 | AW193: =+SUMIFS(Em.NOX.DRExFsS., Prd., $AW$3) -> 0 | AX193: =+SUMIFS(Em.SO2.DRExFsS., Prd., $AX$3) -> 0 | AY193: =+SUMIFS(Em.NMVOC.DRExFsS., Prd., $AY$3) -> 0 | AZ193: =+SUMIFS(Em.PM2.5.DRExFsS., Prd., $AZ$3) -> 0 | BA193: =+SUMIFS(Em.NH3.DRExFsS., Prd., $BA$3) -> 0 | BR193: =Results!$E$272 -> Other Energy Supply | BS193: FossilFuels
B194: =Model!$H$653 -> Domestic Resource Extraction Fossil Fuel Liquid | C194: =Model!$I$653 -> DRExFsL. | E194: =+SUMIFS(EB.DRExFsL.fElc., Prd., $E$3) -> 0 | F194: 0 | G194: 0 | H194: 0 | I194: 0 | J194: 0 | K194: =+SUMIFS(EB.DRExFsL.fFsL., Prd., $K$3) -> 0 | L194: =+SUMIFS(EB.DRExFsL.fFsG., Prd., $L$3) -> 0 | M194: 0 | N194: 0 | O194: 0 | P194: 0 | Q194: 0 | R194: 0 | S194: 0 | T194: 0 | U194: 0 | V194: 0 | W194: 0 | X194: 0 | Y194: =+SUMIFS(EB.DRExFsL.rFsL., Prd., $Y$3) -> 0 | Z194: 0 | AA194: =+SUMIFS(EB.DRExFsL.lsCnv., Prd., $AA$3) -> 0 | AB194: 0 | AC194: 0 | AD194: 0 | AE194: 0 | AF194: 0 | AG194: 0 | AH194: 0 | AI194: 0 | AJ194: 0 | AK194: 0 | AL194: =SUM(E194:N194) -> 0 | AM194: =SUM(O194:Z194) -> 0 | AN194: =SUM(AA194:AE194) -> 0 | AP194: =+SUMIFS(Em.GHG.DRExFsL., Prd., $AP$3) -> 0 | AQ194: =+SUMIFS(Em.CO2.DRExFsL., Prd., $AQ$3) -> 0 | AR194: =+SUMIFS(Em.CH4.DRExFsL., Prd., $AR$3) -> 0 | AS194: =+SUMIFS(Em.N2O.DRExFsL., Prd., $AS$3) -> 0 | AT194: 0 | AV194: =+SUMIFS(Em.PM10.DRExFsL., Prd., $AV$3) -> 0 | AW194: =+SUMIFS(Em.NOX.DRExFsL., Prd., $AW$3) -> 0 | AX194: =+SUMIFS(Em.SO2.DRExFsL., Prd., $AX$3) -> 0 | AY194: =+SUMIFS(Em.NMVOC.DRExFsL., Prd., $AY$3) -> 0 | AZ194: =+SUMIFS(Em.PM2.5.DRExFsL., Prd., $AZ$3) -> 0 | BA194: =+SUMIFS(Em.NH3.DRExFsL., Prd., $BA$3) -> 0 | BR194: =Results!$E$272 -> Other Energy Supply | BS194: FossilFuels
B195: =Model!$H$654 -> Domestic Resource Extraction Fossil Fuel Gas | C195: =Model!$I$654 -> DRExFsG. | E195: 0 | F195: 0 | G195: 0 | H195: 0 | I195: 0 | J195: 0 | K195: 0 | L195: =+SUMIFS(EB.DRExFsG.fFsG., Prd., $L$3) -> 0 | M195: 0 | N195: 0 | O195: 0 | P195: 0 | Q195: 0 | R195: 0 | S195: 0 | T195: 0 | U195: 0 | V195: 0 | W195: 0 | X195: 0 | Y195: 0 | Z195: =+SUMIFS(EB.DRExFsG.rFsG., Prd., $Z$3) -> 0 | AA195: =+SUMIFS(EB.DRExFsG.lsCnv., Prd., $AA$3) -> 0 | AB195: 0 | AC195: 0 | AD195: 0 | AE195: 0 | AF195: 0 | AG195: 0 | AH195: 0 | AI195: 0 | AJ195: 0 | AK195: 0 | AL195: =SUM(E195:N195) -> 0 | AM195: =SUM(O195:Z195) -> 0 | AN195: =SUM(AA195:AE195) -> 0 | AP195: =+SUMIFS(Em.GHG.DRExFsG., Prd., $AP$3) -> 0 | AQ195: =+SUMIFS(Em.CO2.DRExFsG., Prd., $AQ$3) -> 0 | AR195: =+SUMIFS(Em.CH4.DRExFsG., Prd., $AR$3) -> 0 | AS195: =+SUMIFS(Em.N2O.DRExFsG., Prd., $AS$3) -> 0 | AT195: 0 | AV195: =+SUMIFS(Em.PM10.DRExFsG., Prd., $AV$3) -> 0 | AW195: =+SUMIFS(Em.NOX.DRExFsG., Prd., $AW$3) -> 0 | AX195: =+SUMIFS(Em.SO2.DRExFsG., Prd., $AX$3) -> 0 | AY195: =+SUMIFS(Em.NMVOC.DRExFsG., Prd., $AY$3) -> 0 | AZ195: =+SUMIFS(Em.PM2.5.DRExFsG., Prd., $AZ$3) -> 0 | BA195: =+SUMIFS(Em.NH3.DRExFsG., Prd., $BA$3) -> 0 | BR195: =Results!$E$272 -> Other Energy Supply | BS195: FossilFuels
E196: 0 | F196: 0 | G196: 0 | H196: 0 | I196: 0 | J196: 0 | K196: 0 | L196: 0 | M196: 0 | N196: 0 | O196: 0 | P196: 0 | Q196: 0 | R196: 0 | S196: 0 | T196: 0 | U196: 0 | V196: 0 | W196: 0 | X196: 0 | Y196: 0 | Z196: 0 | AA196: 0 | AB196: 0 | AC196: 0 | AD196: 0 | AE196: 0 | AF196: 0 | AG196: 0 | AH196: 0 | AI196: 0 | AJ196: 0 | AK196: 0
B197: =Model!$H$665 -> Unrepresented Domestic Dwelling | C197: =Model!$I$665 -> Unrep_dDwl. | E197: 0 | F197: 0 | G197: 0 | H197: 0 | I197: 0 | J197: 0 | K197: 0 | L197: 0 | M197: 0 | N197: 0 | O197: 0 | P197: 0 | Q197: 0 | R197: 0 | S197: 0 | T197: 0 | U197: 0 | V197: 0 | W197: 0 | X197: 0 | Y197: 0 | Z197: 0 | AA197: 0 | AB197: 0 | AC197: 0 | AD197: 0 | AE197: 0 | AF197: 0 | AG197: 0 | AH197: 0 | AI197: 0 | AJ197: 0 | AK197: 0 | AL197: =SUM(E197:N197) -> 0 | AM197: =SUM(O197:Z197) -> 0 | AN197: =SUM(AA197:AE197) -> 0 | AP197: =+SUMIFS(Em.GHG.Unrep_dDwl., Prd., $AP$3) -> 0 | AQ197: =+SUMIFS(Em.CO2.Unrep_dDwl., Prd., $AQ$3) -> 0 | AR197: =+SUMIFS(Em.CH4.Unrep_dDwl., Prd., $AR$3) -> 0 | AS197: =+SUMIFS(Em.N2O.Unrep_dDwl., Prd., $AS$3) -> 0 | AT197: =+SUMIFS(Em.Fgas.Unrep_dDwl., Prd., $AT$3) -> 0 | AV197: 0 | AW197: 0 | AX197: 0 | AY197: 0 | AZ197: 0 | BA197: 0 | BR197: =Results!$E$276 -> Buildings-Residential | BS197: BuildingOther
B198: =Model!$H$666 -> Unrepresented Non-Domestic Floor Area | C198: =Model!$I$666 -> Unrep_nFlr. | E198: 0 | F198: 0 | G198: 0 | H198: 0 | I198: 0 | J198: 0 | K198: 0 | L198: 0 | M198: 0 | N198: 0 | O198: 0 | P198: 0 | Q198: 0 | R198: 0 | S198: 0 | T198: 0 | U198: 0 | V198: 0 | W198: 0 | X198: 0 | Y198: 0 | Z198: 0 | AA198: 0 | AB198: 0 | AC198: 0 | AD198: 0 | AE198: 0 | AF198: 0 | AG198: 0 | AH198: 0 | AI198: 0 | AJ198: 0 | AK198: 0 | AL198: =SUM(E198:N198) -> 0 | AM198: =SUM(O198:Z198) -> 0 | AN198: =SUM(AA198:AE198) -> 0 | AP198: =+SUMIFS(Em.GHG.Unrep_nFlr., Prd., $AP$3) -> 0 | AQ198: =+SUMIFS(Em.CO2.Unrep_nFlr., Prd., $AQ$3) -> 0 | AR198: =+SUMIFS(Em.CH4.Unrep_nFlr., Prd., $AR$3) -> 0 | AS198: =+SUMIFS(Em.N2O.Unrep_nFlr., Prd., $AS$3) -> 0 | AT198: =+SUMIFS(Em.Fgas.Unrep_nFlr., Prd., $AT$3) -> 0 | AV198: 0 | AW198: 0 | AX198: 0 | AY198: 0 | AZ198: 0 | BA198: 0 | BR198: =Results!$E$277 -> Buildings-Non-Residential | BS198: BuildingOther
B199: =Model!$H$667 -> Unrepresented Waste Management | C199: =Model!$I$667 -> Unrep_WstMan. | E199: 0 | F199: 0 | G199: 0 | H199: 0 | I199: 0 | J199: 0 | K199: 0 | L199: 0 | M199: 0 | N199: 0 | O199: 0 | P199: 0 | Q199: 0 | R199: 0 | S199: 0 | T199: 0 | U199: 0 | V199: 0 | W199: 0 | X199: 0 | Y199: 0 | Z199: 0 | AA199: 0 | AB199: 0 | AC199: 0 | AD199: 0 | AE199: 0 | AF199: 0 | AG199: 0 | AH199: 0 | AI199: 0 | AJ199: 0 | AK199: 0 | AL199: =SUM(E199:N199) -> 0 | AM199: =SUM(O199:Z199) -> 0 | AN199: =SUM(AA199:AE199) -> 0 | AP199: =+SUMIFS(Em.GHG.Unrep_WstMan., Prd., $AP$3) -> 0 | AQ199: =+SUMIFS(Em.CO2.Unrep_WstMan., Prd., $AQ$3) -> 0 | AR199: =+SUMIFS(Em.CH4.Unrep_WstMan., Prd., $AR$3) -> 0 | AS199: =+SUMIFS(Em.N2O.Unrep_WstMan., Prd., $AS$3) -> 0 | AT199: =+SUMIFS(Em.Fgas.Unrep_WstMan., Prd., $AT$3) -> 0 | AV199: 0 | AW199: 0 | AX199: 0 | AY199: 0 | AZ199: 0 | BA199: 0 | BR199: =Results!$E$273 -> Waste Management | BS199: Bio&Waste
E200: 0 | F200: 0 | G200: 0 | H200: 0 | I200: 0 | J200: 0 | K200: 0 | L200: 0 | M200: 0 | N200: 0 | O200: 0 | P200: 0 | Q200: 0 | R200: 0 | S200: 0 | T200: 0 | U200: 0 | V200: 0 | W200: 0 | X200: 0 | Y200: 0 | Z200: 0 | AA200: 0 | AB200: 0 | AC200: 0 | AD200: 0 | AE200: 0 | AF200: 0 | AG200: 0 | AH200: 0 | AI200: 0 | AJ200: 0 | AK200: 0
B201: =Model!$H$585 -> Electricity - Interconnectors | C201: =Model!$I$585 -> eInt. | E201: =+SUMIFS(EB.eInt.fElc., Prd., $E$3) -> 0 | F201: 0 | G201: 0 | H201: 0 | I201: 0 | J201: 0 | K201: 0 | L201: 0 | M201: 0 | N201: 0 | O201: 0 | P201: 0 | Q201: 0 | R201: 0 | S201: 0 | T201: 0 | U201: 0 | V201: 0 | W201: 0 | X201: 0 | Y201: 0 | Z201: 0 | AA201: 0 | AB201: 0 | AC201: 0 | AD201: 0 | AE201: 0 | AF201: 0 | AG201: 0 | AH201: 0 | AI201: 0 | AJ201: 0 | AK201: 0 | AL201: =SUM(E201:N201) -> 0 | AM201: =SUM(O201:Z201) -> 0 | AN201: =SUM(AA201:AE201) -> 0 | AP201: =+SUMIFS(Em.GHG.eInt., Prd., $AP$3) -> 0 | AQ201: =+SUMIFS(Em.CO2.eInt., Prd., $AQ$3) -> 0 | AR201: =+SUMIFS(Em.CH4.eInt., Prd., $AR$3) -> 0 | AS201: =+SUMIFS(Em.N2O.eInt., Prd., $AS$3) -> 0 | AT201: 0 | AV201: =+SUMIFS(Em.PM10.eInt., Prd., $AV$3) -> 0 | AW201: =+SUMIFS(Em.NOX.eInt., Prd., $AW$3) -> 0 | AX201: =+SUMIFS(Em.SO2.eInt., Prd., $AX$3) -> 0 | AY201: =+SUMIFS(Em.NMVOC.eInt., Prd., $AY$3) -> 0 | AZ201: =+SUMIFS(Em.PM2.5.eInt., Prd., $AZ$3) -> 0 | BA201: =+SUMIFS(Em.NH3.eInt., Prd., $BA$3) -> 0 | BR201: =Results!$E$282 -> Imports | BS201: Imports
... 143 more rows

Sheet FullTimeSeries
A1: FullTimeSeries | E1: =COLUMN() -> 5 | F1: =COLUMN() -> 6 | G1: =COLUMN() -> 7 | H1: =COLUMN() -> 8 | I1: =COLUMN() -> 9 | J1: =COLUMN() -> 10 | CQ1: =COLUMN() -> 95 | CS1: Code
E2: Module | F2: Code Description | G2: Code | H2: Units | I2: Value | J2: 2015 | K2: 2016 | L2: 2017 | M2: 2018 | N2: 2019 | O2: 2020 | P2: 2021 | Q2: 2022 | R2: 2023 | S2: 2024 | T2: 2025 | U2: 2026 | V2: 2027 | W2: 2028 | X2: 2029 | Y2: 2030 | Z2: 2031 | AA2: 2032 | AB2: 2033 | AC2: 2034 | AD2: 2035 | AE2: 2036 | AF2: 2037 | AG2: 2038 | AH2: 2039 | AI2: 2040 | AJ2: 2041 | AK2: 2042 | AL2: 2043 | AM2: 2044 | AN2: 2045 | AO2: 2046 | AP2: 2047 | AQ2: 2048 | AR2: 2049 | AS2: 2050 | AT2: 2051 | AU2: 2052 | AV2: 2053 | AW2: 2054 | AX2: 2055 | AY2: 2056 | AZ2: 2057 | BA2: 2058 | BB2: 2059 | BC2: 2060 | BD2: 2061 | BE2: 2062 | BF2: 2063 | BG2: 2064 | BH2: 2065 | BI2: 2066 | BJ2: 2067 | BK2: 2068 | BL2: 2069 | BM2: 2070 | BN2: 2071 | BO2: 2072 | BP2: 2073 | BQ2: 2074 | BR2: 2075 | BS2: 2076 | BT2: 2077 | BU2: 2078 | BV2: 2079 | BW2: 2080 | BX2: 2081 | BY2: 2082 | BZ2: 2083 | CA2: 2084 | CB2: 2085 | CC2: 2086 | CD2: 2087 | CE2: 2088 | CF2: 2089 | CG2: 2090 | CH2: 2091 | CI2: 2092 | CJ2: 2093 | CK2: 2094 | CL2: 2095 | CM2: 2096 | CN2: 2097 | CO2: 2098 | CP2: 2099 | CQ2: 2100 | CS2: Attribute | CT2: Pollutant | CU2: Process | CV2: Vector | CW2: FTS code | CX2: Type of data | CY2: Assumption Category | CZ2: Source Units or Preference Units | DA2: Primary Source | DB2: Source Accessed | DC2: Cell Reference | DD2: Hyperlink | DE2: Repository Reference | DF2: Methodology ID | DG2: Method ID (Data Type) | DH2: Description | DI2: Date source accessed | DJ2: Next update due on | DK2: Quality Rating | DL2: Impact rating | DM2: Description of Quality Rating | DN2: Description of Impact Rating | DO2: Priority flag for risk register | DP2: Notes / mitigation actions | DQ2: Approving Body
B3: Sheet Structure
A4: TS | E4: … | F4: … | G4: =SUBSTITUTE(CS4 & CT4 & CU4 & CV4 & CW4, "…", "") -> CurrYrColR.fts. | H4: … | I4: … | J4: =1 +COLUMN() -COLUMN(Year.) -> 1 | K4: 2 | L4: 3 | M4: 4 | N4: 5 | O4: 6 | P4: 7 | Q4: 8 | R4: 9 | S4: 10 | T4: 11 | U4: 12 | V4: 13 | W4: 14 | X4: 15 | Y4: 16 | Z4: 17 | AA4: 18 | AB4: 19 | AC4: 20 | AD4: 21 | AE4: 22 | AF4: 23 | AG4: 24 | AH4: 25 | AI4: 26 | AJ4: 27 | AK4: 28 | AL4: 29 | AM4: 30 | AN4: 31 | AO4: 32 | AP4: =1 +COLUMN() -COLUMN(Year.) -> 33 | AQ4: 34 | AR4: 35 | AS4: 36 | AT4: 37 | AU4: 38 | AV4: 39 | AW4: 40 | AX4: 41 | AY4: 42 | AZ4: 43 | BA4: 44 | BB4: 45 | BC4: 46 | BD4: 47 | BE4: 48 | BF4: 49 | BG4: 50 | BH4: 51 | BI4: 52 | BJ4: 53 | BK4: 54 | BL4: 55 | BM4: 56 | BN4: 57 | BO4: 58 | BP4: 59 | BQ4: 60 | BR4: 61 | BS4: 62 | BT4: 63 | BU4: 64 | BV4: =1 +COLUMN() -COLUMN(Year.) -> 65 | BW4: 66 | BX4: 67 | BY4: 68 | BZ4: 69 | CA4: 70 | CB4: 71 | CC4: 72 | CD4: 73 | CE4: 74 | CF4: 75 | CG4: 76 | CH4: 77 | CI4: 78 | CJ4: 79 | CK4: 80 | CL4: 81 | CM4: 82 | CN4: 83 | CO4: 84 | CP4: 85 | CQ4: 86 | CS4: =Model!$I$47 -> CurrYrColR. | CT4: … | CU4: … | CV4: … | CW4: fts. | CX4: Transformation | CY4: lookup | CZ4: nu | DA4: … | DB4: … | DC4: … | DD4: … | DE4: … | DF4: … | DG4: … | DH4: Column reference for the current year relative to the first year in time series named ranges. Used in calculations to look up the value of a time series in the current year. Calculated using the Excel "COLUMN()" function to calculate the difference between column reference of the current cell and the cell at the start of the named range defining the years. | DI4: … | DJ4: … | DK4: Green | DL4: … | DM4: … | DN4: … | DO4: … | DP4: … | DQ4: …
A5: TS | E5: … | F5: … | G5: PrevYrColR.fts. | H5: … | I5: … | J5: =+CurrYrColR.fts. -1 -> 0 | K5: 1 | L5: 2 | M5: 3 | N5: 4 | O5: 5 | P5: 6 | Q5: 7 | R5: 8 | S5: 9 | T5: 10 | U5: 11 | V5: 12 | W5: 13 | X5: 14 | Y5: 15 | Z5: 16 | AA5: 17 | AB5: 18 | AC5: 19 | AD5: 20 | AE5: 21 | AF5: 22 | AG5: 23 | AH5: 24 | AI5: 25 | AJ5: 26 | AK5: 27 | AL5: 28 | AM5: 29 | AN5: 30 | AO5: 31 | AP5: =+CurrYrColR.fts. -1 -> 32 | AQ5: 33 | AR5: 34 | AS5: 35 | AT5: 36 | AU5: 37 | AV5: 38 | AW5: 39 | AX5: 40 | AY5: 41 | AZ5: 42 | BA5: 43 | BB5: 44 | BC5: 45 | BD5: 46 | BE5: 47 | BF5: 48 | BG5: 49 | BH5: 50 | BI5: 51 | BJ5: 52 | BK5: 53 | BL5: 54 | BM5: 55 | BN5: 56 | BO5: 57 | BP5: 58 | BQ5: 59 | BR5: 60 | BS5: 61 | BT5: 62 | BU5: 63 | BV5: =+CurrYrColR.fts. -1 -> 64 | BW5: 65 | BX5: 66 | BY5: 67 | BZ5: 68 | CA5: 69 | CB5: 70 | CC5: 71 | CD5: 72 | CE5: 73 | CF5: 74 | CG5: 75 | CH5: 76 | CI5: 77 | CJ5: 78 | CK5: 79 | CL5: 80 | CM5: 81 | CN5: 82 | CO5: 83 | CP5: 84 | CQ5: 85 | CS5: =Model!$I$48 -> PrevYrColR. | CT5: … | CU5: … | CV5: … | CW5: fts. | CX5: Transformation | CY5: lookup | CZ5: nu | DA5: … | DB5: … | DC5: … | DD5: … | DE5: … | DF5: … | DG5: … | DH5: Column reference for the previous year relative to the first year in time series named ranges. Used in calculations to look up the value of a time series in the previous year. Calculated as the column reference for the current year minus one column. | DI5: … | DJ5: … | DK5: Green | DL5: … | DM5: … | DN5: … | DO5: … | DP5: … | DQ5: …
A6: TS | E6: … | F6: … | G6: PrdBeg.fts. | H6: … | I6: … | J6: 2010 | K6: 2015 | L6: 2015 | M6: 2015 | N6: 2015 | O6: 2015 | P6: 2020 | Q6: 2020 | R6: 2020 | S6: 2020 | T6: 2020 | U6: 2025 | V6: 2025 | W6: 2025 | X6: 2025 | Y6: 2025 | Z6: 2030 | AA6: 2030 | AB6: 2030 | AC6: 2030 | AD6: 2030 | AE6: 2035 | AF6: 2035 | AG6: 2035 | AH6: 2035 | AI6: 2035 | AJ6: 2040 | AK6: 2040 | AL6: 2040 | AM6: 2040 | AN6: 2040 | AO6: 2045 | AP6: 2045 | AQ6: 2045 | AR6: 2045 | AS6: 2045 | AT6: 2050 | AU6: 2050 | AV6: 2050 | AW6: 2050 | AX6: 2050 | AY6: 2055 | AZ6: 2055 | BA6: 2055 | BB6: 2055 | BC6: 2055 | BD6: 2060 | BE6: 2060 | BF6: 2060 | BG6: 2060 | BH6: 2060 | BI6: 2065 | BJ6: 2065 | BK6: 2065 | BL6: 2065 | BM6: 2065 | BN6: 2070 | BO6: 2070 | BP6: 2070 | BQ6: 2070 | BR6: 2070 | BS6: 2075 | BT6: 2075 | BU6: 2075 | BV6: 2075 | BW6: 2075 | BX6: 2080 | BY6: 2080 | BZ6: 2080 | CA6: 2080 | CB6: 2080 | CC6: 2085 | CD6: 2085 | CE6: 2085 | CF6: 2085 | CG6: 2085 | CH6: 2090 | CI6: 2090 | CJ6: 2090 | CK6: 2090 | CL6: 2090 | CM6: 2095 | CN6: 2095 | CO6: 2095 | CP6: 2095 | CQ6: 2095 | CS6: =Model!$I$49 -> PrdBeg. | CT6: … | CU6: … | CV6: … | CW6: fts. | CX6: Transformation | CY6: lookup | CZ6: nu | DA6: … | DB6: … | DC6: … | DD6: … | DE6: … | DF6: … | DG6: … | DH6: Beginning of the modelled period containing the current year. (end year of previous period) | DI6: … | DJ6: … | DK6: Green | DL6: … | DM6: … | DN6: … | DO6: … | DP6: … | DQ6: …
A7: TS | E7: … | F7: … | G7: PrdEnd.fts. | H7: … | I7: … | J7: 2015 | K7: 2020 | L7: 2020 | M7: 2020 | N7: 2020 | O7: 2020 | P7: 2025 | Q7: 2025 | R7: 2025 | S7: 2025 | T7: 2025 | U7: 2030 | V7: 2030 | W7: 2030 | X7: 2030 | Y7: 2030 | Z7: 2035 | AA7: 2035 | AB7: 2035 | AC7: 2035 | AD7: 2035 | AE7: 2040 | AF7: 2040 | AG7: 2040 | AH7: 2040 | AI7: 2040 | AJ7: 2045 | AK7: 2045 | AL7: 2045 | AM7: 2045 | AN7: 2045 | AO7: 2050 | AP7: 2050 | AQ7: 2050 | AR7: 2050 | AS7: 2050 | AT7: 2055 | AU7: 2055 | AV7: 2055 | AW7: 2055 | AX7: 2055 | AY7: 2060 | AZ7: 2060 | BA7: 2060 | BB7: 2060 | BC7: 2060 | BD7: 2065 | BE7: 2065 | BF7: 2065 | BG7: 2065 | BH7: 2065 | BI7: 2070 | BJ7: 2070 | BK7: 2070 | BL7: 2070 | BM7: 2070 | BN7: 2075 | BO7: 2075 | BP7: 2075 | BQ7: 2075 | BR7: 2075 | BS7: 2080 | BT7: 2080 | BU7: 2080 | BV7: 2080 | BW7: 2080 | BX7: 2085 | BY7: 2085 | BZ7: 2085 | CA7: 2085 | CB7: 2085 | CC7: 2090 | CD7: 2090 | CE7: 2090 | CF7: 2090 | CG7: 2090 | CH7: 2095 | CI7: 2095 | CJ7: 2095 | CK7: 2095 | CL7: 2095 | CM7: 2100 | CN7: 2100 | CO7: 2100 | CP7: 2100 | CQ7: 2100 | CS7: =Model!$I$50 -> PrdEnd. | CT7: … | CU7: … | CV7: … | CW7: fts. | CX7: Transformation | CY7: lookup | CZ7: nu | DA7: … | DB7: … | DC7: … | DD7: … | DE7: … | DF7: … | DG7: … | DH7: End year of the modelled period containing the current year. | DI7: … | DJ7: … | DK7: Green | DL7: … | DM7: … | DN7: … | DO7: … | DP7: … | DQ7: …
A8: TS | E8: … | F8: … | G8: TimePrdBeg.fts. | H8: … | I8: … | J8: =+Year. -PrdBeg.fts. -> 5 | K8: 1 | L8: 2 | M8: 3 | N8: 4 | O8: 5 | P8: 1 | Q8: 2 | R8: 3 | S8: 4 | T8: 5 | U8: 1 | V8: 2 | W8: 3 | X8: 4 | Y8: 5 | Z8: 1 | AA8: 2 | AB8: 3 | AC8: 4 | AD8: 5 | AE8: 1 | AF8: 2 | AG8: 3 | AH8: 4 | AI8: 5 | AJ8: 1 | AK8: 2 | AL8: 3 | AM8: 4 | AN8: 5 | AO8: 1 | AP8: =+Year. -PrdBeg.fts. -> 2 | AQ8: 3 | AR8: 4 | AS8: 5 | AT8: 1 | AU8: 2 | AV8: 3 | AW8: 4 | AX8: 5 | AY8: 1 | AZ8: 2 | BA8: 3 | BB8: 4 | BC8: 5 | BD8: 1 | BE8: 2 | BF8: 3 | BG8: 4 | BH8: 5 | BI8: 1 | BJ8: 2 | BK8: 3 | BL8: 4 | BM8: 5 | BN8: 1 | BO8: 2 | BP8: 3 | BQ8: 4 | BR8: 5 | BS8: 1 | BT8: 2 | BU8: 3 | BV8: =+Year. -PrdBeg.fts. -> 4 | BW8: 5 | BX8: 1 | BY8: 2 | BZ8: 3 | CA8: 4 | CB8: 5 | CC8: 1 | CD8: 2 | CE8: 3 | CF8: 4 | CG8: 5 | CH8: 1 | CI8: 2 | CJ8: 3 | CK8: 4 | CL8: 5 | CM8: 1 | CN8: 2 | CO8: 3 | CP8: 4 | CQ8: 5 | CS8: =Model!$I$51 -> TimePrdBeg. | CT8: … | CU8: … | CV8: … | CW8: fts. | CX8: Transformation | CY8: lookup | CZ8: nu | DA8: … | DB8: … | DC8: … | DD8: … | DE8: … | DF8: … | DG8: … | DH8: Years since the beginning of the modelled period. Used to interpolate capacity requirements and costs between modelled years. | DI8: … | DJ8: … | DK8: Green | DL8: … | DM8: … | DN8: … | DO8: … | DP8: … | DQ8: …
A9: TS | E9: … | F9: … | G9: TimePrdEnd.fts. | H9: … | I9: … | J9: =+PrdEnd.fts. -Year. -> 0 | K9: 4 | L9: 3 | M9: 2 | N9: 1 | O9: 0 | P9: 4 | Q9: 3 | R9: 2 | S9: 1 | T9: 0 | U9: 4 | V9: 3 | W9: 2 | X9: 1 | Y9: 0 | Z9: 4 | AA9: 3 | AB9: 2 | AC9: 1 | AD9: 0 | AE9: 4 | AF9: 3 | AG9: 2 | AH9: 1 | AI9: 0 | AJ9: 4 | AK9: 3 | AL9: 2 | AM9: 1 | AN9: 0 | AO9: 4 | AP9: =+PrdEnd.fts. -Year. -> 3 | AQ9: 2 | AR9: 1 | AS9: 0 | AT9: 4 | AU9: 3 | AV9: 2 | AW9: 1 | AX9: 0 | AY9: 4 | AZ9: 3 | BA9: 2 | BB9: 1 | BC9: 0 | BD9: 4 | BE9: 3 | BF9: 2 | BG9: 1 | BH9: 0 | BI9: 4 | BJ9: 3 | BK9: 2 | BL9: 1 | BM9: 0 | BN9: 4 | BO9: 3 | BP9: 2 | BQ9: 1 | BR9: 0 | BS9: 4 | BT9: 3 | BU9: 2 | BV9: =+PrdEnd.fts. -Year. -> 1 | BW9: 0 | BX9: 4 | BY9: 3 | BZ9: 2 | CA9: 1 | CB9: 0 | CC9: 4 | CD9: 3 | CE9: 2 | CF9: 1 | CG9: 0 | CH9: 4 | CI9: 3 | CJ9: 2 | CK9: 1 | CL9: 0 | CM9: 4 | CN9: 3 | CO9: 2 | CP9: 1 | CQ9: 0 | CS9: =Model!$I$52 -> TimePrdEnd. | CT9: … | CU9: … | CV9: … | CW9: fts. | CX9: Transformation | CY9: lookup | CZ9: nu | DA9: … | DB9: … | DC9: … | DD9: … | DE9: … | DF9: … | DG9: … | DH9: Years until the end of the modelled period. Used to interpolate capacity requirements and costs between modelled years. | DI9: … | DJ9: … | DK9: Green | DL9: … | DM9: … | DN9: … | DO9: … | DP9: … | DQ9: …
A10: TS | E10: … | F10: … | G10: ShrTimePrdBeg.fts. | H10: … | I10: … | J10: =+TimePrdEnd.fts. / (PrdEnd.fts. -PrdBeg.fts.) -> 0 | K10: 0.8 | L10: 0.6 | M10: 0.4 | N10: 0.2 | O10: 0 | P10: 0.8 | Q10: 0.6 | R10: 0.4 | S10: 0.2 | T10: 0 | U10: 0.8 | V10: 0.6 | W10: 0.4 | X10: 0.2 | Y10: 0 | Z10: 0.8 | AA10: 0.6 | AB10: 0.4 | AC10: 0.2 | AD10: 0 | AE10: 0.8 | AF10: 0.6 | AG10: 0.4 | AH10: 0.2 | AI10: 0 | AJ10: 0.8 | AK10: 0.6 | AL10: 0.4 | AM10: 0.2 | AN10: 0 | AO10: 0.8 | AP10: =+TimePrdEnd.fts. / (PrdEnd.fts. -PrdBeg.fts.) -> 0.6 | AQ10: 0.4 | AR10: 0.2 | AS10: 0 | AT10: 0.8 | AU10: 0.6 | AV10: 0.4 | AW10: 0.2 | AX10: 0 | AY10: 0.8 | AZ10: 0.6 | BA10: 0.4 | BB10: 0.2 | BC10: 0 | BD10: 0.8 | BE10: 0.6 | BF10: 0.4 | BG10: 0.2 | BH10: 0 | BI10: 0.8 | BJ10: 0.6 | BK10: 0.4 | BL10: 0.2 | BM10: 0 | BN10: 0.8 | BO10: 0.6 | BP10: 0.4 | BQ10: 0.2 | BR10: 0 | BS10: 0.8 | BT10: 0.6 | BU10: 0.4 | BV10: =+TimePrdEnd.fts. / (PrdEnd.fts. -PrdBeg.fts.) -> 0.2 | BW10: 0 | BX10: 0.8 | BY10: 0.6 | BZ10: 0.4 | CA10: 0.2 | CB10: 0 | CC10: 0.8 | CD10: 0.6 | CE10: 0.4 | CF10: 0.2 | CG10: 0 | CH10: 0.8 | CI10: 0.6 | CJ10: 0.4 | CK10: 0.2 | CL10: 0 | CM10: 0.8 | CN10: 0.6 | CO10: 0.4 | CP10: 0.2 | CQ10: 0 | CS10: =Model!$I$53 -> ShrTimePrdBeg. | CT10: … | CU10: … | CV10: … | CW10: fts. | CX10: Transformation | CY10: lookup | CZ10: nu | DA10: … | DB10: … | DC10: … | DD10: … | DE10: … | DF10: … | DG10: … | DH10: Weighting given to the value in the modelled year at the beginning of the period when interpolating capacity requirements and costs between modelled years. | DI10: … | DJ10: … | DK10: Green | DL10: … | DM10: … | DN10: … | DO10: … | DP10: … | DQ10: …
A11: TS | E11: … | F11: … | G11: ShrTimePrdEnd.fts. | H11: … | I11: … | J11: =+TimePrdBeg.fts. / (PrdEnd.fts. -PrdBeg.fts.) -> 1 | K11: 0.2 | L11: 0.4 | M11: 0.6 | N11: 0.8 | O11: 1 | P11: 0.2 | Q11: 0.4 | R11: 0.6 | S11: 0.8 | T11: 1 | U11: 0.2 | V11: 0.4 | W11: 0.6 | X11: 0.8 | Y11: 1 | Z11: 0.2 | AA11: 0.4 | AB11: 0.6 | AC11: 0.8 | AD11: 1 | AE11: 0.2 | AF11: 0.4 | AG11: 0.6 | AH11: 0.8 | AI11: 1 | AJ11: 0.2 | AK11: 0.4 | AL11: 0.6 | AM11: 0.8 | AN11: 1 | AO11: 0.2 | AP11: =+TimePrdBeg.fts. / (PrdEnd.fts. -PrdBeg.fts.) -> 0.4 | AQ11: 0.6 | AR11: 0.8 | AS11: 1 | AT11: 0.2 | AU11: 0.4 | AV11: 0.6 | AW11: 0.8 | AX11: 1 | AY11: 0.2 | AZ11: 0.4 | BA11: 0.6 | BB11: 0.8 | BC11: 1 | BD11: 0.2 | BE11: 0.4 | BF11: 0.6 | BG11: 0.8 | BH11: 1 | BI11: 0.2 | BJ11: 0.4 | BK11: 0.6 | BL11: 0.8 | BM11: 1 | BN11: 0.2 | BO11: 0.4 | BP11: 0.6 | BQ11: 0.8 | BR11: 1 | BS11: 0.2 | BT11: 0.4 | BU11: 0.6 | BV11: =+TimePrdBeg.fts. / (PrdEnd.fts. -PrdBeg.fts.) -> 0.8 | BW11: 1 | BX11: 0.2 | BY11: 0.4 | BZ11: 0.6 | CA11: 0.8 | CB11: 1 | CC11: 0.2 | CD11: 0.4 | CE11: 0.6 | CF11: 0.8 | CG11: 1 | CH11: 0.2 | CI11: 0.4 | CJ11: 0.6 | CK11: 0.8 | CL11: 1 | CM11: 0.2 | CN11: 0.4 | CO11: 0.6 | CP11: 0.8 | CQ11: 1 | CS11: =Model!$I$54 -> ShrTimePrdEnd. | CT11: … | CU11: … | CV11: … | CW11: fts. | CX11: Transformation | CY11: lookup | CZ11: nu | DA11: … | DB11: … | DC11: … | DD11: … | DE11: … | DF11: … | DG11: … | DH11: Weighting given to the value in the modelled year at the end of the period when interpolating capacity requirements and costs between modelled years. | DI11: … | DJ11: … | DK11: Green | DL11: … | DM11: … | DN11: … | DO11: … | DP11: … | DQ11: …
B12: Capacity
C13: Base Year Capacity
A14: Const | E14: BHT. | F14: … | G14: =SUBSTITUTE(CS14 & CT14 & CU14 & CV14 & CW14, "…", "") -> CapBY.dDHN.fts. | H14: =Model!J2748 -> Dwellings | I14: =SUMIFS(CapReq.dDHN., Prd., BY.) -> 0 | J14: … | K14: … | L14: … | M14: … | N14: … | O14: … | P14: … | Q14: … | R14: … | S14: … | T14: … | U14: … | V14: … | W14: … | X14: … | Y14: … | Z14: … | AA14: … | AB14: … | AC14: … | AD14: … | AE14: … | AF14: … | AG14: … | AH14: … | AI14: … | AJ14: … | AK14: … | AL14: … | AM14: … | AN14: … | AO14: … | AP14: … | AQ14: … | AR14: … | AS14: … | AT14: … | AU14: … | AV14: … | AW14: … | AX14: … | AY14: … | AZ14: … | BA14: … | BB14: … | BC14: … | BD14: … | BE14: … | BF14: … | BG14: … | BH14: … | BI14: … | BJ14: … | BK14: … | BL14: … | BM14: … | BN14: … | BO14: … | BP14: … | BQ14: … | BR14: … | BS14: … | BT14: … | BU14: … | BV14: … | BW14: … | BX14: … | BY14: … | BZ14: … | CA14: … | CB14: … | CC14: … | CD14: … | CE14: … | CF14: … | CG14: … | CH14: … | CI14: … | CJ14: … | CK14: … | CL14: … | CM14: … | CN14: … | CO14: … | CP14: … | CQ14: … | CS14: =Model!$I$184 -> CapBY. | CT14: … | CU14: =Model!$I$497 -> dDHN. | CV14: … | CW14: fts. | CX14: Transformation | CY14: lookup | CZ14: su | DA14: … | DB14: … | DC14: … | DD14: … | DE14: … | DF14: … | DG14: … | DH14: Capacity in the model base year. Calculated by summing the capacity required series in the Model sheet for periods equal to the model base year (i.e. looks up the value for the model base year). Assumes that no spare capacity above what is required is installed. | DI14: … | DJ14: … | DK14: Amber | DL14: … | DM14: … | DN14: … | DO14: … | DP14: … | DQ14: … | DR14: ="= SUMIFS(CapReq."&CU14&", Prd., BY.)" -> = SUMIFS(CapReq.dDHN., Prd., BY.)
A15: Const | E15: BHT. | F15: … | G15: =SUBSTITUTE(CS15 & CT15 & CU15 & CV15 & CW15, "…", "") -> CapBY.dHPA.fts. | H15: =Model!J2749 -> Dwellings | I15: =SUMIFS(CapReq.dHPA., Prd., BY.) -> 0 | J15: … | K15: … | L15: … | M15: … | N15: … | O15: … | P15: … | Q15: … | R15: … | S15: … | T15: … | U15: … | V15: … | W15: … | X15: … | Y15: … | Z15: … | AA15: … | AB15: … | AC15: … | AD15: … | AE15: … | AF15: … | AG15: … | AH15: … | AI15: … | AJ15: … | AK15: … | AL15: … | AM15: … | AN15: … | AO15: … | AP15: … | AQ15: … | AR15: … | AS15: … | AT15: … | AU15: … | AV15: … | AW15: … | AX15: … | AY15: … | AZ15: … | BA15: … | BB15: … | BC15: … | BD15: … | BE15: … | BF15: … | BG15: … | BH15: … | BI15: … | BJ15: … | BK15: … | BL15: … | BM15: … | BN15: … | BO15: … | BP15: … | BQ15: … | BR15: … | BS15: … | BT15: … | BU15: … | BV15: … | BW15: … | BX15: … | BY15: … | BZ15: … | CA15: … | CB15: … | CC15: … | CD15: … | CE15: … | CF15: … | CG15: … | CH15: … | CI15: … | CJ15: … | CK15: … | CL15: … | CM15: … | CN15: … | CO15: … | CP15: … | CQ15: … | CS15: =Model!$I$184 -> CapBY. | CT15: … | CU15: =Model!$I$494 -> dHPA. | CV15: … | CW15: fts. | CX15: Transformation | CY15: lookup | CZ15: su | DA15: … | DB15: … | DC15: … | DD15: … | DE15: … | DF15: … | DG15: … | DH15: Capacity in the model base year. Calculated by summing the capacity required series in the Model sheet for periods equal to the model base year (i.e. looks up the value for the model base year). Assumes that no spare capacity above what is required is installed. | DI15: … | DJ15: … | DK15: Amber | DL15: … | DM15: … | DN15: … | DO15: … | DP15: … | DQ15: … | DR15: ="= SUMIFS(CapReq."&CU15&", Prd., BY.)" -> = SUMIFS(CapReq.dHPA., Prd., BY.)
A16: Const | E16: BHT. | F16: … | G16: CapBY.dHPG.fts. | H16: =Model!J2750 -> Dwellings | I16: =SUMIFS(CapReq.dHPG., Prd., BY.) -> 0 | J16: … | K16: … | L16: … | M16: … | N16: … | O16: … | P16: … | Q16: … | R16: … | S16: … | T16: … | U16: … | V16: … | W16: … | X16: … | Y16: … | Z16: … | AA16: … | AB16: … | AC16: … | AD16: … | AE16: … | AF16: … | AG16: … | AH16: … | AI16: … | AJ16: … | AK16: … | AL16: … | AM16: … | AN16: … | AO16: … | AP16: … | AQ16: … | AR16: … | AS16: … | AT16: … | AU16: … | AV16: … | AW16: … | AX16: … | AY16: … | AZ16: … | BA16: … | BB16: … | BC16: … | BD16: … | BE16: … | BF16: … | BG16: … | BH16: … | BI16: … | BJ16: … | BK16: … | BL16: … | BM16: … | BN16: … | BO16: … | BP16: … | BQ16: … | BR16: … | BS16: … | BT16: … | BU16: … | BV16: … | BW16: … | BX16: … | BY16: … | BZ16: … | CA16: … | CB16: … | CC16: … | CD16: … | CE16: … | CF16: … | CG16: … | CH16: … | CI16: … | CJ16: … | CK16: … | CL16: … | CM16: … | CN16: … | CO16: … | CP16: … | CQ16: … | CS16: =Model!$I$184 -> CapBY. | CT16: … | CU16: =Model!$I$495 -> dHPG. | CV16: … | CW16: fts. | CX16: Transformation | CY16: lookup | CZ16: su | DA16: … | DB16: … | DC16: … | DD16: … | DE16: … | DF16: … | DG16: … | DH16: Capacity in the model base year. Calculated by summing the capacity required series in the Model sheet for periods equal to the model base year (i.e. looks up the value for the model base year). Assumes that no spare capacity above what is required is installed. | DI16: … | DJ16: … | DK16: Amber | DL16: … | DM16: … | DN16: … | DO16: … | DP16: … | DQ16: … | DR16: = SUMIFS(CapReq.dHPG., Prd., BY.)
A17: Const | E17: BHT. | F17: … | G17: CapBY.dHyb.fts. | H17: =Model!J2751 -> Dwellings | I17: =SUMIFS(CapReq.dHyb., Prd., BY.) -> 0 | J17: … | K17: … | L17: … | M17: … | N17: … | O17: … | P17: … | Q17: … | R17: … | S17: … | T17: … | U17: … | V17: … | W17: … | X17: … | Y17: … | Z17: … | AA17: … | AB17: … | AC17: … | AD17: … | AE17: … | AF17: … | AG17: … | AH17: … | AI17: … | AJ17: … | AK17: … | AL17: … | AM17: … | AN17: … | AO17: … | AP17: … | AQ17: … | AR17: … | AS17: … | AT17: … | AU17: … | AV17: … | AW17: … | AX17: … | AY17: … | AZ17: … | BA17: … | BB17: … | BC17: … | BD17: … | BE17: … | BF17: … | BG17: … | BH17: … | BI17: … | BJ17: … | BK17: … | BL17: … | BM17: … | BN17: … | BO17: … | BP17: … | BQ17: … | BR17: … | BS17: … | BT17: … | BU17: … | BV17: … | BW17: … | BX17: … | BY17: … | BZ17: … | CA17: … | CB17: … | CC17: … | CD17: … | CE17: … | CF17: … | CG17: … | CH17: … | CI17: … | CJ17: … | CK17: … | CL17: … | CM17: … | CN17: … | CO17: … | CP17: … | CQ17: … | CS17: =Model!$I$184 -> CapBY. | CT17: … | CU17: =Model!$I$496 -> dHyb. | CV17: … | CW17: fts. | CX17: Transformation | CY17: lookup | CZ17: su | DA17: … | DB17: … | DC17: … | DD17: … | DE17: … | DF17: … | DG17: … | DH17: Capacity in the model base year. Calculated by summing the capacity required series in the Model sheet for periods equal to the model base year (i.e. looks up the value for the model base year). Assumes that no spare capacity above what is required is installed. | DI17: … | DJ17: … | DK17: Amber | DL17: … | DM17: … | DN17: … | DO17: … | DP17: … | DQ17: … | DR17: = SUMIFS(CapReq.dHyb., Prd., BY.)
A18: Const | E18: BHT. | F18: … | G18: CapBY.dblO.fts. | H18: =Model!J2752 -> Dwellings | I18: =SUMIFS(CapReq.dblO., Prd., BY.) -> 0 | J18: … | K18: … | L18: … | M18: … | N18: … | O18: … | P18: … | Q18: … | R18: … | S18: … | T18: … | U18: … | V18: … | W18: … | X18: … | Y18: … | Z18: … | AA18: … | AB18: … | AC18: … | AD18: … | AE18: … | AF18: … | AG18: … | AH18: … | AI18: … | AJ18: … | AK18: … | AL18: … | AM18: … | AN18: … | AO18: … | AP18: … | AQ18: … | AR18: … | AS18: … | AT18: … | AU18: … | AV18: … | AW18: … | AX18: … | AY18: … | AZ18: … | BA18: … | BB18: … | BC18: … | BD18: … | BE18: … | BF18: … | BG18: … | BH18: … | BI18: … | BJ18: … | BK18: … | BL18: … | BM18: … | BN18: … | BO18: … | BP18: … | BQ18: … | BR18: … | BS18: … | BT18: … | BU18: … | BV18: … | BW18: … | BX18: … | BY18: … | BZ18: … | CA18: … | CB18: … | CC18: … | CD18: … | CE18: … | CF18: … | CG18: … | CH18: … | CI18: … | CJ18: … | CK18: … | CL18: … | CM18: … | CN18: … | CO18: … | CP18: … | CQ18: … | CS18: =Model!$I$184 -> CapBY. | CT18: … | CU18: =Model!$I$488 -> dblO. | CV18: … | CW18: fts. | CX18: Transformation | CY18: lookup | CZ18: su | DA18: … | DB18: … | DC18: … | DD18: … | DE18: … | DF18: … | DG18: … | DH18: Capacity in the model base year. Calculated by summing the capacity required series in the Model sheet for periods equal to the model base year (i.e. looks up the value for the model base year). Assumes that no spare capacity above what is required is installed. | DI18: … | DJ18: … | DK18: Amber | DL18: … | DM18: … | DN18: … | DO18: … | DP18: … | DQ18: … | DR18: = SUMIFS(CapReq.dblO., Prd., BY.)
A19: Const | E19: BHT. | F19: … | G19: CapBY.dblS.fts. | H19: =Model!J2753 -> Dwellings | I19: =SUMIFS(CapReq.dblS., Prd., BY.) -> 0 | J19: … | K19: … | L19: … | M19: … | N19: … | O19: … | P19: … | Q19: … | R19: … | S19: … | T19: … | U19: … | V19: … | W19: … | X19: … | Y19: … | Z19: … | AA19: … | AB19: … | AC19: … | AD19: … | AE19: … | AF19: … | AG19: … | AH19: … | AI19: … | AJ19: … | AK19: … | AL19: … | AM19: … | AN19: … | AO19: … | AP19: … | AQ19: … | AR19: … | AS19: … | AT19: … | AU19: … | AV19: … | AW19: … | AX19: … | AY19: … | AZ19: … | BA19: … | BB19: … | BC19: … | BD19: … | BE19: … | BF19: … | BG19: … | BH19: … | BI19: … | BJ19: … | BK19: … | BL19: … | BM19: … | BN19: … | BO19: … | BP19: … | BQ19: … | BR19: … | BS19: … | BT19: … | BU19: … | BV19: … | BW19: … | BX19: … | BY19: … | BZ19: … | CA19: … | CB19: … | CC19: … | CD19: … | CE19: … | CF19: … | CG19: … | CH19: … | CI19: … | CJ19: … | CK19: … | CL19: … | CM19: … | CN19: … | CO19: … | CP19: … | CQ19: … | CS19: =Model!$I$184 -> CapBY. | CT19: … | CU19: =Model!$I$489 -> dblS. | CV19: … | CW19: fts. | CX19: Transformation | CY19: lookup | CZ19: su | DA19: … | DB19: … | DC19: … | DD19: … | DE19: … | DF19: … | DG19: … | DH19: Capacity in the model base year. Calculated by summing the capacity required series in the Model sheet for periods equal to the model base year (i.e. looks up the value for the model base year). Assumes that no spare capacity above what is required is installed. | DI19: … | DJ19: … | DK19: Amber | DL19: … | DM19: … | DN19: … | DO19: … | DP19: … | DQ19: … | DR19: = SUMIFS(CapReq.dblS., Prd., BY.)
A20: Const | E20: BHT. | F20: … | G20: CapBY.dblG.fts. | H20: =Model!J2754 -> Dwellings | I20: =SUMIFS(CapReq.dblG., Prd., BY.) -> 0 | J20: … | K20: … | L20: … | M20: … | N20: … | O20: … | P20: … | Q20: … | R20: … | S20: … | T20: … | U20: … | V20: … | W20: … | X20: … | Y20: … | Z20: … | AA20: … | AB20: … | AC20: … | AD20: … | AE20: … | AF20: … | AG20: … | AH20: … | AI20: … | AJ20: … | AK20: … | AL20: … | AM20: … | AN20: … | AO20: … | AP20: … | AQ20: … | AR20: … | AS20: … | AT20: … | AU20: … | AV20: … | AW20: … | AX20: … | AY20: … | AZ20: … | BA20: … | BB20: … | BC20: … | BD20: … | BE20: … | BF20: … | BG20: … | BH20: … | BI20: … | BJ20: … | BK20: … | BL20: … | BM20: … | BN20: … | BO20: … | BP20: … | BQ20: … | BR20: … | BS20: … | BT20: … | BU20: … | BV20: … | BW20: … | BX20: … | BY20: … | BZ20: … | CA20: … | CB20: … | CC20: … | CD20: … | CE20: … | CF20: … | CG20: … | CH20: … | CI20: … | CJ20: … | CK20: … | CL20: … | CM20: … | CN20: … | CO20: … | CP20: … | CQ20: … | CS20: =Model!$I$184 -> CapBY. | CT20: … | CU20: =Model!$I$487 -> dblG. | CV20: … | CW20: fts. | CX20: Transformation | CY20: lookup | CZ20: su | DA20: … | DB20: … | DC20: … | DD20: … | DE20: … | DF20: … | DG20: … | DH20: Capacity in the model base year. Calculated by summing the capacity required series in the Model sheet for periods equal to the model base year (i.e. looks up the value for the model base year). Assumes that no spare capacity above what is required is installed. | DI20: … | DJ20: … | DK20: Amber | DL20: … | DM20: … | DN20: … | DO20: … | DP20: … | DQ20: … | DR20: = SUMIFS(CapReq.dblG., Prd., BY.)
A21: Const | E21: BHT. | F21: … | G21: CapBY.dhtE.fts. | H21: =Model!J2755 -> Dwellings | I21: =SUMIFS(CapReq.dhtE., Prd., BY.) -> 11277149.05 | J21: … | K21: … | L21: … | M21: … | N21: … | O21: … | P21: … | Q21: … | R21: … | S21: … | T21: … | U21: … | V21: … | W21: … | X21: … | Y21: … | Z21: … | AA21: … | AB21: … | AC21: … | AD21: … | AE21: … | AF21: … | AG21: … | AH21: … | AI21: … | AJ21: … | AK21: … | AL21: … | AM21: … | AN21: … | AO21: … | AP21: … | AQ21: … | AR21: … | AS21: … | AT21: … | AU21: … | AV21: … | AW21: … | AX21: … | AY21: … | AZ21: … | BA21: … | BB21: … | BC21: … | BD21: … | BE21: … | BF21: … | BG21: … | BH21: … | BI21: … | BJ21: … | BK21: … | BL21: … | BM21: … | BN21: … | BO21: … | BP21: … | BQ21: … | BR21: … | BS21: … | BT21: … | BU21: … | BV21: … | BW21: … | BX21: … | BY21: … | BZ21: … | CA21: … | CB21: … | CC21: … | CD21: … | CE21: … | CF21: … | CG21: … | CH21: … | CI21: … | CJ21: … | CK21: … | CL21: … | CM21: … | CN21: … | CO21: … | CP21: … | CQ21: … | CS21: =Model!$I$184 -> CapBY. | CT21: … | CU21: =Model!$I$491 -> dhtE. | CV21: … | CW21: fts. | CX21: Transformation | CY21: lookup | CZ21: su | DA21: … | DB21: … | DC21: … | DD21: … | DE21: … | DF21: … | DG21: … | DH21: Capacity in the model base year. Calculated by summing the capacity required series in the Model sheet for periods equal to the model base year (i.e. looks up the value for the model base year). Assumes that no spare capacity above what is required is installed. | DI21: … | DJ21: … | DK21: Amber | DL21: … | DM21: … | DN21: … | DO21: … | DP21: … | DQ21: … | DR21: = SUMIFS(CapReq.dhtE., Prd., BY.)
A22: Const | E22: BHT. | F22: … | G22: CapBY.dDwlNwI.fts. | H22: =Model!J2756 -> Dwellings | I22: =SUMIFS(CapReq.dDwlNwI., Prd., BY.) -> 0 | J22: … | K22: … | L22: … | M22: … | N22: … | O22: … | P22: … | Q22: … | R22: … | S22: … | T22: … | U22: … | V22: … | W22: … | X22: … | Y22: … | Z22: … | AA22: … | AB22: … | AC22: … | AD22: … | AE22: … | AF22: … | AG22: … | AH22: … | AI22: … | AJ22: … | AK22: … | AL22: … | AM22: … | AN22: … | AO22: … | AP22: … | AQ22: … | AR22: … | AS22: … | AT22: … | AU22: … | AV22: … | AW22: … | AX22: … | AY22: … | AZ22: … | BA22: … | BB22: … | BC22: … | BD22: … | BE22: … | BF22: … | BG22: … | BH22: … | BI22: … | BJ22: … | BK22: … | BL22: … | BM22: … | BN22: … | BO22: … | BP22: … | BQ22: … | BR22: … | BS22: … | BT22: … | BU22: … | BV22: … | BW22: … | BX22: … | BY22: … | BZ22: … | CA22: … | CB22: … | CC22: … | CD22: … | CE22: … | CF22: … | CG22: … | CH22: … | CI22: … | CJ22: … | CK22: … | CL22: … | CM22: … | CN22: … | CO22: … | CP22: … | CQ22: … | CS22: =Model!$I$184 -> CapBY. | CT22: … | CU22: =Model!$I$467 -> dDwlNwI. | CV22: … | CW22: fts. | CX22: Transformation | CY22: lookup | CZ22: su | DA22: … | DB22: … | DC22: … | DD22: … | DE22: … | DF22: … | DG22: … | DH22: Capacity in the model base year. Calculated by summing the capacity required series in the Model sheet for periods equal to the model base year (i.e. looks up the value for the model base year). Assumes that no spare capacity above what is required is installed. | DI22: … | DJ22: … | DK22: Amber | DL22: … | DM22: … | DN22: … | DO22: … | DP22: … | DQ22: … | DR22: ="= SUMIFS(CapReq."&CU22&", Prd., BY.)" -> = SUMIFS(CapReq.dDwlNwI., Prd., BY.)
A23: Const | E23: BHT. | F23: … | G23: CapBY.dCnsv.fts. | H23: =Model!J2757 -> Dwellings | I23: =SUMIFS(CapReq.dCnsv., Prd., BY.) -> 0 | J23: … | K23: … | L23: … | M23: … | N23: … | O23: … | P23: … | Q23: … | R23: … | S23: … | T23: … | U23: … | V23: … | W23: … | X23: … | Y23: … | Z23: … | AA23: … | AB23: … | AC23: … | AD23: … | AE23: … | AF23: … | AG23: … | AH23: … | AI23: … | AJ23: … | AK23: … | AL23: … | AM23: … | AN23: … | AO23: … | AP23: … | AQ23: … | AR23: … | AS23: … | AT23: … | AU23: … | AV23: … | AW23: … | AX23: … | AY23: … | AZ23: … | BA23: … | BB23: … | BC23: … | BD23: … | BE23: … | BF23: … | BG23: … | BH23: … | BI23: … | BJ23: … | BK23: … | BL23: … | BM23: … | BN23: … | BO23: … | BP23: … | BQ23: … | BR23: … | BS23: … | BT23: … | BU23: … | BV23: … | BW23: … | BX23: … | BY23: … | BZ23: … | CA23: … | CB23: … | CC23: … | CD23: … | CE23: … | CF23: … | CG23: … | CH23: … | CI23: … | CJ23: … | CK23: … | CL23: … | CM23: … | CN23: … | CO23: … | CP23: … | CQ23: … | CS23: =Model!$I$184 -> CapBY. | CT23: … | CU23: =Model!$I$478 -> dCnsv. | CV23: … | CW23: fts. | CX23: Transformation | CY23: lookup | CZ23: su | DA23: … | DB23: … | DC23: … | DD23: … | DE23: … | DF23: … | DG23: … | DH23: Capacity in the model base year. Calculated by summing the capacity required series in the Model sheet for periods equal to the model base year (i.e. looks up the value for the model base year). Assumes that no spare capacity above what is required is installed. | DI23: … | DJ23: … | DK23: Amber | DL23: … | DM23: … | DN23: … | DO23: … | DP23: … | DQ23: … | DR23: = SUMIFS(CapReq.dCnsv., Prd., BY.)
A24: Const | E24: BHT. | F24: … | G24: CapBY.dHPoversized.fts. | H24: =Model!J2758 -> Dwellings | I24: =SUMIFS(CapReq.dHPoversized., Prd., BY.) -> 0 | J24: … | K24: … | L24: … | M24: … | N24: … | O24: … | P24: … | Q24: … | R24: … | S24: … | T24: … | U24: … | V24: … | W24: … | X24: … | Y24: … | Z24: … | AA24: … | AB24: … | AC24: … | AD24: … | AE24: … | AF24: … | AG24: … | AH24: … | AI24: … | AJ24: … | AK24: … | AL24: … | AM24: … | AN24: … | AO24: … | AP24: … | AQ24: … | AR24: … | AS24: … | AT24: … | AU24: … | AV24: … | AW24: … | AX24: … | AY24: … | AZ24: … | BA24: … | BB24: … | BC24: … | BD24: … | BE24: … | BF24: … | BG24: … | BH24: … | BI24: … | BJ24: … | BK24: … | BL24: … | BM24: … | BN24: … | BO24: … | BP24: … | BQ24: … | BR24: … | BS24: … | BT24: … | BU24: … | BV24: … | BW24: … | BX24: … | BY24: … | BZ24: … | CA24: … | CB24: … | CC24: … | CD24: … | CE24: … | CF24: … | CG24: … | CH24: … | CI24: … | CJ24: … | CK24: … | CL24: … | CM24: … | CN24: … | CO24: … | CP24: … | CQ24: … | CS24: =Model!$I$184 -> CapBY. | CT24: … | CU24: =Model!$I$500 -> dHPoversized. | CV24: … | CW24: fts. | CX24: Transformation | CY24: lookup | CZ24: su | DA24: … | DB24: … | DC24: … | DD24: … | DE24: … | DF24: … | DG24: … | DH24: Capacity in the model base year. Calculated by summing the capacity required series in the Model sheet for periods equal to the model base year (i.e. looks up the value for the model base year). Assumes that no spare capacity above what is required is installed. | DI24: … | DJ24: … | DK24: Amber | DL24: … | DM24: … | DN24: … | DO24: … | DP24: … | DQ24: … | DR24: = SUMIFS(CapReq.dHPoversized., Prd., BY.)
A25: Const | E25: BHT. | F25: … | G25: CapBY.dElcGrdR.fts. | H25: =Model!J2759 -> Dwellings | I25: =SUMIFS(CapReq.dElcGrdR., Prd., BY.) -> 0 | J25: … | K25: … | L25: … | M25: … | N25: … | O25: … | P25: … | Q25: … | R25: … | S25: … | T25: … | U25: … | V25: … | W25: … | X25: … | Y25: … | Z25: … | AA25: … | AB25: … | AC25: … | AD25: … | AE25: … | AF25: … | AG25: … | AH25: … | AI25: … | AJ25: … | AK25: … | AL25: … | AM25: … | AN25: … | AO25: … | AP25: … | AQ25: … | AR25: … | AS25: … | AT25: … | AU25: … | AV25: … | AW25: … | AX25: … | AY25: … | AZ25: … | BA25: … | BB25: … | BC25: … | BD25: … | BE25: … | BF25: … | BG25: … | BH25: … | BI25: … | BJ25: … | BK25: … | BL25: … | BM25: … | BN25: … | BO25: … | BP25: … | BQ25: … | BR25: … | BS25: … | BT25: … | BU25: … | BV25: … | BW25: … | BX25: … | BY25: … | BZ25: … | CA25: … | CB25: … | CC25: … | CD25: … | CE25: … | CF25: … | CG25: … | CH25: … | CI25: … | CJ25: … | CK25: … | CL25: … | CM25: … | CN25: … | CO25: … | CP25: … | CQ25: … | CS25: =Model!$I$184 -> CapBY. | CT25: … | CU25: =Model!$I$484 -> dElcGrdR. | CV25: … | CW25: fts. | CX25: Transformation | CY25: lookup | CZ25: su | DA25: … | DB25: … | DC25: … | DD25: … | DE25: … | DF25: … | DG25: … | DH25: Capacity in the model base year. Calculated by summing the capacity required series in the Model sheet for periods equal to the model base year (i.e. looks up the value for the model base year). Assumes that no spare capacity above what is required is installed. | DI25: … | DJ25: … | DK25: Amber | DL25: … | DM25: … | DN25: … | DO25: … | DP25: … | DQ25: … | DR25: = SUMIFS(CapReq.dElcGrdR., Prd., BY.)
A26: Const | E26: BHT. | F26: … | G26: CapBY.dH2cnv.fts. | H26: =Model!J2760 -> Dwellings | I26: =SUMIFS(CapReq.dH2cnv., Prd., BY.) -> 0 | J26: … | K26: … | L26: … | M26: … | N26: … | O26: … | P26: … | Q26: … | R26: … | S26: … | T26: … | U26: … | V26: … | W26: … | X26: … | Y26: … | Z26: … | AA26: … | AB26: … | AC26: … | AD26: … | AE26: … | AF26: … | AG26: … | AH26: … | AI26: … | AJ26: … | AK26: … | AL26: … | AM26: … | AN26: … | AO26: … | AP26: … | AQ26: … | AR26: … | AS26: … | AT26: … | AU26: … | AV26: … | AW26: … | AX26: … | AY26: … | AZ26: … | BA26: … | BB26: … | BC26: … | BD26: … | BE26: … | BF26: … | BG26: … | BH26: … | BI26: … | BJ26: … | BK26: … | BL26: … | BM26: … | BN26: … | BO26: … | BP26: … | BQ26: … | BR26: … | BS26: … | BT26: … | BU26: … | BV26: … | BW26: … | BX26: … | BY26: … | BZ26: … | CA26: … | CB26: … | CC26: … | CD26: … | CE26: … | CF26: … | CG26: … | CH26: … | CI26: … | CJ26: … | CK26: … | CL26: … | CM26: … | CN26: … | CO26: … | CP26: … | CQ26: … | CS26: =Model!$I$184 -> CapBY. | CT26: … | CU26: =Model!$I$480 -> dH2cnv. | CV26: … | CW26: fts. | CX26: Transformation | CY26: lookup | CZ26: su | DA26: … | DB26: … | DC26: … | DD26: … | DE26: … | DF26: … | DG26: … | DH26: Capacity in the model base year. Calculated by summing the capacity required series in the Model sheet for periods equal to the model base year (i.e. looks up the value for the model base year). Assumes that no spare capacity above what is required is installed. | DI26: … | DJ26: … | DK26: Amber | DL26: … | DM26: … | DN26: … | DO26: … | DP26: … | DQ26: … | DR26: = SUMIFS(CapReq.dH2cnv., Prd., BY.)
A27: Const | E27: BHT. | F27: … | G27: =SUBSTITUTE(CS27 & CT27 & CU27 & CV27 & CW27, "…", "") -> CapBY.nDHN.fts. | H27: =Model!J2762 -> sqm. floor area | I27: =SUMIFS(CapReq.nDHN., Prd., BY.) -> 0 | J27: … | K27: … | L27: … | M27: … | N27: … | O27: … | P27: … | Q27: … | R27: … | S27: … | T27: … | U27: … | V27: … | W27: … | X27: … | Y27: … | Z27: … | AA27: … | AB27: … | AC27: … | AD27: … | AE27: … | AF27: … | AG27: … | AH27: … | AI27: … | AJ27: … | AK27: … | AL27: … | AM27: … | AN27: … | AO27: … | AP27: … | AQ27: … | AR27: … | AS27: … | AT27: … | AU27: … | AV27: … | AW27: … | AX27: … | AY27: … | AZ27: … | BA27: … | BB27: … | BC27: … | BD27: … | BE27: … | BF27: … | BG27: … | BH27: … | BI27: … | BJ27: … | BK27: … | BL27: … | BM27: … | BN27: … | BO27: … | BP27: … | BQ27: … | BR27: … | BS27: … | BT27: … | BU27: … | BV27: … | BW27: … | BX27: … | BY27: … | BZ27: … | CA27: … | CB27: … | CC27: … | CD27: … | CE27: … | CF27: … | CG27: … | CH27: … | CI27: … | CJ27: … | CK27: … | CL27: … | CM27: … | CN27: … | CO27: … | CP27: … | CQ27: … | CS27: =Model!$I$184 -> CapBY. | CT27: … | CU27: =Model!$I$512 -> nDHN. | CV27: … | CW27: fts. | CX27: Transformation | CY27: lookup | CZ27: su | DA27: … | DB27: … | DC27: … | DD27: … | DE27: … | DF27: … | DG27: … | DH27: Capacity in the model base year. Calculated by summing the capacity required series in the Model sheet for periods equal to the model base year (i.e. looks up the value for the model base year). Assumes that no spare capacity above what is required is installed. | DI27: … | DJ27: … | DK27: Amber | DL27: … | DM27: … | DN27: … | DO27: … | DP27: … | DQ27: … | DR27: = SUMIFS(CapReq.nDHN., Prd., BY.)
A28: Const | E28: BHT. | F28: … | G28: =SUBSTITUTE(CS28 & CT28 & CU28 & CV28 & CW28, "…", "") -> CapBY.nHPA.fts. | H28: =Model!J2763 -> sqm. floor area | I28: =SUMIFS(CapReq.nHPA., Prd., BY.) -> 0 | J28: … | K28: … | L28: … | M28: … | N28: … | O28: … | P28: … | Q28: … | R28: … | S28: … | T28: … | U28: … | V28: … | W28: … | X28: … | Y28: … | Z28: … | AA28: … | AB28: … | AC28: … | AD28: … | AE28: … | AF28: … | AG28: … | AH28: … | AI28: … | AJ28: … | AK28: … | AL28: … | AM28: … | AN28: … | AO28: … | AP28: … | AQ28: … | AR28: … | AS28: … | AT28: … | AU28: … | AV28: … | AW28: … | AX28: … | AY28: … | AZ28: … | BA28: … | BB28: … | BC28: … | BD28: … | BE28: … | BF28: … | BG28: … | BH28: … | BI28: … | BJ28: … | BK28: … | BL28: … | BM28: … | BN28: … | BO28: … | BP28: … | BQ28: … | BR28: … | BS28: … | BT28: … | BU28: … | BV28: … | BW28: … | BX28: … | BY28: … | BZ28: … | CA28: … | CB28: … | CC28: … | CD28: … | CE28: … | CF28: … | CG28: … | CH28: … | CI28: … | CJ28: … | CK28: … | CL28: … | CM28: … | CN28: … | CO28: … | CP28: … | CQ28: … | CS28: =Model!$I$184 -> CapBY. | CT28: … | CU28: =Model!$I$509 -> nHPA. | CV28: … | CW28: fts. | CX28: Transformation | CY28: lookup | CZ28: su | DA28: … | DB28: … | DC28: … | DD28: … | DE28: … | DF28: … | DG28: … | DH28: Capacity in the model base year. Calculated by summing the capacity required series in the Model sheet for periods equal to the model base year (i.e. looks up the value for the model base year). Assumes that no spare capacity above what is required is installed. | DI28: … | DJ28: … | DK28: Amber | DL28: … | DM28: … | DN28: … | DO28: … | DP28: … | DQ28: … | DR28: ="= SUMIFS(CapReq."&CU28&", Prd., BY.)" -> = SUMIFS(CapReq.nHPA., Prd., BY.)
A29: Const | E29: BHT. | F29: … | G29: CapBY.nHPG.fts. | H29: =Model!J2764 -> sqm. floor area | I29: =SUMIFS(CapReq.nHPG., Prd., BY.) -> 0 | J29: … | K29: … | L29: … | M29: … | N29: … | O29: … | P29: … | Q29: … | R29: … | S29: … | T29: … | U29: … | V29: … | W29: … | X29: … | Y29: … | Z29: … | AA29: … | AB29: … | AC29: … | AD29: … | AE29: … | AF29: … | AG29: … | AH29: … | AI29: … | AJ29: … | AK29: … | AL29: … | AM29: … | AN29: … | AO29: … | AP29: … | AQ29: … | AR29: … | AS29: … | AT29: … | AU29: … | AV29: … | AW29: … | AX29: … | AY29: … | AZ29: … | BA29: … | BB29: … | BC29: … | BD29: … | BE29: … | BF29: … | BG29: … | BH29: … | BI29: … | BJ29: … | BK29: … | BL29: … | BM29: … | BN29: … | BO29: … | BP29: … | BQ29: … | BR29: … | BS29: … | BT29: … | BU29: … | BV29: … | BW29: … | BX29: … | BY29: … | BZ29: … | CA29: … | CB29: … | CC29: … | CD29: … | CE29: … | CF29: … | CG29: … | CH29: … | CI29: … | CJ29: … | CK29: … | CL29: … | CM29: … | CN29: … | CO29: … | CP29: … | CQ29: … | CS29: =Model!$I$184 -> CapBY. | CT29: … | CU29: =Model!$I$510 -> nHPG. | CV29: … | CW29: fts. | CX29: Transformation | CY29: lookup | CZ29: su | DA29: … | DB29: … | DC29: … | DD29: … | DE29: … | DF29: … | DG29: … | DH29: Capacity in the model base year. Calculated by summing the capacity required series in the Model sheet for periods equal to the model base year (i.e. looks up the value for the model base year). Assumes that no spare capacity above what is required is installed. | DI29: … | DJ29: … | DK29: Amber | DL29: … | DM29: … | DN29: … | DO29: … | DP29: … | DQ29: … | DR29: = SUMIFS(CapReq.nHPG., Prd., BY.)
A30: Const | E30: BHT. | F30: … | G30: CapBY.nHyb.fts. | H30: =Model!J2765 -> sqm. floor area | I30: =SUMIFS(CapReq.nHyb., Prd., BY.) -> 0 | J30: … | K30: … | L30: … | M30: … | N30: … | O30: … | P30: … | Q30: … | R30: … | S30: … | T30: … | U30: … | V30: … | W30: … | X30: … | Y30: … | Z30: … | AA30: … | AB30: … | AC30: … | AD30: … | AE30: … | AF30: … | AG30: … | AH30: … | AI30: … | AJ30: … | AK30: … | AL30: … | AM30: … | AN30: … | AO30: … | AP30: … | AQ30: … | AR30: … | AS30: … | AT30: … | AU30: … | AV30: … | AW30: … | AX30: … | AY30: … | AZ30: … | BA30: … | BB30: … | BC30: … | BD30: … | BE30: … | BF30: … | BG30: … | BH30: … | BI30: … | BJ30: … | BK30: … | BL30: … | BM30: … | BN30: … | BO30: … | BP30: … | BQ30: … | BR30: … | BS30: … | BT30: … | BU30: … | BV30: … | BW30: … | BX30: … | BY30: … | BZ30: … | CA30: … | CB30: … | CC30: … | CD30: … | CE30: … | CF30: … | CG30: … | CH30: … | CI30: … | CJ30: … | CK30: … | CL30: … | CM30: … | CN30: … | CO30: … | CP30: … | CQ30: … | CS30: =Model!$I$184 -> CapBY. | CT30: … | CU30: =Model!$I$511 -> nHyb. | CV30: … | CW30: fts. | CX30: Transformation | CY30: lookup | CZ30: su | DA30: … | DB30: … | DC30: … | DD30: … | DE30: … | DF30: … | DG30: … | DH30: Capacity in the model base year. Calculated by summing the capacity required series in the Model sheet for periods equal to the model base year (i.e. looks up the value for the model base year). Assumes that no spare capacity above what is required is installed. | DI30: … | DJ30: … | DK30: Amber | DL30: … | DM30: … | DN30: … | DO30: … | DP30: … | DQ30: … | DR30: ="= SUMIFS(CapReq."&CU30&", Prd., BY.)" -> = SUMIFS(CapReq.nHyb., Prd., BY.)
A31: Const | E31: BHT. | F31: … | G31: CapBY.nblO.fts. | H31: =Model!J2766 -> sqm. floor area | I31: =SUMIFS(CapReq.nblO., Prd., BY.) -> 0 | J31: … | K31: … | L31: … | M31: … | N31: … | O31: … | P31: … | Q31: … | R31: … | S31: … | T31: … | U31: … | V31: … | W31: … | X31: … | Y31: … | Z31: … | AA31: … | AB31: … | AC31: … | AD31: … | AE31: … | AF31: … | AG31: … | AH31: … | AI31: … | AJ31: … | AK31: … | AL31: … | AM31: … | AN31: … | AO31: … | AP31: … | AQ31: … | AR31: … | AS31: … | AT31: … | AU31: … | AV31: … | AW31: … | AX31: … | AY31: … | AZ31: … | BA31: … | BB31: … | BC31: … | BD31: … | BE31: … | BF31: … | BG31: … | BH31: … | BI31: … | BJ31: … | BK31: … | BL31: … | BM31: … | BN31: … | BO31: … | BP31: … | BQ31: … | BR31: … | BS31: … | BT31: … | BU31: … | BV31: … | BW31: … | BX31: … | BY31: … | BZ31: … | CA31: … | CB31: … | CC31: … | CD31: … | CE31: … | CF31: … | CG31: … | CH31: … | CI31: … | CJ31: … | CK31: … | CL31: … | CM31: … | CN31: … | CO31: … | CP31: … | CQ31: … | CS31: =Model!$I$184 -> CapBY. | CT31: … | CU31: =Model!$I$503 -> nblO. | CV31: … | CW31: fts. | CX31: Transformation | CY31: lookup | CZ31: su | DA31: … | DB31: … | DC31: … | DD31: … | DE31: … | DF31: … | DG31: … | DH31: Capacity in the model base year. Calculated by summing the capacity required series in the Model sheet for periods equal to the model base year (i.e. looks up the value for the model base year). Assumes that no spare capacity above what is required is installed. | DI31: … | DJ31: … | DK31: Amber | DL31: … | DM31: … | DN31: … | DO31: … | DP31: … | DQ31: … | DR31: = SUMIFS(CapReq.nblO., Prd., BY.)
A32: Const | E32: BHT. | F32: … | G32: CapBY.nblS.fts. | H32: =Model!J2767 -> sqm. floor area | I32: =SUMIFS(CapReq.nblS., Prd., BY.) -> 0 | J32: … | K32: … | L32: … | M32: … | N32: … | O32: … | P32: … | Q32: … | R32: … | S32: … | T32: … | U32: … | V32: … | W32: … | X32: … | Y32: … | Z32: … | AA32: … | AB32: … | AC32: … | AD32: … | AE32: … | AF32: … | AG32: … | AH32: … | AI32: … | AJ32: … | AK32: … | AL32: … | AM32: … | AN32: … | AO32: … | AP32: … | AQ32: … | AR32: … | AS32: … | AT32: … | AU32: … | AV32: … | AW32: … | AX32: … | AY32: … | AZ32: … | BA32: … | BB32: … | BC32: … | BD32: … | BE32: … | BF32: … | BG32: … | BH32: … | BI32: … | BJ32: … | BK32: … | BL32: … | BM32: … | BN32: … | BO32: … | BP32: … | BQ32: … | BR32: … | BS32: … | BT32: … | BU32: … | BV32: … | BW32: … | BX32: … | BY32: … | BZ32: … | CA32: … | CB32: … | CC32: … | CD32: … | CE32: … | CF32: … | CG32: … | CH32: … | CI32: … | CJ32: … | CK32: … | CL32: … | CM32: … | CN32: … | CO32: … | CP32: … | CQ32: … | CS32: =Model!$I$184 -> CapBY. | CT32: … | CU32: =Model!$I$504 -> nblS. | CV32: … | CW32: fts. | CX32: Transformation | CY32: lookup | CZ32: su | DA32: … | DB32: … | DC32: … | DD32: … | DE32: … | DF32: … | DG32: … | DH32: Capacity in the model base year. Calculated by summing the capacity required series in the Model sheet for periods equal to the model base year (i.e. looks up the value for the model base year). Assumes that no spare capacity above what is required is installed. | DI32: … | DJ32: … | DK32: Amber | DL32: … | DM32: … | DN32: … | DO32: … | DP32: … | DQ32: … | DR32: = SUMIFS(CapReq.nblS., Prd., BY.)
A33: Const | E33: BHT. | F33: … | G33: CapBY.nblG.fts. | H33: =Model!J2768 -> sqm. floor area | I33: =SUMIFS(CapReq.nblG., Prd., BY.) -> 0 | J33: … | K33: … | L33: … | M33: … | N33: … | O33: … | P33: … | Q33: … | R33: … | S33: … | T33: … | U33: … | V33: … | W33: … | X33: … | Y33: … | Z33: … | AA33: … | AB33: … | AC33: … | AD33: … | AE33: … | AF33: … | AG33: … | AH33: … | AI33: … | AJ33: … | AK33: … | AL33: … | AM33: … | AN33: … | AO33: … | AP33: … | AQ33: … | AR33: … | AS33: … | AT33: … | AU33: … | AV33: … | AW33: … | AX33: … | AY33: … | AZ33: … | BA33: … | BB33: … | BC33: … | BD33: … | BE33: … | BF33: … | BG33: … | BH33: … | BI33: … | BJ33: … | BK33: … | BL33: … | BM33: … | BN33: … | BO33: … | BP33: … | BQ33: … | BR33: … | BS33: … | BT33: … | BU33: … | BV33: … | BW33: … | BX33: … | BY33: … | BZ33: … | CA33: … | CB33: … | CC33: … | CD33: … | CE33: … | CF33: … | CG33: … | CH33: … | CI33: … | CJ33: … | CK33: … | CL33: … | CM33: … | CN33: … | CO33: … | CP33: … | CQ33: … | CS33: =Model!$I$184 -> CapBY. | CT33: … | CU33: =Model!$I$502 -> nblG. | CV33: … | CW33: fts. | CX33: Transformation | CY33: lookup | CZ33: su | DA33: … | DB33: … | DC33: … | DD33: … | DE33: … | DF33: … | DG33: … | DH33: Capacity in the model base year. Calculated by summing the capacity required series in the Model sheet for periods equal to the model base year (i.e. looks up the value for the model base year). Assumes that no spare capacity above what is required is installed. | DI33: … | DJ33: … | DK33: Amber | DL33: … | DM33: … | DN33: … | DO33: … | DP33: … | DQ33: … | DR33: ="= SUMIFS(CapReq."&CU33&", Prd., BY.)" -> = SUMIFS(CapReq.nblG., Prd., BY.)
A34: Const | E34: BHT. | F34: … | G34: CapBY.nhtE.fts. | H34: =Model!J2769 -> sqm. floor area | I34: =SUMIFS(CapReq.nhtE., Prd., BY.) -> 611500.5006 | J34: … | K34: … | L34: … | M34: … | N34: … | O34: … | P34: … | Q34: … | R34: … | S34: … | T34: … | U34: … | V34: … | W34: … | X34: … | Y34: … | Z34: … | AA34: … | AB34: … | AC34: … | AD34: … | AE34: … | AF34: … | AG34: … | AH34: … | AI34: … | AJ34: … | AK34: … | AL34: … | AM34: … | AN34: … | AO34: … | AP34: … | AQ34: … | AR34: … | AS34: … | AT34: … | AU34: … | AV34: … | AW34: … | AX34: … | AY34: … | AZ34: … | BA34: … | BB34: … | BC34: … | BD34: … | BE34: … | BF34: … | BG34: … | BH34: … | BI34: … | BJ34: … | BK34: … | BL34: … | BM34: … | BN34: … | BO34: … | BP34: … | BQ34: … | BR34: … | BS34: … | BT34: … | BU34: … | BV34: … | BW34: … | BX34: … | BY34: … | BZ34: … | CA34: … | CB34: … | CC34: … | CD34: … | CE34: … | CF34: … | CG34: … | CH34: … | CI34: … | CJ34: … | CK34: … | CL34: … | CM34: … | CN34: … | CO34: … | CP34: … | CQ34: … | CS34: =Model!$I$184 -> CapBY. | CT34: … | CU34: =Model!$I$505 -> nhtE. | CV34: … | CW34: fts. | CX34: Transformation | CY34: lookup | CZ34: su | DA34: … | DB34: … | DC34: … | DD34: … | DE34: … | DF34: … | DG34: … | DH34: Capacity in the model base year. Calculated by summing the capacity required series in the Model sheet for periods equal to the model base year (i.e. looks up the value for the model base year). Assumes that no spare capacity above what is required is installed. | DI34: … | DJ34: … | DK34: Amber | DL34: … | DM34: … | DN34: … | DO34: … | DP34: … | DQ34: … | DR34: = SUMIFS(CapReq.nhtE., Prd., BY.)
A35: Const | E35: BHT. | F35: … | G35: CapBY.nFlrNwI.fts. | H35: =Model!J2770 -> sqm. floor area | I35: =SUMIFS(CapReq.nFlrNwI., Prd., BY.) -> 0 | J35: … | K35: … | L35: … | M35: … | N35: … | O35: … | P35: … | Q35: … | R35: … | S35: … | T35: … | U35: … | V35: … | W35: … | X35: … | Y35: … | Z35: … | AA35: … | AB35: … | AC35: … | AD35: … | AE35: … | AF35: … | AG35: … | AH35: … | AI35: … | AJ35: … | AK35: … | AL35: … | AM35: … | AN35: … | AO35: … | AP35: … | AQ35: … | AR35: … | AS35: … | AT35: … | AU35: … | AV35: … | AW35: … | AX35: … | AY35: … | AZ35: … | BA35: … | BB35: … | BC35: … | BD35: … | BE35: … | BF35: … | BG35: … | BH35: … | BI35: … | BJ35: … | BK35: … | BL35: … | BM35: … | BN35: … | BO35: … | BP35: … | BQ35: … | BR35: … | BS35: … | BT35: … | BU35: … | BV35: … | BW35: … | BX35: … | BY35: … | BZ35: … | CA35: … | CB35: … | CC35: … | CD35: … | CE35: … | CF35: … | CG35: … | CH35: … | CI35: … | CJ35: … | CK35: … | CL35: … | CM35: … | CN35: … | CO35: … | CP35: … | CQ35: … | CS35: =Model!$I$184 -> CapBY. | CT35: … | CU35: =Model!$I$472 -> nFlrNwI. | CV35: … | CW35: fts. | CX35: Transformation | CY35: lookup | CZ35: su | DA35: … | DB35: … | DC35: … | DD35: … | DE35: … | DF35: … | DG35: … | DH35: Capacity in the model base year. Calculated by summing the capacity required series in the Model sheet for periods equal to the model base year (i.e. looks up the value for the model base year). Assumes that no spare capacity above what is required is installed. | DI35: … | DJ35: … | DK35: Amber | DL35: … | DM35: … | DN35: … | DO35: … | DP35: … | DQ35: … | DR35: ="= SUMIFS(CapReq."&CU35&", Prd., BY.)" -> = SUMIFS(CapReq.nFlrNwI., Prd., BY.)
A36: Const | E36: BHT. | F36: … | G36: CapBY.nCnsv.fts. | H36: =Model!J2771 -> sqm. floor area | I36: =SUMIFS(CapReq.nCnsv., Prd., BY.) -> 0 | J36: … | K36: … | L36: … | M36: … | N36: … | O36: … | P36: … | Q36: … | R36: … | S36: … | T36: … | U36: … | V36: … | W36: … | X36: … | Y36: … | Z36: … | AA36: … | AB36: … | AC36: … | AD36: … | AE36: … | AF36: … | AG36: … | AH36: … | AI36: … | AJ36: … | AK36: … | AL36: … | AM36: … | AN36: … | AO36: … | AP36: … | AQ36: … | AR36: … | AS36: … | AT36: … | AU36: … | AV36: … | AW36: … | AX36: … | AY36: … | AZ36: … | BA36: … | BB36: … | BC36: … | BD36: … | BE36: … | BF36: … | BG36: … | BH36: … | BI36: … | BJ36: … | BK36: … | BL36: … | BM36: … | BN36: … | BO36: … | BP36: … | BQ36: … | BR36: … | BS36: … | BT36: … | BU36: … | BV36: … | BW36: … | BX36: … | BY36: … | BZ36: … | CA36: … | CB36: … | CC36: … | CD36: … | CE36: … | CF36: … | CG36: … | CH36: … | CI36: … | CJ36: … | CK36: … | CL36: … | CM36: … | CN36: … | CO36: … | CP36: … | CQ36: … | CS36: =Model!$I$184 -> CapBY. | CT36: … | CU36: =Model!$I$479 -> nCnsv. | CV36: … | CW36: fts. | CX36: Transformation | CY36: lookup | CZ36: su | DA36: … | DB36: … | DC36: … | DD36: … | DE36: … | DF36: … | DG36: … | DH36: Capacity in the model base year. Calculated by summing the capacity required series in the Model sheet for periods equal to the model base year (i.e. looks up the value for the model base year). Assumes that no spare capacity above what is required is installed. | DI36: … | DJ36: … | DK36: Amber | DL36: … | DM36: … | DN36: … | DO36: … | DP36: … | DQ36: … | DR36: = SUMIFS(CapReq.nCnsv., Prd., BY.)
A37: Const | E37: BHT. | F37: … | G37: CapBY.nHPoversized.fts. | H37: =Model!J2772 -> sqm. floor area | I37: =SUMIFS(CapReq.nHPoversized., Prd., BY.) -> 0 | J37: … | K37: … | L37: … | M37: … | N37: … | O37: … | P37: … | Q37: … | R37: … | S37: … | T37: … | U37: … | V37: … | W37: … | X37: … | Y37: … | Z37: … | AA37: … | AB37: … | AC37: … | AD37: … | AE37: … | AF37: … | AG37: … | AH37: … | AI37: … | AJ37: … | AK37: … | AL37: … | AM37: … | AN37: … | AO37: … | AP37: … | AQ37: … | AR37: … | AS37: … | AT37: … | AU37: … | AV37: … | AW37: … | AX37: … | AY37: … | AZ37: … | BA37: … | BB37: … | BC37: … | BD37: … | BE37: … | BF37: … | BG37: … | BH37: … | BI37: … | BJ37: … | BK37: … | BL37: … | BM37: … | BN37: … | BO37: … | BP37: … | BQ37: … | BR37: … | BS37: … | BT37: … | BU37: … | BV37: … | BW37: … | BX37: … | BY37: … | BZ37: … | CA37: … | CB37: … | CC37: … | CD37: … | CE37: … | CF37: … | CG37: … | CH37: … | CI37: … | CJ37: … | CK37: … | CL37: … | CM37: … | CN37: … | CO37: … | CP37: … | CQ37: … | CS37: =Model!$I$184 -> CapBY. | CT37: … | CU37: =Model!$I$515 -> nHPoversized. | CV37: … | CW37: fts. | CX37: Transformation | CY37: lookup | CZ37: su | DA37: … | DB37: … | DC37: … | DD37: … | DE37: … | DF37: … | DG37: … | DH37: Capacity in the model base year. Calculated by summing the capacity required series in the Model sheet for periods equal to the model base year (i.e. looks up the value for the model base year). Assumes that no spare capacity above what is required is installed. | DI37: … | DJ37: … | DK37: Amber | DL37: … | DM37: … | DN37: … | DO37: … | DP37: … | DQ37: … | DR37: = SUMIFS(CapReq.nHPoversized., Prd., BY.)
A38: Const | E38: BHT. | F38: … | G38: CapBY.nElcGrdR.fts. | H38: =Model!J2773 -> sqm. floor area | I38: =SUMIFS(CapReq.nElcGrdR., Prd., BY.) -> 0 | J38: … | K38: … | L38: … | M38: … | N38: … | O38: … | P38: … | Q38: … | R38: … | S38: … | T38: … | U38: … | V38: … | W38: … | X38: … | Y38: … | Z38: … | AA38: … | AB38: … | AC38: … | AD38: … | AE38: … | AF38: … | AG38: … | AH38: … | AI38: … | AJ38: … | AK38: … | AL38: … | AM38: … | AN38: … | AO38: … | AP38: … | AQ38: … | AR38: … | AS38: … | AT38: … | AU38: … | AV38: … | AW38: … | AX38: … | AY38: … | AZ38: … | BA38: … | BB38: … | BC38: … | BD38: … | BE38: … | BF38: … | BG38: … | BH38: … | BI38: … | BJ38: … | BK38: … | BL38: … | BM38: … | BN38: … | BO38: … | BP38: … | BQ38: … | BR38: … | BS38: … | BT38: … | BU38: … | BV38: … | BW38: … | BX38: … | BY38: … | BZ38: … | CA38: … | CB38: … | CC38: … | CD38: … | CE38: … | CF38: … | CG38: … | CH38: … | CI38: … | CJ38: … | CK38: … | CL38: … | CM38: … | CN38: … | CO38: … | CP38: … | CQ38: … | CS38: =Model!$I$184 -> CapBY. | CT38: … | CU38: =Model!$I$485 -> nElcGrdR. | CV38: … | CW38: fts. | CX38: Transformation | CY38: lookup | CZ38: su | DA38: … | DB38: … | DC38: … | DD38: … | DE38: … | DF38: … | DG38: … | DH38: Capacity in the model base year. Calculated by summing the capacity required series in the Model sheet for periods equal to the model base year (i.e. looks up the value for the model base year). Assumes that no spare capacity above what is required is installed. | DI38: … | DJ38: … | DK38: Amber | DL38: … | DM38: … | DN38: … | DO38: … | DP38: … | DQ38: … | DR38: = SUMIFS(CapReq.nElcGrdR., Prd., BY.)
A39: Const | E39: BHT. | F39: … | G39: CapBY.nH2cnv.fts. | H39: =Model!J2774 -> sqm. floor area | I39: =SUMIFS(CapReq.nH2cnv., Prd., BY.) -> 0 | J39: … | K39: … | L39: … | M39: … | N39: … | O39: … | P39: … | Q39: … | R39: … | S39: … | T39: … | U39: … | V39: … | W39: … | X39: … | Y39: … | Z39: … | AA39: … | AB39: … | AC39: … | AD39: … | AE39: … | AF39: … | AG39: … | AH39: … | AI39: … | AJ39: … | AK39: … | AL39: … | AM39: … | AN39: … | AO39: … | AP39: … | AQ39: … | AR39: … | AS39: … | AT39: … | AU39: … | AV39: … | AW39: … | AX39: … | AY39: … | AZ39: … | BA39: … | BB39: … | BC39: … | BD39: … | BE39: … | BF39: … | BG39: … | BH39: … | BI39: … | BJ39: … | BK39: … | BL39: … | BM39: … | BN39: … | BO39: … | BP39: … | BQ39: … | BR39: … | BS39: … | BT39: … | BU39: … | BV39: … | BW39: … | BX39: … | BY39: … | BZ39: … | CA39: … | CB39: … | CC39: … | CD39: … | CE39: … | CF39: … | CG39: … | CH39: … | CI39: … | CJ39: … | CK39: … | CL39: … | CM39: … | CN39: … | CO39: … | CP39: … | CQ39: … | CS39: =Model!$I$184 -> CapBY. | CT39: … | CU39: =Model!$I$481 -> nH2cnv. | CV39: … | CW39: fts. | CX39: Transformation | CY39: lookup | CZ39: su | DA39: … | DB39: … | DC39: … | DD39: … | DE39: … | DF39: … | DG39: … | DH39: Capacity in the model base year. Calculated by summing the capacity required series in the Model sheet for periods equal to the model base year (i.e. looks up the value for the model base year). Assumes that no spare capacity above what is required is installed. | DI39: … | DJ39: … | DK39: Amber | DL39: … | DM39: … | DN39: … | DO39: … | DP39: … | DQ39: … | DR39: = SUMIFS(CapReq.nH2cnv., Prd., BY.)
A40: Const | E40: GGS. | F40: … | G40: CapBY.ggDstGrd.fts. | H40: =Model!J5760 -> UNIT | I40: =SUMIFS(CapReq.ggDstGrd., Prd., BY.) -> 0 | J40: … | K40: … | L40: … | M40: … | N40: … | O40: … | P40: … | Q40: … | R40: … | S40: … | T40: … | U40: … | V40: … | W40: … | X40: … | Y40: … | Z40: … | AA40: … | AB40: … | AC40: … | AD40: … | AE40: … | AF40: … | AG40: … | AH40: … | AI40: … | AJ40: … | AK40: … | AL40: … | AM40: … | AN40: … | AO40: … | AP40: … | AQ40: … | AR40: … | AS40: … | AT40: … | AU40: … | AV40: … | AW40: … | AX40: … | AY40: … | AZ40: … | BA40: … | BB40: … | BC40: … | BD40: … | BE40: … | BF40: … | BG40: … | BH40: … | BI40: … | BJ40: … | BK40: … | BL40: … | BM40: … | BN40: … | BO40: … | BP40: … | BQ40: … | BR40: … | BS40: … | BT40: … | BU40: … | BV40: … | BW40: … | BX40: … | BY40: … | BZ40: … | CA40: … | CB40: … | CC40: … | CD40: … | CE40: … | CF40: … | CG40: … | CH40: … | CI40: … | CJ40: … | CK40: … | CL40: … | CM40: … | CN40: … | CO40: … | CP40: … | CQ40: … | CS40: =Model!$I$184 -> CapBY. | CT40: … | CU40: =Model!$I$557 -> ggDstGrd. | CV40: … | CW40: fts. | CX40: Transformation | CY40: lookup | CZ40: su | DA40: … | DB40: … | DC40: … | DD40: … | DE40: … | DF40: … | DG40: … | DH40: Capacity in the model base year. Calculated by summing the capacity required series in the Model sheet for periods equal to the model base year (i.e. looks up the value for the model base year). Assumes that no spare capacity above what is required is installed. | DI40: … | DJ40: … | DK40: Amber | DL40: … | DM40: … | DN40: … | DO40: … | DP40: … | DQ40: … | DR40: = SUMIFS(CapReq.ggDstGrd., Prd., BY.)
A41: Const | E41: GGS. | F41: … | G41: CapBY.ggDstH2.fts. | H41: =Model!J5761 -> UNIT | I41: =SUMIFS(CapReq.ggDstH2., Prd., BY.) -> 0 | J41: … | K41: … | L41: … | M41: … | N41: … | O41: … | P41: … | Q41: … | R41: … | S41: … | T41: … | U41: … | V41: … | W41: … | X41: … | Y41: … | Z41: … | AA41: … | AB41: … | AC41: … | AD41: … | AE41: … | AF41: … | AG41: … | AH41: … | AI41: … | AJ41: … | AK41: … | AL41: … | AM41: … | AN41: … | AO41: … | AP41: … | AQ41: … | AR41: … | AS41: … | AT41: … | AU41: … | AV41: … | AW41: … | AX41: … | AY41: … | AZ41: … | BA41: … | BB41: … | BC41: … | BD41: … | BE41: … | BF41: … | BG41: … | BH41: … | BI41: … | BJ41: … | BK41: … | BL41: … | BM41: … | BN41: … | BO41: … | BP41: … | BQ41: … | BR41: … | BS41: … | BT41: … | BU41: … | BV41: … | BW41: … | BX41: … | BY41: … | BZ41: … | CA41: … | CB41: … | CC41: … | CD41: … | CE41: … | CF41: … | CG41: … | CH41: … | CI41: … | CJ41: … | CK41: … | CL41: … | CM41: … | CN41: … | CO41: … | CP41: … | CQ41: … | CS41: =Model!$I$184 -> CapBY. | CT41: … | CU41: =Model!$I$558 -> ggDstH2. | CV41: … | CW41: fts. | CX41: Transformation | CY41: lookup | CZ41: su | DA41: … | DB41: … | DC41: … | DD41: … | DE41: … | DF41: … | DG41: … | DH41: Capacity in the model base year. Calculated by summing the capacity required series in the Model sheet for periods equal to the model base year (i.e. looks up the value for the model base year). Assumes that no spare capacity above what is required is installed. | DI41: … | DJ41: … | DK41: Amber | DL41: … | DM41: … | DN41: … | DO41: … | DP41: … | DQ41: … | DR41: = SUMIFS(CapReq.ggDstH2., Prd., BY.)
A42: Const | E42: GGS. | F42: … | G42: CapBY.ggTmsGrd.fts. | H42: =Model!J5762 -> UNIT | I42: =SUMIFS(CapReq.ggTmsGrd., Prd., BY.) -> 0 | J42: … | K42: … | L42: … | M42: … | N42: … | O42: … | P42: … | Q42: … | R42: … | S42: … | T42: … | U42: … | V42: … | W42: … | X42: … | Y42: … | Z42: … | AA42: … | AB42: … | AC42: … | AD42: … | AE42: … | AF42: … | AG42: … | AH42: … | AI42: … | AJ42: … | AK42: … | AL42: … | AM42: … | AN42: … | AO42: … | AP42: … | AQ42: … | AR42: … | AS42: … | AT42: … | AU42: … | AV42: … | AW42: … | AX42: … | AY42: … | AZ42: … | BA42: … | BB42: … | BC42: … | BD42: … | BE42: … | BF42: … | BG42: … | BH42: … | BI42: … | BJ42: … | BK42: … | BL42: … | BM42: … | BN42: … | BO42: … | BP42: … | BQ42: … | BR42: … | BS42: … | BT42: … | BU42: … | BV42: … | BW42: … | BX42: … | BY42: … | BZ42: … | CA42: … | CB42: … | CC42: … | CD42: … | CE42: … | CF42: … | CG42: … | CH42: … | CI42: … | CJ42: … | CK42: … | CL42: … | CM42: … | CN42: … | CO42: … | CP42: … | CQ42: … | CS42: =Model!$I$184 -> CapBY. | CT42: … | CU42: =Model!$I$560 -> ggTmsGrd. | CV42: … | CW42: fts. | CX42: Transformation | CY42: lookup | CZ42: su | DA42: … | DB42: … | DC42: … | DD42: … | DE42: … | DF42: … | DG42: … | DH42: Capacity in the model base year. Calculated by summing the capacity required series in the Model sheet for periods equal to the model base year (i.e. looks up the value for the model base year). Assumes that no spare capacity above what is required is installed. | DI42: … | DJ42: … | DK42: Amber | DL42: … | DM42: … | DN42: … | DO42: … | DP42: … | DQ42: … | DR42: = SUMIFS(CapReq.ggTmsGrd., Prd., BY.)
A43: Const | E43: GGS. | F43: … | G43: CapBY.ggTmsH2.fts. | H43: =Model!J5763 -> UNIT | I43: =SUMIFS(CapReq.ggTmsH2., Prd., BY.) -> 0 | J43: … | K43: … | L43: … | M43: … | N43: … | O43: … | P43: … | Q43: … | R43: … | S43: … | T43: … | U43: … | V43: … | W43: … | X43: … | Y43: … | Z43: … | AA43: … | AB43: … | AC43: … | AD43: … | AE43: … | AF43: … | AG43: … | AH43: … | AI43: … | AJ43: … | AK43: … | AL43: … | AM43: … | AN43: … | AO43: … | AP43: … | AQ43: … | AR43: … | AS43: … | AT43: … | AU43: … | AV43: … | AW43: … | AX43: … | AY43: … | AZ43: … | BA43: … | BB43: … | BC43: … | BD43: … | BE43: … | BF43: … | BG43: … | BH43: … | BI43: … | BJ43: … | BK43: … | BL43: … | BM43: … | BN43: … | BO43: … | BP43: … | BQ43: … | BR43: … | BS43: … | BT43: … | BU43: … | BV43: … | BW43: … | BX43: … | BY43: … | BZ43: … | CA43: … | CB43: … | CC43: … | CD43: … | CE43: … | CF43: … | CG43: … | CH43: … | CI43: … | CJ43: … | CK43: … | CL43: … | CM43: … | CN43: … | CO43: … | CP43: … | CQ43: … | CS43: =Model!$I$184 -> CapBY. | CT43: … | CU43: =Model!$I$561 -> ggTmsH2. | CV43: … | CW43: fts. | CX43: Transformation | CY43: lookup | CZ43: su | DA43: … | DB43: … | DC43: … | DD43: … | DE43: … | DF43: … | DG43: … | DH43: Capacity in the model base year. Calculated by summing the capacity required series in the Model sheet for periods equal to the model base year (i.e. looks up the value for the model base year). Assumes that no spare capacity above what is required is installed. | DI43: … | DJ43: … | DK43: Amber | DL43: … | DM43: … | DN43: … | DO43: … | DP43: … | DQ43: … | DR43: ="= SUMIFS(CapReq."&CU43&", Prd., BY.)" -> = SUMIFS(CapReq.ggTmsH2., Prd., BY.)
